Workbook

Sheet Navegacion (hidden)
A1: Secciones | B1: 6
A2: Datos generales | B2: DatosGenerales
A3: Patrimonio | B3: Patrimonio
A4: Rentas cedulares | B4: Ingresos
A5: Renta Presuntiva | B5: Renta_Presuntiva
A6: Liquidacion privada | B6: Liquidacion_privada
A7: Pagos | B7: Pagos

Sheet Retenciones (hidden)
Z2: =VLOOKUP(Z1,AY_DAT_GEN!A2:E53,5,0) -> 
B3: R 64. Total retenciones año gravable 2022
B4: CONCEPTO | C4: RETEFUENTE | Z4: AY_DAT_GEN
B5: R 35. Salarios y demás pagos laborales | C5: =Salarios_Demas_Pagos_Laborales!E60+Salarios_Demas_Pagos_Laborales!E61+Pagos_terceros!H28 -> 0
B6: R.36. Honorarios, Comisiones y Servicios | C6: ='Rentas_Trabajo_ Hon_Com'!G27 -> 0
B7: R 37. Intereses y rendimientos financieros | C7: =Inter_Rend_Finan!H27+Inter_Rend_Finan!H55+Inter_Rend_Finan!H83 -> 0
B8: R.38 Ventas | C8: =+Ventas!G27 -> 0
B9: R 38. Otros ingresos gravados (venta de inmuebles) | C9: =Venta_Inm_Dif_Casa_Hab!I21 -> 0
B10: R 38. Otros ingresos gravados (venta de acciones y aportes) | C10: =Venta_Acciones_Aportes!G21 -> 0
B11: R 38. Otros ingresos gravados ( Venta de activos fijos diferentes a inmuebles y acciones y aportes) | C11: =Venta_Activos_Fijos!E21 -> 0
B12: R 38. Otros ingresos rentas de capital
B13: R 38. Otros ingresos gravados no relacionados anteriormente renta de capital | C13: =Otros_Ing_No_Rel!F27 -> 0
B14: R 40. Otros ingresos no constitutivos de renta | C14: =Ing_No_Const_Renta_No_Lab!H58 -> 0
B15: R 40. Dividendos y participaciones | C15: =Dividendos_Participaciones!H27+'1a_Subcédula'!F27+'2a_Subcédula'!F27 -> 0
B16: R.53 Venta casa de habitación adquirida antes del 1 de enero de 1987. | C16: =+go!E6 -> 0
B17: R.53 Determinación de la Ganancia Ocasional venta de inmuebles diferente a la casa de habitación. | C17: =go!E31 -> 0
B18: R.53 Venta acciones y aportes. | C18: =go!E76 -> 0
B19: R.53 Venta de activos fijos diferentes a inmuebles y acciones y aportes. | C19: =go!E114 -> 0
B20: R.53 Asignación por causa de muerte o de la porción conyugal a los legitimarios o al cónyuge. | C20: =go!E133 -> 0
B21: R.53 Herencia o legado sin ser legitimario o cónyuge o de donaciones | C21: =go!E152 -> 0
B22: R.53 Premios en titulos de capitalización | C22: =go!F171 -> 0
B23: R.53 Premios de apuestas y concursos hipicos o caninos | C23: =go!E190 -> 0
B24: R 53, Utilidades de sociedades que fueron liquidadas | C24: =go!H209 -> 0
B25: R 53, Premios, loterias, rifas, apuestas y similares | C25: =go!F228+go!L228 -> 0
B26: Pensiones | C26: =Pensiones!H10+Pensiones!H22+Pensiones!H16 -> 0
B27: Rentas deudores Ley 1116 de 2006
B28: Honorarios rentas no laborales | C28: =Hon_Com_Serv!F27 -> 0
B29: Indemnización seguros de Vida | C29: =go!G231 -> 0
B32: TOTALES | C32: =ROUND((SUM(C5:C31))/1000,0)*1000 -> 0

Sheet go (hidden)
Z2: =VLOOKUP(Z1,AY_DAT_GEN!A2:E53,5,0) -> 
B3: R.55 Determinación de la Ganancia Ocasional cuando se vende la casa de habitación adquirida antes del 1 de enero de 1987.
B4: CONCEPTO | C4: AÑO DE ADQUISICIÓN | D4: VALOR VENTA | E4: RETENCIÒN EN LA FUENTE | F4: INGRESO NO CONSTITUTIVO DE GANANCIA OCASIONAL | H4: UTILIDAD ART 311-1 ET | I4: UTILIDAD EXENTA ART 311-1 ET | J4: VALOR DE VENTA EN EL EXTERIOR | Z4: AY_DAT_GEN
A5: =IF(Venta_Casa_Antes_1987!A7=0,"NO",Venta_Casa_Antes_1987!A7) -> NO | B5: =Venta_Casa_Antes_1987!B7 -> 0 | C5: =IF(AND(Venta_Casa_Antes_1987!C7<=1986,Venta_Casa_Antes_1987!C7>=1900),Venta_Casa_Antes_1987!C7,0) -> 0 | D5: =IF(A5=0,0,IF(AND(Venta_Casa_Antes_1987!C7<=1986,Venta_Casa_Antes_1987!C7>=1),Venta_Casa_Antes_1987!H7,0)) -> 0 | E5: =IF(A5="SI",0,IF(AND(Venta_Casa_Antes_1987!C7<=1986,Venta_Casa_Antes_1987!C7>=1900),Venta_Casa_Antes_1987!I7,0)) -> 0 | F5: =ROUND((G5)/1000,0)*1000 -> 0 | G5: =IF(C5=0,0,IF(C5>1986,0,IF(VLOOKUP(C5,'go casa'!$A$8:$B$125,2,0)*(D5-G11)>0,VLOOKUP(C5,'go casa'!$A$8:$B$125,2,0)*(D5-G11),0))) -> 0 | H5: =IF(D5=0,0,IF((D5-F11-G5)<0,0,D5-F11-G5)) -> 0 | I5: =IF(Venta_Casa_Antes_1987!J7="NO",0,IF(Venta_Casa_Antes_1987!J7="",0,ROUND(IF(AND(Venta_Casa_Antes_1987!J7="SI",go!H5>=5000*TOPES!C1),5000*TOPES!C1,IF(go!H5<5000*TOPES!C1,go!H5))/1000,0)*1000)) -> 0 | J5: =IF(A5="SI",ROUND((D5)/1000,0)*1000,0) -> 0
B6: TOTAL | D6: =IF(A5=0,0,IF(A5="SI",0,ROUND(D5/1000,0)*1000)) -> 0 | E6: =IF(D6=0,0,ROUND((E5)/1000,0)*1000) -> 0 | F6: =ROUND((F5)/1000,0)*1000 -> 0
D7: =IF(A5="NO",ROUND((D5)/1000,0)*1000,0) -> 0 | E7: =IF(D6=0,0,IF(MOD(SUM(E5),1000)=0,SUM(E5),IF(MOD(SUM(E5),1000)<501,SUM(E5)-MOD(SUM(E5),1000),SUM(E5)+(1000-MOD(SUM(E5),1000))))) -> 0 | F7: =IF(MOD(SUM(F5),1000)=0,SUM(F5),IF(MOD(SUM(F5),1000)<501,SUM(F5)-MOD(SUM(F5),1000),SUM(F5)+(1000-MOD(SUM(F5),1000)))) -> 0
B9: Costo Fiscal en la venta la casa de habitación adquirida antes del 1 de enero de 1987.
B10: TIPO DE BIEN | C10: VALOR DECLARADO EN RENTA AÑO ANTERIOR | D10: VALOR DECLARADO EN PREDIAL AÑO | E10: COSTO FÍSCAL AJUSTADO POR ARTÍCULO 73 E.T. Y/O VALOR DE ADQUISICIÒN | F10: TOTALCOSTO FÍSCAL DETERMINADO
B11: =+B5 -> 0 | C11: =IF(C5<=0,0,+Venta_Casa_Antes_1987!E7)+Venta_Casa_Antes_1987!G7 -> 0 | D11: =IF(C5<=0,0,Venta_Casa_Antes_1987!F7)+Venta_Casa_Antes_1987!G7 -> 0 | E11: =IF(C5<=0,0,IF(C5>=TOPES!$B$48,0,VLOOKUP(C5,'ajustes art. 73'!$A$6:$C$129,3)*Venta_Casa_Antes_1987!D7))+Venta_Casa_Antes_1987!G7 -> 0 | F11: =IF(D5=0,0,ROUND(G11/1000,0)*1000) -> 0 | G11: =IF(C5>=TOPES!$B$48,0,IF(MAX(C11:E11)>D5,H11,MAX(C11:E11))) -> 0 | H11: =IF(D5>=MAX(C11:E11),MAX(C11:E11),IF(AND(D11<D5,E11>D5,C11>D5),C11,IF(C11>D5,MAX(C11:E11),IF(D11>D5,MAX(C11:E11),IF(E11>D5,MAX(C11:D11),IF(AND(D5<C11,D5<D11,D5<E11,D11>C11,E11>D11),MAX(C11:D11),IF(AND(D5<C11,D5>D11,D5>E11),C11))))))) -> 0
B12: TOTAL | F12: =ROUND((F11)/1000,0)*1000 -> 0
G13: =IF(C5>=TOPES!$B$48,0,IF(MAX(C11:E11)>D5,H11,MAX(C11:E11))) -> 0 | H13: =IF(C11=0,MAX(D11:E11),IF(AND(C11>D5,D11>D5),E11,IF(AND(C11>D5,E11>D5),D11,IF(AND(D11>D5,E11>D5),C11,IF(C11>D5,MAX(D11:E11),IF(D11>D5,MAX(C11,E11),IF(E11>D5,MAX(C11:D11),0))))))) -> 0
B15: R.55 Determinación de la Ganancia Ocasional venta de inmuebles diferente a la casa de habitación.
B16: CONCEPTO | C16: AÑO DE ADQUISICIÓN | D16: VALOR VENTA | E16: RETENCIÒN EN LA FUENTE | F16: GOEXTERIOR | G16: UTILIDAD | H16: UTILIDAD EXENTA ART 311-1 ET | J16: Impuesto GO exterior | K16: COSTO | L16: PARTE NO GRAVADA | M16: BASE GA | N16: TX GO EXTERIOR
A17: =IF(Venta_Inm_Dif_Casa_Hab!A7=0,"NO",Venta_Inm_Dif_Casa_Hab!A7) -> NO | B17: =Venta_Inm_Dif_Casa_Hab!B7 -> Venta casa o apartamento de habitación del contribuyente | C17: =IF(Venta_Inm_Dif_Casa_Hab!C7<TOPES!$B$48,Venta_Inm_Dif_Casa_Hab!C7,0) -> 0 | D17: =IF(OR(A17="SI",A17=0),0,IF(C17<=0,0,IF(Venta_Inm_Dif_Casa_Hab!C7<TOPES!$B$48,Venta_Inm_Dif_Casa_Hab!H7,0))) -> 0 | E17: =IF(D17=0,0,IF(A17="SI",0,IF(C17<=0,0,IF(Venta_Inm_Dif_Casa_Hab!C7<TOPES!$B$48,Venta_Inm_Dif_Casa_Hab!I7,0)))) -> 0 | F17: =IF(A17="NO",0,IF(C17<=0,0,IF(A17="SI",IF(Venta_Inm_Dif_Casa_Hab!C7<TOPES!$B$48,Venta_Inm_Dif_Casa_Hab!H7),0))) -> 0 | G17: =IF(A17="SI",F17-K17+D17,F17+D17-F41) -> 0 | H17: =IF(Venta_Inm_Dif_Casa_Hab!J7="NO",0,IF(Venta_Inm_Dif_Casa_Hab!J7="",0,IF(Venta_Inm_Dif_Casa_Hab!C7>=TOPES!$B$48,0,IF(AND(Venta_Inm_Dif_Casa_Hab!J7="SI",Venta_Inm_Dif_Casa_Hab!C7<TOPES!$B$48,go!G17>=5000*TOPES!C1),5000*TOPES!C1,IF(go!G17<5000*TOPES!C1,G17))))) -> 0 | J17: =J5+F31 -> 0 | K17: =O55+IF(A5="SI",F11,0) -> 0 | L17: =IF(A17="SI",H17,0)+IF(A5="SI",I5+F6,0) -> 0 | M17: =J17-K17-L17 -> 0 | N17: =ROUND(M17*0.1/1000,0)*1000 -> 0
A18: =IF(Venta_Inm_Dif_Casa_Hab!A8=0,"NO",Venta_Inm_Dif_Casa_Hab!A8) -> NO | B18: =Venta_Inm_Dif_Casa_Hab!B8 -> 0 | C18: =IF(Venta_Inm_Dif_Casa_Hab!C8<TOPES!$B$48,Venta_Inm_Dif_Casa_Hab!C8,0) -> 0 | D18: =IF(OR(A18="SI",A18=0),0,IF(C18<=0,0,IF(Venta_Inm_Dif_Casa_Hab!C8<TOPES!$B$48,Venta_Inm_Dif_Casa_Hab!H8,0))) -> 0 | E18: =IF(D18=0,0,IF(A18="SI",0,IF(C18<=0,0,IF(Venta_Inm_Dif_Casa_Hab!C8<TOPES!$B$48,Venta_Inm_Dif_Casa_Hab!I8,0)))) -> 0 | F18: =IF(A18="NO",0,IF(C18<=0,0,IF(A18="SI",IF(Venta_Inm_Dif_Casa_Hab!C8<TOPES!$B$48,Venta_Inm_Dif_Casa_Hab!H8),0))) -> 0 | G18: =F18+D18-F42-O42 -> 0
A19: =IF(Venta_Inm_Dif_Casa_Hab!A9=0,"NO",Venta_Inm_Dif_Casa_Hab!A9) -> NO | B19: =Venta_Inm_Dif_Casa_Hab!B9 -> 0 | C19: =IF(Venta_Inm_Dif_Casa_Hab!C9<TOPES!$B$48,Venta_Inm_Dif_Casa_Hab!C9,0) -> 0 | D19: =IF(OR(A19="SI",A19=0),0,IF(C19<=0,0,IF(Venta_Inm_Dif_Casa_Hab!C9<TOPES!$B$48,Venta_Inm_Dif_Casa_Hab!H9,0))) -> 0 | E19: =IF(D19=0,0,IF(A19="SI",0,IF(C19<=0,0,IF(Venta_Inm_Dif_Casa_Hab!C9<TOPES!$B$48,Venta_Inm_Dif_Casa_Hab!I9,0)))) -> 0 | F19: =IF(A19="NO",0,IF(C19<=0,0,IF(A19="SI",IF(Venta_Inm_Dif_Casa_Hab!C9<TOPES!$B$48,Venta_Inm_Dif_Casa_Hab!H9),0))) -> 0 | G19: =F19+D19-F43-O43 -> 0
A20: =IF(Venta_Inm_Dif_Casa_Hab!A10=0,"NO",Venta_Inm_Dif_Casa_Hab!A10) -> NO | B20: =Venta_Inm_Dif_Casa_Hab!B10 -> 0 | C20: =IF(Venta_Inm_Dif_Casa_Hab!C10<TOPES!$B$48,Venta_Inm_Dif_Casa_Hab!C10,0) -> 0 | D20: =IF(OR(A20="SI",A20=0),0,IF(C20<=0,0,IF(Venta_Inm_Dif_Casa_Hab!C10<TOPES!$B$48,Venta_Inm_Dif_Casa_Hab!H10,0))) -> 0 | E20: =IF(D20=0,0,IF(A20="SI",0,IF(C20<=0,0,IF(Venta_Inm_Dif_Casa_Hab!C10<TOPES!$B$48,Venta_Inm_Dif_Casa_Hab!I10,0)))) -> 0 | F20: =IF(A20="NO",0,IF(C20<=0,0,IF(A20="SI",IF(Venta_Inm_Dif_Casa_Hab!C10<TOPES!$B$48,Venta_Inm_Dif_Casa_Hab!H10),0))) -> 0 | G20: 0
A21: =IF(Venta_Inm_Dif_Casa_Hab!A11=0,"NO",Venta_Inm_Dif_Casa_Hab!A11) -> NO | B21: =Venta_Inm_Dif_Casa_Hab!B11 -> 0 | C21: =IF(Venta_Inm_Dif_Casa_Hab!C11<TOPES!$B$48,Venta_Inm_Dif_Casa_Hab!C11,0) -> 0 | D21: =IF(OR(A21="SI",A21=0),0,IF(C21<=0,0,IF(Venta_Inm_Dif_Casa_Hab!C11<TOPES!$B$48,Venta_Inm_Dif_Casa_Hab!H11,0))) -> 0 | E21: =IF(D21=0,0,IF(A21="SI",0,IF(C21<=0,0,IF(Venta_Inm_Dif_Casa_Hab!C11<TOPES!$B$48,Venta_Inm_Dif_Casa_Hab!I11,0)))) -> 0 | F21: =IF(A21="NO",0,IF(C21<=0,0,IF(A21="SI",IF(Venta_Inm_Dif_Casa_Hab!C11<TOPES!$B$48,Venta_Inm_Dif_Casa_Hab!H11),0))) -> 0 | G21: 0
A22: =IF(Venta_Inm_Dif_Casa_Hab!A12=0,"NO",Venta_Inm_Dif_Casa_Hab!A12) -> NO | B22: =Venta_Inm_Dif_Casa_Hab!B12 -> 0 | C22: =IF(Venta_Inm_Dif_Casa_Hab!C12<TOPES!$B$48,Venta_Inm_Dif_Casa_Hab!C12,0) -> 0 | D22: =IF(OR(A22="SI",A22=0),0,IF(C22<=0,0,IF(Venta_Inm_Dif_Casa_Hab!C12<TOPES!$B$48,Venta_Inm_Dif_Casa_Hab!H12,0))) -> 0 | E22: =IF(D22=0,0,IF(A22="SI",0,IF(C22<=0,0,IF(Venta_Inm_Dif_Casa_Hab!C12<TOPES!$B$48,Venta_Inm_Dif_Casa_Hab!I12,0)))) -> 0 | F22: =IF(A22="NO",0,IF(C22<=0,0,IF(A22="SI",IF(Venta_Inm_Dif_Casa_Hab!C12<TOPES!$B$48,Venta_Inm_Dif_Casa_Hab!H12),0))) -> 0 | G22: 0
A23: =IF(Venta_Inm_Dif_Casa_Hab!A13=0,"NO",Venta_Inm_Dif_Casa_Hab!A13) -> NO | B23: =Venta_Inm_Dif_Casa_Hab!B13 -> 0 | C23: =IF(Venta_Inm_Dif_Casa_Hab!C13<TOPES!$B$48,Venta_Inm_Dif_Casa_Hab!C13,0) -> 0 | D23: =IF(OR(A23="SI",A23=0),0,IF(C23<=0,0,IF(Venta_Inm_Dif_Casa_Hab!C13<TOPES!$B$48,Venta_Inm_Dif_Casa_Hab!H13,0))) -> 0 | E23: =IF(D23=0,0,IF(A23="SI",0,IF(C23<=0,0,IF(Venta_Inm_Dif_Casa_Hab!C13<TOPES!$B$48,Venta_Inm_Dif_Casa_Hab!I13,0)))) -> 0 | F23: =IF(A23="NO",0,IF(C23<=0,0,IF(A23="SI",IF(Venta_Inm_Dif_Casa_Hab!C13<TOPES!$B$48,Venta_Inm_Dif_Casa_Hab!H13),0))) -> 0 | G23: 0
A24: =IF(Venta_Inm_Dif_Casa_Hab!A14=0,"NO",Venta_Inm_Dif_Casa_Hab!A14) -> NO | B24: =Venta_Inm_Dif_Casa_Hab!B14 -> 0 | C24: =IF(Venta_Inm_Dif_Casa_Hab!C14<TOPES!$B$48,Venta_Inm_Dif_Casa_Hab!C14,0) -> 0 | D24: =IF(OR(A24="SI",A24=0),0,IF(C24<=0,0,IF(Venta_Inm_Dif_Casa_Hab!C14<TOPES!$B$48,Venta_Inm_Dif_Casa_Hab!H14,0))) -> 0 | E24: =IF(D24=0,0,IF(A24="SI",0,IF(C24<=0,0,IF(Venta_Inm_Dif_Casa_Hab!C14<TOPES!$B$48,Venta_Inm_Dif_Casa_Hab!I14,0)))) -> 0 | F24: =IF(A24="NO",0,IF(C24<=0,0,IF(A24="SI",IF(Venta_Inm_Dif_Casa_Hab!C14<TOPES!$B$48,Venta_Inm_Dif_Casa_Hab!H14),0))) -> 0 | G24: 0
A25: =IF(Venta_Inm_Dif_Casa_Hab!A15=0,"NO",Venta_Inm_Dif_Casa_Hab!A15) -> NO | B25: =Venta_Inm_Dif_Casa_Hab!B15 -> 0 | C25: =IF(Venta_Inm_Dif_Casa_Hab!C15<TOPES!$B$48,Venta_Inm_Dif_Casa_Hab!C15,0) -> 0 | D25: =IF(OR(A25="SI",A25=0),0,IF(C25<=0,0,IF(Venta_Inm_Dif_Casa_Hab!C15<TOPES!$B$48,Venta_Inm_Dif_Casa_Hab!H15,0))) -> 0 | E25: =IF(D25=0,0,IF(A25="SI",0,IF(C25<=0,0,IF(Venta_Inm_Dif_Casa_Hab!C15<TOPES!$B$48,Venta_Inm_Dif_Casa_Hab!I15,0)))) -> 0 | F25: =IF(A25="NO",0,IF(C25<=0,0,IF(A25="SI",IF(Venta_Inm_Dif_Casa_Hab!C15<TOPES!$B$48,Venta_Inm_Dif_Casa_Hab!H15),0))) -> 0 | G25: 0
A26: =IF(Venta_Inm_Dif_Casa_Hab!A16=0,"NO",Venta_Inm_Dif_Casa_Hab!A16) -> NO | B26: =Venta_Inm_Dif_Casa_Hab!B16 -> 0 | C26: =IF(Venta_Inm_Dif_Casa_Hab!C16<TOPES!$B$48,Venta_Inm_Dif_Casa_Hab!C16,0) -> 0 | D26: =IF(OR(A26="SI",A26=0),0,IF(C26<=0,0,IF(Venta_Inm_Dif_Casa_Hab!C16<TOPES!$B$48,Venta_Inm_Dif_Casa_Hab!H16,0))) -> 0 | E26: =IF(D26=0,0,IF(A26="SI",0,IF(C26<=0,0,IF(Venta_Inm_Dif_Casa_Hab!C16<TOPES!$B$48,Venta_Inm_Dif_Casa_Hab!I16,0)))) -> 0 | F26: =IF(A26="NO",0,IF(C26<=0,0,IF(A26="SI",IF(Venta_Inm_Dif_Casa_Hab!C16<TOPES!$B$48,Venta_Inm_Dif_Casa_Hab!H16),0))) -> 0 | G26: 0
A27: =IF(Venta_Inm_Dif_Casa_Hab!A17=0,"NO",Venta_Inm_Dif_Casa_Hab!A17) -> NO | B27: =Venta_Inm_Dif_Casa_Hab!B17 -> 0 | C27: =IF(Venta_Inm_Dif_Casa_Hab!C17<TOPES!$B$48,Venta_Inm_Dif_Casa_Hab!C17,0) -> 0 | D27: =IF(OR(A27="SI",A27=0),0,IF(C27<=0,0,IF(Venta_Inm_Dif_Casa_Hab!C17<TOPES!$B$48,Venta_Inm_Dif_Casa_Hab!H17,0))) -> 0 | E27: =IF(D27=0,0,IF(A27="SI",0,IF(C27<=0,0,IF(Venta_Inm_Dif_Casa_Hab!C17<TOPES!$B$48,Venta_Inm_Dif_Casa_Hab!I17,0)))) -> 0 | F27: =IF(A27="NO",0,IF(C27<=0,0,IF(A27="SI",IF(Venta_Inm_Dif_Casa_Hab!C17<TOPES!$B$48,Venta_Inm_Dif_Casa_Hab!H17),0))) -> 0 | G27: 0
A28: =IF(Venta_Inm_Dif_Casa_Hab!A18=0,"NO",Venta_Inm_Dif_Casa_Hab!A18) -> NO | B28: =Venta_Inm_Dif_Casa_Hab!B18 -> 0 | C28: =IF(Venta_Inm_Dif_Casa_Hab!C18<TOPES!$B$48,Venta_Inm_Dif_Casa_Hab!C18,0) -> 0 | D28: =IF(OR(A28="SI",A28=0),0,IF(C28<=0,0,IF(Venta_Inm_Dif_Casa_Hab!C18<TOPES!$B$48,Venta_Inm_Dif_Casa_Hab!H18,0))) -> 0 | E28: =IF(D28=0,0,IF(A28="SI",0,IF(C28<=0,0,IF(Venta_Inm_Dif_Casa_Hab!C18<TOPES!$B$48,Venta_Inm_Dif_Casa_Hab!I18,0)))) -> 0 | F28: =IF(A28="NO",0,IF(C28<=0,0,IF(A28="SI",IF(Venta_Inm_Dif_Casa_Hab!C18<TOPES!$B$48,Venta_Inm_Dif_Casa_Hab!H18),0))) -> 0 | G28: 0
A29: =IF(Venta_Inm_Dif_Casa_Hab!A19=0,"NO",Venta_Inm_Dif_Casa_Hab!A19) -> NO | B29: =Venta_Inm_Dif_Casa_Hab!B19 -> 0 | C29: =IF(Venta_Inm_Dif_Casa_Hab!C19<TOPES!$B$48,Venta_Inm_Dif_Casa_Hab!C19,0) -> 0 | D29: =IF(OR(A29="SI",A29=0),0,IF(C29<=0,0,IF(Venta_Inm_Dif_Casa_Hab!C19<TOPES!$B$48,Venta_Inm_Dif_Casa_Hab!H19,0))) -> 0 | E29: =IF(D29=0,0,IF(A29="SI",0,IF(C29<=0,0,IF(Venta_Inm_Dif_Casa_Hab!C19<TOPES!$B$48,Venta_Inm_Dif_Casa_Hab!I19,0)))) -> 0 | F29: =IF(A29="NO",0,IF(C29<=0,0,IF(A29="SI",IF(Venta_Inm_Dif_Casa_Hab!C19<TOPES!$B$48,Venta_Inm_Dif_Casa_Hab!H19),0))) -> 0 | G29: 0
A30: =IF(Venta_Inm_Dif_Casa_Hab!A20=0,"NO",Venta_Inm_Dif_Casa_Hab!A20) -> NO | B30: =Venta_Inm_Dif_Casa_Hab!B20 -> 0 | C30: =IF(Venta_Inm_Dif_Casa_Hab!C20<TOPES!$B$48,Venta_Inm_Dif_Casa_Hab!C20,0) -> 0 | D30: =IF(OR(A30="SI",A30=0),0,IF(C30<=0,0,IF(Venta_Inm_Dif_Casa_Hab!C20<TOPES!$B$48,Venta_Inm_Dif_Casa_Hab!H20,0))) -> 0 | E30: =IF(D30=0,0,IF(A30="SI",0,IF(C30<=0,0,IF(Venta_Inm_Dif_Casa_Hab!C20<TOPES!$B$48,Venta_Inm_Dif_Casa_Hab!I20,0)))) -> 0 | F30: =IF(A30="NO",0,IF(C30<=0,0,IF(A30="SI",IF(Venta_Inm_Dif_Casa_Hab!C20<TOPES!$B$48,Venta_Inm_Dif_Casa_Hab!H20),0))) -> 0 | G30: 0
B31: TOTAL | D31: =ROUND(((SUM(D17:D30))/1000),0)*1000 -> 0 | E31: =ROUND(((SUM(E17:E30))/1000),0)*1000 -> 0 | F31: =ROUND((SUM(F17:F30)/1000),0)*1000 -> 0 | H31: =IF(SUM(H17:H30)<0,0,ROUND((SUM(H17:H30)/1000),0)*1000) -> 0
N33: =IF(D17=0,0,IF(C17>=TOPES!$B$48,0,IF(AND(D17<C41,D17<D41,D17>E41,C41>D41),C41,IF(AND(D17<C41,D17=D41,D17>E41,C41>D41),C41,IF(AND(D17<C41,D17<D41,D17=E41,C41>D41),C41,IF(AND(D17>=C41,D17>D41,D17>E41,C41>D41),C41,IF(AND(D17>=C41,D17>D41,D17<E41,C41>D41,C41<E41),C41,O33))))))) -> 0 | O33: =IF(D17=0,0,IF(C17>=TOPES!$B$48,0,IF(AND(D17<C41,D17<D41,D17<E41),MAX(C41:D41),IF(C41=0,MAX(Venta_Inm_Dif_Casa_Hab!D7,D41),IF(AND(D17>E41,D17>D41,C41),MAX(C41:E41),0))))) -> 0
H35: =IF(D18=0,0,IF(C18>=TOPES!$B$48,0,IF(AND(D18<C42,D18<D42,D18<E42),MAX(C42:D42),IF(C42=0,MAX(Venta_Inm_Dif_Casa_Hab!D8,D42),IF(AND(D18>D42,D18<C42,D18<E42),MAX(C42:E42),IF(AND(D18<E42,D18>D42,D18>C42),MAX(C42:E42),IF(D18<MAX(C42:E42),MAX(C42:D42),IF(AND(D18=E42,C42>0,D42>0,E42>0),E42)))))))) -> 0
B39: Costo Fiscal en la venta de activos fijos
B40: TIPO DE BIEN | C40: VALOR DECLARADO EN RENTA AÑO ANTERIOR | D40: VALOR DECLARADO EN PREDIAL AÑO | E40: COSTO FÍSCAL AJUSTADO POR ARTÍCULO 73 E.T. | F40: TOTALCOSTO FÍSCAL DETERMINADO | I40: VALOR DECLARADO EN PREDIAL AÑO | J40: COSTO FÍSCAL AJUSTADO POR ARTÍCULO 73 E.T. | O40: TOTAL COSTO FISCAL EXTERIOR | P40: costo pais | R40: costo pais | U40: VENTA | V40: PERDIDA/UTILIDAD
B41: =+B17 -> Venta casa o apartamento de habitación del contribuyente | C41: =(IF(Venta_Inm_Dif_Casa_Hab!C7>=TOPES!$B$48,0,(H41+L41))) -> 1 | D41: =(IF(Venta_Inm_Dif_Casa_Hab!C7>=TOPES!$B$48,0,(I41+L41))) -> 1 | E41: =ROUND(IF(Venta_Inm_Dif_Casa_Hab!C7>=TOPES!$B$48,0,(J41+L41))/1000,0)*1000 -> 0 | F41: =IF((AND(D17>0,Venta_Inm_Dif_Casa_Hab!M7="SI")),ROUND(R41/1000,0)*1000,IF((AND(D17>0,Venta_Inm_Dif_Casa_Hab!M7="NO")),MAX(C41,D41),0)) -> 0 | G41: =IF(F17>0,O41,0) -> 0 | H41: =(IF(Venta_Inm_Dif_Casa_Hab!C7>=TOPES!$B$48,0,Venta_Inm_Dif_Casa_Hab!E7)) -> 0 | I41: =(IF(C17<=0,0,Venta_Inm_Dif_Casa_Hab!F7)) -> 0 | J41: =(IF(Venta_Inm_Dif_Casa_Hab!C7="",0,IF(Venta_Inm_Dif_Casa_Hab!C7>=TOPES!$B$48,0,VLOOKUP(Venta_Inm_Dif_Casa_Hab!C7,'ajustes art. 73'!$A$6:$C$129,3)*Venta_Inm_Dif_Casa_Hab!D7))) -> 0 | K41: =Venta_Inm_Dif_Casa_Hab!G7 -> 0 | L41: =M41 -> TRUE | M41: =IF(Venta_Inm_Dif_Casa_Hab!H7=0,K41=0,IF(Venta_Inm_Dif_Casa_Hab!C7>=TOPES!$B$48,0,IF(Venta_Inm_Dif_Casa_Hab!C7=" ",K41=0,IF(Venta_Inm_Dif_Casa_Hab!C7>0,K41)))) -> TRUE | N41: =IF(D17=0,0,IF(C17>=TOPES!$B$48,0,IF(MAX(C41:E41)>D17,G41,MAX(C41:E41)))) -> 0 | O41: =IF((AND(F17>0,Venta_Inm_Dif_Casa_Hab!M7="SI")),MAX(C41,E41),IF((AND(F17>0,Venta_Inm_Dif_Casa_Hab!M7="NO")),MAX(C41,D41),0)) -> 0 | P41: =IF(D17<D41,MIN(C41:E41),IF(D17<=D41,D41,IF(D17=0,0,IF(C17>=TOPES!$B$48,0,IF(AND(D17<C41,D17<D41,D17>E41,C41>D41),C41,IF(AND(D17<C41,D17=D41,D17>E41,C41>D41),C41,IF(AND(D17<C41,D17<D41,D17=E41,C41>D41),C41,IF(AND(D17>C41,D17>D41,D17>E41),MAX(C41:E41),IF(AND(D17>=C41,D17>D41,D17<E41,C41>D41,C41<E41),C41,R41))))))))) -> 0 | Q41: =IF(F17<D41,MIN(C41:E41),IF(F17<=D41,D41,IF(F17=0,0,IF(C17>=TOPES!$B$48,0,IF(AND(F17<C41,F17<D41,F17>E41,C41>D41),C41,IF(AND(F17<C41,F17=D41,F17>E41,C41>D41),C41,IF(AND(F17<C41,F17<D41,F17=E41,C41>D41),C41,IF(AND(F17>C41,F17>D41,F17>E41),MAX(C41:E41),IF(AND(F17>=C41,F17>D41,F17<E41,C41>D41,C41<E41),C41,S41))))))))) -> 0 | R41: =IF(D17=0,0,IF(C17>=TOPES!$B$48,0,IF(AND(D17<C41,D17<D41,D17<E41),MAX(C41:D41),IF(C41=0,MAX(Venta_Inm_Dif_Casa_Hab!D7,D41),IF(AND(D17>D41,D17<C41,D17<E41),MAX(C41:E41),IF(AND(D17<E41,D17>=D41,D17>=C41),MAX(C41:E41),IF(D17<MAX(C41:E41),MAX(C41:E41),IF(AND(D17>=E41,C41>0,D41>0,E41>0),MAX(C41:E41))))))))) -> 0 | S41: =IF(F17=0,0,IF(C17>=TOPES!$B$48,0,IF(AND(F17<C41,F17<D41,F17<E41),MAX(C41:D41),IF(C41=0,MAX(Venta_Inm_Dif_Casa_Hab!D7,D41),IF(AND(F17>E41,F17>D41,C41),MAX(C41:E41),IF(F17<MAX(C41:E41),MAX(C41:D41),IF(AND(F17=E41,C41>0,D41>0,E41>0),E41))))))) -> 0 | U41: =IF(Venta_Inm_Dif_Casa_Hab!C7<TOPES!$B$48,Venta_Inm_Dif_Casa_Hab!H7,0) -> 0 | V41: =U41-C41 -> -1 | W41: =+U41-D41 -> -1 | X41: =+U41-E41 -> 0 | Y41: =IF(V41>=0,"",V41) -> -1 | Z41: =IF(W41>=0,"",W41) -> -1 | AA41: =IF(X41>=0,"",X41) ->  | AB41: =IF(AND(Y41="",Z41="",AA41=""),MIN(V41:X41),MAX(Y41:AA41)) -> -1 | AC41: =U41-AB41 -> 1
B42: =+B18 -> 0 | C42: =(IF(Venta_Inm_Dif_Casa_Hab!C8>=TOPES!$B$48,0,(H42+L42))) -> 1 | D42: =(IF(Venta_Inm_Dif_Casa_Hab!C8>=TOPES!$B$48,0,(I42+L42))) -> 1 | E42: =ROUND(IF(Venta_Inm_Dif_Casa_Hab!C8>=TOPES!$B$48,0,(J42+L42))/1000,0)*1000 -> 0 | F42: =IF((AND(D18>0,Venta_Inm_Dif_Casa_Hab!M8="SI")),ROUND(R42/1000,0)*1000,IF((AND(D18>0,Venta_Inm_Dif_Casa_Hab!M8="NO")),MAX(C42,D42),0)) -> 0 | G42: =IF(F18>0,O42,0) -> 0 | H42: =(IF(Venta_Inm_Dif_Casa_Hab!C8>=TOPES!$B$48,0,Venta_Inm_Dif_Casa_Hab!E8)) -> 0 | I42: =(IF(C18<=0,0,Venta_Inm_Dif_Casa_Hab!F8)) -> 0 | J42: =(IF(Venta_Inm_Dif_Casa_Hab!C8="",0,IF(Venta_Inm_Dif_Casa_Hab!C8>=TOPES!$B$48,0,VLOOKUP(Venta_Inm_Dif_Casa_Hab!C8,'ajustes art. 73'!$A$6:$C$129,3)*Venta_Inm_Dif_Casa_Hab!D8))) -> 0 | K42: =Venta_Inm_Dif_Casa_Hab!G8 -> 0 | L42: =M42 -> TRUE | M42: =IF(Venta_Inm_Dif_Casa_Hab!H8=0,K42=0,IF(Venta_Inm_Dif_Casa_Hab!C8>=TOPES!$B$48,0,IF(Venta_Inm_Dif_Casa_Hab!C8=" ",K42=0,IF(Venta_Inm_Dif_Casa_Hab!C8>0,K42)))) -> TRUE | N42: =IF(D18=0,0,IF(C18>=TOPES!$B$48,0,IF(MAX(C42:E42)>D18,G42,MAX(C42:E42)))) -> 0 | O42: =IF((AND(F18>0,Venta_Inm_Dif_Casa_Hab!M8="SI")),MAX(C42,E42),IF((AND(F18>0,Venta_Inm_Dif_Casa_Hab!M8="NO")),MAX(C42,D42),0)) -> 0 | P42: =IF(D18<D42,MIN(C42:E42),IF(D18<=D42,D42,IF(D18=0,0,IF(C18>=TOPES!$B$48,0,IF(AND(D18<C42,D18<D42,D18>E42,C42>D42),C42,IF(AND(D18<C42,D18=D42,D18>E42,C42>D42),C42,IF(AND(D18<C42,D18<D42,D18=E42,C42>D42),C42,IF(AND(D18>C42,D18>D42,D18>E42),MAX(C42:E42),IF(AND(D18>=C42,D18>D42,D18<E42,C42>D42,C42<E42),C42,R42))))))))) -> 0 | Q42: =IF(F18<D42,MIN(C42:E42),IF(F18<=D42,D42,IF(F18=0,0,IF(C18>=TOPES!$B$48,0,IF(AND(F18<C42,F18<D42,F18>E42,C42>D42),C42,IF(AND(F18<C42,F18=D42,F18>E42,C42>D42),C42,IF(AND(F18<C42,F18<D42,F18=E42,C42>D42),C42,IF(AND(F18>C42,F18>D42,F18>E42),MAX(C42:E42),IF(AND(F18>=C42,F18>D42,F18<E42,C42>D42,C42<E42),C42,S42))))))))) -> 0 | R42: =IF(D18=0,0,IF(C18>=TOPES!$B$48,0,IF(AND(D18<C42,D18<D42,D18<E42),MAX(C42:D42),IF(C42=0,MAX(Venta_Inm_Dif_Casa_Hab!D8,D42),IF(AND(D18>D42,D18<C42,D18<E42),MAX(C42:E42),IF(AND(D18<E42,D18>=D42,D18>=C42),MAX(C42:E42),IF(D18<MAX(C42:E42),MAX(C42:E42),IF(AND(D18>=E42,C42>0,D42>0,E42>0),MAX(C42:E42))))))))) -> 0 | S42: =IF(F18=0,0,IF(C18>=TOPES!$B$48,0,IF(AND(F18<C42,F18<D42,F18<E42),MAX(C42:E42),IF(C42=0,MAX(Venta_Inm_Dif_Casa_Hab!D8,D42),IF(AND(F18>=E42,F18>=D42,C42),MAX(C42:E42),IF(F18<MAX(C42:E42),MAX(C42:D42),IF(AND(F18=E42,C42>0,D42>0,E42>0),E42))))))) -> 0 | U42: =IF(Venta_Inm_Dif_Casa_Hab!C8<TOPES!$B$48,Venta_Inm_Dif_Casa_Hab!H8,0) -> 0 | V42: =U42-C42 -> -1 | W42: =+U42-D42 -> -1 | X42: =+U42-E42 -> 0 | Y42: =IF(V42>=0,"",V42) -> -1 | Z42: =IF(W42>=0,"",W42) -> -1 | AA42: =IF(X42>=0,"",X42) ->  | AB42: =IF(AND(Y42="",Z42="",AA42=""),MIN(V42:X42),MAX(Y42:AA42)) -> -1 | AC42: =U42-AB42 -> 1
B43: 0 | C43: =(IF(Venta_Inm_Dif_Casa_Hab!C9>=TOPES!$B$48,0,(H43+L43))) -> 1 | D43: =(IF(Venta_Inm_Dif_Casa_Hab!C9>=TOPES!$B$48,0,(I43+L43))) -> 1 | E43: =ROUND(IF(Venta_Inm_Dif_Casa_Hab!C9>=TOPES!$B$48,0,(J43+L43))/1000,0)*1000 -> 0 | F43: =IF((AND(D19>0,Venta_Inm_Dif_Casa_Hab!M9="SI")),ROUND(R43/1000,0)*1000,IF((AND(D19>0,Venta_Inm_Dif_Casa_Hab!M9="NO")),MAX(C43,D43),0)) -> 0 | G43: =IF(F19>0,O43,0) -> 0 | H43: =(IF(Venta_Inm_Dif_Casa_Hab!C9>=TOPES!$B$48,0,Venta_Inm_Dif_Casa_Hab!E9)) -> 0 | I43: =(IF(C19<=0,0,Venta_Inm_Dif_Casa_Hab!F9)) -> 0 | J43: =(IF(Venta_Inm_Dif_Casa_Hab!C9="",0,IF(Venta_Inm_Dif_Casa_Hab!C9>=TOPES!$B$48,0,VLOOKUP(Venta_Inm_Dif_Casa_Hab!C9,'ajustes art. 73'!$A$6:$C$129,3)*Venta_Inm_Dif_Casa_Hab!D9))) -> 0 | K43: =Venta_Inm_Dif_Casa_Hab!G9 -> 0 | L43: =M43 -> TRUE | M43: =IF(Venta_Inm_Dif_Casa_Hab!H9=0,K43=0,IF(Venta_Inm_Dif_Casa_Hab!C9>=TOPES!$B$48,0,IF(Venta_Inm_Dif_Casa_Hab!C9=" ",K43=0,IF(Venta_Inm_Dif_Casa_Hab!C9>0,K43)))) -> TRUE | N43: =IF(D19=0,0,IF(C19>=TOPES!$B$48,0,IF(MAX(C43:E43)>D19,G43,MAX(C43:E43)))) -> 0 | O43: =IF((AND(F19>0,Venta_Inm_Dif_Casa_Hab!M9="SI")),MAX(C43,E43),IF((AND(F19>0,Venta_Inm_Dif_Casa_Hab!M9="NO")),MAX(C43,D43),0)) -> 0 | P43: =IF(D19<D43,MIN(C43:E43),IF(D19<=D43,D43,IF(D19=0,0,IF(C19>=TOPES!$B$48,0,IF(AND(D19<C43,D19<D43,D19>E43,C43>D43),C43,IF(AND(D19<C43,D19=D43,D19>E43,C43>D43),C43,IF(AND(D19<C43,D19<D43,D19=E43,C43>D43),C43,IF(AND(D19>C43,D19>D43,D19>E43),MAX(C43:E43),IF(AND(D19>=C43,D19>D43,D19<E43,C43>D43,C43<E43),C43,R43))))))))) -> 0 | Q43: =IF(F19<D43,MIN(C43:E43),IF(F19<=D43,D43,IF(F19=0,0,IF(C19>=TOPES!$B$48,0,IF(AND(F19<C43,F19<D43,F19>E43,C43>D43),C43,IF(AND(F19<C43,F19=D43,F19>E43,C43>D43),C43,IF(AND(F19<C43,F19<D43,F19=E43,C43>D43),C43,IF(AND(F19>C43,F19>D43,F19>E43),MAX(C43:E43),IF(AND(F19>=C43,F19>D43,F19<E43,C43>D43,C43<E43),C43,S43))))))))) -> 0 | R43: =IF(D19=0,0,IF(C19>=TOPES!$B$48,0,IF(AND(D19<C43,D19<D43,D19<E43),MAX(C43:D43),IF(C43=0,MAX(Venta_Inm_Dif_Casa_Hab!D9,D43),IF(AND(D19>D43,D19<C43,D19<E43),MAX(C43:E43),IF(AND(D19<E43,D19>=D43,D19>=C43),MAX(C43:E43),IF(D19<MAX(C43:E43),MAX(C43:E43),IF(AND(D19>=E43,C43>0,D43>0,E43>0),MAX(C43:E43))))))))) -> 0 | S43: =IF(F19=0,0,IF(C19>=TOPES!$B$48,0,IF(AND(F19<C43,F19<D43,F19<E43),MAX(C43:D43),IF(C43=0,MAX(Venta_Inm_Dif_Casa_Hab!D9,D43),IF(AND(F19>E43,F19>D43,C43),MAX(C43:E43),IF(F19<MAX(C43:E43),MAX(C43:D43),IF(AND(F19=E43,C43>0,D43>0,E43>0),E43))))))) -> 0 | U43: =IF(Venta_Inm_Dif_Casa_Hab!C9<TOPES!$B$48,Venta_Inm_Dif_Casa_Hab!H9,0) -> 0 | V43: =U43-C43 -> -1 | W43: =+U43-D43 -> -1 | X43: =+U43-E43 -> 0 | Y43: =IF(V43>=0,"",V43) -> -1 | Z43: -1 | AA43: =IF(X43>=0,"",X43) ->  | AB43: =IF(AND(Y43="",Z43="",AA43=""),MIN(V43:X43),MAX(Y43:AA43)) -> -1 | AC43: =U43-AB43 -> 1
B44: 0 | C44: =(IF(Venta_Inm_Dif_Casa_Hab!C10>=TOPES!$B$48,0,(H44+L44))) -> 1 | D44: =(IF(Venta_Inm_Dif_Casa_Hab!C10>=TOPES!$B$48,0,(I44+L44))) -> 1 | E44: =ROUND(IF(Venta_Inm_Dif_Casa_Hab!C10>=TOPES!$B$48,0,(J44+L44))/1000,0)*1000 -> 0 | F44: =IF((AND(D20>0,Venta_Inm_Dif_Casa_Hab!M10="SI")),ROUND(R44/1000,0)*1000,IF((AND(D20>0,Venta_Inm_Dif_Casa_Hab!M10="NO")),MAX(C44,D44),0)) -> 0 | G44: =IF(F20>0,O44,0) -> 0 | H44: =(IF(Venta_Inm_Dif_Casa_Hab!C10>=TOPES!$B$48,0,Venta_Inm_Dif_Casa_Hab!E10)) -> 0 | I44: =(IF(C20<=0,0,Venta_Inm_Dif_Casa_Hab!F10)) -> 0 | J44: =(IF(Venta_Inm_Dif_Casa_Hab!C10="",0,IF(Venta_Inm_Dif_Casa_Hab!C10>=TOPES!$B$48,0,VLOOKUP(Venta_Inm_Dif_Casa_Hab!C10,'ajustes art. 73'!$A$6:$C$129,3)*Venta_Inm_Dif_Casa_Hab!D10))) -> 0 | K44: =Venta_Inm_Dif_Casa_Hab!G10 -> 0 | L44: =M44 -> TRUE | M44: =IF(Venta_Inm_Dif_Casa_Hab!H10=0,K44=0,IF(Venta_Inm_Dif_Casa_Hab!C10>=TOPES!$B$48,0,IF(Venta_Inm_Dif_Casa_Hab!C10=" ",K44=0,IF(Venta_Inm_Dif_Casa_Hab!C10>0,K44)))) -> TRUE | N44: =IF(D20=0,0,IF(C20>=TOPES!$B$48,0,IF(MAX(C44:E44)>D20,G44,MAX(C44:E44)))) -> 0 | O44: =IF((AND(F20>0,Venta_Inm_Dif_Casa_Hab!M10="SI")),MAX(C44,E44),IF((AND(F20>0,Venta_Inm_Dif_Casa_Hab!M10="NO")),MAX(C44,D44),0)) -> 0 | P44: =IF(D20<D44,MIN(C44:E44),IF(D20<=D44,D44,IF(D20=0,0,IF(C20>=TOPES!$B$48,0,IF(AND(D20<C44,D20<D44,D20>E44,C44>D44),C44,IF(AND(D20<C44,D20=D44,D20>E44,C44>D44),C44,IF(AND(D20<C44,D20<D44,D20=E44,C44>D44),C44,IF(AND(D20>C44,D20>D44,D20>E44),MAX(C44:E44),IF(AND(D20>=C44,D20>D44,D20<E44,C44>D44,C44<E44),C44,R44))))))))) -> 0 | Q44: =IF(F20<D44,MIN(C44:E44),IF(F20<=D44,D44,IF(F20=0,0,IF(C20>=TOPES!$B$48,0,IF(AND(F20<C44,F20<D44,F20>E44,C44>D44),C44,IF(AND(F20<C44,F20=D44,F20>E44,C44>D44),C44,IF(AND(F20<C44,F20<D44,F20=E44,C44>D44),C44,IF(AND(F20>C44,F20>D44,F20>E44),MAX(C44:E44),IF(AND(F20>=C44,F20>D44,F20<E44,C44>D44,C44<E44),C44,S44))))))))) -> 0 | R44: =IF(D20=0,0,IF(C20>=TOPES!$B$48,0,IF(AND(D20<C44,D20<D44,D20<E44),MAX(C44:D44),IF(C44=0,MAX(Venta_Inm_Dif_Casa_Hab!D10,D44),IF(AND(D20>D44,D20<C44,D20<E44),MAX(C44:E44),IF(AND(D20<E44,D20>=D44,D20>=C44),MAX(C44:E44),IF(D20<MAX(C44:E44),MAX(C44:E44),IF(AND(D20>=E44,C44>0,D44>0,E44>0),MAX(C44:E44))))))))) -> 0 | S44: =IF(F20=0,0,IF(C20>=TOPES!$B$48,0,IF(AND(F20<C44,F20<D44,F20<E44),MAX(C44:D44),IF(C44=0,MAX(Venta_Inm_Dif_Casa_Hab!D10,D44),IF(AND(F20>E44,F20>D44,C44),MAX(C44:E44),IF(F20<MAX(C44:E44),MAX(C44:D44),IF(AND(F20=E44,C44>0,D44>0,E44>0),E44))))))) -> 0 | U44: =IF(Venta_Inm_Dif_Casa_Hab!C10<TOPES!$B$48,Venta_Inm_Dif_Casa_Hab!H10,0) -> 0 | V44: =U44-C44 -> -1 | W44: -1 | X44: 0 | Y44: -1 | Z44: -1 | AB44: -1 | AC44: 1
B45: 0 | C45: =(IF(Venta_Inm_Dif_Casa_Hab!C11>=TOPES!$B$48,0,(H45+L45))) -> 1 | D45: =(IF(Venta_Inm_Dif_Casa_Hab!C11>=TOPES!$B$48,0,(I45+L45))) -> 1 | E45: =ROUND(IF(Venta_Inm_Dif_Casa_Hab!C11>=TOPES!$B$48,0,(J45+L45))/1000,0)*1000 -> 0 | F45: =IF((AND(D21>0,Venta_Inm_Dif_Casa_Hab!M11="SI")),ROUND(R45/1000,0)*1000,IF((AND(D21>0,Venta_Inm_Dif_Casa_Hab!M11="NO")),MAX(C45,D45),0)) -> 0 | G45: 0 | H45: =(IF(Venta_Inm_Dif_Casa_Hab!C11>=TOPES!$B$48,0,Venta_Inm_Dif_Casa_Hab!E11)) -> 0 | I45: =(IF(C21<=0,0,Venta_Inm_Dif_Casa_Hab!F11)) -> 0 | J45: =(IF(Venta_Inm_Dif_Casa_Hab!C11="",0,IF(Venta_Inm_Dif_Casa_Hab!C11>=TOPES!$B$48,0,VLOOKUP(Venta_Inm_Dif_Casa_Hab!C11,'ajustes art. 73'!$A$6:$C$129,3)*Venta_Inm_Dif_Casa_Hab!D11))) -> 0 | K45: =Venta_Inm_Dif_Casa_Hab!G11 -> 0 | L45: TRUE | M45: =IF(Venta_Inm_Dif_Casa_Hab!H11=0,K45=0,IF(Venta_Inm_Dif_Casa_Hab!C11>=TOPES!$B$48,0,IF(Venta_Inm_Dif_Casa_Hab!C11=" ",K45=0,IF(Venta_Inm_Dif_Casa_Hab!C11>0,K45)))) -> TRUE | N45: =IF(D21=0,0,IF(C21>=TOPES!$B$48,0,IF(MAX(C45:E45)>D21,G45,MAX(C45:E45)))) -> 0 | O45: =IF((AND(F21>0,Venta_Inm_Dif_Casa_Hab!M11="SI")),MAX(C45,E45),IF((AND(F21>0,Venta_Inm_Dif_Casa_Hab!M11="NO")),MAX(C45,D45),0)) -> 0 | P45: =IF(D21<D45,MIN(C45:E45),IF(D21<=D45,D45,IF(D21=0,0,IF(C21>=TOPES!$B$48,0,IF(AND(D21<C45,D21<D45,D21>E45,C45>D45),C45,IF(AND(D21<C45,D21=D45,D21>E45,C45>D45),C45,IF(AND(D21<C45,D21<D45,D21=E45,C45>D45),C45,IF(AND(D21>C45,D21>D45,D21>E45),MAX(C45:E45),IF(AND(D21>=C45,D21>D45,D21<E45,C45>D45,C45<E45),C45,R45))))))))) -> 0 | Q45: =IF(F21<D45,MIN(C45:E45),IF(F21<=D45,D45,IF(F21=0,0,IF(C21>=TOPES!$B$48,0,IF(AND(F21<C45,F21<D45,F21>E45,C45>D45),C45,IF(AND(F21<C45,F21=D45,F21>E45,C45>D45),C45,IF(AND(F21<C45,F21<D45,F21=E45,C45>D45),C45,IF(AND(F21>C45,F21>D45,F21>E45),MAX(C45:E45),IF(AND(F21>=C45,F21>D45,F21<E45,C45>D45,C45<E45),C45,S45))))))))) -> 0 | R45: =IF(D21=0,0,IF(C21>=TOPES!$B$48,0,IF(AND(D21<C45,D21<D45,D21<E45),MAX(C45:D45),IF(C45=0,MAX(Venta_Inm_Dif_Casa_Hab!D11,D45),IF(AND(D21>D45,D21<C45,D21<E45),MAX(C45:E45),IF(AND(D21<E45,D21>=D45,D21>=C45),MAX(C45:E45),IF(D21<MAX(C45:E45),MAX(C45:E45),IF(AND(D21>=E45,C45>0,D45>0,E45>0),MAX(C45:E45))))))))) -> 0 | S45: =IF(F21=0,0,IF(C21>=TOPES!$B$48,0,IF(AND(F21<C45,F21<D45,F21<E45),MAX(C45:D45),IF(C45=0,MAX(Venta_Inm_Dif_Casa_Hab!D11,D45),IF(AND(F21>E45,F21>D45,C45),MAX(C45:E45),IF(F21<MAX(C45:E45),MAX(C45:D45),IF(AND(F21=E45,C45>0,D45>0,E45>0),E45))))))) -> 0 | U45: =IF(Venta_Inm_Dif_Casa_Hab!C11<TOPES!$B$48,Venta_Inm_Dif_Casa_Hab!H11,0) -> 0 | V45: -1 | W45: -1 | X45: 0 | Y45: -1 | Z45: -1 | AB45: -1 | AC45: 1
B46: 0 | C46: =(IF(Venta_Inm_Dif_Casa_Hab!C12>=TOPES!$B$48,0,(H46+L46))) -> 1 | D46: =(IF(Venta_Inm_Dif_Casa_Hab!C12>=TOPES!$B$48,0,(I46+L46))) -> 1 | E46: =ROUND(IF(Venta_Inm_Dif_Casa_Hab!C12>=TOPES!$B$48,0,(J46+L46))/1000,0)*1000 -> 0 | F46: =IF((AND(D22>0,Venta_Inm_Dif_Casa_Hab!M12="SI")),ROUND(R46/1000,0)*1000,IF((AND(D22>0,Venta_Inm_Dif_Casa_Hab!M12="NO")),MAX(C46,D46),0)) -> 0 | G46: 0 | H46: =(IF(Venta_Inm_Dif_Casa_Hab!C12>=TOPES!$B$48,0,Venta_Inm_Dif_Casa_Hab!E12)) -> 0 | I46: =(IF(C22<=0,0,Venta_Inm_Dif_Casa_Hab!F12)) -> 0 | J46: =(IF(Venta_Inm_Dif_Casa_Hab!C12="",0,IF(Venta_Inm_Dif_Casa_Hab!C12>=TOPES!$B$48,0,VLOOKUP(Venta_Inm_Dif_Casa_Hab!C12,'ajustes art. 73'!$A$6:$C$129,3)*Venta_Inm_Dif_Casa_Hab!D12))) -> 0 | K46: =Venta_Inm_Dif_Casa_Hab!G12 -> 0 | L46: TRUE | M46: =IF(Venta_Inm_Dif_Casa_Hab!H12=0,K46=0,IF(Venta_Inm_Dif_Casa_Hab!C12>=TOPES!$B$48,0,IF(Venta_Inm_Dif_Casa_Hab!C12=" ",K46=0,IF(Venta_Inm_Dif_Casa_Hab!C12>0,K46)))) -> TRUE | N46: =IF(D22=0,0,IF(C22>=TOPES!$B$48,0,IF(MAX(C46:E46)>D22,G46,MAX(C46:E46)))) -> 0 | O46: =IF((AND(F22>0,Venta_Inm_Dif_Casa_Hab!M12="SI")),MAX(C46,E46),IF((AND(F22>0,Venta_Inm_Dif_Casa_Hab!M12="NO")),MAX(C46,D46),0)) -> 0 | P46: =IF(D22<D46,MIN(C46:E46),IF(D22<=D46,D46,IF(D22=0,0,IF(C22>=TOPES!$B$48,0,IF(AND(D22<C46,D22<D46,D22>E46,C46>D46),C46,IF(AND(D22<C46,D22=D46,D22>E46,C46>D46),C46,IF(AND(D22<C46,D22<D46,D22=E46,C46>D46),C46,IF(AND(D22>C46,D22>D46,D22>E46),MAX(C46:E46),IF(AND(D22>=C46,D22>D46,D22<E46,C46>D46,C46<E46),C46,R46))))))))) -> 0 | Q46: =IF(F22<D46,MIN(C46:E46),IF(F22<=D46,D46,IF(F22=0,0,IF(C22>=TOPES!$B$48,0,IF(AND(F22<C46,F22<D46,F22>E46,C46>D46),C46,IF(AND(F22<C46,F22=D46,F22>E46,C46>D46),C46,IF(AND(F22<C46,F22<D46,F22=E46,C46>D46),C46,IF(AND(F22>C46,F22>D46,F22>E46),MAX(C46:E46),IF(AND(F22>=C46,F22>D46,F22<E46,C46>D46,C46<E46),C46,S46))))))))) -> 0 | R46: =IF(D22=0,0,IF(C22>=TOPES!$B$48,0,IF(AND(D22<C46,D22<D46,D22<E46),MAX(C46:D46),IF(C46=0,MAX(Venta_Inm_Dif_Casa_Hab!D12,D46),IF(AND(D22>D46,D22<C46,D22<E46),MAX(C46:E46),IF(AND(D22<E46,D22>=D46,D22>=C46),MAX(C46:E46),IF(D22<MAX(C46:E46),MAX(C46:E46),IF(AND(D22>=E46,C46>0,D46>0,E46>0),MAX(C46:E46))))))))) -> 0 | S46: =IF(F22=0,0,IF(C22>=TOPES!$B$48,0,IF(AND(F22<C46,F22<D46,F22<E46),MAX(C46:D46),IF(C46=0,MAX(Venta_Inm_Dif_Casa_Hab!D12,D46),IF(AND(F22>E46,F22>D46,C46),MAX(C46:E46),IF(F22<MAX(C46:E46),MAX(C46:D46),IF(AND(F22=E46,C46>0,D46>0,E46>0),E46))))))) -> 0 | U46: =IF(Venta_Inm_Dif_Casa_Hab!C12<TOPES!$B$48,Venta_Inm_Dif_Casa_Hab!H12,0) -> 0 | V46: -1 | W46: -1 | X46: 0 | Y46: -1 | Z46: -1 | AB46: -1 | AC46: 1
B47: 0 | C47: =(IF(Venta_Inm_Dif_Casa_Hab!C13>=TOPES!$B$48,0,(H47+L47))) -> 1 | D47: =(IF(Venta_Inm_Dif_Casa_Hab!C13>=TOPES!$B$48,0,(I47+L47))) -> 1 | E47: =ROUND(IF(Venta_Inm_Dif_Casa_Hab!C13>=TOPES!$B$48,0,(J47+L47))/1000,0)*1000 -> 0 | F47: =IF((AND(D23>0,Venta_Inm_Dif_Casa_Hab!M13="SI")),ROUND(R47/1000,0)*1000,IF((AND(D23>0,Venta_Inm_Dif_Casa_Hab!M13="NO")),MAX(C47,D47),0)) -> 0 | G47: 0 | H47: =(IF(Venta_Inm_Dif_Casa_Hab!C13>=TOPES!$B$48,0,Venta_Inm_Dif_Casa_Hab!E13)) -> 0 | I47: =(IF(C23<=0,0,Venta_Inm_Dif_Casa_Hab!F13)) -> 0 | J47: =(IF(Venta_Inm_Dif_Casa_Hab!C13="",0,IF(Venta_Inm_Dif_Casa_Hab!C13>=TOPES!$B$48,0,VLOOKUP(Venta_Inm_Dif_Casa_Hab!C13,'ajustes art. 73'!$A$6:$C$129,3)*Venta_Inm_Dif_Casa_Hab!D13))) -> 0 | K47: =Venta_Inm_Dif_Casa_Hab!G13 -> 0 | L47: TRUE | M47: =IF(Venta_Inm_Dif_Casa_Hab!H13=0,K47=0,IF(Venta_Inm_Dif_Casa_Hab!C13>=TOPES!$B$48,0,IF(Venta_Inm_Dif_Casa_Hab!C13=" ",K47=0,IF(Venta_Inm_Dif_Casa_Hab!C13>0,K47)))) -> TRUE | N47: =IF(D23=0,0,IF(C23>=TOPES!$B$48,0,IF(MAX(C47:E47)>D23,G47,MAX(C47:E47)))) -> 0 | O47: =IF((AND(F23>0,Venta_Inm_Dif_Casa_Hab!M13="SI")),MAX(C47,E47),IF((AND(F23>0,Venta_Inm_Dif_Casa_Hab!M13="NO")),MAX(C47,D47),0)) -> 0 | P47: =IF(D23<D47,MIN(C47:E47),IF(D23<=D47,D47,IF(D23=0,0,IF(C23>=TOPES!$B$48,0,IF(AND(D23<C47,D23<D47,D23>E47,C47>D47),C47,IF(AND(D23<C47,D23=D47,D23>E47,C47>D47),C47,IF(AND(D23<C47,D23<D47,D23=E47,C47>D47),C47,IF(AND(D23>C47,D23>D47,D23>E47),MAX(C47:E47),IF(AND(D23>=C47,D23>D47,D23<E47,C47>D47,C47<E47),C47,R47))))))))) -> 0 | Q47: =IF(F23<D47,MIN(C47:E47),IF(F23<=D47,D47,IF(F23=0,0,IF(C23>=TOPES!$B$48,0,IF(AND(F23<C47,F23<D47,F23>E47,C47>D47),C47,IF(AND(F23<C47,F23=D47,F23>E47,C47>D47),C47,IF(AND(F23<C47,F23<D47,F23=E47,C47>D47),C47,IF(AND(F23>C47,F23>D47,F23>E47),MAX(C47:E47),IF(AND(F23>=C47,F23>D47,F23<E47,C47>D47,C47<E47),C47,S47))))))))) -> 0 | R47: =IF(D23=0,0,IF(C23>=TOPES!$B$48,0,IF(AND(D23<C47,D23<D47,D23<E47),MAX(C47:D47),IF(C47=0,MAX(Venta_Inm_Dif_Casa_Hab!D13,D47),IF(AND(D23>D47,D23<C47,D23<E47),MAX(C47:E47),IF(AND(D23<E47,D23>=D47,D23>=C47),MAX(C47:E47),IF(D23<MAX(C47:E47),MAX(C47:E47),IF(AND(D23>=E47,C47>0,D47>0,E47>0),MAX(C47:E47))))))))) -> 0 | S47: =IF(F23=0,0,IF(C23>=TOPES!$B$48,0,IF(AND(F23<C47,F23<D47,F23<E47),MAX(C47:D47),IF(C47=0,MAX(Venta_Inm_Dif_Casa_Hab!D13,D47),IF(AND(F23>E47,F23>D47,C47),MAX(C47:E47),IF(F23<MAX(C47:E47),MAX(C47:D47),IF(AND(F23=E47,C47>0,D47>0,E47>0),E47))))))) -> 0 | U47: =IF(Venta_Inm_Dif_Casa_Hab!C13<TOPES!$B$48,Venta_Inm_Dif_Casa_Hab!H13,0) -> 0 | V47: -1 | W47: -1 | X47: 0 | Y47: -1 | Z47: -1 | AB47: -1 | AC47: 1
B48: 0 | C48: =(IF(Venta_Inm_Dif_Casa_Hab!C14>=TOPES!$B$48,0,(H48+L48))) -> 1 | D48: =(IF(Venta_Inm_Dif_Casa_Hab!C14>=TOPES!$B$48,0,(I48+L48))) -> 1 | E48: =ROUND(IF(Venta_Inm_Dif_Casa_Hab!C14>=TOPES!$B$48,0,(J48+L48))/1000,0)*1000 -> 0 | F48: =IF((AND(D24>0,Venta_Inm_Dif_Casa_Hab!M14="SI")),ROUND(R48/1000,0)*1000,IF((AND(D24>0,Venta_Inm_Dif_Casa_Hab!M14="NO")),MAX(C48,D48),0)) -> 0 | G48: 0 | H48: =(IF(Venta_Inm_Dif_Casa_Hab!C14>=TOPES!$B$48,0,Venta_Inm_Dif_Casa_Hab!E14)) -> 0 | I48: =(IF(C24<=0,0,Venta_Inm_Dif_Casa_Hab!F14)) -> 0 | J48: =(IF(Venta_Inm_Dif_Casa_Hab!C14="",0,IF(Venta_Inm_Dif_Casa_Hab!C14>=TOPES!$B$48,0,VLOOKUP(Venta_Inm_Dif_Casa_Hab!C14,'ajustes art. 73'!$A$6:$C$129,3)*Venta_Inm_Dif_Casa_Hab!D14))) -> 0 | K48: =Venta_Inm_Dif_Casa_Hab!G14 -> 0 | L48: TRUE | M48: =IF(Venta_Inm_Dif_Casa_Hab!H14=0,K48=0,IF(Venta_Inm_Dif_Casa_Hab!C14>=TOPES!$B$48,0,IF(Venta_Inm_Dif_Casa_Hab!C14=" ",K48=0,IF(Venta_Inm_Dif_Casa_Hab!C14>0,K48)))) -> TRUE | N48: =IF(D24=0,0,IF(C24>=TOPES!$B$48,0,IF(MAX(C48:E48)>D24,G48,MAX(C48:E48)))) -> 0 | O48: =IF((AND(F24>0,Venta_Inm_Dif_Casa_Hab!M14="SI")),MAX(C48,E48),IF((AND(F24>0,Venta_Inm_Dif_Casa_Hab!M14="NO")),MAX(C48,D48),0)) -> 0 | P48: =IF(D24<D48,MIN(C48:E48),IF(D24<=D48,D48,IF(D24=0,0,IF(C24>=TOPES!$B$48,0,IF(AND(D24<C48,D24<D48,D24>E48,C48>D48),C48,IF(AND(D24<C48,D24=D48,D24>E48,C48>D48),C48,IF(AND(D24<C48,D24<D48,D24=E48,C48>D48),C48,IF(AND(D24>C48,D24>D48,D24>E48),MAX(C48:E48),IF(AND(D24>=C48,D24>D48,D24<E48,C48>D48,C48<E48),C48,R48))))))))) -> 0 | Q48: =IF(F24<D48,MIN(C48:E48),IF(F24<=D48,D48,IF(F24=0,0,IF(C24>=TOPES!$B$48,0,IF(AND(F24<C48,F24<D48,F24>E48,C48>D48),C48,IF(AND(F24<C48,F24=D48,F24>E48,C48>D48),C48,IF(AND(F24<C48,F24<D48,F24=E48,C48>D48),C48,IF(AND(F24>C48,F24>D48,F24>E48),MAX(C48:E48),IF(AND(F24>=C48,F24>D48,F24<E48,C48>D48,C48<E48),C48,S48))))))))) -> 0 | R48: =IF(D24=0,0,IF(C24>=TOPES!$B$48,0,IF(AND(D24<C48,D24<D48,D24<E48),MAX(C48:D48),IF(C48=0,MAX(Venta_Inm_Dif_Casa_Hab!D14,D48),IF(AND(D24>D48,D24<C48,D24<E48),MAX(C48:E48),IF(AND(D24<E48,D24>=D48,D24>=C48),MAX(C48:E48),IF(D24<MAX(C48:E48),MAX(C48:E48),IF(AND(D24>=E48,C48>0,D48>0,E48>0),MAX(C48:E48))))))))) -> 0 | S48: =IF(F24=0,0,IF(C24>=TOPES!$B$48,0,IF(AND(F24<C48,F24<D48,F24<E48),MAX(C48:D48),IF(C48=0,MAX(Venta_Inm_Dif_Casa_Hab!D14,D48),IF(AND(F24>E48,F24>D48,C48),MAX(C48:E48),IF(F24<MAX(C48:E48),MAX(C48:D48),IF(AND(F24=E48,C48>0,D48>0,E48>0),E48))))))) -> 0 | U48: =IF(Venta_Inm_Dif_Casa_Hab!C14<TOPES!$B$48,Venta_Inm_Dif_Casa_Hab!H14,0) -> 0 | V48: -1 | W48: -1 | X48: 0 | Y48: -1 | Z48: -1 | AB48: -1 | AC48: 1
B49: 0 | C49: =(IF(Venta_Inm_Dif_Casa_Hab!C15>=TOPES!$B$48,0,(H49+L49))) -> 1 | D49: =(IF(Venta_Inm_Dif_Casa_Hab!C15>=TOPES!$B$48,0,(I49+L49))) -> 1 | E49: =ROUND(IF(Venta_Inm_Dif_Casa_Hab!C15>=TOPES!$B$48,0,(J49+L49))/1000,0)*1000 -> 0 | F49: =IF((AND(D25>0,Venta_Inm_Dif_Casa_Hab!M15="SI")),ROUND(R49/1000,0)*1000,IF((AND(D25>0,Venta_Inm_Dif_Casa_Hab!M15="NO")),MAX(C49,D49),0)) -> 0 | G49: 0 | H49: =(IF(Venta_Inm_Dif_Casa_Hab!C15>=TOPES!$B$48,0,Venta_Inm_Dif_Casa_Hab!E15)) -> 0 | I49: =(IF(C25<=0,0,Venta_Inm_Dif_Casa_Hab!F15)) -> 0 | J49: =(IF(Venta_Inm_Dif_Casa_Hab!C15="",0,IF(Venta_Inm_Dif_Casa_Hab!C15>=TOPES!$B$48,0,VLOOKUP(Venta_Inm_Dif_Casa_Hab!C15,'ajustes art. 73'!$A$6:$C$129,3)*Venta_Inm_Dif_Casa_Hab!D15))) -> 0 | K49: =Venta_Inm_Dif_Casa_Hab!G15 -> 0 | L49: TRUE | M49: =IF(Venta_Inm_Dif_Casa_Hab!H15=0,K49=0,IF(Venta_Inm_Dif_Casa_Hab!C15>=TOPES!$B$48,0,IF(Venta_Inm_Dif_Casa_Hab!C15=" ",K49=0,IF(Venta_Inm_Dif_Casa_Hab!C15>0,K49)))) -> TRUE | N49: =IF(D25=0,0,IF(C25>=TOPES!$B$48,0,IF(MAX(C49:E49)>D25,G49,MAX(C49:E49)))) -> 0 | O49: =IF((AND(F25>0,Venta_Inm_Dif_Casa_Hab!M15="SI")),MAX(C49,E49),IF((AND(F25>0,Venta_Inm_Dif_Casa_Hab!M15="NO")),MAX(C49,D49),0)) -> 0 | P49: =IF(D25<D49,MIN(C49:E49),IF(D25<=D49,D49,IF(D25=0,0,IF(C25>=TOPES!$B$48,0,IF(AND(D25<C49,D25<D49,D25>E49,C49>D49),C49,IF(AND(D25<C49,D25=D49,D25>E49,C49>D49),C49,IF(AND(D25<C49,D25<D49,D25=E49,C49>D49),C49,IF(AND(D25>C49,D25>D49,D25>E49),MAX(C49:E49),IF(AND(D25>=C49,D25>D49,D25<E49,C49>D49,C49<E49),C49,R49))))))))) -> 0 | Q49: =IF(F25<D49,MIN(C49:E49),IF(F25<=D49,D49,IF(F25=0,0,IF(C25>=TOPES!$B$48,0,IF(AND(F25<C49,F25<D49,F25>E49,C49>D49),C49,IF(AND(F25<C49,F25=D49,F25>E49,C49>D49),C49,IF(AND(F25<C49,F25<D49,F25=E49,C49>D49),C49,IF(AND(F25>C49,F25>D49,F25>E49),MAX(C49:E49),IF(AND(F25>=C49,F25>D49,F25<E49,C49>D49,C49<E49),C49,S49))))))))) -> 0 | R49: =IF(D25=0,0,IF(C25>=TOPES!$B$48,0,IF(AND(D25<C49,D25<D49,D25<E49),MAX(C49:D49),IF(C49=0,MAX(Venta_Inm_Dif_Casa_Hab!D15,D49),IF(AND(D25>D49,D25<C49,D25<E49),MAX(C49:E49),IF(AND(D25<E49,D25>=D49,D25>=C49),MAX(C49:E49),IF(D25<MAX(C49:E49),MAX(C49:E49),IF(AND(D25>=E49,C49>0,D49>0,E49>0),MAX(C49:E49))))))))) -> 0 | S49: =IF(F25=0,0,IF(C25>=TOPES!$B$48,0,IF(AND(F25<C49,F25<D49,F25<E49),MAX(C49:D49),IF(C49=0,MAX(Venta_Inm_Dif_Casa_Hab!D15,D49),IF(AND(F25>E49,F25>D49,C49),MAX(C49:E49),IF(F25<MAX(C49:E49),MAX(C49:D49),IF(AND(F25=E49,C49>0,D49>0,E49>0),E49))))))) -> 0 | U49: =IF(Venta_Inm_Dif_Casa_Hab!C15<TOPES!$B$48,Venta_Inm_Dif_Casa_Hab!H15,0) -> 0 | V49: -1 | W49: -1 | X49: 0 | Y49: -1 | Z49: -1 | AB49: -1 | AC49: 1
B50: 0 | C50: =(IF(Venta_Inm_Dif_Casa_Hab!C16>=TOPES!$B$48,0,(H50+L50))) -> 1 | D50: =(IF(Venta_Inm_Dif_Casa_Hab!C16>=TOPES!$B$48,0,(I50+L50))) -> 1 | E50: =ROUND(IF(Venta_Inm_Dif_Casa_Hab!C16>=TOPES!$B$48,0,(J50+L50))/1000,0)*1000 -> 0 | F50: =IF((AND(D26>0,Venta_Inm_Dif_Casa_Hab!M16="SI")),ROUND(R50/1000,0)*1000,IF((AND(D26>0,Venta_Inm_Dif_Casa_Hab!M16="NO")),MAX(C50,D50),0)) -> 0 | G50: 0 | H50: =(IF(Venta_Inm_Dif_Casa_Hab!C16>=TOPES!$B$48,0,Venta_Inm_Dif_Casa_Hab!E16)) -> 0 | I50: =(IF(C26<=0,0,Venta_Inm_Dif_Casa_Hab!F16)) -> 0 | J50: =(IF(Venta_Inm_Dif_Casa_Hab!C16="",0,IF(Venta_Inm_Dif_Casa_Hab!C16>=TOPES!$B$48,0,VLOOKUP(Venta_Inm_Dif_Casa_Hab!C16,'ajustes art. 73'!$A$6:$C$129,3)*Venta_Inm_Dif_Casa_Hab!D16))) -> 0 | K50: =Venta_Inm_Dif_Casa_Hab!G16 -> 0 | L50: TRUE | M50: =IF(Venta_Inm_Dif_Casa_Hab!H16=0,K50=0,IF(Venta_Inm_Dif_Casa_Hab!C16>=TOPES!$B$48,0,IF(Venta_Inm_Dif_Casa_Hab!C16=" ",K50=0,IF(Venta_Inm_Dif_Casa_Hab!C16>0,K50)))) -> TRUE | N50: =IF(D26=0,0,IF(C26>=TOPES!$B$48,0,IF(MAX(C50:E50)>D26,G50,MAX(C50:E50)))) -> 0 | O50: =IF((AND(F26>0,Venta_Inm_Dif_Casa_Hab!M16="SI")),MAX(C50,E50),IF((AND(F26>0,Venta_Inm_Dif_Casa_Hab!M16="NO")),MAX(C50,D50),0)) -> 0 | P50: =IF(D26<D50,MIN(C50:E50),IF(D26<=D50,D50,IF(D26=0,0,IF(C26>=TOPES!$B$48,0,IF(AND(D26<C50,D26<D50,D26>E50,C50>D50),C50,IF(AND(D26<C50,D26=D50,D26>E50,C50>D50),C50,IF(AND(D26<C50,D26<D50,D26=E50,C50>D50),C50,IF(AND(D26>C50,D26>D50,D26>E50),MAX(C50:E50),IF(AND(D26>=C50,D26>D50,D26<E50,C50>D50,C50<E50),C50,R50))))))))) -> 0 | Q50: =IF(F26<D50,MIN(C50:E50),IF(F26<=D50,D50,IF(F26=0,0,IF(C26>=TOPES!$B$48,0,IF(AND(F26<C50,F26<D50,F26>E50,C50>D50),C50,IF(AND(F26<C50,F26=D50,F26>E50,C50>D50),C50,IF(AND(F26<C50,F26<D50,F26=E50,C50>D50),C50,IF(AND(F26>C50,F26>D50,F26>E50),MAX(C50:E50),IF(AND(F26>=C50,F26>D50,F26<E50,C50>D50,C50<E50),C50,S50))))))))) -> 0 | R50: =IF(D26=0,0,IF(C26>=TOPES!$B$48,0,IF(AND(D26<C50,D26<D50,D26<E50),MAX(C50:D50),IF(C50=0,MAX(Venta_Inm_Dif_Casa_Hab!D16,D50),IF(AND(D26>D50,D26<C50,D26<E50),MAX(C50:E50),IF(AND(D26<E50,D26>=D50,D26>=C50),MAX(C50:E50),IF(D26<MAX(C50:E50),MAX(C50:E50),IF(AND(D26>=E50,C50>0,D50>0,E50>0),MAX(C50:E50))))))))) -> 0 | S50: =IF(F26=0,0,IF(C26>=TOPES!$B$48,0,IF(AND(F26<C50,F26<D50,F26<E50),MAX(C50:D50),IF(C50=0,MAX(Venta_Inm_Dif_Casa_Hab!D16,D50),IF(AND(F26>E50,F26>D50,C50),MAX(C50:E50),IF(F26<MAX(C50:E50),MAX(C50:D50),IF(AND(F26=E50,C50>0,D50>0,E50>0),E50))))))) -> 0 | U50: =IF(Venta_Inm_Dif_Casa_Hab!C16<TOPES!$B$48,Venta_Inm_Dif_Casa_Hab!H16,0) -> 0 | V50: -1 | W50: -1 | X50: 0 | Y50: -1 | Z50: -1 | AB50: -1 | AC50: 1
B51: 0 | C51: =(IF(Venta_Inm_Dif_Casa_Hab!C17>=TOPES!$B$48,0,(H51+L51))) -> 1 | D51: =(IF(Venta_Inm_Dif_Casa_Hab!C17>=TOPES!$B$48,0,(I51+L51))) -> 1 | E51: =ROUND(IF(Venta_Inm_Dif_Casa_Hab!C17>=TOPES!$B$48,0,(J51+L51))/1000,0)*1000 -> 0 | F51: =IF((AND(D27>0,Venta_Inm_Dif_Casa_Hab!M17="SI")),ROUND(R51/1000,0)*1000,IF((AND(D27>0,Venta_Inm_Dif_Casa_Hab!M17="NO")),MAX(C51,D51),0)) -> 0 | G51: 0 | H51: =(IF(Venta_Inm_Dif_Casa_Hab!C17>=TOPES!$B$48,0,Venta_Inm_Dif_Casa_Hab!E17)) -> 0 | I51: =(IF(C27<=0,0,Venta_Inm_Dif_Casa_Hab!F17)) -> 0 | J51: =(IF(Venta_Inm_Dif_Casa_Hab!C17="",0,IF(Venta_Inm_Dif_Casa_Hab!C17>=TOPES!$B$48,0,VLOOKUP(Venta_Inm_Dif_Casa_Hab!C17,'ajustes art. 73'!$A$6:$C$129,3)*Venta_Inm_Dif_Casa_Hab!D17))) -> 0 | K51: =Venta_Inm_Dif_Casa_Hab!G17 -> 0 | L51: TRUE | M51: =IF(Venta_Inm_Dif_Casa_Hab!H17=0,K51=0,IF(Venta_Inm_Dif_Casa_Hab!C17>=TOPES!$B$48,0,IF(Venta_Inm_Dif_Casa_Hab!C17=" ",K51=0,IF(Venta_Inm_Dif_Casa_Hab!C17>0,K51)))) -> TRUE | N51: =IF(D27=0,0,IF(C27>=TOPES!$B$48,0,IF(MAX(C51:E51)>D27,G51,MAX(C51:E51)))) -> 0 | O51: =IF((AND(F27>0,Venta_Inm_Dif_Casa_Hab!M17="SI")),MAX(C51,E51),IF((AND(F27>0,Venta_Inm_Dif_Casa_Hab!M17="NO")),MAX(C51,D51),0)) -> 0 | P51: =IF(D27<D51,MIN(C51:E51),IF(D27<=D51,D51,IF(D27=0,0,IF(C27>=TOPES!$B$48,0,IF(AND(D27<C51,D27<D51,D27>E51,C51>D51),C51,IF(AND(D27<C51,D27=D51,D27>E51,C51>D51),C51,IF(AND(D27<C51,D27<D51,D27=E51,C51>D51),C51,IF(AND(D27>C51,D27>D51,D27>E51),MAX(C51:E51),IF(AND(D27>=C51,D27>D51,D27<E51,C51>D51,C51<E51),C51,R51))))))))) -> 0 | Q51: =IF(F27<D51,MIN(C51:E51),IF(F27<=D51,D51,IF(F27=0,0,IF(C27>=TOPES!$B$48,0,IF(AND(F27<C51,F27<D51,F27>E51,C51>D51),C51,IF(AND(F27<C51,F27=D51,F27>E51,C51>D51),C51,IF(AND(F27<C51,F27<D51,F27=E51,C51>D51),C51,IF(AND(F27>C51,F27>D51,F27>E51),MAX(C51:E51),IF(AND(F27>=C51,F27>D51,F27<E51,C51>D51,C51<E51),C51,S51))))))))) -> 0 | R51: =IF(D27=0,0,IF(C27>=TOPES!$B$48,0,IF(AND(D27<C51,D27<D51,D27<E51),MAX(C51:D51),IF(C51=0,MAX(Venta_Inm_Dif_Casa_Hab!D17,D51),IF(AND(D27>D51,D27<C51,D27<E51),MAX(C51:E51),IF(AND(D27<E51,D27>=D51,D27>=C51),MAX(C51:E51),IF(D27<MAX(C51:E51),MAX(C51:E51),IF(AND(D27>=E51,C51>0,D51>0,E51>0),MAX(C51:E51))))))))) -> 0 | S51: =IF(F27=0,0,IF(C27>=TOPES!$B$48,0,IF(AND(F27<C51,F27<D51,F27<E51),MAX(C51:D51),IF(C51=0,MAX(Venta_Inm_Dif_Casa_Hab!D17,D51),IF(AND(F27>E51,F27>D51,C51),MAX(C51:E51),IF(F27<MAX(C51:E51),MAX(C51:D51),IF(AND(F27=E51,C51>0,D51>0,E51>0),E51))))))) -> 0 | U51: =IF(Venta_Inm_Dif_Casa_Hab!C17<TOPES!$B$48,Venta_Inm_Dif_Casa_Hab!H17,0) -> 0 | V51: -1 | W51: -1 | X51: 0 | Y51: -1 | Z51: -1 | AB51: -1 | AC51: 1
B52: 0 | C52: =(IF(Venta_Inm_Dif_Casa_Hab!C18>=TOPES!$B$48,0,(H52+L52))) -> 1 | D52: =(IF(Venta_Inm_Dif_Casa_Hab!C18>=TOPES!$B$48,0,(I52+L52))) -> 1 | E52: =ROUND(IF(Venta_Inm_Dif_Casa_Hab!C18>=TOPES!$B$48,0,(J52+L52))/1000,0)*1000 -> 0 | F52: =IF((AND(D28>0,Venta_Inm_Dif_Casa_Hab!M18="SI")),ROUND(R52/1000,0)*1000,IF((AND(D28>0,Venta_Inm_Dif_Casa_Hab!M18="NO")),MAX(C52,D52),0)) -> 0 | G52: 0 | H52: =(IF(Venta_Inm_Dif_Casa_Hab!C18>=TOPES!$B$48,0,Venta_Inm_Dif_Casa_Hab!E18)) -> 0 | I52: =(IF(C28<=0,0,Venta_Inm_Dif_Casa_Hab!F18)) -> 0 | J52: =(IF(Venta_Inm_Dif_Casa_Hab!C18="",0,IF(Venta_Inm_Dif_Casa_Hab!C18>=TOPES!$B$48,0,VLOOKUP(Venta_Inm_Dif_Casa_Hab!C18,'ajustes art. 73'!$A$6:$C$129,3)*Venta_Inm_Dif_Casa_Hab!D18))) -> 0 | K52: =Venta_Inm_Dif_Casa_Hab!G18 -> 0 | L52: TRUE | M52: =IF(Venta_Inm_Dif_Casa_Hab!H18=0,K52=0,IF(Venta_Inm_Dif_Casa_Hab!C18>=TOPES!$B$48,0,IF(Venta_Inm_Dif_Casa_Hab!C18=" ",K52=0,IF(Venta_Inm_Dif_Casa_Hab!C18>0,K52)))) -> TRUE | N52: =IF(D28=0,0,IF(C28>=TOPES!$B$48,0,IF(MAX(C52:E52)>D28,G52,MAX(C52:E52)))) -> 0 | O52: =IF((AND(F28>0,Venta_Inm_Dif_Casa_Hab!M18="SI")),MAX(C52,E52),IF((AND(F28>0,Venta_Inm_Dif_Casa_Hab!M18="NO")),MAX(C52,D52),0)) -> 0 | P52: =IF(D28<D52,MIN(C52:E52),IF(D28<=D52,D52,IF(D28=0,0,IF(C28>=TOPES!$B$48,0,IF(AND(D28<C52,D28<D52,D28>E52,C52>D52),C52,IF(AND(D28<C52,D28=D52,D28>E52,C52>D52),C52,IF(AND(D28<C52,D28<D52,D28=E52,C52>D52),C52,IF(AND(D28>C52,D28>D52,D28>E52),MAX(C52:E52),IF(AND(D28>=C52,D28>D52,D28<E52,C52>D52,C52<E52),C52,R52))))))))) -> 0 | Q52: =IF(F28<D52,MIN(C52:E52),IF(F28<=D52,D52,IF(F28=0,0,IF(C28>=TOPES!$B$48,0,IF(AND(F28<C52,F28<D52,F28>E52,C52>D52),C52,IF(AND(F28<C52,F28=D52,F28>E52,C52>D52),C52,IF(AND(F28<C52,F28<D52,F28=E52,C52>D52),C52,IF(AND(F28>C52,F28>D52,F28>E52),MAX(C52:E52),IF(AND(F28>=C52,F28>D52,F28<E52,C52>D52,C52<E52),C52,S52))))))))) -> 0 | R52: =IF(D28=0,0,IF(C28>=TOPES!$B$48,0,IF(AND(D28<C52,D28<D52,D28<E52),MAX(C52:D52),IF(C52=0,MAX(Venta_Inm_Dif_Casa_Hab!D18,D52),IF(AND(D28>D52,D28<C52,D28<E52),MAX(C52:E52),IF(AND(D28<E52,D28>=D52,D28>=C52),MAX(C52:E52),IF(D28<MAX(C52:E52),MAX(C52:E52),IF(AND(D28>=E52,C52>0,D52>0,E52>0),MAX(C52:E52))))))))) -> 0 | S52: =IF(F28=0,0,IF(C28>=TOPES!$B$48,0,IF(AND(F28<C52,F28<D52,F28<E52),MAX(C52:D52),IF(C52=0,MAX(Venta_Inm_Dif_Casa_Hab!D18,D52),IF(AND(F28>E52,F28>D52,C52),MAX(C52:E52),IF(F28<MAX(C52:E52),MAX(C52:D52),IF(AND(F28=E52,C52>0,D52>0,E52>0),E52))))))) -> 0 | U52: =IF(Venta_Inm_Dif_Casa_Hab!C18<TOPES!$B$48,Venta_Inm_Dif_Casa_Hab!H18,0) -> 0 | V52: -1 | W52: -1 | X52: 0 | Y52: -1 | Z52: -1 | AB52: -1 | AC52: 1
B53: 0 | C53: =(IF(Venta_Inm_Dif_Casa_Hab!C19>=TOPES!$B$48,0,(H53+L53))) -> 1 | D53: =(IF(Venta_Inm_Dif_Casa_Hab!C19>=TOPES!$B$48,0,(I53+L53))) -> 1 | E53: =ROUND(IF(Venta_Inm_Dif_Casa_Hab!C19>=TOPES!$B$48,0,(J53+L53))/1000,0)*1000 -> 0 | F53: =IF((AND(D29>0,Venta_Inm_Dif_Casa_Hab!M19="SI")),ROUND(R53/1000,0)*1000,IF((AND(D29>0,Venta_Inm_Dif_Casa_Hab!M19="NO")),MAX(C53,D53),0)) -> 0 | G53: 0 | H53: =(IF(Venta_Inm_Dif_Casa_Hab!C19>=TOPES!$B$48,0,Venta_Inm_Dif_Casa_Hab!E19)) -> 0 | I53: =(IF(C29<=0,0,Venta_Inm_Dif_Casa_Hab!F19)) -> 0 | J53: =(IF(Venta_Inm_Dif_Casa_Hab!C19="",0,IF(Venta_Inm_Dif_Casa_Hab!C19>=TOPES!$B$48,0,VLOOKUP(Venta_Inm_Dif_Casa_Hab!C19,'ajustes art. 73'!$A$6:$C$129,3)*Venta_Inm_Dif_Casa_Hab!D19))) -> 0 | K53: =Venta_Inm_Dif_Casa_Hab!G19 -> 0 | L53: TRUE | M53: =IF(Venta_Inm_Dif_Casa_Hab!H19=0,K53=0,IF(Venta_Inm_Dif_Casa_Hab!C19>=TOPES!$B$48,0,IF(Venta_Inm_Dif_Casa_Hab!C19=" ",K53=0,IF(Venta_Inm_Dif_Casa_Hab!C19>0,K53)))) -> TRUE | N53: =IF(D29=0,0,IF(C29>=TOPES!$B$48,0,IF(MAX(C53:E53)>D29,G53,MAX(C53:E53)))) -> 0 | O53: =IF((AND(F29>0,Venta_Inm_Dif_Casa_Hab!M19="SI")),MAX(C53,E53),IF((AND(F29>0,Venta_Inm_Dif_Casa_Hab!M19="NO")),MAX(C53,D53),0)) -> 0 | P53: =IF(D29<D53,MIN(C53:E53),IF(D29<=D53,D53,IF(D29=0,0,IF(C29>=TOPES!$B$48,0,IF(AND(D29<C53,D29<D53,D29>E53,C53>D53),C53,IF(AND(D29<C53,D29=D53,D29>E53,C53>D53),C53,IF(AND(D29<C53,D29<D53,D29=E53,C53>D53),C53,IF(AND(D29>C53,D29>D53,D29>E53),MAX(C53:E53),IF(AND(D29>=C53,D29>D53,D29<E53,C53>D53,C53<E53),C53,R53))))))))) -> 0 | Q53: =IF(F29<D53,MIN(C53:E53),IF(F29<=D53,D53,IF(F29=0,0,IF(C29>=TOPES!$B$48,0,IF(AND(F29<C53,F29<D53,F29>E53,C53>D53),C53,IF(AND(F29<C53,F29=D53,F29>E53,C53>D53),C53,IF(AND(F29<C53,F29<D53,F29=E53,C53>D53),C53,IF(AND(F29>C53,F29>D53,F29>E53),MAX(C53:E53),IF(AND(F29>=C53,F29>D53,F29<E53,C53>D53,C53<E53),C53,S53))))))))) -> 0 | R53: =IF(D29=0,0,IF(C29>=TOPES!$B$48,0,IF(AND(D29<C53,D29<D53,D29<E53),MAX(C53:D53),IF(C53=0,MAX(Venta_Inm_Dif_Casa_Hab!D19,D53),IF(AND(D29>D53,D29<C53,D29<E53),MAX(C53:E53),IF(AND(D29<E53,D29>=D53,D29>=C53),MAX(C53:E53),IF(D29<MAX(C53:E53),MAX(C53:E53),IF(AND(D29>=E53,C53>0,D53>0,E53>0),MAX(C53:E53))))))))) -> 0 | S53: =IF(F29=0,0,IF(C29>=TOPES!$B$48,0,IF(AND(F29<C53,F29<D53,F29<E53),MAX(C53:D53),IF(C53=0,MAX(Venta_Inm_Dif_Casa_Hab!D19,D53),IF(AND(F29>E53,F29>D53,C53),MAX(C53:E53),IF(F29<MAX(C53:E53),MAX(C53:D53),IF(AND(F29=E53,C53>0,D53>0,E53>0),E53))))))) -> 0 | U53: =IF(Venta_Inm_Dif_Casa_Hab!C19<TOPES!$B$48,Venta_Inm_Dif_Casa_Hab!H19,0) -> 0 | V53: -1 | W53: -1 | X53: 0 | Y53: -1 | Z53: -1 | AB53: -1 | AC53: 1
B54: 0 | C54: =(IF(Venta_Inm_Dif_Casa_Hab!C20>=TOPES!$B$48,0,(H54+L54))) -> 1 | D54: =(IF(Venta_Inm_Dif_Casa_Hab!C20>=TOPES!$B$48,0,(I54+L54))) -> 1 | E54: =ROUND(IF(Venta_Inm_Dif_Casa_Hab!C20>=TOPES!$B$48,0,(J54+L54))/1000,0)*1000 -> 0 | F54: =IF((AND(D30>0,Venta_Inm_Dif_Casa_Hab!M20="SI")),ROUND(R54/1000,0)*1000,IF((AND(D30>0,Venta_Inm_Dif_Casa_Hab!M20="NO")),MAX(C54,D54),0)) -> 0 | G54: 0 | H54: =(IF(Venta_Inm_Dif_Casa_Hab!C20>=TOPES!$B$48,0,Venta_Inm_Dif_Casa_Hab!E20)) -> 0 | I54: =(IF(C30<=0,0,Venta_Inm_Dif_Casa_Hab!F20)) -> 0 | J54: =(IF(Venta_Inm_Dif_Casa_Hab!C20="",0,IF(Venta_Inm_Dif_Casa_Hab!C20>=TOPES!$B$48,0,VLOOKUP(Venta_Inm_Dif_Casa_Hab!C20,'ajustes art. 73'!$A$6:$C$129,3)*Venta_Inm_Dif_Casa_Hab!D20))) -> 0 | K54: =Venta_Inm_Dif_Casa_Hab!G20 -> 0 | L54: TRUE | M54: =IF(Venta_Inm_Dif_Casa_Hab!H20=0,K54=0,IF(Venta_Inm_Dif_Casa_Hab!C20>=TOPES!$B$48,0,IF(Venta_Inm_Dif_Casa_Hab!C20=" ",K54=0,IF(Venta_Inm_Dif_Casa_Hab!C20>0,K54)))) -> TRUE | N54: =IF(D30=0,0,IF(C30>=TOPES!$B$48,0,IF(MAX(C54:E54)>D30,G54,MAX(C54:E54)))) -> 0 | O54: =IF((AND(F30>0,Venta_Inm_Dif_Casa_Hab!M20="SI")),MAX(C54,E54),IF((AND(F30>0,Venta_Inm_Dif_Casa_Hab!M20="NO")),MAX(C54,D54),0)) -> 0 | P54: =IF(D30<D54,MIN(C54:E54),IF(D30<=D54,D54,IF(D30=0,0,IF(C30>=TOPES!$B$48,0,IF(AND(D30<C54,D30<D54,D30>E54,C54>D54),C54,IF(AND(D30<C54,D30=D54,D30>E54,C54>D54),C54,IF(AND(D30<C54,D30<D54,D30=E54,C54>D54),C54,IF(AND(D30>C54,D30>D54,D30>E54),MAX(C54:E54),IF(AND(D30>=C54,D30>D54,D30<E54,C54>D54,C54<E54),C54,R54))))))))) -> 0 | Q54: =IF(F30<D54,MIN(C54:E54),IF(F30<=D54,D54,IF(F30=0,0,IF(C30>=TOPES!$B$48,0,IF(AND(F30<C54,F30<D54,F30>E54,C54>D54),C54,IF(AND(F30<C54,F30=D54,F30>E54,C54>D54),C54,IF(AND(F30<C54,F30<D54,F30=E54,C54>D54),C54,IF(AND(F30>C54,F30>D54,F30>E54),MAX(C54:E54),IF(AND(F30>=C54,F30>D54,F30<E54,C54>D54,C54<E54),C54,S54))))))))) -> 0 | R54: =IF(D30=0,0,IF(C30>=TOPES!$B$48,0,IF(AND(D30<C54,D30<D54,D30<E54),MAX(C54:D54),IF(C54=0,MAX(Venta_Inm_Dif_Casa_Hab!D20,D54),IF(AND(D30>D54,D30<C54,D30<E54),MAX(C54:E54),IF(AND(D30<E54,D30>=D54,D30>=C54),MAX(C54:E54),IF(D30<MAX(C54:E54),MAX(C54:E54),IF(AND(D30>=E54,C54>0,D54>0,E54>0),MAX(C54:E54))))))))) -> 0 | S54: =IF(F30=0,0,IF(C30>=TOPES!$B$48,0,IF(AND(F30<C54,F30<D54,F30<E54),MAX(C54:D54),IF(C54=0,MAX(Venta_Inm_Dif_Casa_Hab!D20,D54),IF(AND(F30>E54,F30>D54,C54),MAX(C54:E54),IF(F30<MAX(C54:E54),MAX(C54:D54),IF(AND(F30=E54,C54>0,D54>0,E54>0),E54))))))) -> 0 | U54: =IF(Venta_Inm_Dif_Casa_Hab!C20<TOPES!$B$48,Venta_Inm_Dif_Casa_Hab!H20,0) -> 0 | V54: -1 | W54: -1 | X54: 0 | Y54: -1 | Z54: -1 | AB54: -1 | AC54: 1
B55: TOTAL | F55: =ROUND(((SUM(F41:F54))/1000),0)*1000 -> 0 | O55: =ROUND(((SUM(O41:O54))/1000),0)*1000 -> 0
B60: R.55 Determinación de la Ganancia Ocasional venta de acciones y aportes. | H60: R.55 Determinación de la Ganancia Ocasional venta de acciones y aportes EN BOLSA
B61: ENTIDAD | C61: AÑO DE ADQUISICIÓN | D61: VALOR VENTA | E61: RETENCIÒN EN LA FUENTE | F61: GOEXTERIOR | H61: ENTIDAD | I61: AÑO DE ADQUISICIÓN | J61: VALOR VENTA | K61: RETENCIÒN EN LA FUENTE
A62: =IF(Venta_Acciones_Aportes!A7=0,Venta_Acciones_Aportes!A7="NO",Venta_Acciones_Aportes!A7) -> FALSE | B62: =Venta_Acciones_Aportes!B7 -> 0 | C62: =IF(L62<TOPES!$B$48,L62,0) -> 0 | D62: =IF(A62=0,0,IF(A62="SI",0,IF(C62<=0,0,IF(Venta_Acciones_Aportes!C7<TOPES!$B$48,Venta_Acciones_Aportes!F7,0)))) -> 0 | E62: =IF(D62=0,0,IF(Venta_Acciones_Aportes!G7<=0,0,IF(Venta_Acciones_Aportes!C7<TOPES!$B$48,Venta_Acciones_Aportes!G7,0))) -> 0 | F62: =IF(Venta_Acciones_Aportes!A7=0,0,IF(Venta_Acciones_Aportes!A7="NO",0,IF(C62<=0,0,IF(Venta_Acciones_Aportes!C7<TOPES!$B$48,Venta_Acciones_Aportes!F7,0)))) -> 0 | H62: =Venta_Acciones_Aportes!B31 -> 0 | I62: =IF(Venta_Acciones_Aportes!C31<TOPES!$B$48,Venta_Acciones_Aportes!C31,0) -> 0 | J62: =IF(I62<=0,0,IF(Venta_Acciones_Aportes!C31<TOPES!$B$48,Venta_Acciones_Aportes!F31,0)) -> 0 | K62: =IF(Venta_Acciones_Aportes!N31<=0,0,IF(Venta_Acciones_Aportes!J62<TOPES!$B$48,Venta_Acciones_Aportes!N31,0)) -> 0 | L62: =Venta_Acciones_Aportes!C7 -> 0
A63: =IF(Venta_Acciones_Aportes!A8=0,Venta_Acciones_Aportes!A8="NO",Venta_Acciones_Aportes!A8) -> FALSE | B63: =Venta_Acciones_Aportes!B8 -> 0 | C63: =IF(L63<TOPES!$B$48,L63,0) -> 0 | D63: =IF(A63=0,0,IF(A63="SI",0,IF(C63<=0,0,IF(Venta_Acciones_Aportes!C8<TOPES!$B$48,Venta_Acciones_Aportes!F8,0)))) -> 0 | E63: =IF(D63=0,0,IF(Venta_Acciones_Aportes!G8<=0,0,IF(Venta_Acciones_Aportes!C8<TOPES!$B$48,Venta_Acciones_Aportes!G8,0))) -> 0 | F63: =IF(Venta_Acciones_Aportes!A8=0,0,IF(Venta_Acciones_Aportes!A8="NO",0,IF(C63<=0,0,IF(Venta_Acciones_Aportes!C8<TOPES!$B$48,Venta_Acciones_Aportes!F8,0)))) -> 0 | H63: =Venta_Acciones_Aportes!B32 -> 0 | I63: =IF(Venta_Acciones_Aportes!C32<TOPES!$B$48,Venta_Acciones_Aportes!C32,0) -> 0 | J63: =IF(I63<=0,0,IF(Venta_Acciones_Aportes!C32<TOPES!$B$48,Venta_Acciones_Aportes!F32,0)) -> 0 | K63: =IF(Venta_Acciones_Aportes!N32<=0,0,IF(Venta_Acciones_Aportes!J63<TOPES!$B$48,Venta_Acciones_Aportes!N32,0)) -> 0 | L63: =Venta_Acciones_Aportes!C8 -> 0
A64: =IF(Venta_Acciones_Aportes!A9=0,Venta_Acciones_Aportes!A9="NO",Venta_Acciones_Aportes!A9) -> FALSE | B64: =Venta_Acciones_Aportes!B9 -> 0 | C64: =IF(L64<TOPES!$B$48,L64,0) -> 0 | D64: =IF(A64=0,0,IF(A64="SI",0,IF(C64<=0,0,IF(Venta_Acciones_Aportes!C9<TOPES!$B$48,Venta_Acciones_Aportes!F9,0)))) -> 0 | E64: =IF(D64=0,0,IF(Venta_Acciones_Aportes!G9<=0,0,IF(Venta_Acciones_Aportes!C9<TOPES!$B$48,Venta_Acciones_Aportes!G9,0))) -> 0 | F64: =IF(Venta_Acciones_Aportes!A9=0,0,IF(Venta_Acciones_Aportes!A9="NO",0,IF(C64<=0,0,IF(Venta_Acciones_Aportes!C9<TOPES!$B$48,Venta_Acciones_Aportes!F9,0)))) -> 0 | H64: =Venta_Acciones_Aportes!B33 -> 0 | I64: =IF(Venta_Acciones_Aportes!C33<TOPES!$B$48,Venta_Acciones_Aportes!C33,0) -> 0 | J64: =IF(I64<=0,0,IF(Venta_Acciones_Aportes!C33<TOPES!$B$48,Venta_Acciones_Aportes!F33,0)) -> 0 | K64: =IF(Venta_Acciones_Aportes!N33<=0,0,IF(Venta_Acciones_Aportes!J64<TOPES!$B$48,Venta_Acciones_Aportes!N33,0)) -> 0 | L64: =Venta_Acciones_Aportes!C9 -> 0
A65: =IF(Venta_Acciones_Aportes!A10=0,Venta_Acciones_Aportes!A10="NO",Venta_Acciones_Aportes!A10) -> FALSE | B65: =Venta_Acciones_Aportes!B10 -> 0 | C65: =IF(L65<TOPES!$B$48,L65,0) -> 0 | D65: =IF(A65=0,0,IF(A65="SI",0,IF(C65<=0,0,IF(Venta_Acciones_Aportes!C10<TOPES!$B$48,Venta_Acciones_Aportes!F10,0)))) -> 0 | E65: =IF(D65=0,0,IF(Venta_Acciones_Aportes!G10<=0,0,IF(Venta_Acciones_Aportes!C10<TOPES!$B$48,Venta_Acciones_Aportes!G10,0))) -> 0 | F65: =IF(Venta_Acciones_Aportes!A10=0,0,IF(Venta_Acciones_Aportes!A10="NO",0,IF(C65<=0,0,IF(Venta_Acciones_Aportes!C10<TOPES!$B$48,Venta_Acciones_Aportes!F10,0)))) -> 0 | H65: =Venta_Acciones_Aportes!B34 -> 0 | I65: =IF(Venta_Acciones_Aportes!C34<TOPES!$B$48,Venta_Acciones_Aportes!C34,0) -> 0 | J65: =IF(I65<=0,0,IF(Venta_Acciones_Aportes!C34<TOPES!$B$48,Venta_Acciones_Aportes!F34,0)) -> 0 | K65: =IF(Venta_Acciones_Aportes!N34<=0,0,IF(Venta_Acciones_Aportes!J65<TOPES!$B$48,Venta_Acciones_Aportes!N34,0)) -> 0 | L65: =Venta_Acciones_Aportes!C10 -> 0
A66: =IF(Venta_Acciones_Aportes!A11=0,Venta_Acciones_Aportes!A11="NO",Venta_Acciones_Aportes!A11) -> FALSE | B66: =Venta_Acciones_Aportes!B11 -> 0 | C66: =IF(L66<TOPES!$B$48,L66,0) -> 0 | D66: =IF(A66=0,0,IF(A66="SI",0,IF(C66<=0,0,IF(Venta_Acciones_Aportes!C11<TOPES!$B$48,Venta_Acciones_Aportes!F11,0)))) -> 0 | E66: =IF(D66=0,0,IF(Venta_Acciones_Aportes!G11<=0,0,IF(Venta_Acciones_Aportes!C11<TOPES!$B$48,Venta_Acciones_Aportes!G11,0))) -> 0 | F66: =IF(Venta_Acciones_Aportes!A11=0,0,IF(Venta_Acciones_Aportes!A11="NO",0,IF(C66<=0,0,IF(Venta_Acciones_Aportes!C11<TOPES!$B$48,Venta_Acciones_Aportes!F11,0)))) -> 0 | H66: =Venta_Acciones_Aportes!B35 -> 0 | I66: =IF(Venta_Acciones_Aportes!C35<TOPES!$B$48,Venta_Acciones_Aportes!C35,0) -> 0 | J66: =IF(I66<=0,0,IF(Venta_Acciones_Aportes!C35<TOPES!$B$48,Venta_Acciones_Aportes!F35,0)) -> 0 | K66: =IF(Venta_Acciones_Aportes!N35<=0,0,IF(Venta_Acciones_Aportes!J66<TOPES!$B$48,Venta_Acciones_Aportes!N35,0)) -> 0 | L66: =Venta_Acciones_Aportes!C11 -> 0
A67: =IF(Venta_Acciones_Aportes!A12=0,Venta_Acciones_Aportes!A12="NO",Venta_Acciones_Aportes!A12) -> FALSE | B67: =Venta_Acciones_Aportes!B12 -> 0 | C67: =IF(L67<TOPES!$B$48,L67,0) -> 0 | D67: =IF(A67=0,0,IF(A67="SI",0,IF(C67<=0,0,IF(Venta_Acciones_Aportes!C12<TOPES!$B$48,Venta_Acciones_Aportes!F12,0)))) -> 0 | E67: =IF(D67=0,0,IF(Venta_Acciones_Aportes!G12<=0,0,IF(Venta_Acciones_Aportes!C12<TOPES!$B$48,Venta_Acciones_Aportes!G12,0))) -> 0 | F67: =IF(Venta_Acciones_Aportes!A12=0,0,IF(Venta_Acciones_Aportes!A12="NO",0,IF(C67<=0,0,IF(Venta_Acciones_Aportes!C12<TOPES!$B$48,Venta_Acciones_Aportes!F12,0)))) -> 0 | H67: =Venta_Acciones_Aportes!B36 -> 0 | I67: =IF(Venta_Acciones_Aportes!C36<TOPES!$B$48,Venta_Acciones_Aportes!C36,0) -> 0 | J67: =IF(I67<=0,0,IF(Venta_Acciones_Aportes!C36<TOPES!$B$48,Venta_Acciones_Aportes!F36,0)) -> 0 | K67: =IF(Venta_Acciones_Aportes!N36<=0,0,IF(Venta_Acciones_Aportes!J67<TOPES!$B$48,Venta_Acciones_Aportes!N36,0)) -> 0 | L67: =Venta_Acciones_Aportes!C12 -> 0
A68: =IF(Venta_Acciones_Aportes!A13=0,Venta_Acciones_Aportes!A13="NO",Venta_Acciones_Aportes!A13) -> FALSE | B68: =Venta_Acciones_Aportes!B13 -> 0 | C68: =IF(L68<TOPES!$B$48,L68,0) -> 0 | D68: =IF(A68=0,0,IF(A68="SI",0,IF(C68<=0,0,IF(Venta_Acciones_Aportes!C13<TOPES!$B$48,Venta_Acciones_Aportes!F13,0)))) -> 0 | E68: =IF(D68=0,0,IF(Venta_Acciones_Aportes!G13<=0,0,IF(Venta_Acciones_Aportes!C13<TOPES!$B$48,Venta_Acciones_Aportes!G13,0))) -> 0 | F68: =IF(Venta_Acciones_Aportes!A13=0,0,IF(Venta_Acciones_Aportes!A13="NO",0,IF(C68<=0,0,IF(Venta_Acciones_Aportes!C13<TOPES!$B$48,Venta_Acciones_Aportes!F13,0)))) -> 0 | H68: =Venta_Acciones_Aportes!B37 -> 0 | I68: =IF(Venta_Acciones_Aportes!C37<TOPES!$B$48,Venta_Acciones_Aportes!C37,0) -> 0 | J68: =IF(I68<=0,0,IF(Venta_Acciones_Aportes!C37<TOPES!$B$48,Venta_Acciones_Aportes!F37,0)) -> 0 | K68: =IF(Venta_Acciones_Aportes!N37<=0,0,IF(Venta_Acciones_Aportes!J68<TOPES!$B$48,Venta_Acciones_Aportes!N37,0)) -> 0 | L68: =Venta_Acciones_Aportes!C13 -> 0
A69: =IF(Venta_Acciones_Aportes!A14=0,Venta_Acciones_Aportes!A14="NO",Venta_Acciones_Aportes!A14) -> FALSE | B69: =Venta_Acciones_Aportes!B14 -> 0 | C69: =IF(L69<TOPES!$B$48,L69,0) -> 0 | D69: =IF(A69=0,0,IF(A69="SI",0,IF(C69<=0,0,IF(Venta_Acciones_Aportes!C14<TOPES!$B$48,Venta_Acciones_Aportes!F14,0)))) -> 0 | E69: =IF(D69=0,0,IF(Venta_Acciones_Aportes!G14<=0,0,IF(Venta_Acciones_Aportes!C14<TOPES!$B$48,Venta_Acciones_Aportes!G14,0))) -> 0 | F69: =IF(Venta_Acciones_Aportes!A14=0,0,IF(Venta_Acciones_Aportes!A14="NO",0,IF(C69<=0,0,IF(Venta_Acciones_Aportes!C14<TOPES!$B$48,Venta_Acciones_Aportes!F14,0)))) -> 0 | H69: =Venta_Acciones_Aportes!B38 -> 0 | I69: =IF(Venta_Acciones_Aportes!C38<TOPES!$B$48,Venta_Acciones_Aportes!C38,0) -> 0 | J69: =IF(I69<=0,0,IF(Venta_Acciones_Aportes!C38<TOPES!$B$48,Venta_Acciones_Aportes!F38,0)) -> 0 | K69: =IF(Venta_Acciones_Aportes!N38<=0,0,IF(Venta_Acciones_Aportes!J69<TOPES!$B$48,Venta_Acciones_Aportes!N38,0)) -> 0 | L69: =Venta_Acciones_Aportes!C14 -> 0
A70: =IF(Venta_Acciones_Aportes!A15=0,Venta_Acciones_Aportes!A15="NO",Venta_Acciones_Aportes!A15) -> FALSE | B70: =Venta_Acciones_Aportes!B15 -> 0 | C70: =IF(L70<TOPES!$B$48,L70,0) -> 0 | D70: =IF(A70=0,0,IF(A70="SI",0,IF(C70<=0,0,IF(Venta_Acciones_Aportes!C15<TOPES!$B$48,Venta_Acciones_Aportes!F15,0)))) -> 0 | E70: =IF(D70=0,0,IF(Venta_Acciones_Aportes!G15<=0,0,IF(Venta_Acciones_Aportes!C15<TOPES!$B$48,Venta_Acciones_Aportes!G15,0))) -> 0 | F70: =IF(Venta_Acciones_Aportes!A15=0,0,IF(Venta_Acciones_Aportes!A15="NO",0,IF(C70<=0,0,IF(Venta_Acciones_Aportes!C15<TOPES!$B$48,Venta_Acciones_Aportes!F15,0)))) -> 0 | H70: =Venta_Acciones_Aportes!B39 -> 0 | I70: =IF(Venta_Acciones_Aportes!C39<TOPES!$B$48,Venta_Acciones_Aportes!C39,0) -> 0 | J70: =IF(I70<=0,0,IF(Venta_Acciones_Aportes!C39<TOPES!$B$48,Venta_Acciones_Aportes!F39,0)) -> 0 | K70: =IF(Venta_Acciones_Aportes!N39<=0,0,IF(Venta_Acciones_Aportes!J70<TOPES!$B$48,Venta_Acciones_Aportes!N39,0)) -> 0 | L70: =Venta_Acciones_Aportes!C15 -> 0
A71: =IF(Venta_Acciones_Aportes!A16=0,Venta_Acciones_Aportes!A16="NO",Venta_Acciones_Aportes!A16) -> FALSE | B71: =Venta_Acciones_Aportes!B16 -> 0 | C71: =IF(L71<TOPES!$B$48,L71,0) -> 0 | D71: =IF(A71=0,0,IF(A71="SI",0,IF(C71<=0,0,IF(Venta_Acciones_Aportes!C16<TOPES!$B$48,Venta_Acciones_Aportes!F16,0)))) -> 0 | E71: =IF(D71=0,0,IF(Venta_Acciones_Aportes!G16<=0,0,IF(Venta_Acciones_Aportes!C16<TOPES!$B$48,Venta_Acciones_Aportes!G16,0))) -> 0 | F71: =IF(Venta_Acciones_Aportes!A16=0,0,IF(Venta_Acciones_Aportes!A16="NO",0,IF(C71<=0,0,IF(Venta_Acciones_Aportes!C16<TOPES!$B$48,Venta_Acciones_Aportes!F16,0)))) -> 0 | H71: =Venta_Acciones_Aportes!B40 -> 0 | I71: =IF(Venta_Acciones_Aportes!C40<TOPES!$B$48,Venta_Acciones_Aportes!C40,0) -> 0 | J71: =IF(I71<=0,0,IF(Venta_Acciones_Aportes!C40<TOPES!$B$48,Venta_Acciones_Aportes!F40,0)) -> 0 | K71: =IF(Venta_Acciones_Aportes!N40<=0,0,IF(Venta_Acciones_Aportes!J71<TOPES!$B$48,Venta_Acciones_Aportes!N40,0)) -> 0 | L71: =Venta_Acciones_Aportes!C16 -> 0
A72: =IF(Venta_Acciones_Aportes!A17=0,Venta_Acciones_Aportes!A17="NO",Venta_Acciones_Aportes!A17) -> FALSE | B72: =Venta_Acciones_Aportes!B17 -> 0 | C72: =IF(L72<TOPES!$B$48,L72,0) -> 0 | D72: =IF(A72=0,0,IF(A72="SI",0,IF(C72<=0,0,IF(Venta_Acciones_Aportes!C17<TOPES!$B$48,Venta_Acciones_Aportes!F17,0)))) -> 0 | E72: =IF(D72=0,0,IF(Venta_Acciones_Aportes!G17<=0,0,IF(Venta_Acciones_Aportes!C17<TOPES!$B$48,Venta_Acciones_Aportes!G17,0))) -> 0 | F72: =IF(Venta_Acciones_Aportes!A17=0,0,IF(Venta_Acciones_Aportes!A17="NO",0,IF(C72<=0,0,IF(Venta_Acciones_Aportes!C17<TOPES!$B$48,Venta_Acciones_Aportes!F17,0)))) -> 0 | H72: =Venta_Acciones_Aportes!B41 -> 0 | I72: =IF(Venta_Acciones_Aportes!C41<TOPES!$B$48,Venta_Acciones_Aportes!C41,0) -> 0 | J72: =IF(I72<=0,0,IF(Venta_Acciones_Aportes!C41<TOPES!$B$48,Venta_Acciones_Aportes!F41,0)) -> 0 | K72: =IF(Venta_Acciones_Aportes!N41<=0,0,IF(Venta_Acciones_Aportes!J72<TOPES!$B$48,Venta_Acciones_Aportes!N41,0)) -> 0 | L72: =Venta_Acciones_Aportes!C17 -> 0
A73: =IF(Venta_Acciones_Aportes!A18=0,Venta_Acciones_Aportes!A18="NO",Venta_Acciones_Aportes!A18) -> FALSE | B73: =Venta_Acciones_Aportes!B18 -> 0 | C73: =IF(L73<TOPES!$B$48,L73,0) -> 0 | D73: =IF(A73=0,0,IF(A73="SI",0,IF(C73<=0,0,IF(Venta_Acciones_Aportes!C18<TOPES!$B$48,Venta_Acciones_Aportes!F18,0)))) -> 0 | E73: =IF(D73=0,0,IF(Venta_Acciones_Aportes!G18<=0,0,IF(Venta_Acciones_Aportes!C18<TOPES!$B$48,Venta_Acciones_Aportes!G18,0))) -> 0 | F73: =IF(Venta_Acciones_Aportes!A18=0,0,IF(Venta_Acciones_Aportes!A18="NO",0,IF(C73<=0,0,IF(Venta_Acciones_Aportes!C18<TOPES!$B$48,Venta_Acciones_Aportes!F18,0)))) -> 0 | H73: =Venta_Acciones_Aportes!B42 -> 0 | I73: =IF(Venta_Acciones_Aportes!C42<TOPES!$B$48,Venta_Acciones_Aportes!C42,0) -> 0 | J73: =IF(I73<=0,0,IF(Venta_Acciones_Aportes!C42<TOPES!$B$48,Venta_Acciones_Aportes!F42,0)) -> 0 | K73: =IF(Venta_Acciones_Aportes!N42<=0,0,IF(Venta_Acciones_Aportes!J73<TOPES!$B$48,Venta_Acciones_Aportes!N42,0)) -> 0 | L73: =Venta_Acciones_Aportes!C18 -> 0
A74: =IF(Venta_Acciones_Aportes!A19=0,Venta_Acciones_Aportes!A19="NO",Venta_Acciones_Aportes!A19) -> FALSE | B74: =Venta_Acciones_Aportes!B19 -> 0 | C74: =IF(L74<TOPES!$B$48,L74,0) -> 0 | D74: =IF(A74=0,0,IF(A74="SI",0,IF(C74<=0,0,IF(Venta_Acciones_Aportes!C19<TOPES!$B$48,Venta_Acciones_Aportes!F19,0)))) -> 0 | E74: =IF(D74=0,0,IF(Venta_Acciones_Aportes!G19<=0,0,IF(Venta_Acciones_Aportes!C19<TOPES!$B$48,Venta_Acciones_Aportes!G19,0))) -> 0 | F74: =IF(Venta_Acciones_Aportes!A19=0,0,IF(Venta_Acciones_Aportes!A19="NO",0,IF(C74<=0,0,IF(Venta_Acciones_Aportes!C19<TOPES!$B$48,Venta_Acciones_Aportes!F19,0)))) -> 0 | H74: =Venta_Acciones_Aportes!B43 -> 0 | I74: =IF(Venta_Acciones_Aportes!C43<TOPES!$B$48,Venta_Acciones_Aportes!C43,0) -> 0 | J74: =IF(I74<=0,0,IF(Venta_Acciones_Aportes!C43<TOPES!$B$48,Venta_Acciones_Aportes!F43,0)) -> 0 | K74: =IF(Venta_Acciones_Aportes!N43<=0,0,IF(Venta_Acciones_Aportes!J74<TOPES!$B$48,Venta_Acciones_Aportes!N43,0)) -> 0 | L74: =Venta_Acciones_Aportes!C19 -> 0
A75: =IF(Venta_Acciones_Aportes!A20=0,Venta_Acciones_Aportes!A20="NO",Venta_Acciones_Aportes!A20) -> FALSE | B75: =Venta_Acciones_Aportes!B20 -> 0 | C75: =IF(L75<TOPES!$B$48,L75,0) -> 0 | D75: =IF(A75=0,0,IF(A75="SI",0,IF(C75<=0,0,IF(Venta_Acciones_Aportes!C20<TOPES!$B$48,Venta_Acciones_Aportes!F20,0)))) -> 0 | E75: =IF(D75=0,0,IF(Venta_Acciones_Aportes!G20<=0,0,IF(Venta_Acciones_Aportes!C20<TOPES!$B$48,Venta_Acciones_Aportes!G20,0))) -> 0 | F75: =IF(Venta_Acciones_Aportes!A20=0,0,IF(Venta_Acciones_Aportes!A20="NO",0,IF(C75<=0,0,IF(Venta_Acciones_Aportes!C20<TOPES!$B$48,Venta_Acciones_Aportes!F20,0)))) -> 0 | H75: =Venta_Acciones_Aportes!B44 -> 0 | I75: =IF(Venta_Acciones_Aportes!C44<TOPES!$B$48,Venta_Acciones_Aportes!C44,0) -> 0 | J75: =IF(I75<=0,0,IF(Venta_Acciones_Aportes!C44<TOPES!$B$48,Venta_Acciones_Aportes!F44,0)) -> 0 | K75: =IF(Venta_Acciones_Aportes!N44<=0,0,IF(Venta_Acciones_Aportes!J75<TOPES!$B$48,Venta_Acciones_Aportes!N44,0)) -> 0 | L75: =Venta_Acciones_Aportes!C20 -> 0
B76: TOTAL | D76: =ROUND(((SUM(D62:D75))/1000),0)*1000 -> 0 | E76: =ROUND(((SUM(E62:E75))/1000),0)*1000 -> 0 | F76: =ROUND(((SUM(F62:F75))/1000),0)*1000 -> 0 | H76: TOTAL | J76: =ROUND(((SUM(J62:J75))/1000),0)*1000 -> 0 | K76: =ROUND(((SUM(K62:K75))/1000),0)*1000 -> 0
E78: =IF(AND(C81=0,D62+F62>0),Venta_Acciones_Aportes!D7,1) -> 1
B79: Costo Fiscal en la venta de acciones y aportes. | H79: Costo Fiscal en la venta de acciones y aporte EN BOLSA
B80: TIPO DE BIEN | C80: VALOR DECLARADO EN RENTA AÑO ANTERIOR | D80: COSTO FÍSCAL AJUSTADO POR ARTÍCULO 73 E.T. | E80: COSTO FÍSCAL DETERMINADO | H80: TIPO DE BIEN | I80: VALOR DECLARADO EN RENTA AÑO ANTERIOR | J80: COSTO FÍSCAL AJUSTADO POR ARTÍCULO 73 E.T. | K80: COSTO FÍSCAL DETERMINADO
A81: =Venta_Acciones_Aportes!A7 -> 0 | B81: =+B62 -> 0 | C81: =IF(D62+F62=0,0,IF(Venta_Acciones_Aportes!C7>=TOPES!$B$48,0,+Venta_Acciones_Aportes!E7)) -> 0 | D81: =IF(D62+F62=0,0,IF(Venta_Acciones_Aportes!C7<=0,0,IF(Venta_Acciones_Aportes!C7="",0,IF(Venta_Acciones_Aportes!C7>=TOPES!$B$48,0,VLOOKUP(Venta_Acciones_Aportes!C7,'ajustes art. 73'!$A$6:$C$129,2)*Venta_Acciones_Aportes!D7)))) -> 0 | E81: =IF(AND(D62+F62>0,C81=0),Venta_Acciones_Aportes!D7,IF(C62>=TOPES!$B$48,0,IF(AND(C81=0,D81>(D62+F62)),D81,IF(AND(C81=0,D81<(D62+F62)),D81,IF(AND(D81=0,C81>(D62+F62)),C81,IF(AND(D81=0,C81<(D62+F62)),C81,F81)))))) -> 0 | F81: =IF(Venta_Acciones_Aportes!I7="",0,IF(Venta_Acciones_Aportes!I7="NO",MAX(C81,Venta_Acciones_Aportes!D7),IF(AND(Venta_Acciones_Aportes!F7>=C81,Venta_Acciones_Aportes!F7<D81),MAX(C81,D81,Venta_Acciones_Aportes!D7),IF(AND(Venta_Acciones_Aportes!I7="SI",Venta_Acciones_Aportes!F7>C81,Venta_Acciones_Aportes!F7>D81),MAX(C81:D81),IF(AND(C81=0,D81<Venta_Acciones_Aportes!F7),Venta_Acciones_Aportes!D7,IF(AND(C81=0,D81>Venta_Acciones_Aportes!F7),Venta_Acciones_Aportes!D7,IF(AND(C81>=Venta_Acciones_Aportes!F7,D81>Venta_Acciones_Aportes!F7,Venta_Acciones_Aportes!I7="SI"),MAX(C81:D81,Venta_Acciones_Aportes!D7),IF(AND(C81<Venta_Acciones_Aportes!F7,D81<Venta_Acciones_Aportes!F7,Venta_Acciones_Aportes!I7="SI"),MAX(C81:D81),IF(AND(Venta_Acciones_Aportes!F7>=C81,Venta_Acciones_Aportes!F7<D81),C81,IF(AND(Venta_Acciones_Aportes!I7="NO",Venta_Acciones_Aportes!D7>C81,Venta_Acciones_Aportes!D7>go!D81)*MAX(Venta_Acciones_Aportes!C7:D81),MIN(C81,D81))))))))))) -> 0 | H81: =+H62 -> 0 | I81: =IF(J62=0,0,IF(Venta_Acciones_Aportes!C31>=TOPES!$B$48,0,+Venta_Acciones_Aportes!E31)) -> 0 | J81: =IF(J62=0,0,IF(Venta_Acciones_Aportes!C31<=0,0,IF(Venta_Acciones_Aportes!C31="",0,IF(Venta_Acciones_Aportes!C31>=TOPES!$B$48,0,VLOOKUP(Venta_Acciones_Aportes!C31,'ajustes art. 73'!$A$6:$C$129,2)*Venta_Acciones_Aportes!D31)))) -> 0 | K81: =IF(I81=0,L81,IF(I62>=TOPES!$B$48,0,IF(AND(I81=0,J81>J62),J62,IF(AND(I81=0,J81<J62),J81,IF(AND(J81=0,I81>J62),J62,IF(AND(J81=0,I81<J62),I81,L81)))))) -> 0 | L81: =IF(Venta_Acciones_Aportes!I31="",0,IF(Venta_Acciones_Aportes!I31="NO",MAX(I81,Venta_Acciones_Aportes!D31),IF(AND(Venta_Acciones_Aportes!I31="SI",Venta_Acciones_Aportes!F31>=I81,Venta_Acciones_Aportes!F31<J81),MAX(I81,J81,Venta_Acciones_Aportes!D31),IF(AND(Venta_Acciones_Aportes!I31="SI",Venta_Acciones_Aportes!F31>I81,Venta_Acciones_Aportes!F31>J81),MAX(I81:J81),IF(AND(I81=0,J81<Venta_Acciones_Aportes!F31),Venta_Acciones_Aportes!D31,IF(AND(I81=0,J81>Venta_Acciones_Aportes!F31),Venta_Acciones_Aportes!D31,IF(AND(I81>=Venta_Acciones_Aportes!F31,J81>Venta_Acciones_Aportes!F31,Venta_Acciones_Aportes!I31="SI"),MAX(I81:J81,Venta_Acciones_Aportes!D31),IF(AND(I81<Venta_Acciones_Aportes!F31,J81<Venta_Acciones_Aportes!F31,Venta_Acciones_Aportes!I31="SI"),MAX(I81:J81),IF(AND(I81<Venta_Acciones_Aportes!F31,J81<Venta_Acciones_Aportes!F31,Venta_Acciones_Aportes!I31="SI"),MAX(I81:J81),IF(AND(Venta_Acciones_Aportes!F31>=I81,Venta_Acciones_Aportes!F31<J81),I81,IF(AND(Venta_Acciones_Aportes!I31="NO",Venta_Acciones_Aportes!D31>I81,Venta_Acciones_Aportes!D31>go!J81)*MAX(Venta_Acciones_Aportes!C31:J81),MIN(I81,J81)))))))))))) -> 0
A82: =Venta_Acciones_Aportes!A8 -> 0 | B82: =+B63 -> 0 | C82: =IF(D63+F63=0,0,IF(Venta_Acciones_Aportes!C8>=TOPES!$B$48,0,+Venta_Acciones_Aportes!E8)) -> 0 | D82: =IF(D63+F63=0,0,IF(Venta_Acciones_Aportes!C8<=0,0,IF(Venta_Acciones_Aportes!C8="",0,IF(Venta_Acciones_Aportes!C8>=TOPES!$B$48,0,VLOOKUP(Venta_Acciones_Aportes!C8,'ajustes art. 73'!$A$6:$C$129,2)*Venta_Acciones_Aportes!D8)))) -> 0 | E82: =IF(AND(D63+F63>0,C82=0),Venta_Acciones_Aportes!D8,IF(C63>=TOPES!$B$48,0,IF(AND(C82=0,D82>(D63+F63)),D82,IF(AND(C82=0,D82<(D63+F63)),D82,IF(AND(D82=0,C82>(D63+F63)),C82,IF(AND(D82=0,C82<(D63+F63)),C82,F82)))))) -> 0 | F82: =IF(Venta_Acciones_Aportes!I8="",0,IF(Venta_Acciones_Aportes!I8="NO",MAX(C82,Venta_Acciones_Aportes!D8),IF(AND(Venta_Acciones_Aportes!F8>=C82,Venta_Acciones_Aportes!F8<D82),MAX(C82,D82,Venta_Acciones_Aportes!D8),IF(AND(Venta_Acciones_Aportes!I8="SI",Venta_Acciones_Aportes!F8>C82,Venta_Acciones_Aportes!F8>D82),MAX(C82:D82),IF(AND(C82=0,D82<Venta_Acciones_Aportes!F8),Venta_Acciones_Aportes!D8,IF(AND(C82=0,D82>Venta_Acciones_Aportes!F8),Venta_Acciones_Aportes!D8,IF(AND(C82>=Venta_Acciones_Aportes!F8,D82>Venta_Acciones_Aportes!F8,Venta_Acciones_Aportes!I8="SI"),MAX(C82:D82,Venta_Acciones_Aportes!D8),IF(AND(C82<Venta_Acciones_Aportes!F8,D82<Venta_Acciones_Aportes!F8,Venta_Acciones_Aportes!I8="SI"),MAX(C82:D82),IF(AND(Venta_Acciones_Aportes!F8>=C82,Venta_Acciones_Aportes!F8<D82),C82,IF(AND(Venta_Acciones_Aportes!I8="NO",Venta_Acciones_Aportes!D8>C82,Venta_Acciones_Aportes!D8>go!D82)*MAX(Venta_Acciones_Aportes!C8:D82),MIN(C82,D82))))))))))) -> 0 | H82: =+H63 -> 0 | I82: =IF(J63=0,0,IF(Venta_Acciones_Aportes!C32>=TOPES!$B$48,0,+Venta_Acciones_Aportes!E32)) -> 0 | J82: =IF(J63=0,0,IF(Venta_Acciones_Aportes!C32<=0,0,IF(Venta_Acciones_Aportes!C32="",0,IF(Venta_Acciones_Aportes!C32>=TOPES!$B$48,0,VLOOKUP(Venta_Acciones_Aportes!C32,'ajustes art. 73'!$A$6:$C$129,2)*Venta_Acciones_Aportes!D32)))) -> 0 | K82: =IF(I82=0,L82,IF(I63>=TOPES!$B$48,0,IF(AND(I82=0,J82>J63),J63,IF(AND(I82=0,J82<J63),J82,IF(AND(J82=0,I82>J63),J63,IF(AND(J82=0,I82<J63),I82,L82)))))) -> 0 | L82: =IF(Venta_Acciones_Aportes!I32="",0,IF(Venta_Acciones_Aportes!I32="NO",MAX(I82,Venta_Acciones_Aportes!D32),IF(AND(Venta_Acciones_Aportes!I32="SI",Venta_Acciones_Aportes!F32>=I82,Venta_Acciones_Aportes!F32<J82),MAX(I82,J82,Venta_Acciones_Aportes!D32),IF(AND(Venta_Acciones_Aportes!I32="SI",Venta_Acciones_Aportes!F32>I82,Venta_Acciones_Aportes!F32>J82),MAX(I82:J82),IF(AND(I82=0,J82<Venta_Acciones_Aportes!F32),Venta_Acciones_Aportes!D32,IF(AND(I82=0,J82>Venta_Acciones_Aportes!F32),Venta_Acciones_Aportes!D32,IF(AND(I82>=Venta_Acciones_Aportes!F32,J82>Venta_Acciones_Aportes!F32,Venta_Acciones_Aportes!I32="SI"),MAX(I82:J82,Venta_Acciones_Aportes!D32),IF(AND(I82<Venta_Acciones_Aportes!F32,J82<Venta_Acciones_Aportes!F32,Venta_Acciones_Aportes!I32="SI"),MAX(I82:J82),IF(AND(I82<Venta_Acciones_Aportes!F32,J82<Venta_Acciones_Aportes!F32,Venta_Acciones_Aportes!I32="SI"),MAX(I82:J82),IF(AND(Venta_Acciones_Aportes!F32>=I82,Venta_Acciones_Aportes!F32<J82),I82,IF(AND(Venta_Acciones_Aportes!I32="NO",Venta_Acciones_Aportes!D32>I82,Venta_Acciones_Aportes!D32>go!J82)*MAX(Venta_Acciones_Aportes!C32:J82),MIN(I82,J82)))))))))))) -> 0
A83: =Venta_Acciones_Aportes!A9 -> 0 | B83: 0 | C83: =IF(D64+F64=0,0,IF(Venta_Acciones_Aportes!C9>=TOPES!$B$48,0,+Venta_Acciones_Aportes!E9)) -> 0 | D83: =IF(D64+F64=0,0,IF(Venta_Acciones_Aportes!C9<=0,0,IF(Venta_Acciones_Aportes!C9="",0,IF(Venta_Acciones_Aportes!C9>=TOPES!$B$48,0,VLOOKUP(Venta_Acciones_Aportes!C9,'ajustes art. 73'!$A$6:$C$129,2)*Venta_Acciones_Aportes!D9)))) -> 0 | E83: =IF(AND(D64+F64>0,C83=0),Venta_Acciones_Aportes!D9,IF(C64>=TOPES!$B$48,0,IF(AND(C83=0,D83>(D64+F64)),D83,IF(AND(C83=0,D83<(D64+F64)),D83,IF(AND(D83=0,C83>(D64+F64)),C83,IF(AND(D83=0,C83<(D64+F64)),C83,F83)))))) -> 0 | F83: =IF(Venta_Acciones_Aportes!I9="",0,IF(Venta_Acciones_Aportes!I9="NO",MAX(C83,Venta_Acciones_Aportes!D9),IF(AND(Venta_Acciones_Aportes!F9>=C83,Venta_Acciones_Aportes!F9<D83),MAX(C83,D83,Venta_Acciones_Aportes!D9),IF(AND(Venta_Acciones_Aportes!I9="SI",Venta_Acciones_Aportes!F9>C83,Venta_Acciones_Aportes!F9>D83),MAX(C83:D83),IF(AND(C83=0,D83<Venta_Acciones_Aportes!F9),Venta_Acciones_Aportes!D9,IF(AND(C83=0,D83>Venta_Acciones_Aportes!F9),Venta_Acciones_Aportes!D9,IF(AND(C83>=Venta_Acciones_Aportes!F9,D83>Venta_Acciones_Aportes!F9,Venta_Acciones_Aportes!I9="SI"),MAX(C83:D83,Venta_Acciones_Aportes!D9),IF(AND(C83<Venta_Acciones_Aportes!F9,D83<Venta_Acciones_Aportes!F9,Venta_Acciones_Aportes!I9="SI"),MAX(C83:D83),IF(AND(Venta_Acciones_Aportes!F9>=C83,Venta_Acciones_Aportes!F9<D83),C83,IF(AND(Venta_Acciones_Aportes!I9="NO",Venta_Acciones_Aportes!D9>C83,Venta_Acciones_Aportes!D9>go!D83)*MAX(Venta_Acciones_Aportes!C9:D83),MIN(C83,D83))))))))))) -> 0 | H83: =+H64 -> 0 | I83: =IF(J64=0,0,IF(Venta_Acciones_Aportes!C33>=TOPES!$B$48,0,+Venta_Acciones_Aportes!E33)) -> 0 | J83: =IF(J64=0,0,IF(Venta_Acciones_Aportes!C33<=0,0,IF(Venta_Acciones_Aportes!C33="",0,IF(Venta_Acciones_Aportes!C33>=TOPES!$B$48,0,VLOOKUP(Venta_Acciones_Aportes!C33,'ajustes art. 73'!$A$6:$C$129,2)*Venta_Acciones_Aportes!D33)))) -> 0 | K83: =IF(I83=0,L83,IF(I64>=TOPES!$B$48,0,IF(AND(I83=0,J83>J64),J64,IF(AND(I83=0,J83<J64),J83,IF(AND(J83=0,I83>J64),J64,IF(AND(J83=0,I83<J64),I83,L83)))))) -> 0 | L83: =IF(Venta_Acciones_Aportes!I33="",0,IF(Venta_Acciones_Aportes!I33="NO",MAX(I83,Venta_Acciones_Aportes!D33),IF(AND(Venta_Acciones_Aportes!I33="SI",Venta_Acciones_Aportes!F33>=I83,Venta_Acciones_Aportes!F33<J83),MAX(I83,J83,Venta_Acciones_Aportes!D33),IF(AND(Venta_Acciones_Aportes!I33="SI",Venta_Acciones_Aportes!F33>I83,Venta_Acciones_Aportes!F33>J83),MAX(I83:J83),IF(AND(I83=0,J83<Venta_Acciones_Aportes!F33),Venta_Acciones_Aportes!D33,IF(AND(I83=0,J83>Venta_Acciones_Aportes!F33),Venta_Acciones_Aportes!D33,IF(AND(I83>=Venta_Acciones_Aportes!F33,J83>Venta_Acciones_Aportes!F33,Venta_Acciones_Aportes!I33="SI"),MAX(I83:J83,Venta_Acciones_Aportes!D33),IF(AND(I83<Venta_Acciones_Aportes!F33,J83<Venta_Acciones_Aportes!F33,Venta_Acciones_Aportes!I33="SI"),MAX(I83:J83),IF(AND(I83<Venta_Acciones_Aportes!F33,J83<Venta_Acciones_Aportes!F33,Venta_Acciones_Aportes!I33="SI"),MAX(I83:J83),IF(AND(Venta_Acciones_Aportes!F33>=I83,Venta_Acciones_Aportes!F33<J83),I83,IF(AND(Venta_Acciones_Aportes!I33="NO",Venta_Acciones_Aportes!D33>I83,Venta_Acciones_Aportes!D33>go!J83)*MAX(Venta_Acciones_Aportes!C33:J83),MIN(I83,J83)))))))))))) -> 0
A84: =Venta_Acciones_Aportes!A10 -> 0 | B84: 0 | C84: =IF(D65+F65=0,0,IF(Venta_Acciones_Aportes!C10>=TOPES!$B$48,0,+Venta_Acciones_Aportes!E10)) -> 0 | D84: =IF(D65+F65=0,0,IF(Venta_Acciones_Aportes!C10<=0,0,IF(Venta_Acciones_Aportes!C10="",0,IF(Venta_Acciones_Aportes!C10>=TOPES!$B$48,0,VLOOKUP(Venta_Acciones_Aportes!C10,'ajustes art. 73'!$A$6:$C$129,2)*Venta_Acciones_Aportes!D10)))) -> 0 | E84: =IF(AND(D65+F65>0,C84=0),Venta_Acciones_Aportes!D10,IF(C65>=TOPES!$B$48,0,IF(AND(C84=0,D84>(D65+F65)),D84,IF(AND(C84=0,D84<(D65+F65)),D84,IF(AND(D84=0,C84>(D65+F65)),C84,IF(AND(D84=0,C84<(D65+F65)),C84,F84)))))) -> 0 | F84: =IF(Venta_Acciones_Aportes!I10="",0,IF(Venta_Acciones_Aportes!I10="NO",MAX(C84,Venta_Acciones_Aportes!D10),IF(AND(Venta_Acciones_Aportes!F10>=C84,Venta_Acciones_Aportes!F10<D84),MAX(C84,D84,Venta_Acciones_Aportes!D10),IF(AND(Venta_Acciones_Aportes!I10="SI",Venta_Acciones_Aportes!F10>C84,Venta_Acciones_Aportes!F10>D84),MAX(C84:D84),IF(AND(C84=0,D84<Venta_Acciones_Aportes!F10),Venta_Acciones_Aportes!D10,IF(AND(C84=0,D84>Venta_Acciones_Aportes!F10),Venta_Acciones_Aportes!D10,IF(AND(C84>=Venta_Acciones_Aportes!F10,D84>Venta_Acciones_Aportes!F10,Venta_Acciones_Aportes!I10="SI"),MAX(C84:D84,Venta_Acciones_Aportes!D10),IF(AND(C84<Venta_Acciones_Aportes!F10,D84<Venta_Acciones_Aportes!F10,Venta_Acciones_Aportes!I10="SI"),MAX(C84:D84),IF(AND(Venta_Acciones_Aportes!F10>=C84,Venta_Acciones_Aportes!F10<D84),C84,IF(AND(Venta_Acciones_Aportes!I10="NO",Venta_Acciones_Aportes!D10>C84,Venta_Acciones_Aportes!D10>go!D84)*MAX(Venta_Acciones_Aportes!C10:D84),MIN(C84,D84))))))))))) -> 0 | H84: 0 | I84: =IF(J65=0,0,IF(Venta_Acciones_Aportes!C34>=TOPES!$B$48,0,+Venta_Acciones_Aportes!E34)) -> 0 | J84: =IF(J65=0,0,IF(Venta_Acciones_Aportes!C34<=0,0,IF(Venta_Acciones_Aportes!C34="",0,IF(Venta_Acciones_Aportes!C34>=TOPES!$B$48,0,VLOOKUP(Venta_Acciones_Aportes!C34,'ajustes art. 73'!$A$6:$C$129,2)*Venta_Acciones_Aportes!D34)))) -> 0 | K84: =IF(I84=0,L84,IF(I65>=TOPES!$B$48,0,IF(AND(I84=0,J84>J65),J65,IF(AND(I84=0,J84<J65),J84,IF(AND(J84=0,I84>J65),J65,IF(AND(J84=0,I84<J65),I84,L84)))))) -> 0 | L84: =IF(Venta_Acciones_Aportes!I34="",0,IF(Venta_Acciones_Aportes!I34="NO",MAX(I84,Venta_Acciones_Aportes!D34),IF(AND(Venta_Acciones_Aportes!I34="SI",Venta_Acciones_Aportes!F34>=I84,Venta_Acciones_Aportes!F34<J84),MAX(I84,J84,Venta_Acciones_Aportes!D34),IF(AND(Venta_Acciones_Aportes!I34="SI",Venta_Acciones_Aportes!F34>I84,Venta_Acciones_Aportes!F34>J84),MAX(I84:J84),IF(AND(I84=0,J84<Venta_Acciones_Aportes!F34),Venta_Acciones_Aportes!D34,IF(AND(I84=0,J84>Venta_Acciones_Aportes!F34),Venta_Acciones_Aportes!D34,IF(AND(I84>=Venta_Acciones_Aportes!F34,J84>Venta_Acciones_Aportes!F34,Venta_Acciones_Aportes!I34="SI"),MAX(I84:J84,Venta_Acciones_Aportes!D34),IF(AND(I84<Venta_Acciones_Aportes!F34,J84<Venta_Acciones_Aportes!F34,Venta_Acciones_Aportes!I34="SI"),MAX(I84:J84),IF(AND(I84<Venta_Acciones_Aportes!F34,J84<Venta_Acciones_Aportes!F34,Venta_Acciones_Aportes!I34="SI"),MAX(I84:J84),IF(AND(Venta_Acciones_Aportes!F34>=I84,Venta_Acciones_Aportes!F34<J84),I84,IF(AND(Venta_Acciones_Aportes!I34="NO",Venta_Acciones_Aportes!D34>I84,Venta_Acciones_Aportes!D34>go!J84)*MAX(Venta_Acciones_Aportes!C34:J84),MIN(I84,J84)))))))))))) -> 0
A85: =Venta_Acciones_Aportes!A11 -> 0 | B85: 0 | C85: =IF(D66+F66=0,0,IF(Venta_Acciones_Aportes!C11>=TOPES!$B$48,0,+Venta_Acciones_Aportes!E11)) -> 0 | D85: =IF(D66+F66=0,0,IF(Venta_Acciones_Aportes!C11<=0,0,IF(Venta_Acciones_Aportes!C11="",0,IF(Venta_Acciones_Aportes!C11>=TOPES!$B$48,0,VLOOKUP(Venta_Acciones_Aportes!C11,'ajustes art. 73'!$A$6:$C$129,2)*Venta_Acciones_Aportes!D11)))) -> 0 | E85: =IF(AND(D66+F66>0,C85=0),Venta_Acciones_Aportes!D11,IF(C66>=TOPES!$B$48,0,IF(AND(C85=0,D85>(D66+F66)),D85,IF(AND(C85=0,D85<(D66+F66)),D85,IF(AND(D85=0,C85>(D66+F66)),C85,IF(AND(D85=0,C85<(D66+F66)),C85,F85)))))) -> 0 | F85: =IF(Venta_Acciones_Aportes!I11="",0,IF(Venta_Acciones_Aportes!I11="NO",MAX(C85,Venta_Acciones_Aportes!D11),IF(AND(Venta_Acciones_Aportes!F11>=C85,Venta_Acciones_Aportes!F11<D85),MAX(C85,D85,Venta_Acciones_Aportes!D11),IF(AND(Venta_Acciones_Aportes!I11="SI",Venta_Acciones_Aportes!F11>C85,Venta_Acciones_Aportes!F11>D85),MAX(C85:D85),IF(AND(C85=0,D85<Venta_Acciones_Aportes!F11),Venta_Acciones_Aportes!D11,IF(AND(C85=0,D85>Venta_Acciones_Aportes!F11),Venta_Acciones_Aportes!D11,IF(AND(C85>=Venta_Acciones_Aportes!F11,D85>Venta_Acciones_Aportes!F11,Venta_Acciones_Aportes!I11="SI"),MAX(C85:D85,Venta_Acciones_Aportes!D11),IF(AND(C85<Venta_Acciones_Aportes!F11,D85<Venta_Acciones_Aportes!F11,Venta_Acciones_Aportes!I11="SI"),MAX(C85:D85),IF(AND(Venta_Acciones_Aportes!F11>=C85,Venta_Acciones_Aportes!F11<D85),C85,IF(AND(Venta_Acciones_Aportes!I11="NO",Venta_Acciones_Aportes!D11>C85,Venta_Acciones_Aportes!D11>go!D85)*MAX(Venta_Acciones_Aportes!C11:D85),MIN(C85,D85))))))))))) -> 0 | H85: 0 | I85: =IF(J66=0,0,IF(Venta_Acciones_Aportes!C35>=TOPES!$B$48,0,+Venta_Acciones_Aportes!E35)) -> 0 | J85: =IF(J66=0,0,IF(Venta_Acciones_Aportes!C35<=0,0,IF(Venta_Acciones_Aportes!C35="",0,IF(Venta_Acciones_Aportes!C35>=TOPES!$B$48,0,VLOOKUP(Venta_Acciones_Aportes!C35,'ajustes art. 73'!$A$6:$C$129,2)*Venta_Acciones_Aportes!D35)))) -> 0 | K85: =IF(I85=0,L85,IF(I66>=TOPES!$B$48,0,IF(AND(I85=0,J85>J66),J66,IF(AND(I85=0,J85<J66),J85,IF(AND(J85=0,I85>J66),J66,IF(AND(J85=0,I85<J66),I85,L85)))))) -> 0 | L85: =IF(Venta_Acciones_Aportes!I35="",0,IF(Venta_Acciones_Aportes!I35="NO",MAX(I85,Venta_Acciones_Aportes!D35),IF(AND(Venta_Acciones_Aportes!I35="SI",Venta_Acciones_Aportes!F35>=I85,Venta_Acciones_Aportes!F35<J85),MAX(I85,J85,Venta_Acciones_Aportes!D35),IF(AND(Venta_Acciones_Aportes!I35="SI",Venta_Acciones_Aportes!F35>I85,Venta_Acciones_Aportes!F35>J85),MAX(I85:J85),IF(AND(I85=0,J85<Venta_Acciones_Aportes!F35),Venta_Acciones_Aportes!D35,IF(AND(I85=0,J85>Venta_Acciones_Aportes!F35),Venta_Acciones_Aportes!D35,IF(AND(I85>=Venta_Acciones_Aportes!F35,J85>Venta_Acciones_Aportes!F35,Venta_Acciones_Aportes!I35="SI"),MAX(I85:J85,Venta_Acciones_Aportes!D35),IF(AND(I85<Venta_Acciones_Aportes!F35,J85<Venta_Acciones_Aportes!F35,Venta_Acciones_Aportes!I35="SI"),MAX(I85:J85),IF(AND(I85<Venta_Acciones_Aportes!F35,J85<Venta_Acciones_Aportes!F35,Venta_Acciones_Aportes!I35="SI"),MAX(I85:J85),IF(AND(Venta_Acciones_Aportes!F35>=I85,Venta_Acciones_Aportes!F35<J85),I85,IF(AND(Venta_Acciones_Aportes!I35="NO",Venta_Acciones_Aportes!D35>I85,Venta_Acciones_Aportes!D35>go!J85)*MAX(Venta_Acciones_Aportes!C35:J85),MIN(I85,J85)))))))))))) -> 0
A86: =Venta_Acciones_Aportes!A12 -> 0 | B86: 0 | C86: =IF(D67+F67=0,0,IF(Venta_Acciones_Aportes!C12>=TOPES!$B$48,0,+Venta_Acciones_Aportes!E12)) -> 0 | D86: =IF(D67+F67=0,0,IF(Venta_Acciones_Aportes!C12<=0,0,IF(Venta_Acciones_Aportes!C12="",0,IF(Venta_Acciones_Aportes!C12>=TOPES!$B$48,0,VLOOKUP(Venta_Acciones_Aportes!C12,'ajustes art. 73'!$A$6:$C$129,2)*Venta_Acciones_Aportes!D12)))) -> 0 | E86: =IF(AND(D67+F67>0,C86=0),Venta_Acciones_Aportes!D12,IF(C67>=TOPES!$B$48,0,IF(AND(C86=0,D86>(D67+F67)),D86,IF(AND(C86=0,D86<(D67+F67)),D86,IF(AND(D86=0,C86>(D67+F67)),C86,IF(AND(D86=0,C86<(D67+F67)),C86,F86)))))) -> 0 | F86: =IF(Venta_Acciones_Aportes!I12="",0,IF(Venta_Acciones_Aportes!I12="NO",MAX(C86,Venta_Acciones_Aportes!D12),IF(AND(Venta_Acciones_Aportes!F12>=C86,Venta_Acciones_Aportes!F12<D86),MAX(C86,D86,Venta_Acciones_Aportes!D12),IF(AND(Venta_Acciones_Aportes!I12="SI",Venta_Acciones_Aportes!F12>C86,Venta_Acciones_Aportes!F12>D86),MAX(C86:D86),IF(AND(C86=0,D86<Venta_Acciones_Aportes!F12),Venta_Acciones_Aportes!D12,IF(AND(C86=0,D86>Venta_Acciones_Aportes!F12),Venta_Acciones_Aportes!D12,IF(AND(C86>=Venta_Acciones_Aportes!F12,D86>Venta_Acciones_Aportes!F12,Venta_Acciones_Aportes!I12="SI"),MAX(C86:D86,Venta_Acciones_Aportes!D12),IF(AND(C86<Venta_Acciones_Aportes!F12,D86<Venta_Acciones_Aportes!F12,Venta_Acciones_Aportes!I12="SI"),MAX(C86:D86),IF(AND(Venta_Acciones_Aportes!F12>=C86,Venta_Acciones_Aportes!F12<D86),C86,IF(AND(Venta_Acciones_Aportes!I12="NO",Venta_Acciones_Aportes!D12>C86,Venta_Acciones_Aportes!D12>go!D86)*MAX(Venta_Acciones_Aportes!C12:D86),MIN(C86,D86))))))))))) -> 0 | H86: 0 | I86: =IF(J67=0,0,IF(Venta_Acciones_Aportes!C36>=TOPES!$B$48,0,+Venta_Acciones_Aportes!E36)) -> 0 | J86: =IF(J67=0,0,IF(Venta_Acciones_Aportes!C36<=0,0,IF(Venta_Acciones_Aportes!C36="",0,IF(Venta_Acciones_Aportes!C36>=TOPES!$B$48,0,VLOOKUP(Venta_Acciones_Aportes!C36,'ajustes art. 73'!$A$6:$C$129,2)*Venta_Acciones_Aportes!D36)))) -> 0 | K86: =IF(I86=0,L86,IF(I67>=TOPES!$B$48,0,IF(AND(I86=0,J86>J67),J67,IF(AND(I86=0,J86<J67),J86,IF(AND(J86=0,I86>J67),J67,IF(AND(J86=0,I86<J67),I86,L86)))))) -> 0 | L86: =IF(Venta_Acciones_Aportes!I36="",0,IF(Venta_Acciones_Aportes!I36="NO",MAX(I86,Venta_Acciones_Aportes!D36),IF(AND(Venta_Acciones_Aportes!I36="SI",Venta_Acciones_Aportes!F36>=I86,Venta_Acciones_Aportes!F36<J86),MAX(I86,J86,Venta_Acciones_Aportes!D36),IF(AND(Venta_Acciones_Aportes!I36="SI",Venta_Acciones_Aportes!F36>I86,Venta_Acciones_Aportes!F36>J86),MAX(I86:J86),IF(AND(I86=0,J86<Venta_Acciones_Aportes!F36),Venta_Acciones_Aportes!D36,IF(AND(I86=0,J86>Venta_Acciones_Aportes!F36),Venta_Acciones_Aportes!D36,IF(AND(I86>=Venta_Acciones_Aportes!F36,J86>Venta_Acciones_Aportes!F36,Venta_Acciones_Aportes!I36="SI"),MAX(I86:J86,Venta_Acciones_Aportes!D36),IF(AND(I86<Venta_Acciones_Aportes!F36,J86<Venta_Acciones_Aportes!F36,Venta_Acciones_Aportes!I36="SI"),MAX(I86:J86),IF(AND(I86<Venta_Acciones_Aportes!F36,J86<Venta_Acciones_Aportes!F36,Venta_Acciones_Aportes!I36="SI"),MAX(I86:J86),IF(AND(Venta_Acciones_Aportes!F36>=I86,Venta_Acciones_Aportes!F36<J86),I86,IF(AND(Venta_Acciones_Aportes!I36="NO",Venta_Acciones_Aportes!D36>I86,Venta_Acciones_Aportes!D36>go!J86)*MAX(Venta_Acciones_Aportes!C36:J86),MIN(I86,J86)))))))))))) -> 0
A87: =Venta_Acciones_Aportes!A13 -> 0 | B87: 0 | C87: =IF(D68+F68=0,0,IF(Venta_Acciones_Aportes!C13>=TOPES!$B$48,0,+Venta_Acciones_Aportes!E13)) -> 0 | D87: =IF(D68+F68=0,0,IF(Venta_Acciones_Aportes!C13<=0,0,IF(Venta_Acciones_Aportes!C13="",0,IF(Venta_Acciones_Aportes!C13>=TOPES!$B$48,0,VLOOKUP(Venta_Acciones_Aportes!C13,'ajustes art. 73'!$A$6:$C$129,2)*Venta_Acciones_Aportes!D13)))) -> 0 | E87: =IF(AND(D68+F68>0,C87=0),Venta_Acciones_Aportes!D13,IF(C68>=TOPES!$B$48,0,IF(AND(C87=0,D87>(D68+F68)),D87,IF(AND(C87=0,D87<(D68+F68)),D87,IF(AND(D87=0,C87>(D68+F68)),C87,IF(AND(D87=0,C87<(D68+F68)),C87,F87)))))) -> 0 | F87: =IF(Venta_Acciones_Aportes!I13="",0,IF(Venta_Acciones_Aportes!I13="NO",MAX(C87,Venta_Acciones_Aportes!D13),IF(AND(Venta_Acciones_Aportes!F13>=C87,Venta_Acciones_Aportes!F13<D87),MAX(C87,D87,Venta_Acciones_Aportes!D13),IF(AND(Venta_Acciones_Aportes!I13="SI",Venta_Acciones_Aportes!F13>C87,Venta_Acciones_Aportes!F13>D87),MAX(C87:D87),IF(AND(C87=0,D87<Venta_Acciones_Aportes!F13),Venta_Acciones_Aportes!D13,IF(AND(C87=0,D87>Venta_Acciones_Aportes!F13),Venta_Acciones_Aportes!D13,IF(AND(C87>=Venta_Acciones_Aportes!F13,D87>Venta_Acciones_Aportes!F13,Venta_Acciones_Aportes!I13="SI"),MAX(C87:D87,Venta_Acciones_Aportes!D13),IF(AND(C87<Venta_Acciones_Aportes!F13,D87<Venta_Acciones_Aportes!F13,Venta_Acciones_Aportes!I13="SI"),MAX(C87:D87),IF(AND(Venta_Acciones_Aportes!F13>=C87,Venta_Acciones_Aportes!F13<D87),C87,IF(AND(Venta_Acciones_Aportes!I13="NO",Venta_Acciones_Aportes!D13>C87,Venta_Acciones_Aportes!D13>go!D87)*MAX(Venta_Acciones_Aportes!C13:D87),MIN(C87,D87))))))))))) -> 0 | H87: 0 | I87: =IF(J68=0,0,IF(Venta_Acciones_Aportes!C37>=TOPES!$B$48,0,+Venta_Acciones_Aportes!E37)) -> 0 | J87: =IF(J68=0,0,IF(Venta_Acciones_Aportes!C37<=0,0,IF(Venta_Acciones_Aportes!C37="",0,IF(Venta_Acciones_Aportes!C37>=TOPES!$B$48,0,VLOOKUP(Venta_Acciones_Aportes!C37,'ajustes art. 73'!$A$6:$C$129,2)*Venta_Acciones_Aportes!D37)))) -> 0 | K87: =IF(I87=0,L87,IF(I68>=TOPES!$B$48,0,IF(AND(I87=0,J87>J68),J68,IF(AND(I87=0,J87<J68),J87,IF(AND(J87=0,I87>J68),J68,IF(AND(J87=0,I87<J68),I87,L87)))))) -> 0 | L87: =IF(Venta_Acciones_Aportes!I37="",0,IF(Venta_Acciones_Aportes!I37="NO",MAX(I87,Venta_Acciones_Aportes!D37),IF(AND(Venta_Acciones_Aportes!I37="SI",Venta_Acciones_Aportes!F37>=I87,Venta_Acciones_Aportes!F37<J87),MAX(I87,J87,Venta_Acciones_Aportes!D37),IF(AND(Venta_Acciones_Aportes!I37="SI",Venta_Acciones_Aportes!F37>I87,Venta_Acciones_Aportes!F37>J87),MAX(I87:J87),IF(AND(I87=0,J87<Venta_Acciones_Aportes!F37),Venta_Acciones_Aportes!D37,IF(AND(I87=0,J87>Venta_Acciones_Aportes!F37),Venta_Acciones_Aportes!D37,IF(AND(I87>=Venta_Acciones_Aportes!F37,J87>Venta_Acciones_Aportes!F37,Venta_Acciones_Aportes!I37="SI"),MAX(I87:J87,Venta_Acciones_Aportes!D37),IF(AND(I87<Venta_Acciones_Aportes!F37,J87<Venta_Acciones_Aportes!F37,Venta_Acciones_Aportes!I37="SI"),MAX(I87:J87),IF(AND(I87<Venta_Acciones_Aportes!F37,J87<Venta_Acciones_Aportes!F37,Venta_Acciones_Aportes!I37="SI"),MAX(I87:J87),IF(AND(Venta_Acciones_Aportes!F37>=I87,Venta_Acciones_Aportes!F37<J87),I87,IF(AND(Venta_Acciones_Aportes!I37="NO",Venta_Acciones_Aportes!D37>I87,Venta_Acciones_Aportes!D37>go!J87)*MAX(Venta_Acciones_Aportes!C37:J87),MIN(I87,J87)))))))))))) -> 0
A88: =Venta_Acciones_Aportes!A14 -> 0 | B88: 0 | C88: =IF(D69+F69=0,0,IF(Venta_Acciones_Aportes!C14>=TOPES!$B$48,0,+Venta_Acciones_Aportes!E14)) -> 0 | D88: =IF(D69+F69=0,0,IF(Venta_Acciones_Aportes!C14<=0,0,IF(Venta_Acciones_Aportes!C14="",0,IF(Venta_Acciones_Aportes!C14>=TOPES!$B$48,0,VLOOKUP(Venta_Acciones_Aportes!C14,'ajustes art. 73'!$A$6:$C$129,2)*Venta_Acciones_Aportes!D14)))) -> 0 | E88: =IF(AND(D69+F69>0,C88=0),Venta_Acciones_Aportes!D14,IF(C69>=TOPES!$B$48,0,IF(AND(C88=0,D88>(D69+F69)),D88,IF(AND(C88=0,D88<(D69+F69)),D88,IF(AND(D88=0,C88>(D69+F69)),C88,IF(AND(D88=0,C88<(D69+F69)),C88,F88)))))) -> 0 | F88: =IF(Venta_Acciones_Aportes!I14="",0,IF(Venta_Acciones_Aportes!I14="NO",MAX(C88,Venta_Acciones_Aportes!D14),IF(AND(Venta_Acciones_Aportes!F14>=C88,Venta_Acciones_Aportes!F14<D88),MAX(C88,D88,Venta_Acciones_Aportes!D14),IF(AND(Venta_Acciones_Aportes!I14="SI",Venta_Acciones_Aportes!F14>C88,Venta_Acciones_Aportes!F14>D88),MAX(C88:D88),IF(AND(C88=0,D88<Venta_Acciones_Aportes!F14),Venta_Acciones_Aportes!D14,IF(AND(C88=0,D88>Venta_Acciones_Aportes!F14),Venta_Acciones_Aportes!D14,IF(AND(C88>=Venta_Acciones_Aportes!F14,D88>Venta_Acciones_Aportes!F14,Venta_Acciones_Aportes!I14="SI"),MAX(C88:D88,Venta_Acciones_Aportes!D14),IF(AND(C88<Venta_Acciones_Aportes!F14,D88<Venta_Acciones_Aportes!F14,Venta_Acciones_Aportes!I14="SI"),MAX(C88:D88),IF(AND(Venta_Acciones_Aportes!F14>=C88,Venta_Acciones_Aportes!F14<D88),C88,IF(AND(Venta_Acciones_Aportes!I14="NO",Venta_Acciones_Aportes!D14>C88,Venta_Acciones_Aportes!D14>go!D88)*MAX(Venta_Acciones_Aportes!C14:D88),MIN(C88,D88))))))))))) -> 0 | H88: 0 | I88: =IF(J69=0,0,IF(Venta_Acciones_Aportes!C38>=TOPES!$B$48,0,+Venta_Acciones_Aportes!E38)) -> 0 | J88: =IF(J69=0,0,IF(Venta_Acciones_Aportes!C38<=0,0,IF(Venta_Acciones_Aportes!C38="",0,IF(Venta_Acciones_Aportes!C38>=TOPES!$B$48,0,VLOOKUP(Venta_Acciones_Aportes!C38,'ajustes art. 73'!$A$6:$C$129,2)*Venta_Acciones_Aportes!D38)))) -> 0 | K88: =IF(I88=0,L88,IF(I69>=TOPES!$B$48,0,IF(AND(I88=0,J88>J69),J69,IF(AND(I88=0,J88<J69),J88,IF(AND(J88=0,I88>J69),J69,IF(AND(J88=0,I88<J69),I88,L88)))))) -> 0 | L88: =IF(Venta_Acciones_Aportes!I38="",0,IF(Venta_Acciones_Aportes!I38="NO",MAX(I88,Venta_Acciones_Aportes!D38),IF(AND(Venta_Acciones_Aportes!I38="SI",Venta_Acciones_Aportes!F38>=I88,Venta_Acciones_Aportes!F38<J88),MAX(I88,J88,Venta_Acciones_Aportes!D38),IF(AND(Venta_Acciones_Aportes!I38="SI",Venta_Acciones_Aportes!F38>I88,Venta_Acciones_Aportes!F38>J88),MAX(I88:J88),IF(AND(I88=0,J88<Venta_Acciones_Aportes!F38),Venta_Acciones_Aportes!D38,IF(AND(I88=0,J88>Venta_Acciones_Aportes!F38),Venta_Acciones_Aportes!D38,IF(AND(I88>=Venta_Acciones_Aportes!F38,J88>Venta_Acciones_Aportes!F38,Venta_Acciones_Aportes!I38="SI"),MAX(I88:J88,Venta_Acciones_Aportes!D38),IF(AND(I88<Venta_Acciones_Aportes!F38,J88<Venta_Acciones_Aportes!F38,Venta_Acciones_Aportes!I38="SI"),MAX(I88:J88),IF(AND(I88<Venta_Acciones_Aportes!F38,J88<Venta_Acciones_Aportes!F38,Venta_Acciones_Aportes!I38="SI"),MAX(I88:J88),IF(AND(Venta_Acciones_Aportes!F38>=I88,Venta_Acciones_Aportes!F38<J88),I88,IF(AND(Venta_Acciones_Aportes!I38="NO",Venta_Acciones_Aportes!D38>I88,Venta_Acciones_Aportes!D38>go!J88)*MAX(Venta_Acciones_Aportes!C38:J88),MIN(I88,J88)))))))))))) -> 0
A89: =Venta_Acciones_Aportes!A15 -> 0 | B89: 0 | C89: =IF(D70+F70=0,0,IF(Venta_Acciones_Aportes!C15>=TOPES!$B$48,0,+Venta_Acciones_Aportes!E15)) -> 0 | D89: =IF(D70+F70=0,0,IF(Venta_Acciones_Aportes!C15<=0,0,IF(Venta_Acciones_Aportes!C15="",0,IF(Venta_Acciones_Aportes!C15>=TOPES!$B$48,0,VLOOKUP(Venta_Acciones_Aportes!C15,'ajustes art. 73'!$A$6:$C$129,2)*Venta_Acciones_Aportes!D15)))) -> 0 | E89: =IF(AND(D70+F70>0,C89=0),Venta_Acciones_Aportes!D15,IF(C70>=TOPES!$B$48,0,IF(AND(C89=0,D89>(D70+F70)),D89,IF(AND(C89=0,D89<(D70+F70)),D89,IF(AND(D89=0,C89>(D70+F70)),C89,IF(AND(D89=0,C89<(D70+F70)),C89,F89)))))) -> 0 | F89: =IF(Venta_Acciones_Aportes!I15="",0,IF(Venta_Acciones_Aportes!I15="NO",MAX(C89,Venta_Acciones_Aportes!D15),IF(AND(Venta_Acciones_Aportes!F15>=C89,Venta_Acciones_Aportes!F15<D89),MAX(C89,D89,Venta_Acciones_Aportes!D15),IF(AND(Venta_Acciones_Aportes!I15="SI",Venta_Acciones_Aportes!F15>C89,Venta_Acciones_Aportes!F15>D89),MAX(C89:D89),IF(AND(C89=0,D89<Venta_Acciones_Aportes!F15),Venta_Acciones_Aportes!D15,IF(AND(C89=0,D89>Venta_Acciones_Aportes!F15),Venta_Acciones_Aportes!D15,IF(AND(C89>=Venta_Acciones_Aportes!F15,D89>Venta_Acciones_Aportes!F15,Venta_Acciones_Aportes!I15="SI"),MAX(C89:D89,Venta_Acciones_Aportes!D15),IF(AND(C89<Venta_Acciones_Aportes!F15,D89<Venta_Acciones_Aportes!F15,Venta_Acciones_Aportes!I15="SI"),MAX(C89:D89),IF(AND(Venta_Acciones_Aportes!F15>=C89,Venta_Acciones_Aportes!F15<D89),C89,IF(AND(Venta_Acciones_Aportes!I15="NO",Venta_Acciones_Aportes!D15>C89,Venta_Acciones_Aportes!D15>go!D89)*MAX(Venta_Acciones_Aportes!C15:D89),MIN(C89,D89))))))))))) -> 0 | H89: 0 | I89: =IF(J70=0,0,IF(Venta_Acciones_Aportes!C39>=TOPES!$B$48,0,+Venta_Acciones_Aportes!E39)) -> 0 | J89: =IF(J70=0,0,IF(Venta_Acciones_Aportes!C39<=0,0,IF(Venta_Acciones_Aportes!C39="",0,IF(Venta_Acciones_Aportes!C39>=TOPES!$B$48,0,VLOOKUP(Venta_Acciones_Aportes!C39,'ajustes art. 73'!$A$6:$C$129,2)*Venta_Acciones_Aportes!D39)))) -> 0 | K89: =IF(I89=0,L89,IF(I70>=TOPES!$B$48,0,IF(AND(I89=0,J89>J70),J70,IF(AND(I89=0,J89<J70),J89,IF(AND(J89=0,I89>J70),J70,IF(AND(J89=0,I89<J70),I89,L89)))))) -> 0 | L89: =IF(Venta_Acciones_Aportes!I39="",0,IF(Venta_Acciones_Aportes!I39="NO",MAX(I89,Venta_Acciones_Aportes!D39),IF(AND(Venta_Acciones_Aportes!I39="SI",Venta_Acciones_Aportes!F39>=I89,Venta_Acciones_Aportes!F39<J89),MAX(I89,J89,Venta_Acciones_Aportes!D39),IF(AND(Venta_Acciones_Aportes!I39="SI",Venta_Acciones_Aportes!F39>I89,Venta_Acciones_Aportes!F39>J89),MAX(I89:J89),IF(AND(I89=0,J89<Venta_Acciones_Aportes!F39),Venta_Acciones_Aportes!D39,IF(AND(I89=0,J89>Venta_Acciones_Aportes!F39),Venta_Acciones_Aportes!D39,IF(AND(I89>=Venta_Acciones_Aportes!F39,J89>Venta_Acciones_Aportes!F39,Venta_Acciones_Aportes!I39="SI"),MAX(I89:J89,Venta_Acciones_Aportes!D39),IF(AND(I89<Venta_Acciones_Aportes!F39,J89<Venta_Acciones_Aportes!F39,Venta_Acciones_Aportes!I39="SI"),MAX(I89:J89),IF(AND(I89<Venta_Acciones_Aportes!F39,J89<Venta_Acciones_Aportes!F39,Venta_Acciones_Aportes!I39="SI"),MAX(I89:J89),IF(AND(Venta_Acciones_Aportes!F39>=I89,Venta_Acciones_Aportes!F39<J89),I89,IF(AND(Venta_Acciones_Aportes!I39="NO",Venta_Acciones_Aportes!D39>I89,Venta_Acciones_Aportes!D39>go!J89)*MAX(Venta_Acciones_Aportes!C39:J89),MIN(I89,J89)))))))))))) -> 0
A90: =Venta_Acciones_Aportes!A16 -> 0 | B90: 0 | C90: =IF(D71+F71=0,0,IF(Venta_Acciones_Aportes!C16>=TOPES!$B$48,0,+Venta_Acciones_Aportes!E16)) -> 0 | D90: =IF(D71+F71=0,0,IF(Venta_Acciones_Aportes!C16<=0,0,IF(Venta_Acciones_Aportes!C16="",0,IF(Venta_Acciones_Aportes!C16>=TOPES!$B$48,0,VLOOKUP(Venta_Acciones_Aportes!C16,'ajustes art. 73'!$A$6:$C$129,2)*Venta_Acciones_Aportes!D16)))) -> 0 | E90: =IF(AND(D71+F71>0,C90=0),Venta_Acciones_Aportes!D16,IF(C71>=TOPES!$B$48,0,IF(AND(C90=0,D90>(D71+F71)),D90,IF(AND(C90=0,D90<(D71+F71)),D90,IF(AND(D90=0,C90>(D71+F71)),C90,IF(AND(D90=0,C90<(D71+F71)),C90,F90)))))) -> 0 | F90: =IF(Venta_Acciones_Aportes!I16="",0,IF(Venta_Acciones_Aportes!I16="NO",MAX(C90,Venta_Acciones_Aportes!D16),IF(AND(Venta_Acciones_Aportes!F16>=C90,Venta_Acciones_Aportes!F16<D90),MAX(C90,D90,Venta_Acciones_Aportes!D16),IF(AND(Venta_Acciones_Aportes!I16="SI",Venta_Acciones_Aportes!F16>C90,Venta_Acciones_Aportes!F16>D90),MAX(C90:D90),IF(AND(C90=0,D90<Venta_Acciones_Aportes!F16),Venta_Acciones_Aportes!D16,IF(AND(C90=0,D90>Venta_Acciones_Aportes!F16),Venta_Acciones_Aportes!D16,IF(AND(C90>=Venta_Acciones_Aportes!F16,D90>Venta_Acciones_Aportes!F16,Venta_Acciones_Aportes!I16="SI"),MAX(C90:D90,Venta_Acciones_Aportes!D16),IF(AND(C90<Venta_Acciones_Aportes!F16,D90<Venta_Acciones_Aportes!F16,Venta_Acciones_Aportes!I16="SI"),MAX(C90:D90),IF(AND(Venta_Acciones_Aportes!F16>=C90,Venta_Acciones_Aportes!F16<D90),C90,IF(AND(Venta_Acciones_Aportes!I16="NO",Venta_Acciones_Aportes!D16>C90,Venta_Acciones_Aportes!D16>go!D90)*MAX(Venta_Acciones_Aportes!C16:D90),MIN(C90,D90))))))))))) -> 0 | H90: 0 | I90: =IF(J71=0,0,IF(Venta_Acciones_Aportes!C40>=TOPES!$B$48,0,+Venta_Acciones_Aportes!E40)) -> 0 | J90: =IF(J71=0,0,IF(Venta_Acciones_Aportes!C40<=0,0,IF(Venta_Acciones_Aportes!C40="",0,IF(Venta_Acciones_Aportes!C40>=TOPES!$B$48,0,VLOOKUP(Venta_Acciones_Aportes!C40,'ajustes art. 73'!$A$6:$C$129,2)*Venta_Acciones_Aportes!D40)))) -> 0 | K90: =IF(I90=0,L90,IF(I71>=TOPES!$B$48,0,IF(AND(I90=0,J90>J71),J71,IF(AND(I90=0,J90<J71),J90,IF(AND(J90=0,I90>J71),J71,IF(AND(J90=0,I90<J71),I90,L90)))))) -> 0 | L90: =IF(Venta_Acciones_Aportes!I40="",0,IF(Venta_Acciones_Aportes!I40="NO",MAX(I90,Venta_Acciones_Aportes!D40),IF(AND(Venta_Acciones_Aportes!I40="SI",Venta_Acciones_Aportes!F40>=I90,Venta_Acciones_Aportes!F40<J90),MAX(I90,J90,Venta_Acciones_Aportes!D40),IF(AND(Venta_Acciones_Aportes!I40="SI",Venta_Acciones_Aportes!F40>I90,Venta_Acciones_Aportes!F40>J90),MAX(I90:J90),IF(AND(I90=0,J90<Venta_Acciones_Aportes!F40),Venta_Acciones_Aportes!D40,IF(AND(I90=0,J90>Venta_Acciones_Aportes!F40),Venta_Acciones_Aportes!D40,IF(AND(I90>=Venta_Acciones_Aportes!F40,J90>Venta_Acciones_Aportes!F40,Venta_Acciones_Aportes!I40="SI"),MAX(I90:J90,Venta_Acciones_Aportes!D40),IF(AND(I90<Venta_Acciones_Aportes!F40,J90<Venta_Acciones_Aportes!F40,Venta_Acciones_Aportes!I40="SI"),MAX(I90:J90),IF(AND(I90<Venta_Acciones_Aportes!F40,J90<Venta_Acciones_Aportes!F40,Venta_Acciones_Aportes!I40="SI"),MAX(I90:J90),IF(AND(Venta_Acciones_Aportes!F40>=I90,Venta_Acciones_Aportes!F40<J90),I90,IF(AND(Venta_Acciones_Aportes!I40="NO",Venta_Acciones_Aportes!D40>I90,Venta_Acciones_Aportes!D40>go!J90)*MAX(Venta_Acciones_Aportes!C40:J90),MIN(I90,J90)))))))))))) -> 0
A91: =Venta_Acciones_Aportes!A17 -> 0 | B91: 0 | C91: =IF(D72+F72=0,0,IF(Venta_Acciones_Aportes!C17>=TOPES!$B$48,0,+Venta_Acciones_Aportes!E17)) -> 0 | D91: =IF(D72+F72=0,0,IF(Venta_Acciones_Aportes!C17<=0,0,IF(Venta_Acciones_Aportes!C17="",0,IF(Venta_Acciones_Aportes!C17>=TOPES!$B$48,0,VLOOKUP(Venta_Acciones_Aportes!C17,'ajustes art. 73'!$A$6:$C$129,2)*Venta_Acciones_Aportes!D17)))) -> 0 | E91: =IF(AND(D72+F72>0,C91=0),Venta_Acciones_Aportes!D17,IF(C72>=TOPES!$B$48,0,IF(AND(C91=0,D91>(D72+F72)),D91,IF(AND(C91=0,D91<(D72+F72)),D91,IF(AND(D91=0,C91>(D72+F72)),C91,IF(AND(D91=0,C91<(D72+F72)),C91,F91)))))) -> 0 | F91: =IF(Venta_Acciones_Aportes!I17="",0,IF(Venta_Acciones_Aportes!I17="NO",MAX(C91,Venta_Acciones_Aportes!D17),IF(AND(Venta_Acciones_Aportes!F17>=C91,Venta_Acciones_Aportes!F17<D91),MAX(C91,D91,Venta_Acciones_Aportes!D17),IF(AND(Venta_Acciones_Aportes!I17="SI",Venta_Acciones_Aportes!F17>C91,Venta_Acciones_Aportes!F17>D91),MAX(C91:D91),IF(AND(C91=0,D91<Venta_Acciones_Aportes!F17),Venta_Acciones_Aportes!D17,IF(AND(C91=0,D91>Venta_Acciones_Aportes!F17),Venta_Acciones_Aportes!D17,IF(AND(C91>=Venta_Acciones_Aportes!F17,D91>Venta_Acciones_Aportes!F17,Venta_Acciones_Aportes!I17="SI"),MAX(C91:D91,Venta_Acciones_Aportes!D17),IF(AND(C91<Venta_Acciones_Aportes!F17,D91<Venta_Acciones_Aportes!F17,Venta_Acciones_Aportes!I17="SI"),MAX(C91:D91),IF(AND(Venta_Acciones_Aportes!F17>=C91,Venta_Acciones_Aportes!F17<D91),C91,IF(AND(Venta_Acciones_Aportes!I17="NO",Venta_Acciones_Aportes!D17>C91,Venta_Acciones_Aportes!D17>go!D91)*MAX(Venta_Acciones_Aportes!C17:D91),MIN(C91,D91))))))))))) -> 0 | H91: 0 | I91: =IF(J72=0,0,IF(Venta_Acciones_Aportes!C41>=TOPES!$B$48,0,+Venta_Acciones_Aportes!E41)) -> 0 | J91: =IF(J72=0,0,IF(Venta_Acciones_Aportes!C41<=0,0,IF(Venta_Acciones_Aportes!C41="",0,IF(Venta_Acciones_Aportes!C41>=TOPES!$B$48,0,VLOOKUP(Venta_Acciones_Aportes!C41,'ajustes art. 73'!$A$6:$C$129,2)*Venta_Acciones_Aportes!D41)))) -> 0 | K91: =IF(I91=0,L91,IF(I72>=TOPES!$B$48,0,IF(AND(I91=0,J91>J72),J72,IF(AND(I91=0,J91<J72),J91,IF(AND(J91=0,I91>J72),J72,IF(AND(J91=0,I91<J72),I91,L91)))))) -> 0 | L91: =IF(Venta_Acciones_Aportes!I41="",0,IF(Venta_Acciones_Aportes!I41="NO",MAX(I91,Venta_Acciones_Aportes!D41),IF(AND(Venta_Acciones_Aportes!I41="SI",Venta_Acciones_Aportes!F41>=I91,Venta_Acciones_Aportes!F41<J91),MAX(I91,J91,Venta_Acciones_Aportes!D41),IF(AND(Venta_Acciones_Aportes!I41="SI",Venta_Acciones_Aportes!F41>I91,Venta_Acciones_Aportes!F41>J91),MAX(I91:J91),IF(AND(I91=0,J91<Venta_Acciones_Aportes!F41),Venta_Acciones_Aportes!D41,IF(AND(I91=0,J91>Venta_Acciones_Aportes!F41),Venta_Acciones_Aportes!D41,IF(AND(I91>=Venta_Acciones_Aportes!F41,J91>Venta_Acciones_Aportes!F41,Venta_Acciones_Aportes!I41="SI"),MAX(I91:J91,Venta_Acciones_Aportes!D41),IF(AND(I91<Venta_Acciones_Aportes!F41,J91<Venta_Acciones_Aportes!F41,Venta_Acciones_Aportes!I41="SI"),MAX(I91:J91),IF(AND(I91<Venta_Acciones_Aportes!F41,J91<Venta_Acciones_Aportes!F41,Venta_Acciones_Aportes!I41="SI"),MAX(I91:J91),IF(AND(Venta_Acciones_Aportes!F41>=I91,Venta_Acciones_Aportes!F41<J91),I91,IF(AND(Venta_Acciones_Aportes!I41="NO",Venta_Acciones_Aportes!D41>I91,Venta_Acciones_Aportes!D41>go!J91)*MAX(Venta_Acciones_Aportes!C41:J91),MIN(I91,J91)))))))))))) -> 0
A92: =Venta_Acciones_Aportes!A18 -> 0 | B92: 0 | C92: =IF(D73+F73=0,0,IF(Venta_Acciones_Aportes!C18>=TOPES!$B$48,0,+Venta_Acciones_Aportes!E18)) -> 0 | D92: =IF(D73+F73=0,0,IF(Venta_Acciones_Aportes!C18<=0,0,IF(Venta_Acciones_Aportes!C18="",0,IF(Venta_Acciones_Aportes!C18>=TOPES!$B$48,0,VLOOKUP(Venta_Acciones_Aportes!C18,'ajustes art. 73'!$A$6:$C$129,2)*Venta_Acciones_Aportes!D18)))) -> 0 | E92: =IF(AND(D73+F73>0,C92=0),Venta_Acciones_Aportes!D18,IF(C73>=TOPES!$B$48,0,IF(AND(C92=0,D92>(D73+F73)),D92,IF(AND(C92=0,D92<(D73+F73)),D92,IF(AND(D92=0,C92>(D73+F73)),C92,IF(AND(D92=0,C92<(D73+F73)),C92,F92)))))) -> 0 | F92: =IF(Venta_Acciones_Aportes!I18="",0,IF(Venta_Acciones_Aportes!I18="NO",MAX(C92,Venta_Acciones_Aportes!D18),IF(AND(Venta_Acciones_Aportes!F18>=C92,Venta_Acciones_Aportes!F18<D92),MAX(C92,D92,Venta_Acciones_Aportes!D18),IF(AND(Venta_Acciones_Aportes!I18="SI",Venta_Acciones_Aportes!F18>C92,Venta_Acciones_Aportes!F18>D92),MAX(C92:D92),IF(AND(C92=0,D92<Venta_Acciones_Aportes!F18),Venta_Acciones_Aportes!D18,IF(AND(C92=0,D92>Venta_Acciones_Aportes!F18),Venta_Acciones_Aportes!D18,IF(AND(C92>=Venta_Acciones_Aportes!F18,D92>Venta_Acciones_Aportes!F18,Venta_Acciones_Aportes!I18="SI"),MAX(C92:D92,Venta_Acciones_Aportes!D18),IF(AND(C92<Venta_Acciones_Aportes!F18,D92<Venta_Acciones_Aportes!F18,Venta_Acciones_Aportes!I18="SI"),MAX(C92:D92),IF(AND(Venta_Acciones_Aportes!F18>=C92,Venta_Acciones_Aportes!F18<D92),C92,IF(AND(Venta_Acciones_Aportes!I18="NO",Venta_Acciones_Aportes!D18>C92,Venta_Acciones_Aportes!D18>go!D92)*MAX(Venta_Acciones_Aportes!C18:D92),MIN(C92,D92))))))))))) -> 0 | H92: 0 | I92: =IF(J73=0,0,IF(Venta_Acciones_Aportes!C42>=TOPES!$B$48,0,+Venta_Acciones_Aportes!E42)) -> 0 | J92: =IF(J73=0,0,IF(Venta_Acciones_Aportes!C42<=0,0,IF(Venta_Acciones_Aportes!C42="",0,IF(Venta_Acciones_Aportes!C42>=TOPES!$B$48,0,VLOOKUP(Venta_Acciones_Aportes!C42,'ajustes art. 73'!$A$6:$C$129,2)*Venta_Acciones_Aportes!D42)))) -> 0 | K92: =IF(I92=0,L92,IF(I73>=TOPES!$B$48,0,IF(AND(I92=0,J92>J73),J73,IF(AND(I92=0,J92<J73),J92,IF(AND(J92=0,I92>J73),J73,IF(AND(J92=0,I92<J73),I92,L92)))))) -> 0 | L92: =IF(Venta_Acciones_Aportes!I42="",0,IF(Venta_Acciones_Aportes!I42="NO",MAX(I92,Venta_Acciones_Aportes!D42),IF(AND(Venta_Acciones_Aportes!I42="SI",Venta_Acciones_Aportes!F42>=I92,Venta_Acciones_Aportes!F42<J92),MAX(I92,J92,Venta_Acciones_Aportes!D42),IF(AND(Venta_Acciones_Aportes!I42="SI",Venta_Acciones_Aportes!F42>I92,Venta_Acciones_Aportes!F42>J92),MAX(I92:J92),IF(AND(I92=0,J92<Venta_Acciones_Aportes!F42),Venta_Acciones_Aportes!D42,IF(AND(I92=0,J92>Venta_Acciones_Aportes!F42),Venta_Acciones_Aportes!D42,IF(AND(I92>=Venta_Acciones_Aportes!F42,J92>Venta_Acciones_Aportes!F42,Venta_Acciones_Aportes!I42="SI"),MAX(I92:J92,Venta_Acciones_Aportes!D42),IF(AND(I92<Venta_Acciones_Aportes!F42,J92<Venta_Acciones_Aportes!F42,Venta_Acciones_Aportes!I42="SI"),MAX(I92:J92),IF(AND(I92<Venta_Acciones_Aportes!F42,J92<Venta_Acciones_Aportes!F42,Venta_Acciones_Aportes!I42="SI"),MAX(I92:J92),IF(AND(Venta_Acciones_Aportes!F42>=I92,Venta_Acciones_Aportes!F42<J92),I92,IF(AND(Venta_Acciones_Aportes!I42="NO",Venta_Acciones_Aportes!D42>I92,Venta_Acciones_Aportes!D42>go!J92)*MAX(Venta_Acciones_Aportes!C42:J92),MIN(I92,J92)))))))))))) -> 0
A93: =Venta_Acciones_Aportes!A19 -> 0 | B93: 0 | C93: =IF(D74+F74=0,0,IF(Venta_Acciones_Aportes!C19>=TOPES!$B$48,0,+Venta_Acciones_Aportes!E19)) -> 0 | D93: =IF(D74+F74=0,0,IF(Venta_Acciones_Aportes!C19<=0,0,IF(Venta_Acciones_Aportes!C19="",0,IF(Venta_Acciones_Aportes!C19>=TOPES!$B$48,0,VLOOKUP(Venta_Acciones_Aportes!C19,'ajustes art. 73'!$A$6:$C$129,2)*Venta_Acciones_Aportes!D19)))) -> 0 | E93: =IF(AND(D74+F74>0,C93=0),Venta_Acciones_Aportes!D19,IF(C74>=TOPES!$B$48,0,IF(AND(C93=0,D93>(D74+F74)),D93,IF(AND(C93=0,D93<(D74+F74)),D93,IF(AND(D93=0,C93>(D74+F74)),C93,IF(AND(D93=0,C93<(D74+F74)),C93,F93)))))) -> 0 | F93: =IF(Venta_Acciones_Aportes!I19="",0,IF(Venta_Acciones_Aportes!I19="NO",MAX(C93,Venta_Acciones_Aportes!D19),IF(AND(Venta_Acciones_Aportes!F19>=C93,Venta_Acciones_Aportes!F19<D93),MAX(C93,D93,Venta_Acciones_Aportes!D19),IF(AND(Venta_Acciones_Aportes!I19="SI",Venta_Acciones_Aportes!F19>C93,Venta_Acciones_Aportes!F19>D93),MAX(C93:D93),IF(AND(C93=0,D93<Venta_Acciones_Aportes!F19),Venta_Acciones_Aportes!D19,IF(AND(C93=0,D93>Venta_Acciones_Aportes!F19),Venta_Acciones_Aportes!D19,IF(AND(C93>=Venta_Acciones_Aportes!F19,D93>Venta_Acciones_Aportes!F19,Venta_Acciones_Aportes!I19="SI"),MAX(C93:D93,Venta_Acciones_Aportes!D19),IF(AND(C93<Venta_Acciones_Aportes!F19,D93<Venta_Acciones_Aportes!F19,Venta_Acciones_Aportes!I19="SI"),MAX(C93:D93),IF(AND(Venta_Acciones_Aportes!F19>=C93,Venta_Acciones_Aportes!F19<D93),C93,IF(AND(Venta_Acciones_Aportes!I19="NO",Venta_Acciones_Aportes!D19>C93,Venta_Acciones_Aportes!D19>go!D93)*MAX(Venta_Acciones_Aportes!C19:D93),MIN(C93,D93))))))))))) -> 0 | H93: 0 | I93: =IF(J74=0,0,IF(Venta_Acciones_Aportes!C43>=TOPES!$B$48,0,+Venta_Acciones_Aportes!E43)) -> 0 | J93: =IF(J74=0,0,IF(Venta_Acciones_Aportes!C43<=0,0,IF(Venta_Acciones_Aportes!C43="",0,IF(Venta_Acciones_Aportes!C43>=TOPES!$B$48,0,VLOOKUP(Venta_Acciones_Aportes!C43,'ajustes art. 73'!$A$6:$C$129,2)*Venta_Acciones_Aportes!D43)))) -> 0 | K93: =IF(I93=0,L93,IF(I74>=TOPES!$B$48,0,IF(AND(I93=0,J93>J74),J74,IF(AND(I93=0,J93<J74),J93,IF(AND(J93=0,I93>J74),J74,IF(AND(J93=0,I93<J74),I93,L93)))))) -> 0 | L93: =IF(Venta_Acciones_Aportes!I43="",0,IF(Venta_Acciones_Aportes!I43="NO",MAX(I93,Venta_Acciones_Aportes!D43),IF(AND(Venta_Acciones_Aportes!I43="SI",Venta_Acciones_Aportes!F43>=I93,Venta_Acciones_Aportes!F43<J93),MAX(I93,J93,Venta_Acciones_Aportes!D43),IF(AND(Venta_Acciones_Aportes!I43="SI",Venta_Acciones_Aportes!F43>I93,Venta_Acciones_Aportes!F43>J93),MAX(I93:J93),IF(AND(I93=0,J93<Venta_Acciones_Aportes!F43),Venta_Acciones_Aportes!D43,IF(AND(I93=0,J93>Venta_Acciones_Aportes!F43),Venta_Acciones_Aportes!D43,IF(AND(I93>=Venta_Acciones_Aportes!F43,J93>Venta_Acciones_Aportes!F43,Venta_Acciones_Aportes!I43="SI"),MAX(I93:J93,Venta_Acciones_Aportes!D43),IF(AND(I93<Venta_Acciones_Aportes!F43,J93<Venta_Acciones_Aportes!F43,Venta_Acciones_Aportes!I43="SI"),MAX(I93:J93),IF(AND(I93<Venta_Acciones_Aportes!F43,J93<Venta_Acciones_Aportes!F43,Venta_Acciones_Aportes!I43="SI"),MAX(I93:J93),IF(AND(Venta_Acciones_Aportes!F43>=I93,Venta_Acciones_Aportes!F43<J93),I93,IF(AND(Venta_Acciones_Aportes!I43="NO",Venta_Acciones_Aportes!D43>I93,Venta_Acciones_Aportes!D43>go!J93)*MAX(Venta_Acciones_Aportes!C43:J93),MIN(I93,J93)))))))))))) -> 0
A94: =Venta_Acciones_Aportes!A20 -> 0 | B94: 0 | C94: =IF(Venta_Acciones_Aportes!C20>=TOPES!$B$48,0,+Venta_Acciones_Aportes!E20) -> 0 | D94: =IF(D75+F75=0,0,IF(Venta_Acciones_Aportes!C20<=0,0,IF(Venta_Acciones_Aportes!C20="",0,IF(Venta_Acciones_Aportes!C20>=TOPES!$B$48,0,VLOOKUP(Venta_Acciones_Aportes!C20,'ajustes art. 73'!$A$6:$C$129,2)*Venta_Acciones_Aportes!D20)))) -> 0 | E94: =IF(AND(D75+F75>0,C94=0),Venta_Acciones_Aportes!D20,IF(C75>=TOPES!$B$48,0,IF(AND(C94=0,D94>(D75+F75)),D94,IF(AND(C94=0,D94<(D75+F75)),D94,IF(AND(D94=0,C94>(D75+F75)),C94,IF(AND(D94=0,C94<(D75+F75)),C94,F94)))))) -> 0 | F94: =IF(Venta_Acciones_Aportes!I20="",0,IF(Venta_Acciones_Aportes!I20="NO",MAX(C94,Venta_Acciones_Aportes!D20),IF(AND(Venta_Acciones_Aportes!F20>=C94,Venta_Acciones_Aportes!F20<D94),MAX(C94,D94,Venta_Acciones_Aportes!D20),IF(AND(Venta_Acciones_Aportes!I20="SI",Venta_Acciones_Aportes!F20>C94,Venta_Acciones_Aportes!F20>D94),MAX(C94:D94),IF(AND(C94=0,D94<Venta_Acciones_Aportes!F20),Venta_Acciones_Aportes!D20,IF(AND(C94=0,D94>Venta_Acciones_Aportes!F20),Venta_Acciones_Aportes!D20,IF(AND(C94>=Venta_Acciones_Aportes!F20,D94>Venta_Acciones_Aportes!F20,Venta_Acciones_Aportes!I20="SI"),MAX(C94:D94,Venta_Acciones_Aportes!D20),IF(AND(C94<Venta_Acciones_Aportes!F20,D94<Venta_Acciones_Aportes!F20,Venta_Acciones_Aportes!I20="SI"),MAX(C94:D94),IF(AND(Venta_Acciones_Aportes!F20>=C94,Venta_Acciones_Aportes!F20<D94),C94,IF(AND(Venta_Acciones_Aportes!I20="NO",Venta_Acciones_Aportes!D20>C94,Venta_Acciones_Aportes!D20>go!D94)*MAX(Venta_Acciones_Aportes!C20:D94),MIN(C94,D94))))))))))) -> 0 | H94: 0 | I94: =IF(J75=0,0,IF(Venta_Acciones_Aportes!C44>=TOPES!$B$48,0,+Venta_Acciones_Aportes!E44)) -> 0 | J94: =IF(J75=0,0,IF(Venta_Acciones_Aportes!C44<=0,0,IF(Venta_Acciones_Aportes!C44="",0,IF(Venta_Acciones_Aportes!C44>=TOPES!$B$48,0,VLOOKUP(Venta_Acciones_Aportes!C44,'ajustes art. 73'!$A$6:$C$129,2)*Venta_Acciones_Aportes!D44)))) -> 0 | K94: =IF(I94=0,L94,IF(I75>=TOPES!$B$48,0,IF(AND(I94=0,J94>J75),J75,IF(AND(I94=0,J94<J75),J94,IF(AND(J94=0,I94>J75),J75,IF(AND(J94=0,I94<J75),I94,L94)))))) -> 0 | L94: =IF(Venta_Acciones_Aportes!I44="",0,IF(Venta_Acciones_Aportes!I44="NO",MAX(I94,Venta_Acciones_Aportes!D44),IF(AND(Venta_Acciones_Aportes!I44="SI",Venta_Acciones_Aportes!F44>=I94,Venta_Acciones_Aportes!F44<J94),MAX(I94,J94,Venta_Acciones_Aportes!D44),IF(AND(Venta_Acciones_Aportes!I44="SI",Venta_Acciones_Aportes!F44>I94,Venta_Acciones_Aportes!F44>J94),MAX(I94:J94),IF(AND(I94=0,J94<Venta_Acciones_Aportes!F44),Venta_Acciones_Aportes!D44,IF(AND(I94=0,J94>Venta_Acciones_Aportes!F44),Venta_Acciones_Aportes!D44,IF(AND(I94>=Venta_Acciones_Aportes!F44,J94>Venta_Acciones_Aportes!F44,Venta_Acciones_Aportes!I44="SI"),MAX(I94:J94,Venta_Acciones_Aportes!D44),IF(AND(I94<Venta_Acciones_Aportes!F44,J94<Venta_Acciones_Aportes!F44,Venta_Acciones_Aportes!I44="SI"),MAX(I94:J94),IF(AND(I94<Venta_Acciones_Aportes!F44,J94<Venta_Acciones_Aportes!F44,Venta_Acciones_Aportes!I44="SI"),MAX(I94:J94),IF(AND(Venta_Acciones_Aportes!F44>=I94,Venta_Acciones_Aportes!F44<J94),I94,IF(AND(Venta_Acciones_Aportes!I44="NO",Venta_Acciones_Aportes!D44>I94,Venta_Acciones_Aportes!D44>go!J94)*MAX(Venta_Acciones_Aportes!C44:J94),MIN(I94,J94)))))))))))) -> 0
B95: TOTAL | E95: =ROUND(((SUM(E81:E94))/1000),0)*1000 -> 0 | H95: TOTAL | K95: =ROUND(((SUM(K81:K94))/1000),0)*1000 -> 0
J96: UTILIDAD | K96: =IF(J76-K95<0,0,J76-K95) -> 0
B98: Determinación de la Ganancia Ocasional cuando se vende activos fijos diferentes a inmuebles y acciones y aportes
B99: TIPO DE BIEN | C99: VALOR VENTA | D99: COSTOS Y GASTOS | E99: RETENCION EN LA FUENTE | F99: GOEXTERIOR | G99: COSTOS EXTERIOR
A100: =IF(Venta_Activos_Fijos!A7=0,Venta_Activos_Fijos!A7="NO",Venta_Activos_Fijos!A7) -> FALSE | B100: =Venta_Activos_Fijos!B7 -> 0 | C100: =IF(A100=0,0,IF(A100="SI",0,IF(Venta_Activos_Fijos!C7<=0,0,IF(Venta_Activos_Fijos!C7<TOPES!$B$48,Venta_Activos_Fijos!D7,0)))) -> 0 | D100: =IF(C100=0,0,IF(A100="SI",0,IF(Venta_Activos_Fijos!C7<=0,0,IF(Venta_Activos_Fijos!C7<TOPES!$B$48,Venta_Activos_Fijos!G7,0)))) -> 0 | E100: =IF(C100=0,0,IF(Venta_Activos_Fijos!C7<TOPES!$B$48,IF(Venta_Activos_Fijos!C7<TOPES!$B$48,Venta_Activos_Fijos!E7,0),0)) -> 0 | F100: =IF(Venta_Activos_Fijos!A7=0,0,IF(Venta_Activos_Fijos!A7="NO",0,IF(Venta_Activos_Fijos!C7<=0,0,IF(Venta_Activos_Fijos!C7<TOPES!$B$48,Venta_Activos_Fijos!D7,0)))) -> 0 | G100: =IF(F100=0,0,IF(A100="NO",0,IF(Venta_Activos_Fijos!C7<=0,0,IF(Venta_Activos_Fijos!C7<TOPES!$B$48,Venta_Activos_Fijos!G7,0)))) -> 0
A101: =IF(Venta_Activos_Fijos!A8=0,Venta_Activos_Fijos!A8="NO",Venta_Activos_Fijos!A8) -> FALSE | B101: =Venta_Activos_Fijos!B8 -> 0 | C101: =IF(A101=0,0,IF(A101="SI",0,IF(Venta_Activos_Fijos!C8<=0,0,IF(Venta_Activos_Fijos!C8<TOPES!$B$48,Venta_Activos_Fijos!D8,0)))) -> 0 | D101: =IF(C101=0,0,IF(A101="SI",0,IF(Venta_Activos_Fijos!C8<=0,0,IF(Venta_Activos_Fijos!C8<TOPES!$B$48,Venta_Activos_Fijos!G8,0)))) -> 0 | E101: =IF(C101=0,0,IF(Venta_Activos_Fijos!C8<TOPES!$B$48,IF(Venta_Activos_Fijos!C8<TOPES!$B$48,Venta_Activos_Fijos!E8,0),0)) -> 0 | F101: =IF(Venta_Activos_Fijos!A8=0,0,IF(Venta_Activos_Fijos!A8="NO",0,IF(Venta_Activos_Fijos!C8<=0,0,IF(Venta_Activos_Fijos!C8<TOPES!$B$48,Venta_Activos_Fijos!D8,0)))) -> 0 | G101: =IF(F101=0,0,IF(A101="NO",0,IF(Venta_Activos_Fijos!C8<=0,0,IF(Venta_Activos_Fijos!C8<TOPES!$B$48,Venta_Activos_Fijos!G8,0)))) -> 0
A102: =IF(Venta_Activos_Fijos!A9=0,Venta_Activos_Fijos!A9="NO",Venta_Activos_Fijos!A9) -> FALSE | B102: =Venta_Activos_Fijos!B9 -> 0 | C102: =IF(A102=0,0,IF(A102="SI",0,IF(Venta_Activos_Fijos!C9<=0,0,IF(Venta_Activos_Fijos!C9<TOPES!$B$48,Venta_Activos_Fijos!D9,0)))) -> 0 | D102: =IF(C102=0,0,IF(A102="SI",0,IF(Venta_Activos_Fijos!C9<=0,0,IF(Venta_Activos_Fijos!C9<TOPES!$B$48,Venta_Activos_Fijos!G9,0)))) -> 0 | E102: =IF(C102=0,0,IF(Venta_Activos_Fijos!C9<TOPES!$B$48,IF(Venta_Activos_Fijos!C9<TOPES!$B$48,Venta_Activos_Fijos!E9,0),0)) -> 0 | F102: =IF(Venta_Activos_Fijos!A9=0,0,IF(Venta_Activos_Fijos!A9="NO",0,IF(Venta_Activos_Fijos!C9<=0,0,IF(Venta_Activos_Fijos!C9<TOPES!$B$48,Venta_Activos_Fijos!D9,0)))) -> 0 | G102: =IF(F102=0,0,IF(A102="NO",0,IF(Venta_Activos_Fijos!C9<=0,0,IF(Venta_Activos_Fijos!C9<TOPES!$B$48,Venta_Activos_Fijos!G9,0)))) -> 0
A103: =IF(Venta_Activos_Fijos!A10=0,Venta_Activos_Fijos!A10="NO",Venta_Activos_Fijos!A10) -> FALSE | B103: =Venta_Activos_Fijos!B10 -> 0 | C103: =IF(A103=0,0,IF(A103="SI",0,IF(Venta_Activos_Fijos!C10<=0,0,IF(Venta_Activos_Fijos!C10<TOPES!$B$48,Venta_Activos_Fijos!D10,0)))) -> 0 | D103: =IF(C103=0,0,IF(A103="SI",0,IF(Venta_Activos_Fijos!C10<=0,0,IF(Venta_Activos_Fijos!C10<TOPES!$B$48,Venta_Activos_Fijos!G10,0)))) -> 0 | E103: =IF(C103=0,0,IF(Venta_Activos_Fijos!C10<TOPES!$B$48,IF(Venta_Activos_Fijos!C10<TOPES!$B$48,Venta_Activos_Fijos!E10,0),0)) -> 0 | F103: =IF(Venta_Activos_Fijos!A10=0,0,IF(Venta_Activos_Fijos!A10="NO",0,IF(Venta_Activos_Fijos!C10<=0,0,IF(Venta_Activos_Fijos!C10<TOPES!$B$48,Venta_Activos_Fijos!D10,0)))) -> 0 | G103: =IF(F103=0,0,IF(A103="NO",0,IF(Venta_Activos_Fijos!C10<=0,0,IF(Venta_Activos_Fijos!C10<TOPES!$B$48,Venta_Activos_Fijos!G10,0)))) -> 0
A104: =IF(Venta_Activos_Fijos!A11=0,Venta_Activos_Fijos!A11="NO",Venta_Activos_Fijos!A11) -> FALSE | B104: =Venta_Activos_Fijos!B11 -> 0 | C104: =IF(A104=0,0,IF(A104="SI",0,IF(Venta_Activos_Fijos!C11<=0,0,IF(Venta_Activos_Fijos!C11<TOPES!$B$48,Venta_Activos_Fijos!D11,0)))) -> 0 | D104: =IF(C104=0,0,IF(A104="SI",0,IF(Venta_Activos_Fijos!C11<=0,0,IF(Venta_Activos_Fijos!C11<TOPES!$B$48,Venta_Activos_Fijos!G11,0)))) -> 0 | E104: =IF(C104=0,0,IF(Venta_Activos_Fijos!C11<TOPES!$B$48,IF(Venta_Activos_Fijos!C11<TOPES!$B$48,Venta_Activos_Fijos!E11,0),0)) -> 0 | F104: =IF(Venta_Activos_Fijos!A11=0,0,IF(Venta_Activos_Fijos!A11="NO",0,IF(Venta_Activos_Fijos!C11<=0,0,IF(Venta_Activos_Fijos!C11<TOPES!$B$48,Venta_Activos_Fijos!D11,0)))) -> 0 | G104: =IF(F104=0,0,IF(A104="NO",0,IF(Venta_Activos_Fijos!C11<=0,0,IF(Venta_Activos_Fijos!C11<TOPES!$B$48,Venta_Activos_Fijos!G11,0)))) -> 0
A105: =IF(Venta_Activos_Fijos!A12=0,Venta_Activos_Fijos!A12="NO",Venta_Activos_Fijos!A12) -> FALSE | B105: =Venta_Activos_Fijos!B12 -> 0 | C105: =IF(A105=0,0,IF(A105="SI",0,IF(Venta_Activos_Fijos!C12<=0,0,IF(Venta_Activos_Fijos!C12<TOPES!$B$48,Venta_Activos_Fijos!D12,0)))) -> 0 | D105: =IF(C105=0,0,IF(A105="SI",0,IF(Venta_Activos_Fijos!C12<=0,0,IF(Venta_Activos_Fijos!C12<TOPES!$B$48,Venta_Activos_Fijos!G12,0)))) -> 0 | E105: =IF(C105=0,0,IF(Venta_Activos_Fijos!C12<TOPES!$B$48,IF(Venta_Activos_Fijos!C12<TOPES!$B$48,Venta_Activos_Fijos!E12,0),0)) -> 0 | F105: =IF(Venta_Activos_Fijos!A12=0,0,IF(Venta_Activos_Fijos!A12="NO",0,IF(Venta_Activos_Fijos!C12<=0,0,IF(Venta_Activos_Fijos!C12<TOPES!$B$48,Venta_Activos_Fijos!D12,0)))) -> 0 | G105: =IF(F105=0,0,IF(A105="NO",0,IF(Venta_Activos_Fijos!C12<=0,0,IF(Venta_Activos_Fijos!C12<TOPES!$B$48,Venta_Activos_Fijos!G12,0)))) -> 0
A106: =IF(Venta_Activos_Fijos!A13=0,Venta_Activos_Fijos!A13="NO",Venta_Activos_Fijos!A13) -> FALSE | B106: =Venta_Activos_Fijos!B13 -> 0 | C106: =IF(A106=0,0,IF(A106="SI",0,IF(Venta_Activos_Fijos!C13<=0,0,IF(Venta_Activos_Fijos!C13<TOPES!$B$48,Venta_Activos_Fijos!D13,0)))) -> 0 | D106: =IF(C106=0,0,IF(A106="SI",0,IF(Venta_Activos_Fijos!C13<=0,0,IF(Venta_Activos_Fijos!C13<TOPES!$B$48,Venta_Activos_Fijos!G13,0)))) -> 0 | E106: =IF(C106=0,0,IF(Venta_Activos_Fijos!C13<TOPES!$B$48,IF(Venta_Activos_Fijos!C13<TOPES!$B$48,Venta_Activos_Fijos!E13,0),0)) -> 0 | F106: =IF(Venta_Activos_Fijos!A13=0,0,IF(Venta_Activos_Fijos!A13="NO",0,IF(Venta_Activos_Fijos!C13<=0,0,IF(Venta_Activos_Fijos!C13<TOPES!$B$48,Venta_Activos_Fijos!D13,0)))) -> 0 | G106: =IF(F106=0,0,IF(A106="NO",0,IF(Venta_Activos_Fijos!C13<=0,0,IF(Venta_Activos_Fijos!C13<TOPES!$B$48,Venta_Activos_Fijos!G13,0)))) -> 0
A107: =IF(Venta_Activos_Fijos!A14=0,Venta_Activos_Fijos!A14="NO",Venta_Activos_Fijos!A14) -> FALSE | B107: =Venta_Activos_Fijos!B14 -> 0 | C107: =IF(A107=0,0,IF(A107="SI",0,IF(Venta_Activos_Fijos!C14<=0,0,IF(Venta_Activos_Fijos!C14<TOPES!$B$48,Venta_Activos_Fijos!D14,0)))) -> 0 | D107: =IF(C107=0,0,IF(A107="SI",0,IF(Venta_Activos_Fijos!C14<=0,0,IF(Venta_Activos_Fijos!C14<TOPES!$B$48,Venta_Activos_Fijos!G14,0)))) -> 0 | E107: =IF(C107=0,0,IF(Venta_Activos_Fijos!C14<TOPES!$B$48,IF(Venta_Activos_Fijos!C14<TOPES!$B$48,Venta_Activos_Fijos!E14,0),0)) -> 0 | F107: =IF(Venta_Activos_Fijos!A14=0,0,IF(Venta_Activos_Fijos!A14="NO",0,IF(Venta_Activos_Fijos!C14<=0,0,IF(Venta_Activos_Fijos!C14<TOPES!$B$48,Venta_Activos_Fijos!D14,0)))) -> 0 | G107: =IF(F107=0,0,IF(A107="NO",0,IF(Venta_Activos_Fijos!C14<=0,0,IF(Venta_Activos_Fijos!C14<TOPES!$B$48,Venta_Activos_Fijos!G14,0)))) -> 0
A108: =IF(Venta_Activos_Fijos!A15=0,Venta_Activos_Fijos!A15="NO",Venta_Activos_Fijos!A15) -> FALSE | B108: =Venta_Activos_Fijos!B15 -> 0 | C108: =IF(A108=0,0,IF(A108="SI",0,IF(Venta_Activos_Fijos!C15<=0,0,IF(Venta_Activos_Fijos!C15<TOPES!$B$48,Venta_Activos_Fijos!D15,0)))) -> 0 | D108: =IF(C108=0,0,IF(A108="SI",0,IF(Venta_Activos_Fijos!C15<=0,0,IF(Venta_Activos_Fijos!C15<TOPES!$B$48,Venta_Activos_Fijos!G15,0)))) -> 0 | E108: =IF(C108=0,0,IF(Venta_Activos_Fijos!C15<TOPES!$B$48,IF(Venta_Activos_Fijos!C15<TOPES!$B$48,Venta_Activos_Fijos!E15,0),0)) -> 0 | F108: =IF(Venta_Activos_Fijos!A15=0,0,IF(Venta_Activos_Fijos!A15="NO",0,IF(Venta_Activos_Fijos!C15<=0,0,IF(Venta_Activos_Fijos!C15<TOPES!$B$48,Venta_Activos_Fijos!D15,0)))) -> 0 | G108: =IF(F108=0,0,IF(A108="NO",0,IF(Venta_Activos_Fijos!C15<=0,0,IF(Venta_Activos_Fijos!C15<TOPES!$B$48,Venta_Activos_Fijos!G15,0)))) -> 0
A109: =IF(Venta_Activos_Fijos!A16=0,Venta_Activos_Fijos!A16="NO",Venta_Activos_Fijos!A16) -> FALSE | B109: =Venta_Activos_Fijos!B16 -> 0 | C109: =IF(A109=0,0,IF(A109="SI",0,IF(Venta_Activos_Fijos!C16<=0,0,IF(Venta_Activos_Fijos!C16<TOPES!$B$48,Venta_Activos_Fijos!D16,0)))) -> 0 | D109: =IF(C109=0,0,IF(A109="SI",0,IF(Venta_Activos_Fijos!C16<=0,0,IF(Venta_Activos_Fijos!C16<TOPES!$B$48,Venta_Activos_Fijos!G16,0)))) -> 0 | E109: =IF(C109=0,0,IF(Venta_Activos_Fijos!C16<TOPES!$B$48,IF(Venta_Activos_Fijos!C16<TOPES!$B$48,Venta_Activos_Fijos!E16,0),0)) -> 0 | F109: =IF(Venta_Activos_Fijos!A16=0,0,IF(Venta_Activos_Fijos!A16="NO",0,IF(Venta_Activos_Fijos!C16<=0,0,IF(Venta_Activos_Fijos!C16<TOPES!$B$48,Venta_Activos_Fijos!D16,0)))) -> 0 | G109: =IF(F109=0,0,IF(A109="NO",0,IF(Venta_Activos_Fijos!C16<=0,0,IF(Venta_Activos_Fijos!C16<TOPES!$B$48,Venta_Activos_Fijos!G16,0)))) -> 0
A110: =IF(Venta_Activos_Fijos!A17=0,Venta_Activos_Fijos!A17="NO",Venta_Activos_Fijos!A17) -> FALSE | B110: =Venta_Activos_Fijos!B17 -> 0 | C110: =IF(A110=0,0,IF(A110="SI",0,IF(Venta_Activos_Fijos!C17<=0,0,IF(Venta_Activos_Fijos!C17<TOPES!$B$48,Venta_Activos_Fijos!D17,0)))) -> 0 | D110: =IF(C110=0,0,IF(A110="SI",0,IF(Venta_Activos_Fijos!C17<=0,0,IF(Venta_Activos_Fijos!C17<TOPES!$B$48,Venta_Activos_Fijos!G17,0)))) -> 0 | E110: =IF(C110=0,0,IF(Venta_Activos_Fijos!C17<TOPES!$B$48,IF(Venta_Activos_Fijos!C17<TOPES!$B$48,Venta_Activos_Fijos!E17,0),0)) -> 0 | F110: =IF(Venta_Activos_Fijos!A17=0,0,IF(Venta_Activos_Fijos!A17="NO",0,IF(Venta_Activos_Fijos!C17<=0,0,IF(Venta_Activos_Fijos!C17<TOPES!$B$48,Venta_Activos_Fijos!D17,0)))) -> 0 | G110: =IF(F110=0,0,IF(A110="NO",0,IF(Venta_Activos_Fijos!C17<=0,0,IF(Venta_Activos_Fijos!C17<TOPES!$B$48,Venta_Activos_Fijos!G17,0)))) -> 0
A111: =IF(Venta_Activos_Fijos!A18=0,Venta_Activos_Fijos!A18="NO",Venta_Activos_Fijos!A18) -> FALSE | B111: =Venta_Activos_Fijos!B18 -> 0 | C111: =IF(A111=0,0,IF(A111="SI",0,IF(Venta_Activos_Fijos!C18<=0,0,IF(Venta_Activos_Fijos!C18<TOPES!$B$48,Venta_Activos_Fijos!D18,0)))) -> 0 | D111: =IF(C111=0,0,IF(A111="SI",0,IF(Venta_Activos_Fijos!C18<=0,0,IF(Venta_Activos_Fijos!C18<TOPES!$B$48,Venta_Activos_Fijos!G18,0)))) -> 0 | E111: =IF(C111=0,0,IF(Venta_Activos_Fijos!C18<TOPES!$B$48,IF(Venta_Activos_Fijos!C18<TOPES!$B$48,Venta_Activos_Fijos!E18,0),0)) -> 0 | F111: =IF(Venta_Activos_Fijos!A18=0,0,IF(Venta_Activos_Fijos!A18="NO",0,IF(Venta_Activos_Fijos!C18<=0,0,IF(Venta_Activos_Fijos!C18<TOPES!$B$48,Venta_Activos_Fijos!D18,0)))) -> 0 | G111: =IF(F111=0,0,IF(A111="NO",0,IF(Venta_Activos_Fijos!C18<=0,0,IF(Venta_Activos_Fijos!C18<TOPES!$B$48,Venta_Activos_Fijos!G18,0)))) -> 0
A112: =IF(Venta_Activos_Fijos!A19=0,Venta_Activos_Fijos!A19="NO",Venta_Activos_Fijos!A19) -> FALSE | B112: =Venta_Activos_Fijos!B19 -> 0 | C112: =IF(A112=0,0,IF(A112="SI",0,IF(Venta_Activos_Fijos!C19<=0,0,IF(Venta_Activos_Fijos!C19<TOPES!$B$48,Venta_Activos_Fijos!D19,0)))) -> 0 | D112: =IF(C112=0,0,IF(A112="SI",0,IF(Venta_Activos_Fijos!C19<=0,0,IF(Venta_Activos_Fijos!C19<TOPES!$B$48,Venta_Activos_Fijos!G19,0)))) -> 0 | E112: =IF(C112=0,0,IF(Venta_Activos_Fijos!C19<TOPES!$B$48,IF(Venta_Activos_Fijos!C19<TOPES!$B$48,Venta_Activos_Fijos!E19,0),0)) -> 0 | F112: =IF(Venta_Activos_Fijos!A19=0,0,IF(Venta_Activos_Fijos!A19="NO",0,IF(Venta_Activos_Fijos!C19<=0,0,IF(Venta_Activos_Fijos!C19<TOPES!$B$48,Venta_Activos_Fijos!D19,0)))) -> 0 | G112: =IF(F112=0,0,IF(A112="NO",0,IF(Venta_Activos_Fijos!C19<=0,0,IF(Venta_Activos_Fijos!C19<TOPES!$B$48,Venta_Activos_Fijos!G19,0)))) -> 0
A113: =IF(Venta_Activos_Fijos!A20=0,Venta_Activos_Fijos!A20="NO",Venta_Activos_Fijos!A20) -> FALSE | B113: =Venta_Activos_Fijos!B20 -> 0 | C113: =IF(A113=0,0,IF(A113="SI",0,IF(Venta_Activos_Fijos!C20<=0,0,IF(Venta_Activos_Fijos!C20<TOPES!$B$48,Venta_Activos_Fijos!D20,0)))) -> 0 | D113: =IF(C113=0,0,IF(A113="SI",0,IF(Venta_Activos_Fijos!C20<=0,0,IF(Venta_Activos_Fijos!C20<TOPES!$B$48,Venta_Activos_Fijos!G20,0)))) -> 0 | E113: =IF(C113=0,0,IF(Venta_Activos_Fijos!C20<TOPES!$B$48,IF(Venta_Activos_Fijos!C20<TOPES!$B$48,Venta_Activos_Fijos!E20,0),0)) -> 0 | F113: =IF(Venta_Activos_Fijos!A20=0,0,IF(Venta_Activos_Fijos!A20="NO",0,IF(Venta_Activos_Fijos!C20<=0,0,IF(Venta_Activos_Fijos!C20<TOPES!$B$48,Venta_Activos_Fijos!D20,0)))) -> 0 | G113: =IF(F113=0,0,IF(A113="NO",0,IF(Venta_Activos_Fijos!C20<=0,0,IF(Venta_Activos_Fijos!C20<TOPES!$B$48,Venta_Activos_Fijos!G20,0)))) -> 0
B114: TOTAL | C114: =ROUND(((SUM(C100:C113))/1000),0)*1000 -> 0 | D114: =ROUND(((SUM(D100:D113))/1000),0)*1000 -> 0 | E114: =ROUND(SUM(E100:E113)/1000,0)*1000 -> 0 | F114: =ROUND(SUM(F100:F113)/1000,0)*1000 -> 0 | G114: =ROUND(SUM(G100:G113)/1000,0)*1000 -> 0
B117: Determinación de la Ganancia Ocasional cuando se recibe Asignación por causa de muerte o de la porción conyugal a los legitimarios o al cónyuge.
B118: CAUSANTE | C118: NIT/cc | D118: VALOR RECIBIDO | E118: RETENCION EN LA FUENTE | F118: TOTAL GANANCIA OCASIONAL EXENTA | G118: A=1 | H118: A=2 | I118: A=3 | J118: A=4
A119: =IF(Asignacion_Muerte_Porcion_Cony!D26=1,1,IF(Asignacion_Muerte_Porcion_Cony!D27=2,2,IF(Asignacion_Muerte_Porcion_Cony!D28=3,3,IF(Asignacion_Muerte_Porcion_Cony!D68=4,4,0)))) -> 0 | B119: =Asignacion_Muerte_Porcion_Cony!B7 -> 0 | C119: =Asignacion_Muerte_Porcion_Cony!C7 -> 0 | D119: =IF(OR(A119=0,Asignacion_Muerte_Porcion_Cony!G7=0),0,Asignacion_Muerte_Porcion_Cony!E7) -> 0 | E119: =IF(D119=0,0,Asignacion_Muerte_Porcion_Cony!F7) -> 0 | F119: =K119 -> 0 | G119: =IF(A119=1,ROUND(F119,-3),0) -> 0 | H119: =IF(A119=2,ROUND(F119,-3),0) -> 0 | I119: =IF(A119=3,ROUND(F119,-3),0) -> 0 | J119: =IF(A119=4,ROUND(F119,-3),0) -> 0 | K119: =(IF(D119=0,0,IF(AND(A119=2,D119>=TOPES!$B$56),ROUND((TOPES!$B$56),-3),IF(AND(A119=2,D119<TOPES!$B$56),D119,IF(AND(A119=1,D119>=TOPES!$B$54*Asignacion_Muerte_Porcion_Cony!G7),ROUND((TOPES!$B$54*Asignacion_Muerte_Porcion_Cony!G7),-3),IF(AND(A119=1,D119<TOPES!$B$54*Asignacion_Muerte_Porcion_Cony!G7),D119,IF(A119=3,D119,IF(A119=4,0)))))))) -> 0 | L119: =IFERROR(D119*Asignacion_Muerte_Porcion_Cony!G7/100,0) -> 0
A120: =IF(Asignacion_Muerte_Porcion_Cony!D29=1,1,IF(Asignacion_Muerte_Porcion_Cony!D30=2,2,IF(Asignacion_Muerte_Porcion_Cony!D31=3,3,IF(Asignacion_Muerte_Porcion_Cony!D69=4,4,0)))) -> 0 | B120: =Asignacion_Muerte_Porcion_Cony!B8 -> 0 | C120: =Asignacion_Muerte_Porcion_Cony!C8 -> 0 | D120: =IF(OR(A120=0,Asignacion_Muerte_Porcion_Cony!G8=0),0,Asignacion_Muerte_Porcion_Cony!E8) -> 0 | E120: =IF(D120=0,0,Asignacion_Muerte_Porcion_Cony!F8) -> 0 | F120: =K120 -> 0 | G120: =IF(A120=1,ROUND(F120,-3),0) -> 0 | H120: =IF(A120=2,ROUND(F120,-3),0) -> 0 | I120: =IF(A120=3,ROUND(F120,-3),0) -> 0 | J120: =IF(A120=4,ROUND(F120,-3),0) -> 0 | K120: =(IF(D120=0,0,IF(AND(A120=2,D120>=TOPES!$B$56),ROUND((TOPES!$B$56),-3),IF(AND(A120=2,D120<TOPES!$B$56),D120,IF(AND(A120=1,D120>=TOPES!$B$54*Asignacion_Muerte_Porcion_Cony!G8),ROUND((TOPES!$B$54*Asignacion_Muerte_Porcion_Cony!G8),-3),IF(AND(A120=1,D120<TOPES!$B$54*Asignacion_Muerte_Porcion_Cony!G8),D120,IF(A120=3,D120,IF(A120=4,0)))))))) -> 0 | L120: =IFERROR(D120*Asignacion_Muerte_Porcion_Cony!G8/100,0) -> 0
A121: =IF(Asignacion_Muerte_Porcion_Cony!D32=1,1,IF(Asignacion_Muerte_Porcion_Cony!D33=2,2,IF(Asignacion_Muerte_Porcion_Cony!D34=3,3,IF(Asignacion_Muerte_Porcion_Cony!D70=4,4,0)))) -> 0 | B121: =Asignacion_Muerte_Porcion_Cony!B9 -> 0 | C121: =Asignacion_Muerte_Porcion_Cony!C9 -> 0 | D121: =IF(OR(A121=0,Asignacion_Muerte_Porcion_Cony!G9=0),0,Asignacion_Muerte_Porcion_Cony!E9) -> 0 | E121: =IF(D121=0,0,Asignacion_Muerte_Porcion_Cony!F9) -> 0 | F121: =K121 -> 0 | G121: 0 | H121: =IF(A121=2,ROUND(F121,-3),0) -> 0 | I121: =IF(A121=3,ROUND(F121,-3),0) -> 0 | J121: =IF(A121=4,ROUND(F121,-3),0) -> 0 | K121: =(IF(D121=0,0,IF(AND(A121=2,D121>=TOPES!$B$56),ROUND((TOPES!$B$56),-3),IF(AND(A121=2,D121<TOPES!$B$56),D121,IF(AND(A121=1,D121>=TOPES!$B$54*Asignacion_Muerte_Porcion_Cony!G9),ROUND((TOPES!$B$54*Asignacion_Muerte_Porcion_Cony!G9),-3),IF(AND(A121=1,D121<TOPES!$B$54*Asignacion_Muerte_Porcion_Cony!G9),D121,IF(A121=3,D121,IF(A121=4,0)))))))) -> 0 | L121: =IFERROR(D121*Asignacion_Muerte_Porcion_Cony!G9/100,0) -> 0
A122: =IF(Asignacion_Muerte_Porcion_Cony!D35=1,1,IF(Asignacion_Muerte_Porcion_Cony!D36=2,2,IF(Asignacion_Muerte_Porcion_Cony!D37=3,3,IF(Asignacion_Muerte_Porcion_Cony!D71=4,4,0)))) -> 0 | B122: =Asignacion_Muerte_Porcion_Cony!B10 -> 0 | C122: =Asignacion_Muerte_Porcion_Cony!C10 -> 0 | D122: =IF(OR(A122=0,Asignacion_Muerte_Porcion_Cony!G10=0),0,Asignacion_Muerte_Porcion_Cony!E10) -> 0 | E122: =IF(D122=0,0,Asignacion_Muerte_Porcion_Cony!F10) -> 0 | F122: =K122 -> 0 | G122: 0 | H122: =IF(A122=2,ROUND(F122,-3),0) -> 0 | I122: =IF(A122=3,ROUND(F122,-3),0) -> 0 | J122: =IF(A122=4,ROUND(F122,-3),0) -> 0 | K122: =(IF(D122=0,0,IF(AND(A122=2,D122>=TOPES!$B$56),ROUND((TOPES!$B$56),-3),IF(AND(A122=2,D122<TOPES!$B$56),D122,IF(AND(A122=1,D122>=TOPES!$B$54*Asignacion_Muerte_Porcion_Cony!G10),ROUND((TOPES!$B$54*Asignacion_Muerte_Porcion_Cony!G10),-3),IF(AND(A122=1,D122<TOPES!$B$54*Asignacion_Muerte_Porcion_Cony!G10),D122,IF(A122=3,D122,IF(A122=4,0)))))))) -> 0 | L122: =IFERROR(D122*Asignacion_Muerte_Porcion_Cony!G10/100,0) -> 0
A123: =IF(Asignacion_Muerte_Porcion_Cony!D38=1,1,IF(Asignacion_Muerte_Porcion_Cony!D39=2,2,IF(Asignacion_Muerte_Porcion_Cony!D40=3,3,IF(Asignacion_Muerte_Porcion_Cony!D72=4,4,0)))) -> 0 | B123: =Asignacion_Muerte_Porcion_Cony!B11 -> 0 | C123: =Asignacion_Muerte_Porcion_Cony!C11 -> 0 | D123: =IF(OR(A123=0,Asignacion_Muerte_Porcion_Cony!G11=0),0,Asignacion_Muerte_Porcion_Cony!E11) -> 0 | E123: =IF(D123=0,0,Asignacion_Muerte_Porcion_Cony!F11) -> 0 | F123: =K123 -> 0 | G123: 0 | H123: 0 | I123: 0 | J123: =IF(A123=4,ROUND(F123,-3),0) -> 0 | K123: =(IF(D123=0,0,IF(AND(A123=2,D123>=TOPES!$B$56),ROUND((TOPES!$B$56),-3),IF(AND(A123=2,D123<TOPES!$B$56),D123,IF(AND(A123=1,D123>=TOPES!$B$54*Asignacion_Muerte_Porcion_Cony!G11),ROUND((TOPES!$B$54*Asignacion_Muerte_Porcion_Cony!G11),-3),IF(AND(A123=1,D123<TOPES!$B$54*Asignacion_Muerte_Porcion_Cony!G11),D123,IF(A123=3,D123,IF(A123=4,0)))))))) -> 0 | L123: =IFERROR(D123*Asignacion_Muerte_Porcion_Cony!G11/100,0) -> 0
A124: =IF(Asignacion_Muerte_Porcion_Cony!D41=1,1,IF(Asignacion_Muerte_Porcion_Cony!D42=2,2,IF(Asignacion_Muerte_Porcion_Cony!D43=3,3,IF(Asignacion_Muerte_Porcion_Cony!D73=4,4,0)))) -> 0 | B124: =Asignacion_Muerte_Porcion_Cony!B12 -> 0 | C124: =Asignacion_Muerte_Porcion_Cony!C12 -> 0 | D124: =IF(OR(A124=0,Asignacion_Muerte_Porcion_Cony!G12=0),0,Asignacion_Muerte_Porcion_Cony!E12) -> 0 | E124: =IF(D124=0,0,Asignacion_Muerte_Porcion_Cony!F12) -> 0 | F124: 0 | G124: 0 | H124: 0 | I124: 0 | J124: 0 | K124: =(IF(D124=0,0,IF(AND(A124=2,D124>=TOPES!$B$56),ROUND((TOPES!$B$56),-3),IF(AND(A124=2,D124<TOPES!$B$56),D124,IF(AND(A124=1,D124>=TOPES!$B$54*Asignacion_Muerte_Porcion_Cony!G12),ROUND((TOPES!$B$54*Asignacion_Muerte_Porcion_Cony!G12),-3),IF(AND(A124=1,D124<TOPES!$B$54*Asignacion_Muerte_Porcion_Cony!G12),D124,IF(A124=3,D124,IF(A124=4,0)))))))) -> 0 | L124: =IFERROR(D124*Asignacion_Muerte_Porcion_Cony!G12/100,0) -> 0
A125: =IF(Asignacion_Muerte_Porcion_Cony!D44=1,1,IF(Asignacion_Muerte_Porcion_Cony!D45=2,2,IF(Asignacion_Muerte_Porcion_Cony!D46=3,3,IF(Asignacion_Muerte_Porcion_Cony!D74=4,4,0)))) -> 0 | B125: =Asignacion_Muerte_Porcion_Cony!B13 -> 0 | C125: =Asignacion_Muerte_Porcion_Cony!C13 -> 0 | D125: =IF(OR(A125=0,Asignacion_Muerte_Porcion_Cony!G13=0),0,Asignacion_Muerte_Porcion_Cony!E13) -> 0 | E125: =IF(D125=0,0,Asignacion_Muerte_Porcion_Cony!F13) -> 0 | F125: 0 | G125: 0 | H125: 0 | I125: 0 | J125: 0 | K125: =(IF(D125=0,0,IF(AND(A125=2,D125>=TOPES!$B$56),ROUND((TOPES!$B$56),-3),IF(AND(A125=2,D125<TOPES!$B$56),D125,IF(AND(A125=1,D125>=TOPES!$B$54*Asignacion_Muerte_Porcion_Cony!G13),ROUND((TOPES!$B$54*Asignacion_Muerte_Porcion_Cony!G13),-3),IF(AND(A125=1,D125<TOPES!$B$54*Asignacion_Muerte_Porcion_Cony!G13),D125,IF(A125=3,D125,IF(A125=4,0)))))))) -> 0 | L125: =IFERROR(D125*Asignacion_Muerte_Porcion_Cony!G13/100,0) -> 0
A126: =IF(Asignacion_Muerte_Porcion_Cony!D47=1,1,IF(Asignacion_Muerte_Porcion_Cony!D48=2,2,IF(Asignacion_Muerte_Porcion_Cony!D49=3,3,IF(Asignacion_Muerte_Porcion_Cony!D75=4,4,0)))) -> 0 | B126: =Asignacion_Muerte_Porcion_Cony!B14 -> 0 | C126: =Asignacion_Muerte_Porcion_Cony!C14 -> 0 | D126: =IF(OR(A126=0,Asignacion_Muerte_Porcion_Cony!G14=0),0,Asignacion_Muerte_Porcion_Cony!E14) -> 0 | E126: =IF(D126=0,0,Asignacion_Muerte_Porcion_Cony!F14) -> 0 | F126: 0 | G126: 0 | H126: 0 | I126: 0 | J126: 0 | K126: =(IF(D126=0,0,IF(AND(A126=2,D126>=TOPES!$B$56),ROUND((TOPES!$B$56),-3),IF(AND(A126=2,D126<TOPES!$B$56),D126,IF(AND(A126=1,D126>=TOPES!$B$54*Asignacion_Muerte_Porcion_Cony!G14),ROUND((TOPES!$B$54*Asignacion_Muerte_Porcion_Cony!G14),-3),IF(AND(A126=1,D126<TOPES!$B$54*Asignacion_Muerte_Porcion_Cony!G14),D126,IF(A126=3,D126,IF(A126=4,0)))))))) -> 0 | L126: =IFERROR(D126*Asignacion_Muerte_Porcion_Cony!G14/100,0) -> 0
A127: =IF(Asignacion_Muerte_Porcion_Cony!D50=1,1,IF(Asignacion_Muerte_Porcion_Cony!D51=2,2,IF(Asignacion_Muerte_Porcion_Cony!D52=3,3,IF(Asignacion_Muerte_Porcion_Cony!D76=4,4,0)))) -> 0 | B127: =Asignacion_Muerte_Porcion_Cony!B15 -> 0 | C127: =Asignacion_Muerte_Porcion_Cony!C15 -> 0 | D127: =IF(OR(A127=0,Asignacion_Muerte_Porcion_Cony!G15=0),0,Asignacion_Muerte_Porcion_Cony!E15) -> 0 | E127: =IF(D127=0,0,Asignacion_Muerte_Porcion_Cony!F15) -> 0 | F127: 0 | G127: 0 | H127: 0 | I127: 0 | J127: 0 | K127: =(IF(D127=0,0,IF(AND(A127=2,D127>=TOPES!$B$56),ROUND((TOPES!$B$56),-3),IF(AND(A127=2,D127<TOPES!$B$56),D127,IF(AND(A127=1,D127>=TOPES!$B$54*Asignacion_Muerte_Porcion_Cony!G15),ROUND((TOPES!$B$54*Asignacion_Muerte_Porcion_Cony!G15),-3),IF(AND(A127=1,D127<TOPES!$B$54*Asignacion_Muerte_Porcion_Cony!G15),D127,IF(A127=3,D127,IF(A127=4,0)))))))) -> 0 | L127: =IFERROR(D127*Asignacion_Muerte_Porcion_Cony!G15/100,0) -> 0
A128: =IF(Asignacion_Muerte_Porcion_Cony!D53=1,1,IF(Asignacion_Muerte_Porcion_Cony!D54=2,2,IF(Asignacion_Muerte_Porcion_Cony!D55=3,3,IF(Asignacion_Muerte_Porcion_Cony!D77=4,4,0)))) -> 0 | B128: =Asignacion_Muerte_Porcion_Cony!B16 -> 0 | C128: =Asignacion_Muerte_Porcion_Cony!C16 -> 0 | D128: =IF(OR(A128=0,Asignacion_Muerte_Porcion_Cony!G16=0),0,Asignacion_Muerte_Porcion_Cony!E16) -> 0 | E128: =IF(D128=0,0,Asignacion_Muerte_Porcion_Cony!F16) -> 0 | F128: 0 | G128: 0 | H128: 0 | I128: 0 | J128: 0 | K128: =(IF(D128=0,0,IF(AND(A128=2,D128>=TOPES!$B$56),ROUND((TOPES!$B$56),-3),IF(AND(A128=2,D128<TOPES!$B$56),D128,IF(AND(A128=1,D128>=TOPES!$B$54*Asignacion_Muerte_Porcion_Cony!G16),ROUND((TOPES!$B$54*Asignacion_Muerte_Porcion_Cony!G16),-3),IF(AND(A128=1,D128<TOPES!$B$54*Asignacion_Muerte_Porcion_Cony!G16),D128,IF(A128=3,D128,IF(A128=4,0)))))))) -> 0 | L128: =IFERROR(D128*Asignacion_Muerte_Porcion_Cony!G16/100,0) -> 0
A129: =IF(Asignacion_Muerte_Porcion_Cony!D56=1,1,IF(Asignacion_Muerte_Porcion_Cony!D57=2,2,IF(Asignacion_Muerte_Porcion_Cony!D58=3,3,IF(Asignacion_Muerte_Porcion_Cony!D78=4,4,0)))) -> 0 | B129: =Asignacion_Muerte_Porcion_Cony!B17 -> 0 | C129: =Asignacion_Muerte_Porcion_Cony!C17 -> 0 | D129: =IF(OR(A129=0,Asignacion_Muerte_Porcion_Cony!G17=0),0,Asignacion_Muerte_Porcion_Cony!E17) -> 0 | E129: =IF(D129=0,0,Asignacion_Muerte_Porcion_Cony!F17) -> 0 | F129: 0 | G129: 0 | H129: 0 | I129: 0 | J129: 0 | K129: =(IF(D129=0,0,IF(AND(A129=2,D129>=TOPES!$B$56),ROUND((TOPES!$B$56),-3),IF(AND(A129=2,D129<TOPES!$B$56),D129,IF(AND(A129=1,D129>=TOPES!$B$54*Asignacion_Muerte_Porcion_Cony!G17),ROUND((TOPES!$B$54*Asignacion_Muerte_Porcion_Cony!G17),-3),IF(AND(A129=1,D129<TOPES!$B$54*Asignacion_Muerte_Porcion_Cony!G17),D129,IF(A129=3,D129,IF(A129=4,0)))))))) -> 0 | L129: =IFERROR(D129*Asignacion_Muerte_Porcion_Cony!G17/100,0) -> 0
A130: =IF(Asignacion_Muerte_Porcion_Cony!D59=1,1,IF(Asignacion_Muerte_Porcion_Cony!D60=2,2,IF(Asignacion_Muerte_Porcion_Cony!D61=3,3,IF(Asignacion_Muerte_Porcion_Cony!D79=4,4,0)))) -> 0 | B130: =Asignacion_Muerte_Porcion_Cony!B18 -> 0 | C130: =Asignacion_Muerte_Porcion_Cony!C18 -> 0 | D130: =IF(OR(A130=0,Asignacion_Muerte_Porcion_Cony!G18=0),0,Asignacion_Muerte_Porcion_Cony!E18) -> 0 | E130: =IF(D130=0,0,Asignacion_Muerte_Porcion_Cony!F18) -> 0 | F130: 0 | G130: 0 | H130: 0 | I130: 0 | J130: 0 | K130: =(IF(D130=0,0,IF(AND(A130=2,D130>=TOPES!$B$56),ROUND((TOPES!$B$56),-3),IF(AND(A130=2,D130<TOPES!$B$56),D130,IF(AND(A130=1,D130>=TOPES!$B$54*Asignacion_Muerte_Porcion_Cony!G18),ROUND((TOPES!$B$54*Asignacion_Muerte_Porcion_Cony!G18),-3),IF(AND(A130=1,D130<TOPES!$B$54*Asignacion_Muerte_Porcion_Cony!G18),D130,IF(A130=3,D130,IF(A130=4,0)))))))) -> 0 | L130: =IFERROR(D130*Asignacion_Muerte_Porcion_Cony!G18/100,0) -> 0
A131: =IF(Asignacion_Muerte_Porcion_Cony!D62=1,1,IF(Asignacion_Muerte_Porcion_Cony!D63=2,2,IF(Asignacion_Muerte_Porcion_Cony!D64=3,3,IF(Asignacion_Muerte_Porcion_Cony!D80=4,4,0)))) -> 0 | B131: =Asignacion_Muerte_Porcion_Cony!B19 -> 0 | C131: =Asignacion_Muerte_Porcion_Cony!C19 -> 0 | D131: =IF(OR(A131=0,Asignacion_Muerte_Porcion_Cony!G19=0),0,Asignacion_Muerte_Porcion_Cony!E19) -> 0 | E131: =IF(D131=0,0,Asignacion_Muerte_Porcion_Cony!F19) -> 0 | F131: 0 | G131: 0 | H131: 0 | I131: 0 | J131: 0 | K131: =(IF(D131=0,0,IF(AND(A131=2,D131>=TOPES!$B$56),ROUND((TOPES!$B$56),-3),IF(AND(A131=2,D131<TOPES!$B$56),D131,IF(AND(A131=1,D131>=TOPES!$B$54*Asignacion_Muerte_Porcion_Cony!G19),ROUND((TOPES!$B$54*Asignacion_Muerte_Porcion_Cony!G19),-3),IF(AND(A131=1,D131<TOPES!$B$54*Asignacion_Muerte_Porcion_Cony!G19),D131,IF(A131=3,D131,IF(A131=4,0)))))))) -> 0 | L131: =IFERROR(D131*Asignacion_Muerte_Porcion_Cony!G19/100,0) -> 0
A132: =IF(Asignacion_Muerte_Porcion_Cony!D65=1,1,IF(Asignacion_Muerte_Porcion_Cony!D66=2,2,IF(Asignacion_Muerte_Porcion_Cony!D67=3,3,IF(Asignacion_Muerte_Porcion_Cony!D81=4,4,0)))) -> 0 | B132: =Asignacion_Muerte_Porcion_Cony!B20 -> 0 | C132: =Asignacion_Muerte_Porcion_Cony!C20 -> 0 | D132: =IF(OR(A132=0,Asignacion_Muerte_Porcion_Cony!G20=0),0,Asignacion_Muerte_Porcion_Cony!E20) -> 0 | E132: =IF(D132=0,0,Asignacion_Muerte_Porcion_Cony!F20) -> 0 | F132: 0 | G132: 0 | H132: 0 | I132: =IF(A132=3,ROUND(F132,-3),0) -> 0 | J132: 0 | K132: =(IF(D132=0,0,IF(AND(A132=2,D132>=TOPES!$B$56),ROUND((TOPES!$B$56),-3),IF(AND(A132=2,D132<TOPES!$B$56),D132,IF(AND(A132=1,D132>=TOPES!$B$54*Asignacion_Muerte_Porcion_Cony!G20),ROUND((TOPES!$B$54*Asignacion_Muerte_Porcion_Cony!G20),-3),IF(AND(A132=1,D132<TOPES!$B$54*Asignacion_Muerte_Porcion_Cony!G20),D132,IF(A132=3,D132,IF(A132=4,0)))))))) -> 0 | L132: =IFERROR(D132*Asignacion_Muerte_Porcion_Cony!G20/100,0) -> 0
B133: Total | D133: =ROUND(((SUM(D119:D132))/1000),0)*1000 -> 0 | E133: =ROUND(((SUM(E119:E132))/1000),0)*1000 -> 0 | F133: =ROUND(((SUM(F119:F132))/1000),0)*1000 -> 0 | G133: =IF(SUM(G119:G132)<TOPES!$B$54,SUM(G119:G132),MAX(G119:G132)) -> 0 | H133: =IF(SUM(H119:H132)<TOPES!$B$54,SUM(H119:H132),MAX(H119:H132)) -> 0 | I133: =IF(SUM(I119:I132)<TOPES!$B$54,SUM(I119:I132),MAX(I119:I132)) -> 0 | J133: =IF(SUM(J119:J132)<TOPES!$B$54,SUM(J119:J132),MAX(J119:J132)) -> 0
J135: =IF(J133=0,0,IF(J133<TOPES!$B$55,TOPES!$B$55-J133,0)) -> 0
B136: Determinación de la Ganancia Ocasional cuando se recibe Herencia o legado sin ser legitimario o cónyuge o de donaciones
B137: CAUSANTE | C137: NIT/cc | D137: VALOR RECIBIDO | E137: RETENCION EN LA FUENTE | F137: TOTAL GANANCIA OCASIONAL EXENTA
B138: =Herencia_Legado!B7 -> 0 | C138: =Herencia_Legado!C7 -> 0 | D138: =Herencia_Legado!E7 -> 0 | E138: =IF(D138=0,0,Herencia_Legado!F7) -> 0 | F138: =IF(D138=0,0,IF(D138>(MIN(D138*TOPES!$B$31,TOPES!$B$29)),MIN(D138*TOPES!$B$31,TOPES!$B$29),D138)) -> 0
B139: =Herencia_Legado!B8 -> 0 | C139: =Herencia_Legado!C8 -> 0 | D139: =Herencia_Legado!E8 -> 0 | E139: =IF(D139=0,0,Herencia_Legado!F8) -> 0 | F139: =IF(D139=0,0,IF(D139>(MIN(D139*TOPES!$B$31,TOPES!$B$29)),MIN(D139*TOPES!$B$31,TOPES!$B$29),D139)) -> 0
B140: =Herencia_Legado!B9 -> 0 | C140: =Herencia_Legado!C9 -> 0 | D140: =Herencia_Legado!E9 -> 0 | E140: =IF(D140=0,0,Herencia_Legado!F9) -> 0 | F140: =IF(D140=0,0,IF(D140>(MIN(D140*TOPES!$B$31,TOPES!$B$29)),MIN(D140*TOPES!$B$31,TOPES!$B$29),D140)) -> 0
B141: =Herencia_Legado!B10 -> 0 | C141: =Herencia_Legado!C10 -> 0 | D141: =Herencia_Legado!E10 -> 0 | E141: =IF(D141=0,0,Herencia_Legado!F10) -> 0 | F141: =IF(D141=0,0,IF(D141>(MIN(D141*TOPES!$B$31,TOPES!$B$29)),MIN(D141*TOPES!$B$31,TOPES!$B$29),D141)) -> 0
B142: =Herencia_Legado!B11 -> 0 | C142: =Herencia_Legado!C11 -> 0 | D142: =Herencia_Legado!E11 -> 0 | E142: =IF(D142=0,0,Herencia_Legado!F11) -> 0 | F142: =IF(D142=0,0,IF(D142>(MIN(D142*TOPES!$B$31,TOPES!$B$29)),MIN(D142*TOPES!$B$31,TOPES!$B$29),D142)) -> 0
B143: =Herencia_Legado!B12 -> 0 | C143: =Herencia_Legado!C12 -> 0 | D143: =Herencia_Legado!E12 -> 0 | E143: =IF(D143=0,0,Herencia_Legado!F12) -> 0 | F143: =IF(D143=0,0,IF(D143>(MIN(D143*TOPES!$B$31,TOPES!$B$29)),MIN(D143*TOPES!$B$31,TOPES!$B$29),D143)) -> 0
B144: =Herencia_Legado!B13 -> 0 | C144: =Herencia_Legado!C13 -> 0 | D144: =Herencia_Legado!E13 -> 0 | E144: =IF(D144=0,0,Herencia_Legado!F13) -> 0 | F144: =IF(D144=0,0,IF(D144>(MIN(D144*TOPES!$B$31,TOPES!$B$29)),MIN(D144*TOPES!$B$31,TOPES!$B$29),D144)) -> 0
B145: =Herencia_Legado!B14 -> 0 | C145: =Herencia_Legado!C14 -> 0 | D145: =Herencia_Legado!E14 -> 0 | E145: =IF(D145=0,0,Herencia_Legado!F14) -> 0 | F145: =IF(D145=0,0,IF(D145>(MIN(D145*TOPES!$B$31,TOPES!$B$29)),MIN(D145*TOPES!$B$31,TOPES!$B$29),D145)) -> 0
B146: =Herencia_Legado!B15 -> 0 | C146: =Herencia_Legado!C15 -> 0 | D146: =Herencia_Legado!E15 -> 0 | E146: =IF(D146=0,0,Herencia_Legado!F15) -> 0 | F146: =IF(D146=0,0,IF(D146>(MIN(D146*TOPES!$B$31,TOPES!$B$29)),MIN(D146*TOPES!$B$31,TOPES!$B$29),D146)) -> 0
B147: =Herencia_Legado!B16 -> 0 | C147: =Herencia_Legado!C16 -> 0 | D147: =Herencia_Legado!E16 -> 0 | E147: =IF(D147=0,0,Herencia_Legado!F16) -> 0 | F147: =IF(D147=0,0,IF(D147>(MIN(D147*TOPES!$B$31,TOPES!$B$29)),MIN(D147*TOPES!$B$31,TOPES!$B$29),D147)) -> 0
B148: =Herencia_Legado!B17 -> 0 | C148: =Herencia_Legado!C17 -> 0 | D148: =Herencia_Legado!E17 -> 0 | E148: =IF(D148=0,0,Herencia_Legado!F17) -> 0 | F148: =IF(D148=0,0,IF(D148>(MIN(D148*TOPES!$B$31,TOPES!$B$29)),MIN(D148*TOPES!$B$31,TOPES!$B$29),D148)) -> 0
B149: =Herencia_Legado!B18 -> 0 | C149: =Herencia_Legado!C18 -> 0 | D149: =Herencia_Legado!E18 -> 0 | E149: =IF(D149=0,0,Herencia_Legado!F18) -> 0 | F149: =IF(D149=0,0,IF(D149>(MIN(D149*TOPES!$B$31,TOPES!$B$29)),MIN(D149*TOPES!$B$31,TOPES!$B$29),D149)) -> 0
B150: =Herencia_Legado!B19 -> 0 | C150: =Herencia_Legado!C19 -> 0 | D150: =Herencia_Legado!E19 -> 0 | E150: =IF(D150=0,0,Herencia_Legado!F19) -> 0 | F150: =IF(D150=0,0,IF(D150>(MIN(D150*TOPES!$B$31,TOPES!$B$29)),MIN(D150*TOPES!$B$31,TOPES!$B$29),D150)) -> 0
B151: =Herencia_Legado!B20 -> 0 | C151: =Herencia_Legado!C20 -> 0 | D151: =Herencia_Legado!E20 -> 0 | E151: =IF(D151=0,0,Herencia_Legado!F20) -> 0 | F151: =IF(D151=0,0,IF(D151>(MIN(D151*TOPES!$B$31,TOPES!$B$29)),MIN(D151*TOPES!$B$31,TOPES!$B$29),D151)) -> 0
B152: Total | D152: =ROUND(((SUM(D138:D151))/1000),0)*1000 -> 0 | E152: =ROUND(((SUM(E138:E151))/1000),0)*1000 -> 0 | F152: =IF(D152=0,0,IF(D152>(MIN(D152*TOPES!$B$31,TOPES!$B$29)),MIN(D152*TOPES!$B$31,TOPES!$B$29),D152)) -> 0
B155: Determinación de la Ganancia Ocasional en premios en titulos de capitalización
B156: ENTIDAD | C156: NIT / CC | D156: VALOR RECIBIDO | E156: Valor en cuotas pagadas | F156: RETENCION EN LA FUENTE
B157: =Premios_Titulos_capitalizacion!B7 -> 0 | C157: =Premios_Titulos_capitalizacion!C7 -> 0 | D157: =Premios_Titulos_capitalizacion!D7 -> 0 | E157: =IF(Premios_Titulos_capitalizacion!D7<Premios_Titulos_capitalizacion!E7,Premios_Titulos_capitalizacion!D7,Premios_Titulos_capitalizacion!E7) -> 0 | F157: =Premios_Titulos_capitalizacion!F7 -> 0
B158: =Premios_Titulos_capitalizacion!B8 -> 0 | C158: =Premios_Titulos_capitalizacion!C8 -> 0 | D158: =Premios_Titulos_capitalizacion!D8 -> 0 | E158: =IF(Premios_Titulos_capitalizacion!D8<Premios_Titulos_capitalizacion!E8,Premios_Titulos_capitalizacion!D8,Premios_Titulos_capitalizacion!E8) -> 0 | F158: =Premios_Titulos_capitalizacion!F8 -> 0
B159: =Premios_Titulos_capitalizacion!B9 -> 0 | C159: =Premios_Titulos_capitalizacion!C9 -> 0 | D159: =Premios_Titulos_capitalizacion!D9 -> 0 | E159: =IF(Premios_Titulos_capitalizacion!D9<Premios_Titulos_capitalizacion!E9,Premios_Titulos_capitalizacion!D9,Premios_Titulos_capitalizacion!E9) -> 0 | F159: =Premios_Titulos_capitalizacion!F9 -> 0
B160: =Premios_Titulos_capitalizacion!B10 -> 0 | C160: =Premios_Titulos_capitalizacion!C10 -> 0 | D160: =Premios_Titulos_capitalizacion!D10 -> 0 | E160: =IF(Premios_Titulos_capitalizacion!D10<Premios_Titulos_capitalizacion!E10,Premios_Titulos_capitalizacion!D10,Premios_Titulos_capitalizacion!E10) -> 0 | F160: =Premios_Titulos_capitalizacion!F10 -> 0
B161: =Premios_Titulos_capitalizacion!B11 -> 0 | C161: =Premios_Titulos_capitalizacion!C11 -> 0 | D161: =Premios_Titulos_capitalizacion!D11 -> 0 | E161: =IF(Premios_Titulos_capitalizacion!D11<Premios_Titulos_capitalizacion!E11,Premios_Titulos_capitalizacion!D11,Premios_Titulos_capitalizacion!E11) -> 0 | F161: =Premios_Titulos_capitalizacion!F11 -> 0
B162: =Premios_Titulos_capitalizacion!B12 -> 0 | C162: =Premios_Titulos_capitalizacion!C12 -> 0 | D162: =Premios_Titulos_capitalizacion!D12 -> 0 | E162: =IF(Premios_Titulos_capitalizacion!D12<Premios_Titulos_capitalizacion!E12,Premios_Titulos_capitalizacion!D12,Premios_Titulos_capitalizacion!E12) -> 0 | F162: =Premios_Titulos_capitalizacion!F12 -> 0
B163: =Premios_Titulos_capitalizacion!B13 -> 0 | C163: =Premios_Titulos_capitalizacion!C13 -> 0 | D163: =Premios_Titulos_capitalizacion!D13 -> 0 | E163: =IF(Premios_Titulos_capitalizacion!D13<Premios_Titulos_capitalizacion!E13,Premios_Titulos_capitalizacion!D13,Premios_Titulos_capitalizacion!E13) -> 0 | F163: =Premios_Titulos_capitalizacion!F13 -> 0
B164: =Premios_Titulos_capitalizacion!B14 -> 0 | C164: =Premios_Titulos_capitalizacion!C14 -> 0 | D164: =Premios_Titulos_capitalizacion!D14 -> 0 | E164: =IF(Premios_Titulos_capitalizacion!D14<Premios_Titulos_capitalizacion!E14,Premios_Titulos_capitalizacion!D14,Premios_Titulos_capitalizacion!E14) -> 0 | F164: =Premios_Titulos_capitalizacion!F14 -> 0
B165: =Premios_Titulos_capitalizacion!B15 -> 0 | C165: =Premios_Titulos_capitalizacion!C15 -> 0 | D165: =Premios_Titulos_capitalizacion!D15 -> 0 | E165: =IF(Premios_Titulos_capitalizacion!D15<Premios_Titulos_capitalizacion!E15,Premios_Titulos_capitalizacion!D15,Premios_Titulos_capitalizacion!E15) -> 0 | F165: =Premios_Titulos_capitalizacion!F15 -> 0
B166: =Premios_Titulos_capitalizacion!B16 -> 0 | C166: =Premios_Titulos_capitalizacion!C16 -> 0 | D166: =Premios_Titulos_capitalizacion!D16 -> 0 | E166: =IF(Premios_Titulos_capitalizacion!D16<Premios_Titulos_capitalizacion!E16,Premios_Titulos_capitalizacion!D16,Premios_Titulos_capitalizacion!E16) -> 0 | F166: =Premios_Titulos_capitalizacion!F16 -> 0
B167: =Premios_Titulos_capitalizacion!B17 -> 0 | C167: =Premios_Titulos_capitalizacion!C17 -> 0 | D167: =Premios_Titulos_capitalizacion!D17 -> 0 | E167: =IF(Premios_Titulos_capitalizacion!D17<Premios_Titulos_capitalizacion!E17,Premios_Titulos_capitalizacion!D17,Premios_Titulos_capitalizacion!E17) -> 0 | F167: =Premios_Titulos_capitalizacion!F17 -> 0
B168: =Premios_Titulos_capitalizacion!B18 -> 0 | C168: =Premios_Titulos_capitalizacion!C18 -> 0 | D168: =Premios_Titulos_capitalizacion!D18 -> 0 | E168: =IF(Premios_Titulos_capitalizacion!D18<Premios_Titulos_capitalizacion!E18,Premios_Titulos_capitalizacion!D18,Premios_Titulos_capitalizacion!E18) -> 0 | F168: =Premios_Titulos_capitalizacion!F18 -> 0
B169: =Premios_Titulos_capitalizacion!B19 -> 0 | C169: =Premios_Titulos_capitalizacion!C19 -> 0 | D169: =Premios_Titulos_capitalizacion!D19 -> 0 | E169: =IF(Premios_Titulos_capitalizacion!D19<Premios_Titulos_capitalizacion!E19,Premios_Titulos_capitalizacion!D19,Premios_Titulos_capitalizacion!E19) -> 0 | F169: =Premios_Titulos_capitalizacion!F19 -> 0
B170: =Premios_Titulos_capitalizacion!B20 -> 0 | C170: =Premios_Titulos_capitalizacion!C20 -> 0 | D170: =Premios_Titulos_capitalizacion!D20 -> 0 | E170: =IF(Premios_Titulos_capitalizacion!D20<Premios_Titulos_capitalizacion!E20,Premios_Titulos_capitalizacion!D20,Premios_Titulos_capitalizacion!E20) -> 0 | F170: =Premios_Titulos_capitalizacion!F20 -> 0
B171: Totales | D171: =ROUND(((SUM(D157:D170))/1000),0)*1000 -> 0 | E171: =ROUND(((SUM(E157:E170))/1000),0)*1000 -> 0 | F171: =ROUND(((SUM(F157:F170))/1000),0)*1000 -> 0
B174: Determinación de la Ganancia Ocasional cuando se reciben premios de apuestas y concursos hipicos o caninos
B175: ENTIDAD | C175: NIT / CC | D175: VALOR RECIBIDO | E175: RETENCION EN LA FUENTE | F175: INGRESO NO CONSTITUTIVO DE GANANCIA OCASIONAL
B176: =Premios_Apuestas_Hipicos!B7 -> 0 | C176: =Premios_Apuestas_Hipicos!C7 -> 0 | D176: =Premios_Apuestas_Hipicos!D7 -> 0 | E176: =Premios_Apuestas_Hipicos!E7 -> 0 | F176: =IF(D176>TOPES!$B$45,TOPES!$B$45,D176) -> 0 | G176: =(D176-F176)*0.2 -> 0
B177: =Premios_Apuestas_Hipicos!B8 -> 0 | C177: =Premios_Apuestas_Hipicos!C8 -> 0 | D177: =Premios_Apuestas_Hipicos!D8 -> 0 | E177: =Premios_Apuestas_Hipicos!E8 -> 0 | F177: =IF(D177>TOPES!$B$45,TOPES!$B$45,D177) -> 0 | G177: =D177-F177*0.2 -> 0
B178: =Premios_Apuestas_Hipicos!B9 -> 0 | C178: =Premios_Apuestas_Hipicos!C9 -> 0 | D178: =Premios_Apuestas_Hipicos!D9 -> 0 | E178: =Premios_Apuestas_Hipicos!E9 -> 0 | F178: =IF(D178>TOPES!$B$45,TOPES!$B$45,D178) -> 0 | G178: 0
B179: =Premios_Apuestas_Hipicos!B10 -> 0 | C179: =Premios_Apuestas_Hipicos!C10 -> 0 | D179: =Premios_Apuestas_Hipicos!D10 -> 0 | E179: =Premios_Apuestas_Hipicos!E10 -> 0 | F179: =IF(D179>TOPES!$B$45,TOPES!$B$45,D179) -> 0 | G179: 0
B180: =Premios_Apuestas_Hipicos!B11 -> 0 | C180: =Premios_Apuestas_Hipicos!C11 -> 0 | D180: =Premios_Apuestas_Hipicos!D11 -> 0 | E180: =Premios_Apuestas_Hipicos!E11 -> 0 | F180: =IF(D180>TOPES!$B$45,TOPES!$B$45,D180) -> 0 | G180: 0
B181: =Premios_Apuestas_Hipicos!B12 -> 0 | C181: =Premios_Apuestas_Hipicos!C12 -> 0 | D181: =Premios_Apuestas_Hipicos!D12 -> 0 | E181: =Premios_Apuestas_Hipicos!E12 -> 0 | F181: =IF(D181>TOPES!$B$45,TOPES!$B$45,D181) -> 0 | G181: 0
B182: =Premios_Apuestas_Hipicos!B13 -> 0 | C182: =Premios_Apuestas_Hipicos!C13 -> 0 | D182: =Premios_Apuestas_Hipicos!D13 -> 0 | E182: =Premios_Apuestas_Hipicos!E13 -> 0 | F182: =IF(D182>TOPES!$B$45,TOPES!$B$45,D182) -> 0 | G182: 0
B183: =Premios_Apuestas_Hipicos!B14 -> 0 | C183: =Premios_Apuestas_Hipicos!C14 -> 0 | D183: =Premios_Apuestas_Hipicos!D14 -> 0 | E183: =Premios_Apuestas_Hipicos!E14 -> 0 | F183: =IF(D183>TOPES!$B$45,TOPES!$B$45,D183) -> 0 | G183: 0
B184: =Premios_Apuestas_Hipicos!B15 -> 0 | C184: =Premios_Apuestas_Hipicos!C15 -> 0 | D184: =Premios_Apuestas_Hipicos!D15 -> 0 | E184: =Premios_Apuestas_Hipicos!E15 -> 0 | F184: =IF(D184>TOPES!$B$45,TOPES!$B$45,D184) -> 0 | G184: 0
B185: =Premios_Apuestas_Hipicos!B16 -> 0 | C185: =Premios_Apuestas_Hipicos!C16 -> 0 | D185: =Premios_Apuestas_Hipicos!D16 -> 0 | E185: =Premios_Apuestas_Hipicos!E16 -> 0 | F185: =IF(D185>TOPES!$B$45,TOPES!$B$45,D185) -> 0 | G185: 0
B186: =Premios_Apuestas_Hipicos!B17 -> 0 | C186: =Premios_Apuestas_Hipicos!C17 -> 0 | D186: =Premios_Apuestas_Hipicos!D17 -> 0 | E186: =Premios_Apuestas_Hipicos!E17 -> 0 | F186: =IF(D186>TOPES!$B$45,TOPES!$B$45,D186) -> 0 | G186: 0
B187: =Premios_Apuestas_Hipicos!B18 -> 0 | C187: =Premios_Apuestas_Hipicos!C18 -> 0 | D187: =Premios_Apuestas_Hipicos!D18 -> 0 | E187: =Premios_Apuestas_Hipicos!E18 -> 0 | F187: =IF(D187>TOPES!$B$45,TOPES!$B$45,D187) -> 0 | G187: 0
B188: =Premios_Apuestas_Hipicos!B19 -> 0 | C188: =Premios_Apuestas_Hipicos!C19 -> 0 | D188: =Premios_Apuestas_Hipicos!D19 -> 0 | E188: =Premios_Apuestas_Hipicos!E19 -> 0 | F188: =IF(D188>TOPES!$B$45,TOPES!$B$45,D188) -> 0 | G188: 0
B189: =Premios_Apuestas_Hipicos!B20 -> 0 | C189: =Premios_Apuestas_Hipicos!C20 -> 0 | D189: =Premios_Apuestas_Hipicos!D20 -> 0 | E189: =Premios_Apuestas_Hipicos!E20 -> 0 | F189: =IF(D189>TOPES!$B$45,TOPES!$B$45,D189) -> 0 | G189: 0
B190: Total | D190: =ROUND(((SUM(D176:D189))/1000),0)*1000 -> 0 | E190: =ROUND(((SUM(E176:E189))/1000),0)*1000 -> 0 | F190: =ROUND(((SUM(F176:F189))/1000),0)*1000 -> 0 | G190: =ROUND(((SUM(G176:G189))/1000),0)*1000 -> 0
B193: R 53, Ganancia Ocasional cuando se reciben utilidades de sociedades que fueron liquidadas
B194: NOMBRE O RAZON SOCIAL | C194: NIT / CC | D194: AÑO DE CONSTITUCION | E194: NO GRAVADOS | F194: GRAVADOS | G194: TOTAL INGRESOS | H194: RETENCION EN LA FUENTE
B195: =Utilidades_Sociedades_Liquidada!B7 -> 0 | C195: =Utilidades_Sociedades_Liquidada!B7 -> 0 | D195: =Utilidades_Sociedades_Liquidada!D7 -> 0 | E195: =IF(D195<=0,0,IF(D195<TOPES!$B$48,Utilidades_Sociedades_Liquidada!E7,0)) -> 0 | F195: =IF(D195<=0,0,IF(D195<TOPES!$B$48,Utilidades_Sociedades_Liquidada!F7,0)) -> 0 | G195: =+E195+F195 -> 0 | H195: =IF(D195<=0,0,IF(D195<TOPES!$B$48,Utilidades_Sociedades_Liquidada!H7,0)) -> 0
B196: =Utilidades_Sociedades_Liquidada!B8 -> 0 | C196: =Utilidades_Sociedades_Liquidada!C8 -> 0 | D196: =Utilidades_Sociedades_Liquidada!D8 -> 0 | E196: =IF(D196<=0,0,IF(D196<TOPES!$B$48,Utilidades_Sociedades_Liquidada!E8,0)) -> 0 | F196: =IF(D196<=0,0,IF(D196<TOPES!$B$48,Utilidades_Sociedades_Liquidada!F8,0)) -> 0 | G196: =+E196+F196 -> 0 | H196: =IF(D196<=0,0,IF(D196<TOPES!$B$48,Utilidades_Sociedades_Liquidada!H8,0)) -> 0
B197: =Utilidades_Sociedades_Liquidada!B9 -> 0 | C197: =Utilidades_Sociedades_Liquidada!C9 -> 0 | D197: =Utilidades_Sociedades_Liquidada!D9 -> 0 | E197: =IF(D197<=0,0,IF(D197<TOPES!$B$48,Utilidades_Sociedades_Liquidada!E9,0)) -> 0 | F197: =IF(D197<=0,0,IF(D197<TOPES!$B$48,Utilidades_Sociedades_Liquidada!F9,0)) -> 0 | G197: 0 | H197: =IF(D197<=0,0,IF(D197<TOPES!$B$48,Utilidades_Sociedades_Liquidada!H9,0)) -> 0
B198: =Utilidades_Sociedades_Liquidada!B10 -> 0 | C198: =Utilidades_Sociedades_Liquidada!C10 -> 0 | D198: =Utilidades_Sociedades_Liquidada!D10 -> 0 | E198: =IF(D198<=0,0,IF(D198<TOPES!$B$48,Utilidades_Sociedades_Liquidada!E10,0)) -> 0 | F198: =IF(D198<=0,0,IF(D198<TOPES!$B$48,Utilidades_Sociedades_Liquidada!F10,0)) -> 0 | G198: 0 | H198: =IF(D198<=0,0,IF(D198<TOPES!$B$48,Utilidades_Sociedades_Liquidada!H10,0)) -> 0
B199: =Utilidades_Sociedades_Liquidada!B11 -> 0 | C199: =Utilidades_Sociedades_Liquidada!C11 -> 0 | D199: =Utilidades_Sociedades_Liquidada!D11 -> 0 | E199: =IF(D199<=0,0,IF(D199<TOPES!$B$48,Utilidades_Sociedades_Liquidada!E11,0)) -> 0 | F199: =IF(D199<=0,0,IF(D199<TOPES!$B$48,Utilidades_Sociedades_Liquidada!F11,0)) -> 0 | G199: 0 | H199: =IF(D199<=0,0,IF(D199<TOPES!$B$48,Utilidades_Sociedades_Liquidada!H11,0)) -> 0
B200: =Utilidades_Sociedades_Liquidada!B12 -> 0 | C200: =Utilidades_Sociedades_Liquidada!C12 -> 0 | D200: =Utilidades_Sociedades_Liquidada!D12 -> 0 | E200: =IF(D200<=0,0,IF(D200<TOPES!$B$48,Utilidades_Sociedades_Liquidada!E12,0)) -> 0 | F200: =IF(D200<=0,0,IF(D200<TOPES!$B$48,Utilidades_Sociedades_Liquidada!F12,0)) -> 0 | G200: 0 | H200: =IF(D200<=0,0,IF(D200<TOPES!$B$48,Utilidades_Sociedades_Liquidada!H12,0)) -> 0
B201: =Utilidades_Sociedades_Liquidada!B13 -> 0 | C201: =Utilidades_Sociedades_Liquidada!C13 -> 0 | D201: =Utilidades_Sociedades_Liquidada!D13 -> 0 | E201: =IF(D201<=0,0,IF(D201<TOPES!$B$48,Utilidades_Sociedades_Liquidada!E13,0)) -> 0 | F201: =IF(D201<=0,0,IF(D201<TOPES!$B$48,Utilidades_Sociedades_Liquidada!F13,0)) -> 0 | G201: 0 | H201: =IF(D201<=0,0,IF(D201<TOPES!$B$48,Utilidades_Sociedades_Liquidada!H13,0)) -> 0
B202: =Utilidades_Sociedades_Liquidada!B14 -> 0 | C202: =Utilidades_Sociedades_Liquidada!C14 -> 0 | D202: =Utilidades_Sociedades_Liquidada!D14 -> 0 | E202: =IF(D202<=0,0,IF(D202<TOPES!$B$48,Utilidades_Sociedades_Liquidada!E14,0)) -> 0 | F202: =IF(D202<=0,0,IF(D202<TOPES!$B$48,Utilidades_Sociedades_Liquidada!F14,0)) -> 0 | G202: 0 | H202: =IF(D202<=0,0,IF(D202<TOPES!$B$48,Utilidades_Sociedades_Liquidada!H14,0)) -> 0
B203: =Utilidades_Sociedades_Liquidada!B15 -> 0 | C203: =Utilidades_Sociedades_Liquidada!C15 -> 0 | D203: =Utilidades_Sociedades_Liquidada!D15 -> 0 | E203: =IF(D203<=0,0,IF(D203<TOPES!$B$48,Utilidades_Sociedades_Liquidada!E15,0)) -> 0 | F203: =IF(D203<=0,0,IF(D203<TOPES!$B$48,Utilidades_Sociedades_Liquidada!F15,0)) -> 0 | G203: 0 | H203: =IF(D203<=0,0,IF(D203<TOPES!$B$48,Utilidades_Sociedades_Liquidada!H15,0)) -> 0
B204: =Utilidades_Sociedades_Liquidada!B16 -> 0 | C204: =Utilidades_Sociedades_Liquidada!C16 -> 0 | D204: =Utilidades_Sociedades_Liquidada!D16 -> 0 | E204: =IF(D204<=0,0,IF(D204<TOPES!$B$48,Utilidades_Sociedades_Liquidada!E16,0)) -> 0 | F204: =IF(D204<=0,0,IF(D204<TOPES!$B$48,Utilidades_Sociedades_Liquidada!F16,0)) -> 0 | G204: 0 | H204: =IF(D204<=0,0,IF(D204<TOPES!$B$48,Utilidades_Sociedades_Liquidada!H16,0)) -> 0
B205: =Utilidades_Sociedades_Liquidada!B17 -> 0 | C205: =Utilidades_Sociedades_Liquidada!C17 -> 0 | D205: =Utilidades_Sociedades_Liquidada!D17 -> 0 | E205: =IF(D205<=0,0,IF(D205<TOPES!$B$48,Utilidades_Sociedades_Liquidada!E17,0)) -> 0 | F205: =IF(D205<=0,0,IF(D205<TOPES!$B$48,Utilidades_Sociedades_Liquidada!F17,0)) -> 0 | G205: 0 | H205: =IF(D205<=0,0,IF(D205<TOPES!$B$48,Utilidades_Sociedades_Liquidada!H17,0)) -> 0
B206: =Utilidades_Sociedades_Liquidada!B18 -> 0 | C206: =Utilidades_Sociedades_Liquidada!C18 -> 0 | D206: =Utilidades_Sociedades_Liquidada!D18 -> 0 | E206: =IF(D206<=0,0,IF(D206<TOPES!$B$48,Utilidades_Sociedades_Liquidada!E18,0)) -> 0 | F206: =IF(D206<=0,0,IF(D206<TOPES!$B$48,Utilidades_Sociedades_Liquidada!F18,0)) -> 0 | G206: 0 | H206: =IF(D206<=0,0,IF(D206<TOPES!$B$48,Utilidades_Sociedades_Liquidada!H18,0)) -> 0
B207: =Utilidades_Sociedades_Liquidada!B19 -> 0 | C207: =Utilidades_Sociedades_Liquidada!C19 -> 0 | D207: =Utilidades_Sociedades_Liquidada!D19 -> 0 | E207: =IF(D207<=0,0,IF(D207<TOPES!$B$48,Utilidades_Sociedades_Liquidada!E19,0)) -> 0 | F207: =IF(D207<=0,0,IF(D207<TOPES!$B$48,Utilidades_Sociedades_Liquidada!F19,0)) -> 0 | G207: 0 | H207: =IF(D207<=0,0,IF(D207<TOPES!$B$48,Utilidades_Sociedades_Liquidada!H19,0)) -> 0
B208: =Utilidades_Sociedades_Liquidada!B20 -> 0 | C208: =Utilidades_Sociedades_Liquidada!C20 -> 0 | D208: =Utilidades_Sociedades_Liquidada!D20 -> 0 | E208: =IF(D208<=0,0,IF(D208<TOPES!$B$48,Utilidades_Sociedades_Liquidada!E20,0)) -> 0 | F208: =IF(D208<=0,0,IF(D208<TOPES!$B$48,Utilidades_Sociedades_Liquidada!F20,0)) -> 0 | G208: 0 | H208: =IF(D208<=0,0,IF(D208<TOPES!$B$48,Utilidades_Sociedades_Liquidada!H20,0)) -> 0
B209: TOTALES | E209: =ROUND(((SUM(E195:E208))/1000),0)*1000 -> 0 | F209: =ROUND(((SUM(F195:F208))/1000),0)*1000 -> 0 | G209: =ROUND(((SUM(G195:G208))/1000),0)*1000 -> 0 | H209: =ROUND(((SUM(H195:H208))/1000),0)*1000 -> 0
B212: R 53, Ganancia Ocasional cuando se reciben premios por loterias, rifas, apuestas y similares | H212: R 53, Ganancia Ocasional cuando se reciben premios por concursos nacionales e internacionales | M212: EXTERIOR Ganancia Ocasional cuando se reciben premios por concursos nacionales e internacionales | O212: RETEFUENTE EXTERIOR | P212: EXTERIOR Ganancia Ocasional cuando se reciben premios por loterias, rifas, apuestas y similares | Q212: RETEFUENTE EXTERIOR | R212: Impuesto GO
B213: ENTIDAD | C213: NIT / CC | D213: CONCEPTO | E213: VALOR RECIBIDO | F213: RETENCION EN LA FUENTE | G213: Impuesto GO | H213: ENTIDAD | I213: NIT / CC | J213: CONCEPTO | K213: VALOR RECIBIDO | L213: RETENCION EN LA FUENTE
A214: =IF(Premios_Loterias_Etc!A7=0,Premios_Loterias_Etc!A7="NO",Premios_Loterias_Etc!A7) -> FALSE | B214: =Premios_Loterias_Etc!B7 -> 0 | C214: =Premios_Loterias_Etc!C7 -> 0 | D214: =Premios_Loterias_Etc!D7 -> 0 | E214: =IF(A214=0,0,IF(A214="SI",0,Premios_Loterias_Etc!E7)) -> 0 | F214: =IF(E214=0,0,IF(A214="SI",0,Premios_Loterias_Etc!F7)) -> 0 | G214: =E214*0.2 -> 0 | H214: =Premios_Loterias_Etc!B30 -> 0 | I214: =Premios_Loterias_Etc!C30 -> 0 | J214: =Premios_Loterias_Etc!D30 -> 0 | K214: =IF(M214=0,0,IF(M214="SI",0,Premios_Loterias_Etc!E30)) -> 0 | L214: =IF(K214=0,0,IF(M214=0,0,IF(OR(M214="NO",M214=FALSE),Premios_Loterias_Etc!F30,0))) -> 0 | M214: =IF(Premios_Loterias_Etc!A30=0,Premios_Loterias_Etc!A30="NO",Premios_Loterias_Etc!A30) -> FALSE | N214: =IF(M214="SI",Premios_Loterias_Etc!E30,0) -> 0 | O214: =IF(N214=0,0,IF(M214="SI",Premios_Loterias_Etc!F30,0)) -> 0 | P214: =IF(Premios_Loterias_Etc!E7=0,0,IF(A214=0,0,IF(A214="SI",Premios_Loterias_Etc!E7,0))) -> 0 | Q214: =IF(P214=0,0,IF(A214=0,0,IF(A214="SI",Premios_Loterias_Etc!F7,0))) -> 0 | R214: =P214*0.2 -> 0
A215: =IF(Premios_Loterias_Etc!A8=0,Premios_Loterias_Etc!A8="NO",Premios_Loterias_Etc!A8) -> FALSE | B215: =Premios_Loterias_Etc!B8 -> 0 | C215: =Premios_Loterias_Etc!C8 -> 0 | D215: =Premios_Loterias_Etc!D8 -> 0 | E215: =IF(A215=0,0,IF(A215="SI",0,Premios_Loterias_Etc!E8)) -> 0 | F215: =IF(E215=0,0,IF(A215="SI",0,Premios_Loterias_Etc!F8)) -> 0 | G215: =E215*0.2 -> 0 | H215: =Premios_Loterias_Etc!B31 -> 0 | I215: =Premios_Loterias_Etc!C31 -> 0 | J215: =Premios_Loterias_Etc!D31 -> 0 | K215: =IF(M215=0,0,IF(M215="SI",0,Premios_Loterias_Etc!E31)) -> 0 | L215: =IF(K215=0,0,IF(M215=0,0,IF(OR(M215="NO",M215=FALSE),Premios_Loterias_Etc!F31,0))) -> 0 | M215: =IF(Premios_Loterias_Etc!A31=0,Premios_Loterias_Etc!A31="NO",Premios_Loterias_Etc!A31) -> FALSE | N215: =IF(M215="SI",Premios_Loterias_Etc!E31,0) -> 0 | O215: =IF(N215=0,0,IF(M215="SI",Premios_Loterias_Etc!F31,0)) -> 0 | P215: =IF(Premios_Loterias_Etc!E8=0,0,IF(A215=0,0,IF(A215="SI",Premios_Loterias_Etc!E8,0))) -> 0 | Q215: =IF(P215=0,0,IF(A215=0,0,IF(A215="SI",Premios_Loterias_Etc!F8,0))) -> 0 | R215: =P215*0.2 -> 0
A216: =IF(Premios_Loterias_Etc!A9=0,Premios_Loterias_Etc!A9="NO",Premios_Loterias_Etc!A9) -> FALSE | B216: =Premios_Loterias_Etc!B9 -> 0 | C216: =Premios_Loterias_Etc!C9 -> 0 | D216: =Premios_Loterias_Etc!D9 -> 0 | E216: =IF(A216=0,0,IF(A216="SI",0,Premios_Loterias_Etc!E9)) -> 0 | F216: =IF(E216=0,0,IF(A216="SI",0,Premios_Loterias_Etc!F9)) -> 0 | G216: 0 | H216: =Premios_Loterias_Etc!B32 -> 0 | I216: =Premios_Loterias_Etc!C32 -> 0 | J216: =Premios_Loterias_Etc!D32 -> 0 | K216: =IF(M216=0,0,IF(M216="SI",0,Premios_Loterias_Etc!E32)) -> 0 | L216: =IF(K216=0,0,IF(M216=0,0,IF(OR(M216="NO",M216=FALSE),Premios_Loterias_Etc!F32,0))) -> 0 | M216: =IF(Premios_Loterias_Etc!A32=0,Premios_Loterias_Etc!A32="NO",Premios_Loterias_Etc!A32) -> FALSE | N216: =IF(M216="SI",Premios_Loterias_Etc!E32,0) -> 0 | O216: =IF(N216=0,0,IF(M216="SI",Premios_Loterias_Etc!F32,0)) -> 0 | P216: =IF(Premios_Loterias_Etc!E9=0,0,IF(A216=0,0,IF(A216="SI",Premios_Loterias_Etc!E9,0))) -> 0 | Q216: =IF(P216=0,0,IF(A216=0,0,IF(A216="SI",Premios_Loterias_Etc!F9,0))) -> 0 | R216: 0
A217: =IF(Premios_Loterias_Etc!A10=0,Premios_Loterias_Etc!A10="NO",Premios_Loterias_Etc!A10) -> FALSE | B217: =Premios_Loterias_Etc!B10 -> 0 | C217: =Premios_Loterias_Etc!C10 -> 0 | D217: =Premios_Loterias_Etc!D10 -> 0 | E217: =IF(A217=0,0,IF(A217="SI",0,Premios_Loterias_Etc!E10)) -> 0 | F217: =IF(E217=0,0,IF(A217="SI",0,Premios_Loterias_Etc!F10)) -> 0 | G217: 0 | H217: =Premios_Loterias_Etc!B33 -> 0 | I217: =Premios_Loterias_Etc!C33 -> 0 | J217: =Premios_Loterias_Etc!D33 -> 0 | K217: =IF(M217=0,0,IF(M217="SI",0,Premios_Loterias_Etc!E33)) -> 0 | L217: =IF(K217=0,0,IF(M217=0,0,IF(OR(M217="NO",M217=FALSE),Premios_Loterias_Etc!F33,0))) -> 0 | M217: =IF(Premios_Loterias_Etc!A33=0,Premios_Loterias_Etc!A33="NO",Premios_Loterias_Etc!A33) -> FALSE | N217: =IF(M217="SI",Premios_Loterias_Etc!E33,0) -> 0 | O217: =IF(N217=0,0,IF(M217="SI",Premios_Loterias_Etc!F33,0)) -> 0 | P217: =IF(Premios_Loterias_Etc!E10=0,0,IF(A217=0,0,IF(A217="SI",Premios_Loterias_Etc!E10,0))) -> 0 | Q217: =IF(P217=0,0,IF(A217=0,0,IF(A217="SI",Premios_Loterias_Etc!F10,0))) -> 0 | R217: 0
A218: =IF(Premios_Loterias_Etc!A11=0,Premios_Loterias_Etc!A11="NO",Premios_Loterias_Etc!A11) -> FALSE | B218: =Premios_Loterias_Etc!B11 -> 0 | C218: =Premios_Loterias_Etc!C11 -> 0 | D218: =Premios_Loterias_Etc!D11 -> 0 | E218: =IF(A218=0,0,IF(A218="SI",0,Premios_Loterias_Etc!E11)) -> 0 | F218: =IF(E218=0,0,IF(A218="SI",0,Premios_Loterias_Etc!F11)) -> 0 | G218: 0 | H218: =Premios_Loterias_Etc!B34 -> 0 | I218: =Premios_Loterias_Etc!C34 -> 0 | J218: =Premios_Loterias_Etc!D34 -> 0 | K218: =IF(M218=0,0,IF(M218="SI",0,Premios_Loterias_Etc!E34)) -> 0 | L218: =IF(K218=0,0,IF(M218=0,0,IF(OR(M218="NO",M218=FALSE),Premios_Loterias_Etc!F34,0))) -> 0 | M218: =IF(Premios_Loterias_Etc!A34=0,Premios_Loterias_Etc!A34="NO",Premios_Loterias_Etc!A34) -> FALSE | N218: =IF(M218="SI",Premios_Loterias_Etc!E34,0) -> 0 | O218: =IF(N218=0,0,IF(M218="SI",Premios_Loterias_Etc!F34,0)) -> 0 | P218: =IF(Premios_Loterias_Etc!E11=0,0,IF(A218=0,0,IF(A218="SI",Premios_Loterias_Etc!E11,0))) -> 0 | Q218: =IF(P218=0,0,IF(A218=0,0,IF(A218="SI",Premios_Loterias_Etc!F11,0))) -> 0 | R218: 0
A219: =IF(Premios_Loterias_Etc!A12=0,Premios_Loterias_Etc!A12="NO",Premios_Loterias_Etc!A12) -> FALSE | B219: =Premios_Loterias_Etc!B12 -> 0 | C219: =Premios_Loterias_Etc!C12 -> 0 | D219: =Premios_Loterias_Etc!D12 -> 0 | E219: =IF(A219=0,0,IF(A219="SI",0,Premios_Loterias_Etc!E12)) -> 0 | F219: =IF(E219=0,0,IF(A219="SI",0,Premios_Loterias_Etc!F12)) -> 0 | G219: 0 | H219: =Premios_Loterias_Etc!B35 -> 0 | I219: =Premios_Loterias_Etc!C35 -> 0 | J219: =Premios_Loterias_Etc!D35 -> 0 | K219: =IF(M219=0,0,IF(M219="SI",0,Premios_Loterias_Etc!E35)) -> 0 | L219: =IF(K219=0,0,IF(M219=0,0,IF(OR(M219="NO",M219=FALSE),Premios_Loterias_Etc!F35,0))) -> 0 | M219: =IF(Premios_Loterias_Etc!A35=0,Premios_Loterias_Etc!A35="NO",Premios_Loterias_Etc!A35) -> FALSE | N219: =IF(M219="SI",Premios_Loterias_Etc!E35,0) -> 0 | O219: =IF(N219=0,0,IF(M219="SI",Premios_Loterias_Etc!F35,0)) -> 0 | P219: =IF(Premios_Loterias_Etc!E12=0,0,IF(A219=0,0,IF(A219="SI",Premios_Loterias_Etc!E12,0))) -> 0 | Q219: =IF(P219=0,0,IF(A219=0,0,IF(A219="SI",Premios_Loterias_Etc!F12,0))) -> 0 | R219: 0
A220: =IF(Premios_Loterias_Etc!A13=0,Premios_Loterias_Etc!A13="NO",Premios_Loterias_Etc!A13) -> FALSE | B220: =Premios_Loterias_Etc!B13 -> 0 | C220: =Premios_Loterias_Etc!C13 -> 0 | D220: =Premios_Loterias_Etc!D13 -> 0 | E220: =IF(A220=0,0,IF(A220="SI",0,Premios_Loterias_Etc!E13)) -> 0 | F220: =IF(E220=0,0,IF(A220="SI",0,Premios_Loterias_Etc!F13)) -> 0 | G220: 0 | H220: =Premios_Loterias_Etc!B36 -> 0 | I220: =Premios_Loterias_Etc!C36 -> 0 | J220: =Premios_Loterias_Etc!D36 -> 0 | K220: =IF(M220=0,0,IF(M220="SI",0,Premios_Loterias_Etc!E36)) -> 0 | L220: =IF(K220=0,0,IF(M220=0,0,IF(OR(M220="NO",M220=FALSE),Premios_Loterias_Etc!F36,0))) -> 0 | M220: =IF(Premios_Loterias_Etc!A36=0,Premios_Loterias_Etc!A36="NO",Premios_Loterias_Etc!A36) -> FALSE | N220: =IF(M220="SI",Premios_Loterias_Etc!E36,0) -> 0 | O220: =IF(N220=0,0,IF(M220="SI",Premios_Loterias_Etc!F36,0)) -> 0 | P220: =IF(Premios_Loterias_Etc!E13=0,0,IF(A220=0,0,IF(A220="SI",Premios_Loterias_Etc!E13,0))) -> 0 | Q220: =IF(P220=0,0,IF(A220=0,0,IF(A220="SI",Premios_Loterias_Etc!F13,0))) -> 0 | R220: 0
A221: =IF(Premios_Loterias_Etc!A14=0,Premios_Loterias_Etc!A14="NO",Premios_Loterias_Etc!A14) -> FALSE | B221: =Premios_Loterias_Etc!B14 -> 0 | C221: =Premios_Loterias_Etc!C14 -> 0 | D221: =Premios_Loterias_Etc!D14 -> 0 | E221: =IF(A221=0,0,IF(A221="SI",0,Premios_Loterias_Etc!E14)) -> 0 | F221: =IF(E221=0,0,IF(A221="SI",0,Premios_Loterias_Etc!F14)) -> 0 | G221: 0 | H221: =Premios_Loterias_Etc!B37 -> 0 | I221: =Premios_Loterias_Etc!C37 -> 0 | J221: =Premios_Loterias_Etc!D37 -> 0 | K221: =IF(M221=0,0,IF(M221="SI",0,Premios_Loterias_Etc!E37)) -> 0 | L221: =IF(K221=0,0,IF(M221=0,0,IF(OR(M221="NO",M221=FALSE),Premios_Loterias_Etc!F37,0))) -> 0 | M221: =IF(Premios_Loterias_Etc!A37=0,Premios_Loterias_Etc!A37="NO",Premios_Loterias_Etc!A37) -> FALSE | N221: =IF(M221="SI",Premios_Loterias_Etc!E37,0) -> 0 | O221: =IF(N221=0,0,IF(M221="SI",Premios_Loterias_Etc!F37,0)) -> 0 | P221: =IF(Premios_Loterias_Etc!E14=0,0,IF(A221=0,0,IF(A221="SI",Premios_Loterias_Etc!E14,0))) -> 0 | Q221: =IF(P221=0,0,IF(A221=0,0,IF(A221="SI",Premios_Loterias_Etc!F14,0))) -> 0 | R221: 0
A222: =IF(Premios_Loterias_Etc!A15=0,Premios_Loterias_Etc!A15="NO",Premios_Loterias_Etc!A15) -> FALSE | B222: =Premios_Loterias_Etc!B15 -> 0 | C222: =Premios_Loterias_Etc!C15 -> 0 | D222: =Premios_Loterias_Etc!D15 -> 0 | E222: =IF(A222=0,0,IF(A222="SI",0,Premios_Loterias_Etc!E15)) -> 0 | F222: =IF(E222=0,0,IF(A222="SI",0,Premios_Loterias_Etc!F15)) -> 0 | G222: 0 | H222: =Premios_Loterias_Etc!B38 -> 0 | I222: =Premios_Loterias_Etc!C38 -> 0 | J222: =Premios_Loterias_Etc!D38 -> 0 | K222: =IF(M222=0,0,IF(M222="SI",0,Premios_Loterias_Etc!E38)) -> 0 | L222: =IF(K222=0,0,IF(M222=0,0,IF(OR(M222="NO",M222=FALSE),Premios_Loterias_Etc!F38,0))) -> 0 | M222: =IF(Premios_Loterias_Etc!A38=0,Premios_Loterias_Etc!A38="NO",Premios_Loterias_Etc!A38) -> FALSE | N222: =IF(M222="SI",Premios_Loterias_Etc!E38,0) -> 0 | O222: =IF(N222=0,0,IF(M222="SI",Premios_Loterias_Etc!F38,0)) -> 0 | P222: =IF(Premios_Loterias_Etc!E15=0,0,IF(A222=0,0,IF(A222="SI",Premios_Loterias_Etc!E15,0))) -> 0 | Q222: =IF(P222=0,0,IF(A222=0,0,IF(A222="SI",Premios_Loterias_Etc!F15,0))) -> 0 | R222: 0
A223: =IF(Premios_Loterias_Etc!A16=0,Premios_Loterias_Etc!A16="NO",Premios_Loterias_Etc!A16) -> FALSE | B223: =Premios_Loterias_Etc!B16 -> 0 | C223: =Premios_Loterias_Etc!C16 -> 0 | D223: =Premios_Loterias_Etc!D16 -> 0 | E223: =IF(A223=0,0,IF(A223="SI",0,Premios_Loterias_Etc!E16)) -> 0 | F223: =IF(E223=0,0,IF(A223="SI",0,Premios_Loterias_Etc!F16)) -> 0 | G223: 0 | H223: =Premios_Loterias_Etc!B39 -> 0 | I223: =Premios_Loterias_Etc!C39 -> 0 | J223: =Premios_Loterias_Etc!D39 -> 0 | K223: =IF(M223=0,0,IF(M223="SI",0,Premios_Loterias_Etc!E39)) -> 0 | L223: =IF(K223=0,0,IF(M223=0,0,IF(OR(M223="NO",M223=FALSE),Premios_Loterias_Etc!F39,0))) -> 0 | M223: =IF(Premios_Loterias_Etc!A39=0,Premios_Loterias_Etc!A39="NO",Premios_Loterias_Etc!A39) -> FALSE | N223: =IF(M223="SI",Premios_Loterias_Etc!E39,0) -> 0 | O223: =IF(N223=0,0,IF(M223="SI",Premios_Loterias_Etc!F39,0)) -> 0 | P223: =IF(Premios_Loterias_Etc!E16=0,0,IF(A223=0,0,IF(A223="SI",Premios_Loterias_Etc!E16,0))) -> 0 | Q223: =IF(P223=0,0,IF(A223=0,0,IF(A223="SI",Premios_Loterias_Etc!F16,0))) -> 0 | R223: 0
A224: =IF(Premios_Loterias_Etc!A17=0,Premios_Loterias_Etc!A17="NO",Premios_Loterias_Etc!A17) -> FALSE | B224: =Premios_Loterias_Etc!B17 -> 0 | C224: =Premios_Loterias_Etc!C17 -> 0 | D224: =Premios_Loterias_Etc!D17 -> 0 | E224: =IF(A224=0,0,IF(A224="SI",0,Premios_Loterias_Etc!E17)) -> 0 | F224: =IF(E224=0,0,IF(A224="SI",0,Premios_Loterias_Etc!F17)) -> 0 | G224: 0 | H224: =Premios_Loterias_Etc!B40 -> 0 | I224: =Premios_Loterias_Etc!C40 -> 0 | J224: =Premios_Loterias_Etc!D40 -> 0 | K224: =IF(M224=0,0,IF(M224="SI",0,Premios_Loterias_Etc!E40)) -> 0 | L224: =IF(K224=0,0,IF(M224=0,0,IF(OR(M224="NO",M224=FALSE),Premios_Loterias_Etc!F40,0))) -> 0 | M224: =IF(Premios_Loterias_Etc!A40=0,Premios_Loterias_Etc!A40="NO",Premios_Loterias_Etc!A40) -> FALSE | N224: =IF(M224="SI",Premios_Loterias_Etc!E40,0) -> 0 | O224: =IF(N224=0,0,IF(M224="SI",Premios_Loterias_Etc!F40,0)) -> 0 | P224: =IF(Premios_Loterias_Etc!E17=0,0,IF(A224=0,0,IF(A224="SI",Premios_Loterias_Etc!E17,0))) -> 0 | Q224: =IF(P224=0,0,IF(A224=0,0,IF(A224="SI",Premios_Loterias_Etc!F17,0))) -> 0 | R224: 0
A225: =IF(Premios_Loterias_Etc!A18=0,Premios_Loterias_Etc!A18="NO",Premios_Loterias_Etc!A18) -> FALSE | B225: =Premios_Loterias_Etc!B18 -> 0 | C225: =Premios_Loterias_Etc!C18 -> 0 | D225: =Premios_Loterias_Etc!D18 -> 0 | E225: =IF(A225=0,0,IF(A225="SI",0,Premios_Loterias_Etc!E18)) -> 0 | F225: =IF(E225=0,0,IF(A225="SI",0,Premios_Loterias_Etc!F18)) -> 0 | G225: 0 | H225: =Premios_Loterias_Etc!B41 -> 0 | I225: =Premios_Loterias_Etc!C41 -> 0 | J225: =Premios_Loterias_Etc!D41 -> 0 | K225: =IF(M225=0,0,IF(M225="SI",0,Premios_Loterias_Etc!E41)) -> 0 | L225: =IF(K225=0,0,IF(M225=0,0,IF(OR(M225="NO",M225=FALSE),Premios_Loterias_Etc!F41,0))) -> 0 | M225: =IF(Premios_Loterias_Etc!A41=0,Premios_Loterias_Etc!A41="NO",Premios_Loterias_Etc!A41) -> FALSE | N225: =IF(M225="SI",Premios_Loterias_Etc!E41,0) -> 0 | O225: =IF(N225=0,0,IF(M225="SI",Premios_Loterias_Etc!F41,0)) -> 0 | P225: =IF(Premios_Loterias_Etc!E18=0,0,IF(A225=0,0,IF(A225="SI",Premios_Loterias_Etc!E18,0))) -> 0 | Q225: =IF(P225=0,0,IF(A225=0,0,IF(A225="SI",Premios_Loterias_Etc!F18,0))) -> 0 | R225: 0
... 6 more rows

Sheet renta exenta (hidden)
B1: RENTA EXENTAS LABORALES
Z2: =VLOOKUP(Z1,AY_DAT_GEN!A2:E53,5,0) -> 
A3: 1 | B3: R.50 renta exenta (arts 206 numerales 8,9 y 10)
A4: ENTIDAD | B4: NIT | C4: HONORARIOS | D4: TOTAL INGRESO LABORALES | E4: APORTES A FONDOS DE PENSIONES, SOLIDARIDAD Y AFC | F4: EXCESO DE sueldo BASICO | G4: GASTOS DE REPRESENTACION | H4: Primas, bonificaciones, horas extras y demás complementos salariales | I4: BASE RENTA EXENTA | J4: RENTA EXENTA (25%) | K4: RENTA EXENTA | L4: RENTA EXENTA (25%) | M4: TOTAL INGRESO LABORALES | O4: RAIS | P4: RAIS INRNO | R4: NUMERO DE MESES | S4: NUMERO DE MESES | Z4: AY_DAT_GEN
A5: =Salarios_Demas_Pagos_Laborales!C7 -> 0 | B5: =Salarios_Demas_Pagos_Laborales!E7 -> 0 | C5: =Salarios_Demas_Pagos_Laborales!E8 -> 0 | D5: =ROUND((M5) /1000,0)*1000 -> 0 | E5: =IF(Salarios_Demas_Pagos_Laborales!E14<=0,0,IF(Salarios_Demas_Pagos_Laborales!C17+Salarios_Demas_Pagos_Laborales!E17>Salarios_Demas_Pagos_Laborales!E14*TOPES!$B$10,Salarios_Demas_Pagos_Laborales!E14*TOPES!$B$10,+Salarios_Demas_Pagos_Laborales!C17+Salarios_Demas_Pagos_Laborales!E17)) -> 0 | F5: =IF(Datos_Salarios!E3="Si",IF(Salarios_Demas_Pagos_Laborales!E9-Datos_Salarios!E4<0,0,(Salarios_Demas_Pagos_Laborales!E9-Datos_Salarios!E4)),0) -> 0 | G5: =IF(Salarios_Demas_Pagos_Laborales!E11=0,0,IF(AND(Salarios_Demas_Pagos_Laborales!E9=0,Salarios_Demas_Pagos_Laborales!E11>0,Datos_Gastos_Rep!E3="Si"),0,IF(Datos_Gastos_Rep!E3="Si",Salarios_Demas_Pagos_Laborales!E11,0))) -> 0 | H5: =IF(Datos_Salarios!E5="Si",IF(Datos_Salarios!E6<=0,0,Datos_Salarios!E6),0) -> 0 | I5: =IF((D5-F5-G5-H5-L24-H24)<=0,0,ROUND((D5-F5-G5-H5-L24-H24)/1000,0)*1000) -> 0 | J5: =$I$5*TOPES!$B$11-Datos_Otros_Ingresos!E5*0.25 -> 0 | K5: =IF(F5+G5+H5<0,0,F5+G5+H5) -> 0 | L5: =IF(J5>TOPES!$B$9*S5,TOPES!$B$9*S5,J5)+Datos_Otros_Ingresos!E5*0.25 -> 0 | M5: =IF(Salarios_Demas_Pagos_Laborales!E8+Salarios_Demas_Pagos_Laborales!E9+Salarios_Demas_Pagos_Laborales!E11+Salarios_Demas_Pagos_Laborales!E13-Datos_Otros_Ingresos!E4-Datos_Otros_Ingresos!E7-Datos_Otros_Ingresos!E8-Datos_Otros_Ingresos!E9-Datos_Otros_Ingresos!E10-Datos_Otros_Ingresos!E14-Datos_Otros_Ingresos!E16-Salarios_Demas_Pagos_Laborales!E15-Salarios_Demas_Pagos_Laborales!E16<=0,0,Salarios_Demas_Pagos_Laborales!E8+ Salarios_Demas_Pagos_Laborales!E9+Salarios_Demas_Pagos_Laborales!E11+Salarios_Demas_Pagos_Laborales!E13-Datos_Otros_Ingresos!E4-Datos_Otros_Ingresos!E7-Datos_Otros_Ingresos!E8-Datos_Otros_Ingresos!E9-Datos_Otros_Ingresos!E10-Datos_Otros_Ingresos!E14-Datos_Otros_Ingresos!E16-Salarios_Demas_Pagos_Laborales!E15-Salarios_Demas_Pagos_Laborales!E16) -> 0 | O5: =Salarios_Demas_Pagos_Laborales!C16 -> 0 | R5: 12 | S5: =IF(R5>12,12,R5) -> 12
A6: =Salarios_Demas_Pagos_Laborales!C20 -> 0 | B6: =Salarios_Demas_Pagos_Laborales!E20 -> 0 | C6: =Salarios_Demas_Pagos_Laborales!E21 -> 0 | D6: =ROUND((M6) /1000,0)*1000 -> 0 | E6: =IF(Salarios_Demas_Pagos_Laborales!E27<=0,0,IF(Salarios_Demas_Pagos_Laborales!C30+Salarios_Demas_Pagos_Laborales!E30>Salarios_Demas_Pagos_Laborales!E27*TOPES!$B$10,Salarios_Demas_Pagos_Laborales!E27*TOPES!$B$10,Salarios_Demas_Pagos_Laborales!C30+Salarios_Demas_Pagos_Laborales!E30)) -> 0 | F6: =IF(Datos_Salarios!E8="Si",IF(Salarios_Demas_Pagos_Laborales!E22-Datos_Salarios!E9<0,0,(Salarios_Demas_Pagos_Laborales!E22-Datos_Salarios!E9)),0) -> 0 | G6: =IF(Salarios_Demas_Pagos_Laborales!E24=0,0,IF(AND(Salarios_Demas_Pagos_Laborales!E22=0,Salarios_Demas_Pagos_Laborales!E24>0,Datos_Gastos_Rep!E5="Si"),0,IF(Datos_Gastos_Rep!E5="Si",Salarios_Demas_Pagos_Laborales!E24,0))) -> 0 | H6: =IF(Datos_Salarios!E10="Si",IF(Datos_Salarios!E11<=0,0,Datos_Salarios!E11),0) -> 0 | I6: =IF((D6-F6-G6-H6-L25-H25)<=0,0,ROUND((D6-F6-G6-H6-L25-H25)/1000,0)*1000) -> 0 | J6: =$I$6*TOPES!$B$11-Datos_Otros_Ingresos!E24*0.25 -> 0 | K6: =IF(F6+G6+H6<0,0,F6+G6+H6) -> 0 | L6: =IF(J6>TOPES!$B$9*12,TOPES!$B$9*S6,J6)+Datos_Otros_Ingresos!E24*0.25 -> 0 | M6: =IF(Salarios_Demas_Pagos_Laborales!E21+Salarios_Demas_Pagos_Laborales!E22+Salarios_Demas_Pagos_Laborales!E24+Salarios_Demas_Pagos_Laborales!E26-Datos_Otros_Ingresos!E23-Datos_Otros_Ingresos!E26-Datos_Otros_Ingresos!E27-Datos_Otros_Ingresos!E28-Datos_Otros_Ingresos!E29-Datos_Otros_Ingresos!E33-Datos_Otros_Ingresos!E35-Salarios_Demas_Pagos_Laborales!E28-Salarios_Demas_Pagos_Laborales!E29<=0,0,(Salarios_Demas_Pagos_Laborales!E21+ Salarios_Demas_Pagos_Laborales!E22+Salarios_Demas_Pagos_Laborales!E24+Salarios_Demas_Pagos_Laborales!E26-Datos_Otros_Ingresos!E23-Datos_Otros_Ingresos!E26-Datos_Otros_Ingresos!E27-Datos_Otros_Ingresos!E28-Datos_Otros_Ingresos!E29-Datos_Otros_Ingresos!E33-Datos_Otros_Ingresos!E35-Salarios_Demas_Pagos_Laborales!E28-Salarios_Demas_Pagos_Laborales!E29)) -> 0 | O6: =Salarios_Demas_Pagos_Laborales!C29 -> 0 | R6: 12 | S6: =IF(R6>12,12,R6) -> 12
A7: =Salarios_Demas_Pagos_Laborales!C33 -> 0 | B7: =Salarios_Demas_Pagos_Laborales!E33 -> 0 | C7: =Salarios_Demas_Pagos_Laborales!E34 -> 0 | D7: =ROUND((M7) /1000,0)*1000 -> 0 | E7: =IF(Salarios_Demas_Pagos_Laborales!E40<=0,0,IF(Salarios_Demas_Pagos_Laborales!C43+Salarios_Demas_Pagos_Laborales!E43>Salarios_Demas_Pagos_Laborales!E40*TOPES!$B$10,Salarios_Demas_Pagos_Laborales!E40*TOPES!$B$10,Salarios_Demas_Pagos_Laborales!C43+Salarios_Demas_Pagos_Laborales!E43)) -> 0 | F7: =IF(Datos_Salarios!E13="Si",IF(Salarios_Demas_Pagos_Laborales!E35-Datos_Salarios!E14<0,0,(Salarios_Demas_Pagos_Laborales!E35-Datos_Salarios!E14)),0) -> 0 | G7: =IF(Salarios_Demas_Pagos_Laborales!E37=0,0,IF(AND(Salarios_Demas_Pagos_Laborales!E35=0,Salarios_Demas_Pagos_Laborales!E37>0,Datos_Gastos_Rep!E7="Si"),0,IF(Datos_Gastos_Rep!E7="Si",Salarios_Demas_Pagos_Laborales!E37,0))) -> 0 | H7: =IF(Datos_Salarios!E15="Si",IF(Datos_Salarios!E16<=0,0,Datos_Salarios!E16),0) -> 0 | I7: =IF((D7-F7-G7-H7-L26-H26)<=0,0,ROUND((D7-F7-G7-H7-L26-H26)/1000,0)*1000) -> 0 | J7: =$I$7*TOPES!$B$11-Datos_Otros_Ingresos!E43*0.25 -> 0 | K7: =IF(F7+G7+H7<0,0,F7+G7+H7) -> 0 | L7: =IF(J7>TOPES!$B$9*12,TOPES!$B$9*S7,J7)+Datos_Otros_Ingresos!E43*0.25 -> 0 | M7: =IF(Salarios_Demas_Pagos_Laborales!E34+Salarios_Demas_Pagos_Laborales!E35+Salarios_Demas_Pagos_Laborales!E37+Salarios_Demas_Pagos_Laborales!E39-Datos_Otros_Ingresos!E42-Datos_Otros_Ingresos!E45-Datos_Otros_Ingresos!E46- Datos_Otros_Ingresos!E47-Datos_Otros_Ingresos!E48-Datos_Otros_Ingresos!E52-Datos_Otros_Ingresos!E54-Salarios_Demas_Pagos_Laborales!E41-Salarios_Demas_Pagos_Laborales!E42<=0,0,(Salarios_Demas_Pagos_Laborales!E34+ Salarios_Demas_Pagos_Laborales!E35+Salarios_Demas_Pagos_Laborales!E37+Salarios_Demas_Pagos_Laborales!E39-Datos_Otros_Ingresos!E42-Datos_Otros_Ingresos!E45-Datos_Otros_Ingresos!E46- Datos_Otros_Ingresos!E47-Datos_Otros_Ingresos!E48-Datos_Otros_Ingresos!E52-Datos_Otros_Ingresos!E54-Salarios_Demas_Pagos_Laborales!E41-Salarios_Demas_Pagos_Laborales!E42)) -> 0 | O7: =Salarios_Demas_Pagos_Laborales!C42 -> 0 | R7: 12 | S7: =IF(R7>12,12,R7) -> 12
B8: TOTALES | E8: =Formulario!Y72 -> 0 | F8: =ROUND((SUM(F5:F7)) /1000,0)*1000 -> 0 | G8: =ROUND((SUM(G5:G7)) /1000,0)*1000 -> 0 | H8: =ROUND((SUM(H5:H7)) /1000,0)*1000 -> 0 | I8: =IF(SUM(I5:I7)-(E8+I10+I9+'costos y deduc'!B283+P8)+H19+Q17+Pagos_terceros!F28<0,0,ROUND((SUM(I5:I7)-(E8+I10+I9+'costos y deduc'!B283+P8)+H19+Q17+Pagos_terceros!F28)/1000,0)*1000) -> 0 | J8: =ROUND(($I$8*TOPES!$B$11)/1000,0)*1000-(Datos_Otros_Ingresos!E5+Datos_Otros_Ingresos!E24+Datos_Otros_Ingresos!E43)*0.25 -> 0 | K8: =IF(SUM(K5:K7)<=0,0,ROUND((SUM(K5:K7))/1000,0)*1000) -> 0 | L8: =IF((J8>TOPES!$C$9),+(TOPES!$C$9),J8)+(Datos_Otros_Ingresos!E5+Datos_Otros_Ingresos!E24+Datos_Otros_Ingresos!E43)*0.25 -> 0 | O8: =SUM(O5:O7) -> 0 | P8: =Formulario!W60 -> 0 | Q8: =IF(AND(O8>2500*TOPES!$C$1,O8>0.25*Formulario!L16),MIN(0.25*Formulario!L16,2500*TOPES!$C$1),IF(AND(O8<2500*TOPES!$C$1,O8<=0.25*Formulario!L16),O8,IF(AND(O8<2500*TOPES!$C$1,O8>0.25*Formulario!L16),MIN(0.25*Formulario!L16,2500*TOPES!$C$1),IF(AND(O8>2500*TOPES!$C$1,O8<=0.25*Formulario!L16),MIN(0.25*Formulario!L16,2500*TOPES!$C$1),O8)))) -> 0
H9: intereses vivienda | I9: =IF(Deduccion_Vivienda!D26=1,Deduccion_Vivienda!E23,0) -> 0 | L9: =IF(SUM(L5:L7)>L8,L8,(SUM(L5:L7))) -> 0
H10: prepagada | I10: =IF(Deduccion_Salud!C23=2,0,Deduccion_Salud!E22) -> 0 | M10: =(E8+Salarios_Demas_Pagos_Laborales!E57+Deduccion_Salud!E22+Salarios_Demas_Pagos_Laborales!E62+Deduccion_Vivienda!E23+Formulario!AG99) -> 0
A11: 2 | B11: R.50 cesantías e intereses sobre cesantías | M11: =MAX(0,IF((J8>TOPES!$C$9),((Datos_Otros_Ingresos!E5+Datos_Otros_Ingresos!E24+Datos_Otros_Ingresos!E43-M10)*0.25)+(TOPES!$C$9),J8+((Datos_Otros_Ingresos!E5+Datos_Otros_Ingresos!E24+Datos_Otros_Ingresos!E43-M10)*0.25))) -> 0
B12: ENTIDAD | C12: NIT | D12: VALOR CESANTIAS RETIRADAS | E12: PROMEDIO SALARIAL ULTIMOS SEIS MESES | F12: TOTAL PARTE NO GRAVADA DE CESANTIAS | H12: TOTAL CESANTIAS GRAVADAS | J12: CESANTÍAS REALIZADAS AÑOS 2017 Y SIGUIENTES
D13: =Salarios_Demas_Pagos_Laborales!E10 -> 0 | E13: =IF(D13=0,0,Datos_Cesantias!E3) -> 0 | F13: =+IF(E13>=0,LOOKUP(E13,cesantias!$A$2:$C$8))*D13 -> 0 | H13: =IF(D13>F13,(D13-F13),0) -> 0 | J13: ENTIDAD | K13: NIT | L13: VALOR RECIBIDO POR CESANTÍAS | M13: PROMEDIO SALARIAL ULTIMOS SEIS MESES | N13: TOTAL PARTE NO GRAVADA DE CESANTIAS | O13: RENTA EXENTA | Q13: TOTAL CESANTIAS GRAVADAS | R13: Cesantías militares y policia a partir del 1 de enero de 2017 | S13: Cesantías militares y policia acumuladas a 31 dic 2016
D14: =Salarios_Demas_Pagos_Laborales!E23 -> 0 | E14: =IF(D14=0,0,Datos_Cesantias!E5) -> 0 | F14: =+IF(E14>=0,LOOKUP(E14,cesantias!$A$2:$C$8))*D14 -> 0 | H14: =IF(D14>F14,(D14-F14),0) -> 0 | J14: =Salarios_Demas_Pagos_Laborales!$C$7 -> 0 | K14: =Salarios_Demas_Pagos_Laborales!$E$7 -> 0 | L14: =Salarios_Demas_Pagos_Laborales!$F$12 -> 0 | M14: =IF(L14=0,0,Datos_Cesantias!E15) -> 0 | N14: =+IF(M14>=0,LOOKUP(M14,cesantias!$A$2:$C$8))*L14 -> 0 | O14: =IF(L14=0,0,IF(L14<=N14,L14,N14)) -> 0 | Q14: =IF(L14>N14,(L14-N14),0) -> 0 | R14: =IF(Datos_Salarios!E3="Si",Salarios_Demas_Pagos_Laborales!$F$12,0) -> 0 | S14: =IF(Datos_Salarios!E3="Si",Salarios_Demas_Pagos_Laborales!E10,0) -> 0
D15: =Salarios_Demas_Pagos_Laborales!E36 -> 0 | E15: =IF(D15=0,0,Datos_Cesantias!E7) -> 0 | F15: =+IF(E15>=0,LOOKUP(E15,cesantias!$A$2:$C$8))*D15 -> 0 | H15: =IF(D15>F15,(D15-F15),0) -> 0 | J15: =Salarios_Demas_Pagos_Laborales!$C$20 -> 0 | K15: =Salarios_Demas_Pagos_Laborales!$E$20 -> 0 | L15: =Salarios_Demas_Pagos_Laborales!$F$25 -> 0 | M15: =IF(L15=0,0,Datos_Cesantias!E17) -> 0 | N15: =+IF(M15>=0,LOOKUP(M15,cesantias!$A$2:$C$8))*L15 -> 0 | O15: =IF(L15=0,0,IF(L15<=N15,L15,N15)) -> 0 | Q15: =IF(L15>N15,(L15-N15),0) -> 0 | R15: =IF(Datos_Salarios!E8="Si",Salarios_Demas_Pagos_Laborales!$F$25,0) -> 0 | S15: =IF(Datos_Salarios!E8="Si",Salarios_Demas_Pagos_Laborales!E23,0) -> 0
D16: 0 | E16: 0 | F16: 0 | H16: 0 | J16: =Salarios_Demas_Pagos_Laborales!$C$33 -> 0 | K16: =Salarios_Demas_Pagos_Laborales!$E$33 -> 0 | L16: =Salarios_Demas_Pagos_Laborales!$F$38 -> 0 | M16: =IF(L16=0,0,Datos_Cesantias!E19) -> 0 | N16: =+IF(M16>=0,LOOKUP(M16,cesantias!$A$2:$C$8))*L16 -> 0 | O16: =IF(L16=0,0,IF(L16<=N16,L16,N16)) -> 0 | Q16: =IF(L16>N16,(L16-N16),0) -> 0 | R16: =IF(Datos_Salarios!E13="Si",Salarios_Demas_Pagos_Laborales!$F$38,0) -> 0 | S16: =IF(Datos_Salarios!E13="Si",Salarios_Demas_Pagos_Laborales!E36,0) -> 0
D17: 0 | E17: 0 | F17: 0 | H17: 0 | J17: TOTALES | L17: =SUM(L14:L16) -> 0 | M17: =SUM(M14:M16) -> 0 | N17: =ROUND(SUM(N14:N16)/1000,0)*1000 -> 0 | O17: =ROUND((SUM(O14:O16)) /1000,0)*1000 -> 0 | P17: =IF(MOD(SUM(O14:O16),1000)=0,SUM(O14:O16),IF(MOD(SUM(O14:O16),1000)<501,SUM(O14:O16)-MOD(SUM(O14:O16),1000),SUM(O14:O16)+(1000-MOD(SUM(O14:O16),1000)))) -> 0 | Q17: =IF(L17>N17,L17-N17,0) -> 0 | R17: =ROUND(SUM(R14:R16)/1000,0)*1000 -> 0 | S17: =ROUND(SUM(S14:S16)/1000,0)*1000 -> 0
D18: 0 | E18: 0 | F18: 0 | H18: 0
B19: TOTALES | D19: =SUM(D13:D18) -> 0 | E19: =SUM(E13:E18) -> 0 | F19: =ROUND((SUM(F13:F18)) /1000,0)*1000 -> 0 | G19: =IF(MOD(SUM(F13:F18),1000)=0,SUM(F13:F18),IF(MOD(SUM(F13:F18),1000)<501,SUM(F13:F18)-MOD(SUM(F13:F18),1000),SUM(F13:F18)+(1000-MOD(SUM(F13:F18),1000)))) -> 0 | H19: =ROUND((SUM(H13:H18)) /1000,0)*1000 -> 0
A22: 3 | B22: R.50 Indemnizaciones por accidente de trabajo o enfermedad, protección a la maternidad, gastos de entierro del trabajador, seguro por muerte y F21:M51compensaciones por muerte de miembros de las FFMM y Policia Nacional
B23: ENTIDAD | C23: NIT | D23: Indemnizaciones y/o bonificaciones recibidas por servidores públicos( art 27 ley 488/98) | E23: Valor indemnizaciones por accidente de trabajo o enfermedad, | F23: Valor indemnizaciones protección a la maternidad | G23: Valor recibido por gastos de entierro del trabajador. | H23: Valor recibido por seguro por muerte y compensaciones por muerte de miembros de las FFMM y Policia Nacional. | I23: MAXIMO VALOR EXENTO - Proteccion a la maternidad | J23: VALOR EXENTO | L23: Prima especial y primas costo de vida. Diplomáticos, Consulares y administrativos | M23: Licencia de maternidad
B24: =Salarios_Demas_Pagos_Laborales!$E$7 -> 0 | C24: =Salarios_Demas_Pagos_Laborales!$E$8 -> 0 | D24: =IF(Salarios_Demas_Pagos_Laborales!E13<=0,0,Datos_Otros_Ingresos!E4) -> 0 | E24: =IF(Salarios_Demas_Pagos_Laborales!E13<=0,0,Datos_Otros_Ingresos!E7) -> 0 | F24: =Datos_Otros_Ingresos!E9 -> 0 | G24: =IF(Salarios_Demas_Pagos_Laborales!E13<=0,0,Datos_Otros_Ingresos!E11) -> 0 | H24: =IF(Salarios_Demas_Pagos_Laborales!E13<=0,0,Datos_Otros_Ingresos!E13) -> 0 | I24: =F24 -> 0 | J24: =ROUND((+D24+E24+F24+G24)/1000,0)*1000 -> 0 | L24: =Datos_Otros_Ingresos!E18 -> 0 | M24: =Datos_Otros_Ingresos!E8 -> 0
B25: =Salarios_Demas_Pagos_Laborales!$E$20 -> 0 | C25: =Salarios_Demas_Pagos_Laborales!$E$21 -> 0 | D25: =IF(Salarios_Demas_Pagos_Laborales!E26<=0,0,Datos_Otros_Ingresos!E23) -> 0 | E25: =IF(Salarios_Demas_Pagos_Laborales!E26<=0,0,Datos_Otros_Ingresos!E26) -> 0 | F25: =Datos_Otros_Ingresos!E28 -> 0 | G25: =IF(Salarios_Demas_Pagos_Laborales!E26<=0,0,Datos_Otros_Ingresos!E30) -> 0 | H25: =IF(Salarios_Demas_Pagos_Laborales!E26<=0,0,Datos_Otros_Ingresos!E32) -> 0 | I25: =F25 -> 0 | J25: =ROUND((+D25+E25+F25+G25)/1000,0)*1000 -> 0 | L25: =Datos_Otros_Ingresos!E37 -> 0 | M25: =Datos_Otros_Ingresos!E27 -> 0
B26: =Salarios_Demas_Pagos_Laborales!$E$33 -> 0 | C26: =Salarios_Demas_Pagos_Laborales!$E$34 -> 0 | D26: =IF(Salarios_Demas_Pagos_Laborales!E39<=0,0,Datos_Otros_Ingresos!E42) -> 0 | E26: =IF(Salarios_Demas_Pagos_Laborales!E39<=0,0,Datos_Otros_Ingresos!E45) -> 0 | F26: =Datos_Otros_Ingresos!E47 -> 0 | G26: =IF(Salarios_Demas_Pagos_Laborales!E39<=0,0,Datos_Otros_Ingresos!E49) -> 0 | H26: =IF(Salarios_Demas_Pagos_Laborales!E39<=0,0,Datos_Otros_Ingresos!E51) -> 0 | I26: =F26 -> 0 | J26: =ROUND((+D26+E26+F26+G26)/1000,0)*1000 -> 0 | L26: =Datos_Otros_Ingresos!E56 -> 0 | M26: =Datos_Otros_Ingresos!E46 -> 0
B27: TOTALES | D27: =ROUND(SUM(D24:D26)/1000,0)*1000 -> 0 | E27: =ROUND(SUM(E24:E26)/1000,0)*1000 -> 0 | F27: =ROUND(SUM(F24:F26)/1000,0)*1000 -> 0 | G27: =ROUND(SUM(G24:G26)/1000,0)*1000 -> 0 | H27: =SUM(H24:H26) -> 0 | I27: =ROUND(SUM(I24:I26)/1000,0)*1000 -> 0 | J27: =ROUND((SUM(J24:J26))/1000,0)*1000 -> 0 | K27: =IF(MOD(SUM(J24:J26),1000)=0,SUM(J24:J26),IF(MOD(SUM(J24:J26),1000)<501,SUM(J24:J26)-MOD(SUM(J24:J26),1000),SUM(J24:J26)+(1000-MOD(SUM(J24:J26),1000)))) -> 0 | L27: =ROUND((SUM(L24:L26))/1000,0)*1000 -> 0 | M27: =ROUND((SUM(M24:M26))/1000,0)*1000 -> 0
A30: 6 | B30: R.50 Pensiones de jubilación, invalidez, vejez, de sobrevivientes y sobre riesgos profesionales | K30: R.50 Pensiones del exterior
B31: ENTIDAD | C31: NIT | D31: VALOR RECIBIDO POR PENSION | E31: Numero de Meses a la cual corresponda la pensiòn | F31: MAXIMO VALOR EXENTO | G31: RENTA EXENTA | I31: PENSIÓN GRAVADA | K31: ENTIDAD | L31: NIT | M31: VALOR RECIBIDO POR PENSION | N31: Numero de Meses a la cual corresponda la pensiòn | O31: MAXIMO VALOR EXENTO | P31: RENTA EXENTA | R31: PENSIÓN GRAVADA
B32: =Pensiones!B7 -> 0 | C32: =Pensiones!C7 -> 0 | D32: =Pensiones!G7+M32 -> 0 | E32: =IF(D32=0,0,IF(Pensiones!E7+N32<12,Pensiones!E7+N32,IF(Pensiones!E7+N32=24,12,IF(AND(Pensiones!E7+N32>=12,Pensiones!E7+N32<=24),12,IF(Pensiones!E7+N32>24,MIN(Pensiones!E7,N32)+(ABS(Pensiones!E7-N32))))))) -> 0 | F32: =1000*E32*TOPES!$B$7 -> 0 | G32: =IF(D32=0,0,IF(D32<=F32,D32,F32)) -> 0 | I32: =IF(D32-G32<0,0,D32-G32) -> 0 | K32: =Pensiones!B26 -> 0 | L32: =Pensiones!C26 -> 0 | M32: =Pensiones!G26 -> 0 | N32: =IF(M32=0,0,+Pensiones!E26) -> 0 | O32: =1000*N32*TOPES!$B$7 -> 0 | P32: =IF(M32=0,0,IF(M32<=O32,M32,O32)) -> 0 | R32: =IF(M32-P32<0,0,M32-P32) -> 0
B33: =Pensiones!B8 -> 0 | C33: =Pensiones!C8 -> 0 | D33: =Pensiones!G8+M33 -> 0 | E33: =IF(D33=0,0,IF(Pensiones!E8+N33=24,12,IF(AND(Pensiones!E8+N33>=12,Pensiones!E8+N33<24),12,IF(Pensiones!E8+N33>24,MIN(Pensiones!E8,N33)+(ABS(Pensiones!E8-N33)))))) -> 0 | F33: =1000*E33*TOPES!$B$7 -> 0 | G33: =IF(D33=0,0,IF(D33<=F33,D33,F33)) -> 0 | I33: =IF(D33-G33<0,0,D33-G33) -> 0 | K33: =Pensiones!B27 -> 0 | L33: =Pensiones!C27 -> 0 | M33: =Pensiones!G27 -> 0 | N33: =IF(M33=0,0,+Pensiones!E27) -> 0 | O33: =1000*N33*TOPES!$B$7 -> 0 | P33: =IF(M33=0,0,IF(M33<=O33,M33,O33)) -> 0 | R33: =IF(M33-P33<0,0,M33-P33) -> 0
B34: =Pensiones!B9 -> 0 | C34: =Pensiones!C9 -> 0 | D34: =Pensiones!G9+M34 -> 0 | E34: =IF(D34=0,0,IF(Pensiones!E9+N34=24,12,IF(AND(Pensiones!E9+N34>=12,Pensiones!E9+N34<24),12,IF(Pensiones!E9+N34>24,MIN(Pensiones!E9,N34)+(ABS(Pensiones!E9-N34)))))) -> 0 | F34: =1000*E34*TOPES!$B$7 -> 0 | G34: =IF(D34=0,0,IF(D34<=F34,D34,F34)) -> 0 | I34: =IF(D34-G34<0,0,D34-G34) -> 0 | K34: =Pensiones!B28 -> 0 | L34: =Pensiones!C28 -> 0 | M34: =Pensiones!G28 -> 0 | N34: =IF(M34=0,0,+Pensiones!E28) -> 0 | O34: =1000*N34*TOPES!$B$7 -> 0 | P34: =IF(M34=0,0,IF(M34<=O34,M34,O34)) -> 0 | R34: =IF(M34-P34<0,0,M34-P34) -> 0
B35: TOTALES | D35: =SUM(D32:D34) -> 0 | E35: =SUM(E32:E34) -> 0 | F35: =SUM(F32:F34) -> 0 | G35: =ROUND((IF(SUM(G32:G34)>1000*E35*TOPES!$B$7,1000*E35*TOPES!$B$7,SUM(G32:G34))) /1000,0)*1000 -> 0 | H35: =G35 -> 0 | I35: =IF(D35>G35,D35-G35,0) -> 0 | K35: TOTALES | M35: =SUM(M32:M34) -> 0 | N35: =SUM(N32:N34) -> 0 | O35: =SUM(O32:O34) -> 0 | P35: =ROUND((IF(SUM(P32:P34)>1000*N35*TOPES!$B$7,1000*N35*TOPES!$B$7,SUM(P32:P34))) /1000,0)*1000 -> 0 | Q35: =P35 -> 0 | R35: =IF(M35>P35,M35-P35,0) -> 0
B38: R.50 Indemnizaciones sustitutivas de la pensión,
B39: ENTIDAD | C39: NIT | D39: Valor recibido por Indemnizaciones sustitutivas de la pensión. | E39: Numero de Meses a la cual corresponda la Indemnizaciones sustitutivas de la pensión. | F39: MAXIMO VALOR EXENTO | G39: RENTA EXENTA
B40: =Pensiones!B20 -> 0 | C40: =Pensiones!C20 -> 0 | D40: =Pensiones!G20 -> 0 | E40: =Pensiones!E20 -> 0 | F40: =1000*TOPES!$B$7*E40 -> 0 | G40: =IF(D40=0,0,IF(D40<=F40,D40,F40)) -> 0
B41: =Pensiones!B21 -> 0 | C41: =Pensiones!C21 -> 0 | D41: =Pensiones!G21 -> 0 | E41: =Pensiones!E21 -> 0 | F41: =1000*TOPES!$B$7*E41 -> 0 | G41: =IF(D41=0,0,IF(D41<=F41,D41,F41)) -> 0
B43: TOTALES | D43: =SUM(D40:D41) -> 0 | E43: =SUM(E40:E41) -> 0 | F43: =SUM(F40:F41) -> 0 | G43: =ROUND((SUM(G40:G41)/1000),0)*1000 -> 0 | H43: =IF(MOD(SUM(G40:G41),1000)=0,SUM(G40:G41),IF(MOD(SUM(G40:G41),1000)<501,SUM(G40:G41)-MOD(SUM(G40:G41),1000),SUM(G40:G41)+(1000-MOD(SUM(G40:G41),1000)))) -> 0
B46: R.50 Devoluciones de saldos de ahorro pensional
B47: ENTIDAD | C47: NIT | D47: Valor recibido por devoluciones de saldos de ahorro pensional | E47: Numero de Meses a la cual corresponda la devolución del saldos de ahorro pensional | F47: MAXIMO VALOR EXENTO | G47: RENTA EXENTA | I47: RETIROS GRAVADOS
B48: =Pensiones!B20 -> 0 | C48: =Pensiones!C20 -> 0 | D48: =Pensiones!G14 -> 0 | E48: =Pensiones!E14 -> 0 | F48: =1000*TOPES!$B$7*E48 -> 0 | G48: =IF(D48=0,0,IF(D48<=F48,D48,F48)) -> 0
B49: =Pensiones!B15 -> 0 | C49: =Pensiones!C15 -> 0 | D49: =Pensiones!G15 -> 0 | E49: =Pensiones!E15 -> 0 | F49: =1000*TOPES!$B$7*E49 -> 0 | G49: =IF(D49=0,0,IF(D49<=F49,D49,F49)) -> 0 | J49: =Pensiones!G10+Pensiones!G16+Pensiones!G22 -> 0 | K49: =J49+E55 -> 0 | L49: =IFERROR(J50/J51,0) -> 0
B50: TOTALES | D50: =SUM(D48+D49) -> 0 | E50: =SUM(E48+E49) -> 0 | F50: =SUM(F48+F49) -> 0 | G50: =SUM(G48+G49) -> 0 | H50: =IF(MOD(SUM(G48+G49),1000)=0,SUM(G48+G49),IF(MOD(SUM(G48+G49),1000)<501,SUM(G48+G49)-MOD(SUM(G48+G49),1000),SUM(G48+G49)+(1000-MOD(SUM(G48+G49),1000)))) -> 0 | I50: =IF(D50>F50,(D50-F50),0) -> 0 | J50: =I54 -> 0 | K50: =I54 -> 0
J51: =ROUND((H35+H43+H50+G55)/1000,0)*1000 -> 0 | K51: =IF(G54>F54,F54-K50,IF(G55+G54-K50<0,0,G55+G54-K50))+G53 -> 0
L52: =IF(SUM(K50:K51)>=K51,K51,K50:K51) -> 0
F53: =IF(G53>12000*TOPES!B7,12000*TOPES!B7,G53) -> 0 | G53: =ROUND((H35)/1000,0)*1000 -> 0
B54: SUB TOTAL RENTAS EXENTAS PENSIONES | E54: =+K8+L8+F19+J27+N17+H27 -> 0 | F54: =IF(H54>(E50+E43)*1000*TOPES!B7,(E50+E43)*1000*TOPES!B7,H54) -> 0 | G54: =ROUND((H43+H50)/1000,0)*1000 -> 0 | H54: =Pensiones!G10+Pensiones!G16+Pensiones!G22 -> 0 | J54: afc | K54: =K49 -> 0
B55: PENSIONES DEL EXTERIOR paises con convenio | E55: =Pensiones!D34 -> 0 | G55: =Pensiones!E34 -> 0
B58: R 50. Otros ingresos (otras rentas exentas)
B59: APELLIDOS Y NOMBRE / RAZON SOCIAL | C59: NIT / CC | D59: CONCEPTO | E59: VALOR
B61: =Otros_Ing_Rentas_Exentas!B8 -> 0 | C61: =Otros_Ing_Rentas_Exentas!C8 -> 0 | D61: =Otros_Ing_Rentas_Exentas!D8 -> 0 | E61: =Otros_Ing_Rentas_Exentas!G8 -> 0 | F61: =ROUND((E61) /1000,0)*1000 -> 0
B62: =Otros_Ing_Rentas_Exentas!B9 -> 0 | C62: =Otros_Ing_Rentas_Exentas!C9 -> 0 | D62: =Otros_Ing_Rentas_Exentas!D9 -> 0 | E62: =Otros_Ing_Rentas_Exentas!G9 -> 0 | F62: 0
B63: =Otros_Ing_Rentas_Exentas!B10 -> 0 | C63: =Otros_Ing_Rentas_Exentas!C10 -> 0 | D63: =Otros_Ing_Rentas_Exentas!D10 -> 0 | E63: =Otros_Ing_Rentas_Exentas!G10 -> 0 | F63: 0
B64: =Otros_Ing_Rentas_Exentas!B11 -> 0 | C64: =Otros_Ing_Rentas_Exentas!C11 -> 0 | D64: =Otros_Ing_Rentas_Exentas!D11 -> 0 | E64: =Otros_Ing_Rentas_Exentas!G11 -> 0 | F64: 0
B65: =Otros_Ing_Rentas_Exentas!B12 -> 0 | C65: =Otros_Ing_Rentas_Exentas!C12 -> 0 | D65: =Otros_Ing_Rentas_Exentas!D12 -> 0 | E65: =Otros_Ing_Rentas_Exentas!G12 -> 0 | F65: 0
B66: =Otros_Ing_Rentas_Exentas!B13 -> 0 | C66: =Otros_Ing_Rentas_Exentas!C13 -> 0 | D66: =Otros_Ing_Rentas_Exentas!D13 -> 0 | E66: =Otros_Ing_Rentas_Exentas!G13 -> 0 | F66: 0
B67: =Otros_Ing_Rentas_Exentas!B14 -> 0 | C67: =Otros_Ing_Rentas_Exentas!C14 -> 0 | D67: =Otros_Ing_Rentas_Exentas!D14 -> 0 | E67: =Otros_Ing_Rentas_Exentas!G14 -> 0 | F67: 0
B68: =Otros_Ing_Rentas_Exentas!B15 -> 0 | C68: =Otros_Ing_Rentas_Exentas!C15 -> 0 | D68: =Otros_Ing_Rentas_Exentas!D15 -> 0 | E68: =Otros_Ing_Rentas_Exentas!G15 -> 0 | F68: 0
B69: =Otros_Ing_Rentas_Exentas!B16 -> 0 | C69: =Otros_Ing_Rentas_Exentas!C16 -> 0 | D69: =Otros_Ing_Rentas_Exentas!D16 -> 0 | E69: =Otros_Ing_Rentas_Exentas!G16 -> 0 | F69: 0
B70: =Otros_Ing_Rentas_Exentas!B17 -> 0 | C70: =Otros_Ing_Rentas_Exentas!C17 -> 0 | D70: =Otros_Ing_Rentas_Exentas!D17 -> 0 | E70: =Otros_Ing_Rentas_Exentas!G17 -> 0 | F70: 0
B71: =Otros_Ing_Rentas_Exentas!B18 -> 0 | C71: =Otros_Ing_Rentas_Exentas!C18 -> 0 | D71: =Otros_Ing_Rentas_Exentas!D18 -> 0 | E71: =Otros_Ing_Rentas_Exentas!G18 -> 0 | F71: 0
B72: =Otros_Ing_Rentas_Exentas!B19 -> 0 | C72: =Otros_Ing_Rentas_Exentas!C19 -> 0 | D72: =Otros_Ing_Rentas_Exentas!D19 -> 0 | E72: =Otros_Ing_Rentas_Exentas!G19 -> 0 | F72: 0
B73: =Otros_Ing_Rentas_Exentas!B20 -> 0 | C73: =Otros_Ing_Rentas_Exentas!C20 -> 0 | D73: =Otros_Ing_Rentas_Exentas!D19 -> 0 | E73: =Otros_Ing_Rentas_Exentas!G20 -> 0 | F73: 0
B74: =Otros_Ing_Rentas_Exentas!B21 -> 0 | C74: =Otros_Ing_Rentas_Exentas!C21 -> 0 | D74: =Otros_Ing_Rentas_Exentas!D21 -> 0 | E74: =Otros_Ing_Rentas_Exentas!G21 -> 0 | F74: 0
B75: =Otros_Ing_Rentas_Exentas!B22 -> 0 | C75: =Otros_Ing_Rentas_Exentas!C22 -> 0 | D75: =Otros_Ing_Rentas_Exentas!D22 -> 0 | E75: =Otros_Ing_Rentas_Exentas!G22 -> 0 | F75: 0
B76: =Otros_Ing_Rentas_Exentas!B23 -> 0 | C76: =Otros_Ing_Rentas_Exentas!C23 -> 0 | D76: =Otros_Ing_Rentas_Exentas!D23 -> 0 | E76: =Otros_Ing_Rentas_Exentas!G23 -> 0 | F76: 0
B77: =Otros_Ing_Rentas_Exentas!B24 -> 0 | C77: =Otros_Ing_Rentas_Exentas!C24 -> 0 | D77: =Otros_Ing_Rentas_Exentas!D24 -> 0 | E77: =Otros_Ing_Rentas_Exentas!G24 -> 0 | F77: 0
B78: =Otros_Ing_Rentas_Exentas!B25 -> 0 | C78: =Otros_Ing_Rentas_Exentas!C25 -> 0 | D78: =Otros_Ing_Rentas_Exentas!D25 -> 0 | E78: =Otros_Ing_Rentas_Exentas!G25 -> 0 | F78: 0
B79: =Otros_Ing_Rentas_Exentas!B26 -> 0 | C79: =Otros_Ing_Rentas_Exentas!C26 -> 0 | D79: =Otros_Ing_Rentas_Exentas!D26 -> 0 | E79: =Otros_Ing_Rentas_Exentas!G26 -> 0 | F79: 0
B80: TOTALES | E80: =SUM(F61:F79) -> 0 | F80: =IF(MOD(SUM(F61:F79),1000)=0,SUM(F61:F79),IF(MOD(SUM(F61:F79),1000)<501,SUM(F61:F79)-MOD(SUM(F61:F79),1000),SUM(F61:F79)+(1000-MOD(SUM(F61:F79),1000)))) -> 0
B83: SUB TOTAL OTRAS RENTAS EXENTAS | E83: =ROUND(E80/1000,0)*1000 -> 0
B86: R. 50. TOTAL RENTA EXENTA | E86: =+E54+E83 -> 0 | F86: =Formulario!N114 -> 0 | G86: =F86-E86 -> 0
B92: PRORRATEO RENTAS EXENTAS
B93: =IF(Formulario!L20=0,0,IF(Formulario!L20<+'renta exenta '!F19+N17+H27+'renta exenta '!J27,Formulario!L20,ROUND((+'renta exenta '!F19+N17+H27+'renta exenta '!J27)/1000,0)*1000)) -> 0
B95: =ROUND(K8/1000,0)*1000 -> 0
B96: =ROUND(Formulario!Y72/1000,0)*1000 -> 0
B97: =IF(Formulario!L20=0,0,ROUND((Datos_Otros_Ingresos!E16+Datos_Otros_Ingresos!E35+Datos_Otros_Ingresos!E54)/1000,0)*1000) -> 0
B98: ='renta exenta '!L8 -> 0
B99: =SUM(B93:B98) -> 0 | C99: =IF(B99>Formulario!L20,1-(B99-Formulario!L20)/B99,1) -> 1.00

Sheet TOPES (hidden)
A1: CONCEPTO | B1: VALOR TOPE 2023 | C1: 42412 | D1: uvt | E1: pesos | F1: 38004 | G1: 26841 | H1: 47065 | I1: 26049 | J1: 25132 | K1: 22054
A2: Patrimonio bruto | B2: =$E$2 -> 190854000 | C2: 2023 | D2: 4500 | E2: =ROUND($C$1*D2,-3) -> 190854000 | F2: 2022 | G2: 2013 | H2: 2024 | I2: 2012 | J2: 2011 | K2: 2008
A3: Ingresos brutos menores ingresos | B3: =$E$3 -> 59377000 | D3: 1400 | E3: =ROUND($C$1*D3,-3) -> 59377000 | F3: ART 311-1
A4: Ingresos brutos asalariado | B4: =$E$4 -> 59377000 | D4: 1400 | E4: =ROUND($C$1*D4,-3) -> 59377000
A5: Trabajador independiente | B5: =$E$5 -> 59377000 | D5: 1400 | E5: =ROUND($C$1*D5,-3) -> 59377000
A7: UVT 2023 | B7: =C1 -> 42412
A8: SML varios años
A9: Renta exenta 25% del ingreso laboral | B9: =$E$9 -> 2792120 | C9: =B9*12 -> 33505440 | D9: =790/12 -> 65.83333333 | E9: =ROUND($C$1*D9,-1) -> 2792120
A10: Aportes obligatorios y voluntarios a fondos de pensiòn y ctas AFC | B10: 0.3
A11: Renta exenta laboral como porcentaje | B11: 0.25
A12: deducción por inversión en activos fijos | B12: 0.3
A13: Límite maximo a deducir por intereses de vivienda | B13: =$E$13 -> 50894000 | D13: 1200 | E13: =ROUND($C$1*D13,-3) -> 50894000
A14: Límite máximo a deducir por pagos de salud y edcuación | B14: 0.15
A15: Límite a deducir por concepto de impuestos (predial e industria y comercio) | B15: 1
A16: Intereses de mora
A17: Límite a la sanción por extemporaneidad año 2024 | B17: =$E$17 -> 117663000 | D17: 2500 | E17: =ROUND($H$1*D17,-3) -> 117663000
A19: Porcentaje renta presuntiva | B19: 0
A20: tasa representativa del mercado TRM a dic 31 2023 | C20: 3822.05
A21: Porcentaje extemporaneidad cuando impuesto a cargo | B21: 0.05
A22: Porcentaje extemporaneidad cuando la base son los ingresos brutos | B22: 0.005
A23: Límite para la Deducción Especial por Inversión en nueva plantaciones, riegos, pozos y silos | B23: 0.1
A24: Límite para la Deducción Especial por Inversión en centros de reclusión | B24: 0.15
A25: Límite para la Deducción Especial por Inversiones en proyectos cinematograficos | B25: 1.65
A26: Deduccion por donaciones a Entidades con limitante a la Renta líquida de | B26: 0.3
A27: Deducción por donaciones a Entidades superior al valor de la donación | B27: 1.25
A28: Ganancia Ocasional Exenta Herencias o Legados | B28: 0.2
A29: Límite ganancia ocasional exenta Herencias o Legados | B29: =$E$29 -> 68920000 | D29: 1625 | E29: =ROUND($C$1*D29,-3) -> 68920000
A30: Ganancia Ocasional Exenta tarifa 0% | B30: =$E$30 -> 50894000 | D30: 1200 | E30: =ROUND($C$1*D30,-3) -> 50894000
A31: Límite ganancia ocasional exenta herencia o legados (porcentaje) | B31: 0.2
A32: Límite ganancia ocasional exenta premios de apuestas y concursos hipícos o caninos | B32: 0.2
A33: Porcentaje que constituye Renta Líquida en explotación de películas | B33: 0.6
A34: Porcentaje que constituye Renta Líquida en explotación de programas de computador | B34: 0.8
A35: Sanciòn mìnima legal AÑO 2024 | B35: =E35 -> 471000 | D35: 10 | E35: =ROUND(D35*$H$1,-3) -> 471000
A36: Límite en salarios mìnimos para la Deducción Especial por Inversiones en librerias hoy UVT | B36: =E36 -> 424120000 | C36: 10000 | E36: =C36*C1 -> 424120000
A37: Exclusión renta presuntiva del valor de la vivienda de habitación. | B37: =$E$37 -> 304032000 | D37: 8000 | E37: =ROUND($F$1*D37,-3) -> 304032000
A38: Exclusión renta presuntiva del valor de activos destinados al sector agropecuario. | B38: =$E$38 -> 722076000 | D38: 19000 | E38: =ROUND($F$1*D38,-3) -> 722076000
A39: Límite para la deducción por inversión desarrollo cientifico y tecnològico | B39: 1.75
A40: Límite para la deducción por inversión desarrollo cientifico y tecnològico (renta liquida) | B40: 0.4
A41: Límite para la deducción donaciòn e inversiòn para adelantar proyectos agroindustriales. | B41: 0
A42: Sobretasa | B42: 0
A43: Límite para descuento tributario por inversiòn de reforestaciòn | B43: 0.2
A44: Base retencion en la fuente loterias, rifas, apuestas y similares superior | B44: =$E$44 -> 2036000 | D44: 48 | E44: =ROUND($C$1*D44,-3) -> 2036000
A45: Ganancia Ocasional no constitutiva (se reciben premios de apuestas y concursos hipicos o caninos) en UVT | B45: =E45 -> 0 | C45: 0 | E45: =C45*C1 -> 0
A46: Limite de renta exenta mensual | B46: =$E$46 -> 10179000 | D46: 240 | E46: =ROUND($C$1*D46,-3) -> 10179000
A47: limIte max. por aportes a fondos de cesantía (trabajadores independientes) 126 - 1 | B47: =$E$47 -> 106030000 | D47: 2500 | E47: =ROUND($C$1*D47,-3) -> 106030000
A48: Año base renta o ganancia ocasional | B48: 2021
A49: Límite para descuento tributario por inversiòn de reforestaciòn del basico de renta. | B49: 0.2
A50: otros topes de los obligados - compras | B50: =$E$50 -> 59377000 | D50: 1400 | E50: =ROUND($C$1*D50,-3) -> 59377000
A51: consumos tarjeta de credito | B51: =$E$51 -> 59377000 | D51: 1400 | E51: =ROUND($C$1*D51,-3) -> 59377000
A52: consignaciones | B52: =$E$52 -> 59377000 | D52: 1400 | E52: =ROUND($C$1*D52,-3) -> 59377000
A53: Tope Costos y Gastos incurridos en el exterior | B53: 0.15
A54: Nuevo art 307 del ET Ganancia ocasiobal exenta herencia o legado legitimarios inmuebles | B54: =$E$54 -> 551356000 | D54: 13000 | E54: =ROUND(D54*C1/1000,0)*1000 -> 551356000
A55: Nuevo art 307 del ET Ganancia ocasiobal exenta herencia o legado otras asignaciones | B55: =$E$55 -> 137839000 | D55: 3250 | E55: =ROUND(D55*C1/1000,0)*1000 -> 137839000
A56: Nuevo art 307 del ET Ganancia ocasiobal exenta herencia o legado otras asignaciones | B56: =$E$56 -> 275678000 | D56: 6500 | E56: =ROUND(D56*C1/1000,0)*1000 -> 275678000

Sheet plazos (hidden)
A1: 1 | C1: 2024-08-12
A2: 2 | C2: 2024-08-12 | Z2: =VLOOKUP(Z1,AY_DAT_GEN!A2:E53,5,0) -> 
A3: 3 | C3: 2024-08-13
A4: 4 | C4: 2024-08-13 | Z4: AY_DAT_GEN
A5: 5 | C5: 2024-08-14
A6: 6 | C6: 2024-08-14
A7: 7 | C7: 2024-08-15
A8: 8 | C8: 2024-08-15
A9: 9 | C9: 2024-08-16
A10: 10 | C10: 2024-08-16
A11: 11 | C11: 2024-08-20
A12: 12 | C12: 2024-08-20
A13: 13 | C13: 2024-08-21
A14: 14 | C14: 2024-08-21
A15: 15 | C15: 2024-08-22
A16: 16 | C16: 2024-08-22
A17: 17 | C17: 2024-08-23
A18: 18 | C18: 2024-08-23
A19: 19 | C19: 2024-08-26
A20: 20 | C20: 2024-08-26
A21: 21 | C21: 2024-08-27
A22: 22 | C22: 2024-08-27
A23: 23 | C23: 2024-08-28
A24: 24 | C24: 2024-08-28
A25: 25 | C25: 2024-08-29
A26: 26 | C26: 2024-08-29
A27: 27 | C27: 2024-09-02
A28: 28 | C28: 2024-09-02
A29: 29 | C29: 2024-09-03
A30: 30 | C30: 2024-09-03
A31: 31 | C31: 2024-09-04
A32: 32 | C32: 2024-09-04
A33: 33 | C33: 2024-09-05
A34: 34 | C34: 2024-09-05
A35: 35 | C35: 2024-09-06
A36: 36 | C36: 2024-09-06
A37: 37 | C37: 2024-09-09
A38: 38 | C38: 2024-09-09
A39: 39 | C39: 2024-09-10
A40: 40 | C40: 2024-09-10
A41: 41 | C41: 2024-09-11
A42: 42 | C42: 2024-09-11
A43: 43 | C43: 2024-09-12
A44: 44 | C44: 2024-09-12
A45: 45 | C45: 2024-09-13
A46: 46 | C46: 2024-09-13
A47: 47 | C47: 2024-09-16
A48: 48 | C48: 2024-09-16
A49: 49 | C49: 2024-09-17
A50: 50 | C50: 2024-09-17
A51: 51 | C51: 2024-09-18
A52: 52 | C52: 2024-09-18
A53: 53 | C53: 2024-09-19
A54: 54 | C54: 2024-09-19
A55: 55 | C55: 2024-09-20
A56: 56 | C56: 2024-09-20
A57: 57 | C57: 2024-09-23
A58: 58 | C58: 2024-09-23
A59: 59 | C59: 2024-09-24
A60: 60 | C60: 2024-09-24
A61: 61 | C61: 2024-09-25
A62: 62 | C62: 2024-09-25
A63: 63 | C63: 2024-09-26
A64: 64 | C64: 2024-09-26
A65: 65 | C65: 2024-09-27
A66: 66 | C66: 2024-09-27
A67: 67 | C67: 2024-10-01
A68: 68 | C68: 2024-10-01
A69: 69 | C69: 2024-10-02
A70: 70 | C70: 2024-10-02
A71: 71 | C71: 2024-10-03
A72: 72 | C72: 2024-10-03
A73: 73 | C73: 2024-10-04
A74: 74 | C74: 2024-10-04
A75: 75 | C75: 2024-10-07
A76: 76 | C76: 2024-10-07
A77: 77 | C77: 2024-10-08
A78: 78 | C78: 2024-10-08
A79: 79 | C79: 2024-10-09
A80: 80 | C80: 2024-10-09
A81: 81 | C81: 2024-10-10
A82: 82 | C82: 2024-10-10
A83: 83 | C83: 2024-10-11
A84: 84 | C84: 2024-10-11
A85: 85 | C85: 2024-10-15
A86: 86 | C86: 2024-10-15
A87: 87 | C87: 2024-10-16
A88: 88 | C88: 2024-10-16
A89: 89 | C89: 2024-10-17
A90: 90 | C90: 2024-10-17
A91: 91 | C91: 2024-10-18
A92: 92 | C92: 2024-10-18
A93: 93 | C93: 2024-10-21
A94: 94 | C94: 2024-10-21
A95: 95 | C95: 2024-10-22
A96: 96 | C96: 2024-10-22
A97: 97 | C97: 2024-10-23
A98: 98 | C98: 2024-10-23
A99: 99 | B99: 100 | C99: 2024-10-24

Sheet monedas (hidden)
A1: Dólar americano | B1: =C$1*1 -> $ 3,822.05 | C1: $ 3,822.05
A2: Baht tailandés | B2: 0.02930 | C2: =B2*$C$1 -> $ 111.99
A3: Balboa panameño | B3: 1.00000 | C3: =B3*$C$1 -> $ 3,822.05 | T3: =VLOOKUP(T1,AY_DAT_GEN!A2:E53,5,0) -> 
A4: Bolívar Digital | C4: $ 0.00
A5: Chelín austriaco | B5: 0.08028 | C5: $ 306.83 | T5: AY_DAT_GEN
A6: Corona danesa | B6: 0.14820 | C6: $ 566.43
A7: Corona noruega | B7: 0.09849 | C7: $ 376.43
A8: Corona sueca | B8: 0.09925 | C8: $ 379.34
A9: Dólar australiano | B9: 0.68250 | C9: $ 2,608.55
A10: Dólar canadiense | B10: 0.75849 | C10: $ 2,898.99
A11: Dólar de Hong Kong | B11: 0.12806 | C11: $ 489.45
A12: Dólar de Singapur | B12: 0.75826 | C12: $ 2,898.11
A13: Dólar neozelandés | B13: 0.63340 | C13: =B13*$C$1 -> $ 2,420.89
A14: Dólar taiwanés | B14: 0.03258 | C14: $ 124.52
A15: Euro | B15: 1.10480 | C15: $ 4,222.60
A16: Florín Holandes | B16: 0.50132 | C16: $ 1,916.07
A17: Forint húngaro | B17: 0.00289 | C17: $ 11.05
A18: Franco belga | B18: 0.02738 | C18: $ 104.65
A19: Franco francés | B19: 0.16842 | C19: $ 643.71
A20: Franco suizo | B20: 1.18835 | C20: $ 4,541.93
A21: Libra esterlina | B21: 1.27500 | C21: $ 4,873.11
A22: LIRA ITALIANA | B22: 0.00057 | C22: $ 2.18
A23: Marco Alemán | B23: 0.56487 | C23: $ 2,158.96
A24: Nueva lira turca | B24: 0.03387 | C24: $ 129.45
A25: Nuevo shequel israelí | B25: 0.27780 | C25: $ 1,061.77
A26: Nuevo Sol peruano | B26: 0.27063 | C26: $ 1,034.36
A27: Peseta española | B27: 0.00663 | C27: $ 25.34
A28: Peso argentino | B28: 0.00123 | C28: $ 4.70
A29: Peso chileno | B29: 0.00114 | C29: =B29*$C$1 -> $ 4.36
A30: Peso mexicano | B30: 0.05905 | C30: $ 225.69
A31: Peso uruguayo | B31: 0.02579 | C31: $ 98.57
A32: Quetzal guatemalteco | B32: 0.12776 | C32: $ 488.31
A33: Rand sudafricano | B33: 0.05469 | C33: $ 209.03
A34: Real brasileño | B34: 0.20658 | C34: $ 789.56
A35: Reminbi Chino | B35: 0.14100 | C35: $ 538.91
A36: Reminbi Chino Offshore | B36: 0.14044 | C36: $ 536.77
A37: Ringgit malayo | B37: 0.21786 | C37: $ 832.67
A38: Rublo ruso | B38: 0.01123 | C38: =B38*$C$1 -> $ 42.92
A39: Rupia india | B39: 0.01201 | C39: =B39*$C$1 -> $ 45.90
A40: Rupiah indonesia | B40: 0.00006 | C40: $ 0.23
A41: Sucre ecuatoriano | B41: 0.00004 | C41: $ 0.15
A42: Won surcoreano | B42: 0.00077 | C42: $ 2.94
A43: Yen japonés | B43: 0.00709 | C43: $ 27.10
A44: zloty polaco | B44: 0.25441 | C44: $ 972.37
B47: año 2023

Sheet cesantias (hidden)
A1: año 2023 | B1: salario mensual promedio | C1: parte no gravada | D1: =TOPES!C1 -> 42412
A2: 0 | B2: =ROUND(350*$D$1,-3) -> 14,844,000 | C2: 100% | S2: =VLOOKUP(S1,AY_DAT_GEN!A2:E53,5,0) -> 
A3: =B2+1 -> 14,844,001 | B3: =ROUND(410*$D$1,-3) -> 17,389,000 | C3: 90%
A4: 17,389,001 | B4: =ROUND(470*$D$1,-3) -> 19,934,000 | C4: 80% | S4: AY_DAT_GEN
A5: 19,934,001 | B5: =ROUND(530*$D$1,-3) -> 22,478,000 | C5: 60%
A6: 22,478,001 | B6: =ROUND(590*$D$1,-3) -> 25,023,000 | C6: 40%
A7: 25,023,001 | B7: =ROUND(650*$D$1,-3) -> 27,568,000 | C7: 20%
A8: 27,568,001 | C8: 0%

Sheet descuentos (hidden)
G1: Se hizo necesario hacer una declaraciòn provisional donde se determinara el impuesto neto de renta, para poder hacer el calculo del descuento tributario, puesto que estan limitados (los descuentos) a un determinado porcentaje del impuesto neto.
Z2: =VLOOKUP(Z1,AY_DAT_GEN!A2:E53,5,0) -> 
Z4: AY_DAT_GEN
G11: Total ingresos netos (Casillas 39 - 40) | H11: 41 | I11: ='costos y deduc'!J236 -> 0
D12: =IFERROR(IF(E19+E21<=E22,1,1-E22/(E19+E21)),0) -> 1 | G12: Deducción inversión en activos fijos | H12: 42
G13: Otros costos y deducciones | H13: 43 | I13: =IFERROR('costos y deduc'!E184+'costos y deduc'!E234+Formulario!P66+Formulario!P65+Formulario!P69+Formulario!P67,0) -> 0
C14: Impuestos exterior | D14: =+E18 -> 0 | E14: =IFERROR(E16/E15,0) -> 0.00 | G14: Total costos y deducciones (Casillas 42 + 43) | H14: =+H13+1 -> 44 | I14: =+I12+I13 -> 0
C15: otros | D15: =E19 -> 0 | E15: =E18+E19+E21 -> 0 | G15: Renta líquida ordinaria del ejercicio (Si casilla 41 - 44 mayor que 0, escriba el resultado, de lo contrario escriba 0) | H15: 45 | I15: =IF(I11-I14<=0,0,I11-I14) -> 0
C16: donaciones | D16: =IFERROR(IF(E24=0,E21,ROUND((E24*E21)/1000,0)*1000),0) -> 0 | E16: =IF(E18+E19+E21>E20,E20,E18+E19+E21) -> 0 | G16: O pérdida líquida (Si casilla 44 - 41 mayor que 0, escriba el resultado, de lo contrario escriba 0) | H16: 46 | I16: =IF(I14-I11>0,I14-I11,0) -> 0
D17: =D14+D15+D16 -> 0 | G17: Compensaciones (Por exceso de renta presuntiva) | H17: 47 | I17: =IF(COMPENSACIONES!E23>=I15,I15,COMPENSACIONES!E23) -> 0
E18: =IFERROR(MAX(IF(Impuestos_Exteriortra!E18+Impuestos_Exteriorcanola!E17+Impuestos_Exteriordiv!E18+D16+D15+E32>I27,I27-D15-D16-E32,Impuestos_Exteriortra!E18+Impuestos_Exteriorcanola!E17+Impuestos_Exteriordiv!E18),0),0) -> 0 | G18: Renta líquida (Casilla 45 - 47) | H18: 48 | I18: =Formulario!AE34 -> 0
E19: =MAX(IF(Otros_Descuentos!E20+Otros_Descuentos!E32+E18+D16+E32>I27,I27-E18-D16-E32,Otros_Descuentos!E20+Otros_Descuentos!E32),0) -> 0 | G19: Renta presuntiva | H19: 49 | I19: =Formulario!AN34 -> 0
B20: TOTAL DESCUENTOS TRIBUTARIOS | E20: =ROUND(IF(Otros_Descuentos!E20+Otros_Descuentos!E33+Impuestos_Exteriortra!E18+Impuestos_Exteriorcanola!E17+Impuestos_Exteriordiv!E18+(DONACION!F7+DONACION!F8+DONACION!F9+DONACION!F10)*0.3+(DONACION!F30-DONACION!F7-DONACION!F8-DONACION!F9-DONACION!F10)*0.25+BECAS!F30>I27,I27,Otros_Descuentos!E20+(Otros_Descuentos!E33+N27))/1000,0)*1000 -> 0 | G20: Rentas exentas (No puede ser mayor de la renta liquida ordinaria, casilla 48) | H20: 50
E21: =N26 -> 0 | G21: Rentas gravables | H21: 51
B22: Descuentos articulo 259 del ET | E22: =ROUND((F22)/1000,0)*1000 -> 0 | F22: =IF(AND(I19>I18,(I27-E20)<0.75*I27),I27*0.25,ROUND((I27*0.3)/1000,0)*1000) -> 0 | G22: Renta líquida gravable (Al mayor valor entre las casillas 48 y 49 reste el valor de la casilla 50 y sume 51) | H22: 52 | I22: =IF((MAX(I18,I19)-I20+I21)<=0,0,MAX(I18,I19)-I20+I21) -> 0
G23: Ingresos por ganancias ocasionales | H23: 53 | I23: =go!F232 -> 0
E24: =IF(E21>E22,IFERROR(E22/E21,0),0) -> 0.0000000 | G24: Costos y deducciones por ganancias ocasionales gravables | H24: 54 | I24: =+'Ganancia ocasional exenta'!C10 -> 0
E25: =E22-E21 -> 0 | G25: Ganancias ocasionales no gravadas y exentas | H25: 55 | I25: =+'Ganancia ocasional exenta'!C23 -> 0
E26: =IFERROR(IF(E22>D16,0,1-(D16/E22)),0) -> 0.00000 | G26: Ganancias ocasionales gravables (Casillas 53-54-55) | H26: 56 | I26: =IF(I23-(I24+I25)>0,(I23-(I24+I25)),0) -> 0 | N26: =(DONACION!F7+DONACION!F8+DONACION!F9+DONACION!F10)*0.3+(DONACION!F30-DONACION!F7-DONACION!F8-DONACION!F9-DONACION!F10)*0.25+BECAS!F30 -> 0
G27: Impuesto sobre la renta líquida gravable | H27: 57 | I27: =ROUND((J27)/1000,0)*1000 -> 0 | J27: =IF(I18>=I19,K27,'tarifa imporenta'!K50+'tarifa imporenta'!K57+'tarifa imporenta'!H74+'tarifa imporenta'!H110+'tarifa imporenta'!I110) -> 0 | K27: ='tarifa imporenta'!K50+'tarifa imporenta'!K57+'tarifa imporenta'!H74+'tarifa imporenta'!H110+'tarifa imporenta'!I110 -> 0 | M27: =(DONACION!F7+DONACION!F8+DONACION!F9+DONACION!F10)*0.3+(DONACION!F30-DONACION!F7-DONACION!F8-DONACION!F9-DONACION!F10)*0.25+BECAS!F30+Otros_Descuentos!E20+Otros_Descuentos!E32+Impuestos_Exteriortra!E18+Impuestos_Exteriorcanola!E17+Impuestos_Exteriordiv!E18 -> 0 | N27: =IF(M27>I27*0.3,I27*0.3,(M27)) -> 0
G28: Descuentos tributarios | H28: 58 | I28: 0
B29: AJUSTES DESCUENTOS PARA LLEVAR AL 210 | G29: Impuesto neto de renta (Casilla 57-58) | H29: 59 | I29: =(I27-I28) -> 0
B30: Impuestos exterior | F30: =+ROUND((D14*E26)/1000,0)*1000 -> 0
B31: otros | F31: =IFERROR(ROUND((D15*E26)/1000,0)*1000,0) -> 0
B32: donaciones | E32: =ROUND((D16*E26)/1000,-1)*1000 -> 0
D33: CIFRA CONTROL | E33: =+E30+E31+E32 -> 0

Sheet ajustes art. 73 (hidden)
A1: Año de adquisiciòn | B1: Acciones y aportes: multiplicar por | C1: Bienes raíces: multiplicar por
V2: =VLOOKUP(V1,AY_DAT_GEN!A2:E53,5,0) -> 
V4: AY_DAT_GEN
A6: 1900 | B6: 4059.43 | C6: 33101.23
A7: 1901 | B7: 4059.43 | C7: 33101.23
A8: 1902 | B8: 4059.43 | C8: 33101.23
A9: 1903 | B9: 4059.43 | C9: 33101.23
A10: 1904 | B10: 4059.43 | C10: 33101.23
A11: 1905 | B11: 4059.43 | C11: 33101.23
A12: 1906 | B12: 4059.43 | C12: 33101.23
A13: 1907 | B13: 4059.43 | C13: 33101.23
A14: 1908 | B14: 4059.43 | C14: 33101.23
A15: 1909 | B15: 4059.43 | C15: 33101.23
A16: 1910 | B16: 4059.43 | C16: 33101.23
A17: 1911 | B17: 4059.43 | C17: 33101.23
A18: 1912 | B18: 4059.43 | C18: 33101.23
A19: 1913 | B19: 4059.43 | C19: 33101.23
A20: 1914 | B20: 4059.43 | C20: 33101.23
A21: 1915 | B21: 4059.43 | C21: 33101.23
A22: 1916 | B22: 4059.43 | C22: 33101.23
A23: 1917 | B23: 4059.43 | C23: 33101.23
A24: 1918 | B24: 4059.43 | C24: 33101.23
A25: 1919 | B25: 4059.43 | C25: 33101.23
A26: 1920 | B26: 4059.43 | C26: 33101.23
A27: 1921 | B27: 4059.43 | C27: 33101.23
A28: 1922 | B28: 4059.43 | C28: 33101.23
A29: 1923 | B29: 4059.43 | C29: 33101.23
A30: 1924 | B30: 4059.43 | C30: 33101.23
A31: 1925 | B31: 4059.43 | C31: 33101.23
A32: 1926 | B32: 4059.43 | C32: 33101.23
A33: 1927 | B33: 4059.43 | C33: 33101.23
A34: 1928 | B34: 4059.43 | C34: 33101.23
A35: 1929 | B35: 4059.43 | C35: 33101.23
A36: 1930 | B36: 4059.43 | C36: 33101.23
A37: 1931 | B37: 4059.43 | C37: 33101.23
A38: 1932 | B38: 4059.43 | C38: 33101.23
A39: 1933 | B39: 4059.43 | C39: 33101.23
A40: 1934 | B40: 4059.43 | C40: 33101.23
A41: 1935 | B41: 4059.43 | C41: 33101.23
A42: 1936 | B42: 4059.43 | C42: 33101.23
A43: 1937 | B43: 4059.43 | C43: 33101.23
A44: 1938 | B44: 4059.43 | C44: 33101.23
A45: 1939 | B45: 4059.43 | C45: 33101.23
A46: 1940 | B46: 4059.43 | C46: 33101.23
A47: 1941 | B47: 4059.43 | C47: 33101.23
A48: 1942 | B48: 4059.43 | C48: 33101.23
A49: 1943 | B49: 4059.43 | C49: 33101.23
A50: 1944 | B50: 4059.43 | C50: 33101.23
A51: 1945 | B51: 4059.43 | C51: 33101.23
A52: 1946 | B52: 4059.43 | C52: 33101.23
A53: 1947 | B53: 4059.43 | C53: 33101.23
A54: 1948 | B54: 4059.43 | C54: 33101.23
A55: 1949 | B55: 4059.43 | C55: 33101.23
A56: 1950 | B56: 4059.43 | C56: 33101.23
A57: 1951 | B57: 4059.43 | C57: 33101.23
A58: 1952 | B58: 4059.43 | C58: 33101.23
A59: 1953 | B59: 4059.43 | C59: 33101.23
A60: 1954 | B60: 4059.43 | C60: 33101.23
A61: 1955 | B61: 4059.43 | C61: 33101.23
A62: 1956 | B62: 3978.17 | C62: 32439.63
A63: 1957 | B63: 3683.51 | C63: 30037.05
A64: 1958 | B64: 3107.86 | C64: 25342.44
A65: 1959 | B65: 2841.29 | C65: 23169.07
A66: 1960 | B66: 2651.94 | C66: 21624.79
A67: 1961 | B67: 2486.13 | C67: 20163.42
A68: 1962 | B68: 2340.07 | C68: 19080.8
A69: 1963 | B69: 2185.65 | C69: 17822.61
A70: 1964 | B70: 1671.26 | C70: 13628.68
A71: 1965 | B71: 1530.01 | C71: 12476.15
A72: 1966 | B72: 1334.83 | C72: 10884.73
A73: 1967 | B73: 1176.87 | C73: 9597.29
A74: 1968 | B74: 1092.83 | C74: 8911.31
A75: 1969 | B75: 1025.24 | C75: 8360.24
A76: 1970 | B76: 942.71 | C76: 7687.26
A77: 1971 | B77: 880.18 | C77: 7176.84
A78: 1972 | B78: 779.94 | C78: 6360.81
A79: 1973 | B79: 685.77 | C79: 5593.54
A80: 1974 | B80: 560.21 | C80: 4569.44
A81: 1975 | B81: 448.07 | C81: 3652.63
A82: 1976 | B82: 380.98 | C82: 3106.44
A83: 1977 | B83: 303.77 | C83: 2475.72
A84: 1978 | B84: 238.21 | C84: 1942.54
A85: 1979 | B85: 198.97 | C85: 1622.31
A86: 1980 | B86: 157.2 | C86: 1282.56
A87: 1981 | B87: 126.32 | C87: 1028.98
A88: 1982 | B88: 100.5 | C88: 819.28
A89: 1983 | B89: 80.75 | C89: 658.35
A90: 1984 | B90: 69.36 | C90: 565.69
A91: 1985 | B91: 58.73 | C91: 490.92
A92: 1986 | B92: 48.1 | C92: 406.39
A93: 1987 | B93: 39.74 | C93: 344.62
A94: 1988 | B94: 32.4 | C94: 260.09
A95: 1989 | B95: 25.39 | C95: 162.15
A96: 1990 | B96: 20.13 | C96: 112.14
A97: 1991 | B97: 15.27 | C97: 78.14
A98: 1992 | B98: 12.02 | C98: 58.54
A99: 1993 | B99: 9.65 | C99: 41.6
A100: 1994 | B100: 7.87 | C100: 30.25
A101: 1995 | B101: 6.45 | C101: 21.55
A102: 1996 | B102: 5.47 | C102: 15.94
A103: 1997 | B103: 4.71 | C103: 13.22
A104: 1998 | B104: 4.02 | C104: 10.16
A105: 1999 | B105: 3.46 | C105: 8.46
A106: 2000 | B106: 3.17 | C106: 8.41
A107: 2001 | B107: 2.92 | C107: 8.13
A108: 2002 | B108: 2.72 | C108: 7.51
A109: 2003 | B109: 2.55 | C109: 6.74
A110: 2004 | B110: 2.4 | C110: 6.34
A111: 2005 | B111: 2.27 | C111: 5.96
A112: 2006 | B112: 2.16 | C112: 5.64
A113: 2007 | B113: 2.06 | C113: 4.29
A114: 2008 | B114: 1.95 | C114: 3.82
A115: 2009 | B115: 1.81 | C115: 3.14
A116: 2010 | B116: 1.77 | C116: 2.86
A117: 2011 | B117: 1.71 | C117: 2.62
A118: 2012 | B118: 1.65 | C118: 2.19
A119: 2013 | B119: 1.61 | C119: 1.88
A120: 2014 | B120: 1.58 | C120: 1.66
A121: 2015 | B121: 1.52 | C121: 1.54
A122: 2016 | B122: 1.43 | C122: 1.47
A123: 2017 | B123: 1.35 | C123: 1.4
A124: 2018 | B124: 1.31 | C124: 1.29
A125: 2019 | B125: 1.27 | C125: 1.19
A126: 2020 | B126: 1.22 | C126: 1.12
A127: 2021 | B127: 1.2 | C127: 1.06
A128: 2022 | B128: 1.13 | C128: 1.03
A129: 2023 | B129: 1 | C129: 1

Sheet Ganancia ocasional exenta (hidden)
B2: R54 Costos por ganancias ocasionales gravables y exentas | Z2: =VLOOKUP(Z1,AY_DAT_GEN!A2:E53,5,0) -> 
B3: CONCEPTO | C3: VALOR
B4: Costo Fiscal en venta de casa de habitación. | C4: =+go!F11 -> 0 | Z4: AY_DAT_GEN
B5: Costo Fiscal de inmuebles diferente a la casa de habitación. | C5: =D5+E5 -> 0 | D5: =IF(SUM(go!D17:D30)>0,go!F55,0) -> 0 | E5: =IF(SUM(go!F17:F30)>0,go!O55,0) -> 0
B6: Costo Fiscal en la venta de venta de acciones y aportes | C6: =go!E95+go!K95 -> 0 | D6: =IF((Ingresos!D73+Ingresos!D75+Ingresos!D77+Ingresos!D79+Ingresos!D81+Ingresos!D83+Ingresos!D85+Ingresos!D87)=0,Venta_Acciones_Aportes!H22+Venta_Acciones_Aportes!H24+Venta_Acciones_Aportes!G46,Venta_Acciones_Aportes!J22+Venta_Acciones_Aportes!J24+Venta_Acciones_Aportes!J46) -> 0
B7: Costo Fiscal en la de activos fijos diferentes a inmuebles y acciones y aportes | C7: =go!D114+go!G114 -> 0 | D7: =IF((Ingresos!D73+Ingresos!D75+Ingresos!D77+Ingresos!D79+Ingresos!D81+Ingresos!D83+Ingresos!D85+Ingresos!D87)=0, Venta_Activos_Fijos!F22+Venta_Activos_Fijos!F24, Venta_Activos_Fijos!I22+Venta_Activos_Fijos!I24)-Venta_Activos_Fijos!H23 -> 0
B8: Utilidades de sociedades que fueron liquidadas | C8: =go!E209 -> 0
B9: Valor en cuotas pagadas en tìtulos de capitalizaciòn | C9: =go!E171 -> 0
B10: TOTAL | C10: =SUM(C4:C9)-C8-C7+D7-C6+D6+Venta_Activos_Fijos!H23 -> 0
B13: R.55 Ingresos no constitutivos de ganancias ocasionales
B14: CONCEPTO | C14: VALOR
B15: Venta casa de habitación adquirida antes del 1 de enero de 1987. | C15: =go!F6+go!I5 -> 0
B16: Premios de apuestas y concursos hipicos o caninos | C16: =go!F190 -> 0 | E16: num 3 art 307
B17: Asignación por causa de muerte o de la porción conyugal a los legitimarios o al cónyuge. | C17: =D17 -> 0 | D17: =IF(go!G133+go!H133+go!I133+go!J133+E17>Asignacion_Muerte_Porcion_Cony!E21,Asignacion_Muerte_Porcion_Cony!E21,IF(go!G133+go!H133+go!I133+go!J133+E17<=Asignacion_Muerte_Porcion_Cony!E21,go!G133+go!H133+go!I133+go!J133+E17,IF(go!G133+go!H133+go!I133+go!J133+E17>go!G133+go!H133+go!I133+go!J133,go!G133+go!H133+go!I133+go!J133,go!G133+go!H133+go!I133+go!J133+E17))) -> 0 | E17: =IF(Asignacion_Muerte_Porcion_Cony!E21=0,0,3250*42412) -> 0 | G17: =go!G133+go!H133+go!I133+go!J133+E17 -> 0
B18: Herencia o legado sin ser legitimario o cónyuge o de donaciones | C18: =+go!F152 -> 0
B19: Gananciales | C19: =+Gananciales!E21 -> 0
B20: Utilidad venta de acciones y/o aportes en bolsa | C20: =go!K96 -> 0
B21: Utilidad venta de la casa o apartamento de habitación Art 311-1 ET | C21: =go!H31 -> 0
B22: Indemnización seguro de vida | C22: =IF(Seguros_Vida!D21+Seguros_Vida!D22>=ROUND(Seguros_Vida!G22/1000,0)*1000,D22,Seguros_Vida!D21+Seguros_Vida!D22) -> 0 | D22: =ROUND(TOPES!C1*3250/1000,0)*1000 -> 137,839,000
B23: TOTAL | C23: =IF(SUM(C15:C22)<0,0,SUM(C15:C22)) -> 0

Sheet go casa (hidden)
A1: año | B1: Porcentaje
A2: 2023 | B2: 0%
A3: 2022 | B3: 0%
A4: 2021 | B4: 0%
A5: 2020 | B5: 0%
A6: 2019 | B6: 0%
A7: 2018 | B7: 0%
A8: 2017 | B8: 0%
A9: 2016 | B9: 0%
A10: 2015 | B10: 0%
A11: 2014 | B11: 0%
A12: 2013 | B12: 0%
A13: 2012 | B13: 0%
A14: 2011 | B14: 0%
A15: 2010 | B15: 0%
A16: 2009 | B16: 0%
A17: 2008 | B17: 0%
A18: 2007 | B18: 0%
A19: 2006 | B19: 0%
A20: 2005 | B20: 0% | Z20: =VLOOKUP(Z1,AY_DAT_GEN!A2:E53,5,0) -> 
A21: 2004 | B21: 0%
A22: 2003 | B22: 0% | Z22: AY_DAT_GEN
A23: 2002 | B23: 0%
A24: 2001 | B24: 0%
A25: 2000 | B25: 0%
A26: 1999 | B26: 0%
A27: 1998 | B27: 0%
A28: 1997 | B28: 0%
A29: 1996 | B29: 0%
A30: 1995 | B30: 0%
A31: 1994 | B31: 0%
A32: 1993 | B32: 0%
A33: 1992 | B33: 0%
A34: 1991 | B34: 0%
A35: 1990 | B35: 0%
A36: 1989 | B36: 0%
A37: 1988 | B37: 0%
A38: 1987 | B38: 0%
A39: 1986 | B39: 10%
A40: 1985 | B40: 20%
A41: 1984 | B41: 30%
A42: 1983 | B42: 40%
A43: 1982 | B43: 50%
A44: 1981 | B44: 60%
A45: 1980 | B45: 70%
A46: 1979 | B46: 80%
A47: 1978 | B47: 90%
A48: 1977 | B48: 100%
A49: 1976 | B49: 100%
A50: 1975 | B50: 100%
A51: 1974 | B51: 100%
A52: 1973 | B52: 100%
A53: 1972 | B53: 100%
A54: 1971 | B54: 100%
A55: 1970 | B55: 100%
A56: 1969 | B56: 100%
A57: 1968 | B57: 100%
A58: 1967 | B58: 100%
A59: 1966 | B59: 100%
A60: 1965 | B60: 100%
A61: 1964 | B61: 100%
A62: 1963 | B62: 100%
A63: 1962 | B63: 100%
A64: 1961 | B64: 100%
A65: 1960 | B65: 100%
A66: 1959 | B66: 100%
A67: 1958 | B67: 100%
A68: 1957 | B68: 100%
A69: 1956 | B69: 100%
A70: 1955 | B70: 100%
A71: 1954 | B71: 100%
A72: 1953 | B72: 100%
A73: 1952 | B73: 100%
A74: 1951 | B74: 100%
A75: 1950 | B75: 100%
A76: 1949 | B76: 100%
A77: 1948 | B77: 100%
A78: 1947 | B78: 100%
A79: 1946 | B79: 100%
A80: 1945 | B80: 100%
A81: 1944 | B81: 100%
A82: 1943 | B82: 100%
A83: 1942 | B83: 100%
A84: 1941 | B84: 100%
A85: 1940 | B85: 100%
A86: 1939 | B86: 100%
A87: 1938 | B87: 100%
A88: 1937 | B88: 100%
A89: 1936 | B89: 100%
A90: 1935 | B90: 100%
A91: 1934 | B91: 100%
A92: 1933 | B92: 100%
A93: 1932 | B93: 100%
A94: 1931 | B94: 100%
A95: 1930 | B95: 100%
A96: 1929 | B96: 100%
A97: 1928 | B97: 100%
A98: 1927 | B98: 100%
A99: 1926 | B99: 100%
A100: 1925 | B100: 100%
A101: 1924 | B101: 100%
A102: 1923 | B102: 100%
A103: 1922 | B103: 100%
A104: 1921 | B104: 100%
A105: 1920 | B105: 100%
A106: 1919 | B106: 100%
A107: 1918 | B107: 100%
A108: 1917 | B108: 100%
A109: 1916 | B109: 100%
A110: 1915 | B110: 100%
A111: 1914 | B111: 100%
A112: 1913 | B112: 100%
A113: 1912 | B113: 100%
A114: 1911 | B114: 100%
A115: 1910 | B115: 100%
A116: 1909 | B116: 100%
A117: 1908 | B117: 100%
A118: 1907 | B118: 100%
A119: 1906 | B119: 100%
A120: 1905 | B120: 100%
A121: 1904 | B121: 100%
A122: 1903 | B122: 100%
A123: 1902 | B123: 100%
A124: 1901 | B124: 100%
A125: 1900 | B125: 100%

Sheet tarifa imporenta (hidden)
A1: V/R UVT | B1: RENTA GRAVABLE
A2: =TOPES!$C$1 -> $ 42,412 | C2: =TRUNC(B2/A2,2) -> 0.00 | D2: =IF(AND(B3<=1090),0,E2) -> $ 0 | E2: =IF(AND(B3>1090,B3<=1700),(((B3-1090)*0.19)*A2),F2) -> $ 0 | F2: =IF(AND(B3>1700,B3<=4100),(((B3-1700)*0.28)+116)*A2,G2) -> $ 0 | G2: =IF(B3>4100,(((B3-4100)*0.33)+788)*A2,0) -> $ 0 | H2: =IF(D2=0,0,(ROUND((D2)/1000,0)*1000)) -> 0
B3: =+Formulario!AJ36/A2 -> 0.00
A6: V/R UVT | B6: GANANCIA OCASIONAL
A7: =$A$2 -> $ 42,412 | C7: =TRUNC(B7/A7,2) -> 0.00 | D7: =IF(AND(B8<=1090),0,E7) -> $ 0 | E7: =IF(AND(B8>1090,B8<=1700),((TRUNC((B8-1090)*0.19,2))*A7),F7) -> $ 0 | F7: =IF(AND(B8>1700,B8<=4100),((TRUNC((B8-1700)*0.28,2))+116)*A7,G7) -> $ 0 | G7: =IF(B8>4100,((TRUNC((B8-4100)*0.33,2))+788)*A7,0) -> $ 0 | H7: =IF(D7=0,0,(ROUND((D7)/1000,0)*1000)) -> 0
B8: =(+Formulario!AK61-go!E$228)/A7 -> 0.00
A10: V/R UVT | B10: IMPUESTOS PAG EXTERIOR
A11: =$A$2 -> $ 42,412 | C11: =TRUNC(B11/A11,2) -> 0.00 | D11: =IF(AND(B12<=1090),0,E11) -> $ 0 | E11: =IF(AND(B12>1090,B12<=1700),(((B12-1090)*0.19)*A11),F11) -> $ 0 | F11: =IF(AND(B12>1700,B12<=4100),(((B12-1700)*0.28)+116)*A11,G11) -> $ 0 | G11: =IF(B12>4100,(((B12-4100)*0.33)+788)*A11,0) -> $ 0 | H11: =IF(D11=0,0,(ROUND((D11)/1000,0)*1000)) -> 0
B12: =+ Impuestos_Exteriortra!E42/A11 -> 0.00
A14: V/R UVT | B14: DESCUENTOS TRIBUTARIOS
A15: =$A$2 -> $ 42,412 | C15: =TRUNC(B15/A15,2) -> 0.00 | D15: =IF(AND(B16<=1090),0,E15) -> $ 0 | E15: =IF(AND(B16>1090,B16<=1700),(((B16-1090)*0.19)*A15),F15) -> $ 0 | F15: =IF(AND(B16>1700,B16<=4100),(((B16-1700)*0.28)+116)*A15,G15) -> $ 0 | G15: =IF(B16>4100,(((B16-4100)*0.33)+788)*A15,0) -> $ 0 | H15: =IF(D15=0,0,(ROUND((D15)/1000,0)*1000)) -> 0
B16: =+descuentos!I22/A15 -> $ 0
A18: V/R UVT | B18: COSTOS Y DEDUCC
A19: =$A$2 -> $ 42,412 | C19: =TRUNC(B19/A19,2) -> 0.00 | D19: =IF(AND(B20<=1090),0,E19) -> $ 0 | E19: =IF(AND(B20>1090,B20<=1700),(((B20-1090)*0.19)*A19),F19) -> $ 0 | F19: =IF(AND(B20>1700,B20<=4100),(((B20-1700)*0.28)+116)*A19,G19) -> $ 0 | G19: =IF(B20>4100,(((B20-4100)*0.33)+788)*A19,0) -> $ 0 | H19: =IF(D19=0,0,(ROUND((D19)/1000,0)*1000)) -> 0
B20: =TRUNC(IFERROR(+'costos y deduc'!J248/A19,0),2) -> 0
A22: V/R UVT | B22: ASIGNACIONES
A23: =$A$2 -> $ 42,412 | B23: =1200*A23 -> $ 50,894,400 | C23: =TRUNC(B23/A23,2) -> 1,200.00 | D23: =IF(AND(B24<=1090),0,E23) -> $ 0 | E23: =IF(AND(B24>1090,B24<=1700),(((B24-1090)*0.19)*A23),F23) -> $ 0 | F23: =IF(AND(B24>1700,B23<=4100),(((B24-1700)*0.28)+116)*A23,G23) -> $ 0 | G23: =IF(B24>4100,(((B24-4100)*0.33)+788)*A23,0) -> $ 0 | H23: =IF(D23=0,0,(ROUND((D23)/1000,0)*1000)) -> 0
A28: V/R UVT | B28: GANANCIA OCASIONAL ACTIVOS OMITIDOS
A29: =$A$2 -> $ 42,412 | C29: =TRUNC(B29/A29,2) -> 0.00 | D29: =IF(AND(B30<=1090),0,E29) -> $ 0 | E29: =IF(AND(B30>1090,B30<=1700),(((B30-1090)*0.19)*A29),F29) -> $ 0 | F29: =IF(AND(B30>1700,B30<=4100),(((B30-1700)*0.28)+116)*A29,G29) -> $ 0 | G29: =IF(B30>4100,(((B30-4100)*0.33)+788)*A29,0) -> $ 0 | H29: =IF(D29=0,0,(ROUND((D29)/1000,0)*1000)) -> 0
B30: =(+Formulario!AK62)/A29 -> 0.00
B33: GANANCIA OCASIONAL ley 1607 de 2012 | D33: IMPUESTO LEY 1607 DE 2012
B35: =IF((+Formulario!P51-go!E$228-go!P$228-go!D190+go!F190)<0,0,+Formulario!P51-go!E$228-go!P$228-go!D190+go!F190) -> 0 | D35: =B35*0.15 -> $ 0
B39: GANANCIA OCASIONAL ACTIVOS OMITIDOS LEY 1607 DE 2012 | D39: IMPUESTO LEY 1607 DE 2012
B42: =(+Formulario!AK68) -> 0 | D42: =B42*0.1 -> $ 0
A49: V/R UVT | B49: RENTA GENERAL Y PENSIONES 2023
A50: =TOPES!$C$1 -> $ 42,412 | C50: =TRUNC(B50/A50,2) -> 0.00 | D50: =IF(AND(B51<=1090),0,E50) -> $ 0 | E50: =IF(AND(B51>1090,B51<=1700),((TRUNC((B51-1090)*0.19,2))*A50),F50) -> $ 0 | F50: =IF(AND(B51>1700,B51<=4100),((TRUNC((B51-1700)*0.28,2))+116)*A50,G50) -> $ 0 | G50: =IF(AND(B51>4100,B51<=8670),((TRUNC((B51-4100)*0.33,2))+788)*A50,H50) -> $ 0 | H50: =IF(AND(B51>8670,B51<=18970),((TRUNC((B51-8670)*0.35,2))+2296)*A50,I50) -> $ 0 | I50: =IF(AND(B51>18970,B51<=31000),((TRUNC((B51-18970)*0.37,2))+5901)*A50,J50) -> $ 0 | J50: =IF(B51>31000,((TRUNC((B51-31000)*0.39,2))+10352)*A50,K50) -> $ 0 | K50: =IF(D50=0,0,(ROUND((D50)/1000,0)*1000)) -> $ 0
B51: =TRUNC(IF(Formulario!AE34>=Formulario!AN34,(Formulario!AE34+Formulario!P39+Formulario!P43+Formulario!P44-Formulario!AK37)/A50,0),2) -> 0.00
A56: V/R UVT | B56: RENTA PRESUNTIVA Y PENSIONES 2023
A57: =TOPES!$C$1 -> $ 42,412 | C57: =TRUNC(B57/A57,2) -> 0.00 | D57: =IF(AND(B58<=1090),0,E57) -> $ 0 | E57: =IF(AND(B58>1090,B58<=1700),((TRUNC((B58-1090)*0.19,2))*A57),F57) -> $ 0 | F57: =IF(AND(B58>1700,B58<=4100),((TRUNC((B58-1700)*0.28,2))+116)*A57,G57) -> $ 0 | G57: =IF(AND(B58>4100,B58<=8670),((TRUNC((B58-4100)*0.33,2))+788)*A57,H57) -> $ 0 | H57: =IF(AND(B58>8670,B58<=18970),((TRUNC((B58-8670)*0.35,2))+2296)*A57,I57) -> $ 0 | I57: =IF(AND(B58>18970,B58<=31000),((TRUNC((B58-18970)*0.37,2))+5901)*A57,J57) -> $ 0 | J57: =IF(B58>31000,((TRUNC((B58-31000)*0.39,2))+10352)*A57,K57) -> $ 0 | K57: =IF(D57=0,0,(ROUND((D57)/1000,0)*1000)) -> $ 0
B58: =TRUNC(IF(Formulario!AE34<Formulario!AN34,(Formulario!AN34+Formulario!P39+Formulario!P43+Formulario!P44-Formulario!AK37)/A57,0),2) -> 0
A60: V/R UVT | B60: PRESUNTIVA
A61: =TOPES!$C$1 -> $ 42,412 | C61: =TRUNC(B61/A61,2) -> 0.00 | D61: =IF(AND(B62<=600),0,E61) -> $ 0 | E61: =IF(AND(B62>600,B62<=1000),((TRUNC((B62-600)*0.1,2))*A61),F61) -> $ 0 | F61: =IF(AND(B62>1000,B62<=2000),((TRUNC((B62-1000)*0.2,2))+40)*A61,G61) -> $ 0 | G61: =IF(AND(B62>2000,B62<=3000),((TRUNC((B62-2000)*0.3,2))+240)*A61,H61) -> $ 0 | H61: =IF(AND(B62>3000,B62<=4000),((TRUNC((B62-3000)*0.33,2))+540)*A61,I61) -> $ 0 | I61: =IF(B62>4000,((TRUNC((B62-4000)*0.35,2))+870)*A61,0) -> $ 0 | J61: =IF(D61=0,0,(ROUND((D61)/1000,0)*1000)) -> 0
A65: V/R UVT | B65: DIVIDENDOS Y PARTICIPACIONES NUMERAL 3 ART 49 ET 2023
A66: =TOPES!$C$1 -> $ 42,412 | C66: =TRUNC(B66/A66,2) -> 0.00 | D66: =IF(AND(B67<=300),0,E66) -> $ 0 | E66: =IF(B67>300,((TRUNC((B67-300)*0.1,2))*A66),F66) -> $ 0 | H66: =IF(D66=0,0,(ROUND((D66)/1000,0)*1000)) -> 0
B67: =TRUNC(Formulario!P43/A66,2) -> 0.00
A69: V/R UVT | B69: DIVIDENDOS Y PARTICIPACIONES Parágrafo 2 ART 49 ET 2022
A70: =TOPES!$C$1 -> $ 42,412 | C70: =TRUNC(B70/A70,2) -> 0.00 | D70: =IF(AND(B71<=300),0+TRUNC((Formulario!$P$45-Formulario!$P$46)*0.35,2),E70) -> $ 0 | E70: =IF(B71>300,(TRUNC((B71-300)*0.1,2))*A70+TRUNC((Formulario!$P$45-Formulario!$P$46)*0.35,2),H70) -> $ 0 | H70: =IF(D70=0,0,(ROUND((D70)/1000,0)*1000)) -> 0
B71: =((Formulario!$P$45-Formulario!$P$46)-((Formulario!$P$45-Formulario!$P$46)*0.35))/A70 -> 0.00
A73: V/R UVT | B73: DIVIDENDOS 2016 Y ANTER año grav 2023
A74: =TOPES!$C$1 -> $ 42,412 | C74: =TRUNC(B74/A74,2) -> 0.00 | D74: =IF(AND(B75<=1090),0,E74) -> $ 0 | E74: =IF(AND(B75>1090,B75<=1700),((TRUNC((B75-1090)*0.19,2))*A74),F74) -> $ 0 | F74: =IF(AND(B75>1700,B75<=4100),((TRUNC((B75-1700)*0.28,2))+116)*A74,G74) -> $ 0 | G74: =IF(B75>4100,((TRUNC((B75-4100)*0.33,2))+788)*A74,0) -> $ 0 | H74: =IF(D74=0,0,(ROUND((D74)/1000,0)*1000)) -> 0
B75: =TRUNC(Formulario!P42/A74,2) -> 0.00
A79: V/R UVT | B79: INVERSIÓN LIBRERIAS rentas trabajo
A80: =TOPES!$C$1 -> $ 42,412 | C80: =TRUNC(B80/A80,2) -> 0.00 | D80: =IF(AND(B81<=1090),0,E80) -> $ 0 | E80: =IF(AND(B81>1090,B81<=1700),((TRUNC((B81-1090)*0.19,2))*A80),F80) -> $ 0 | F80: =IF(AND(B81>1700,B81<=4100),((TRUNC((B81-1700)*0.28,2))+116)*A80,G80) -> $ 0 | G80: =IF(B81>4100,((TRUNC((B81-4100)*0.33,2))+788)*A80,0) -> $ 0 | H80: =IF(D80=0,0,(ROUND((D80)/1000,0)*1000)) -> 0
B81: =Deducc_Librerias!G13/A80 -> 0.00
A85: V/R UVT | B85: INVERSIÓN LIBRERIAS rentas CAPITAL
A86: =TOPES!$C$1 -> $ 42,412 | C86: =TRUNC(B86/A86,2) -> 0.00 | D86: =IF(AND(B87<=600),0,E86) -> $ 0 | E86: =IF(AND(B87>600,B87<=1000),((TRUNC((B87-600)*0.1,2))*A86),F86) -> $ 0 | F86: =IF(AND(B87>1000,B87<=2000),((TRUNC((B87-1000)*0.2,2))+40)*A86,G86) -> $ 0 | G86: =IF(AND(B87>2000,B87<=3000),((TRUNC((B87-2000)*0.3,2))+240)*A86,H86) -> $ 0 | H86: =IF(AND(B87>3000,B87<=4000),((TRUNC((B87-3000)*0.33,2))+540)*A86,I86) -> $ 0 | I86: =IF(B87>4000,((TRUNC((B87-4000)*0.35,2))+870)*A86,0) -> $ 0 | J86: =IF(D86=0,0,(ROUND((D86)/1000,0)*1000)) -> 0
B87: =Deducc_Librerias!H13/A86 -> 0
A90: V/R UVT | B90: INVERSIÓN LIBRERIAS rentas no laborales
A91: =TOPES!$C$1 -> $ 42,412 | C91: =TRUNC(B91/A91,2) -> 0.00 | D91: =IF(AND(B92<=600),0,E91) -> $ 0 | E91: =IF(AND(B92>600,B92<=1000),((TRUNC((B92-600)*0.1,2))*A91),F91) -> $ 0 | F91: =IF(AND(B92>1000,B92<=2000),((TRUNC((B92-1000)*0.2,2))+40)*A91,G91) -> $ 0 | G91: =IF(AND(B92>2000,B92<=3000),((TRUNC((B92-2000)*0.3,2))+240)*A91,H91) -> $ 0 | H91: =IF(AND(B92>3000,B92<=4000),((TRUNC((B92-3000)*0.33,2))+540)*A91,I91) -> $ 0 | I91: =IF(B92>4000,((TRUNC((B92-4000)*0.35,2))+870)*A91,0) -> $ 0 | J91: =IF(D91=0,0,(ROUND((D91)/1000,0)*1000)) -> 0
B92: =Deducc_Librerias!I13/A91 -> 0
A95: V/R UVT | B95: DESCUENTOS POR IMPUESTOS EXTERIOR RENTA GRAVABLE NO LABORAL Y DE CAPITAL 2022
A96: =TOPES!$C$1 -> $ 42,412 | C96: =TRUNC(B96/A96,2) -> 0.00 | D96: =IF(AND(B97<=600),0,E96) -> $ 0 | E96: =IF(AND(B97>600,B97<=1000),(((B97-600)*0.1)*A96),F96) -> $ 0 | F96: =IF(AND(B97>1000,B97<=2000),(((B97-1000)*0.2)+40)*A96,G96) -> $ 0 | G96: =IF(AND(B97>2000,B97<=3000),(((B97-2000)*0.3)+240)*A96,H96) -> $ 0 | H96: =IF(AND(B97>3000,B97<=4000),(((B97-3000)*0.33)+540)*A96,I96) -> $ 0 | I96: =IF(B97>4000,(((B97-4000)*0.35)+870)*A96,0) -> $ 0 | J96: =IF(D96=0,0,(ROUND((D96)/1000,0)*1000)) -> 0
B97: =Impuestos_Exteriorcanola!E36/A96 -> 0
A99: V/R UVT | B99: DESCUENTOS POR IMPUESTOS EXTERIOR RENTA GRAVABLE TRABAJO, NO LABORAL Y CAPITAL 2022
A100: =TOPES!$C$1 -> $ 42,412 | C100: =TRUNC(B100/A100,2) -> 0.00 | D100: =IF(AND(B101<=1090),0,E100) -> $ 0 | E100: =IF(AND(B101>1090,B101<=1700),((TRUNC((B101-1090)*0.19,2))*A100),F100) -> $ 0 | F100: =IF(AND(B101>1700,B101<=4100),((TRUNC((B101-1700)*0.28,2))+116)*A100,G100) -> $ 0 | G100: =IF(AND(B101>4100,B101<=8670),((TRUNC((B101-4100)*0.33,2))+788)*A100,H100) -> $ 0 | H100: =IF(AND(B101>8670,B101<=18970),((TRUNC((B101-8670)*0.35,2))+2296)*A100,I100) -> $ 0 | I100: =IF(AND(B101>18970,B101<=31000),((TRUNC((B101-18970)*0.37,2))+5901)*A100,J100) -> $ 0 | J100: =IF(B101>31000,((TRUNC((B101-31000)*0.39,2))+10352)*A100,K100) -> $ 0 | K100: =IF(D100=0,0,(ROUND((D100)/1000,0)*1000)) -> $ 0
B101: =(Impuestos_Exteriortra!E42+Impuestos_Exteriorcanola!E36)/A100 -> 0.00
A104: V/R UVT | B104: DESCUENTOS POR IMPUESTOS EXTERIOR DIVIDENDOS Y PARTICIPACIONES Parágrafo 2 ART 49 ET 2022
A105: =TOPES!$C$1 -> $ 42,412 | C105: =TRUNC(B105/A105,2) -> 0.00 | D105: =TRUNC(Impuestos_Exteriordiv!E42*0.35) -> $ 0 | E105: =TRUNC(Impuestos_Exteriordiv!E42*0.35,F105) -> $ 0 | F105: =ROUND(D105/1000,0)*1000 -> $ 0
B106: =Impuestos_Exteriordiv!E42*0.35/A105 -> 0.00
I107: Impuesto dividendos del exterior menos renta exenta casilla 110
A108: casilla J7
A109: V/R UVT | B109: DIVIDENDOS Y PARTICIPACIONES Parágrafo 2 ART 49 ET 2022
A110: =TOPES!$C$1 -> $ 42,412 | C110: =TRUNC(B110/A110,2) -> 0.00 | D110: =TRUNC(('2a_Subcédula'!I7)*'2a_Subcédula'!J7+('2a_Subcédula'!I8)*'2a_Subcédula'!J8+('2a_Subcédula'!I9)*'2a_Subcédula'!J9+('2a_Subcédula'!I10)*'2a_Subcédula'!J10+('2a_Subcédula'!I11)*'2a_Subcédula'!J11+('2a_Subcédula'!I12)*'2a_Subcédula'!J12+('2a_Subcédula'!I13)*'2a_Subcédula'!J13+('2a_Subcédula'!I14)*'2a_Subcédula'!J14+('2a_Subcédula'!I15)*'2a_Subcédula'!J15+('2a_Subcédula'!I16)*'2a_Subcédula'!J16+('2a_Subcédula'!I17)*'2a_Subcédula'!J17+('2a_Subcédula'!I18)*'2a_Subcédula'!J18+('2a_Subcédula'!I19)*'2a_Subcédula'!J19+('2a_Subcédula'!I20)*'2a_Subcédula'!J20+('2a_Subcédula'!I21)*'2a_Subcédula'!J21+('2a_Subcédula'!I22)*'2a_Subcédula'!J22+('2a_Subcédula'!I23)*'2a_Subcédula'!J23+('2a_Subcédula'!I24)*'2a_Subcédula'!J24+('2a_Subcédula'!I25)*'2a_Subcédula'!J25+('2a_Subcédula'!I26)*'2a_Subcédula'!J26,2) -> $ 0 | E110: =TRUNC(('2a_Subcédula'!I7)*'2a_Subcédula'!J7+('2a_Subcédula'!I8)*'2a_Subcédula'!J8+('2a_Subcédula'!I9)*'2a_Subcédula'!J9+('2a_Subcédula'!I10)*'2a_Subcédula'!J10+('2a_Subcédula'!I11)*'2a_Subcédula'!J11+('2a_Subcédula'!I12)*'2a_Subcédula'!J12+('2a_Subcédula'!I13)*'2a_Subcédula'!J13+('2a_Subcédula'!I14)*'2a_Subcédula'!J14+('2a_Subcédula'!I15)*'2a_Subcédula'!J15+('2a_Subcédula'!I16)*'2a_Subcédula'!J16+('2a_Subcédula'!I17)*'2a_Subcédula'!J17+('2a_Subcédula'!I18)*'2a_Subcédula'!J18+('2a_Subcédula'!I19)*'2a_Subcédula'!J19+('2a_Subcédula'!I20)*'2a_Subcédula'!J20+('2a_Subcédula'!I21)*'2a_Subcédula'!J21+('2a_Subcédula'!I22)*'2a_Subcédula'!J22+('2a_Subcédula'!I23)*'2a_Subcédula'!J23+('2a_Subcédula'!I24)*'2a_Subcédula'!J24+('2a_Subcédula'!I25)*'2a_Subcédula'!J25+('2a_Subcédula'!I26)*'2a_Subcédula'!J26,2) -> $ 0 | H110: =IF(D110=0,0,(ROUND((D110)/1000,0)*1000)) -> 0 | I110: =ROUND(((Formulario!$P$45-Formulario!$P$46)*0.35)/1000,2)*1000 -> 0
B111: =IFERROR((('2a_Subcédula'!I7-(('2a_Subcédula'!I7)*'2a_Subcédula'!J7))/A110),0)+B116+B122+B128+B134+B140+B146+B152+B158+B164+B170+B176+B182+B188+B194+B200+B206+B212+B219+B225 -> 0.00
A113: casilla J8
A114: V/R UVT | B114: DIVIDENDOS Y PARTICIPACIONES Parágrafo 2 ART 49 ET 2022
A115: =TOPES!$C$1 -> $ 42,412 | C115: =TRUNC(B115/A115,2) -> 0.00 | D115: =IFERROR(IF(AND(B116<=300),0+TRUNC(('2a_Subcédula'!I8)*'2a_Subcédula'!J8,2),E115),0) -> $ 0 | E115: =IFERROR(IF(B116>300,(TRUNC((B116-300)*0.1,2))*A115+TRUNC(('2a_Subcédula'!I8)*'2a_Subcédula'!J8,2),H115),0) -> $ 0 | H115: =IF(D115=0,0,(ROUND((D115)/1000,0)*1000)) -> 0
B116: =IFERROR((('2a_Subcédula'!I8)-(('2a_Subcédula'!I8)*'2a_Subcédula'!J8))/A115,0) -> 0.00
A119: casilla J9
A120: V/R UVT | B120: DIVIDENDOS Y PARTICIPACIONES Parágrafo 2 ART 49 ET 2022
A121: =TOPES!$C$1 -> $ 42,412 | C121: =TRUNC(B121/A121,2) -> 0.00 | D121: =IFERROR(IF(AND(B122<=300),0+TRUNC(('2a_Subcédula'!I9)*'2a_Subcédula'!J9,2),E121),0) -> $ 0 | E121: =IFERROR(IF(B122>300,(TRUNC((B122-300)*0.1,2))*A121+TRUNC(('2a_Subcédula'!I9)*'2a_Subcédula'!J9,2),H121),0) -> $ 0 | H121: =IF(D121=0,0,(ROUND((D121)/1000,0)*1000)) -> 0
B122: =IFERROR((('2a_Subcédula'!I9)-(('2a_Subcédula'!I9)*'2a_Subcédula'!J9))/A121,0) -> 0.00
A125: casilla J10
A126: V/R UVT | B126: DIVIDENDOS Y PARTICIPACIONES Parágrafo 2 ART 49 ET 2022
A127: =TOPES!$C$1 -> $ 42,412 | C127: =TRUNC(B127/A127,2) -> 0.00 | D127: =IFERROR(IF(AND(B128<=300),0+TRUNC(('2a_Subcédula'!I10)*'2a_Subcédula'!J10,2),E127),0) -> $ 0 | E127: =IFERROR(IF(B128>300,(TRUNC((B128-300)*0.1,2))*A127+TRUNC(('2a_Subcédula'!I10)*'2a_Subcédula'!J10,2),H127),0) -> $ 0 | H127: =IF(D127=0,0,(ROUND((D127)/1000,0)*1000)) -> 0
B128: =IFERROR((('2a_Subcédula'!I10)-(('2a_Subcédula'!I10)*'2a_Subcédula'!J10))/A127,0) -> 0.00
A131: casilla J11
A132: V/R UVT | B132: DIVIDENDOS Y PARTICIPACIONES Parágrafo 2 ART 49 ET 2022
A133: =TOPES!$C$1 -> $ 42,412 | C133: =TRUNC(B133/A133,2) -> 0.00 | D133: =IFERROR(IF(AND(B134<=300),0+TRUNC(('2a_Subcédula'!I11)*'2a_Subcédula'!J11,2),E133),0) -> $ 0 | E133: =IFERROR(IF(B134>300,(TRUNC((B134-300)*0.1,2))*A133+TRUNC(('2a_Subcédula'!I11)*'2a_Subcédula'!J11,2),H133),0) -> $ 0 | H133: =IF(D133=0,0,(ROUND((D133)/1000,0)*1000)) -> 0
B134: =IFERROR((('2a_Subcédula'!I11)-(('2a_Subcédula'!I11)*'2a_Subcédula'!J11))/A133,0) -> 0.00
A137: casilla J12
A138: V/R UVT | B138: DIVIDENDOS Y PARTICIPACIONES Parágrafo 2 ART 49 ET 2022
A139: =TOPES!$C$1 -> $ 42,412 | C139: =TRUNC(B139/A139,2) -> 0.00 | D139: =IFERROR(IF(AND(B140<=300),0+TRUNC(('2a_Subcédula'!I12)*'2a_Subcédula'!J12,2),E139),0) -> $ 0 | E139: =IFERROR(IF(B140>300,(TRUNC((B140-300)*0.1,2))*A139+TRUNC(('2a_Subcédula'!I12)*'2a_Subcédula'!J12,2),H139),0) -> $ 0 | H139: =IF(D139=0,0,(ROUND((D139)/1000,0)*1000)) -> 0
B140: =IFERROR((('2a_Subcédula'!I12)-(('2a_Subcédula'!I12)*'2a_Subcédula'!J12))/A139,0) -> 0.00
A143: casilla J13
A144: V/R UVT | B144: DIVIDENDOS Y PARTICIPACIONES Parágrafo 2 ART 49 ET 2022
A145: =TOPES!$C$1 -> $ 42,412 | C145: =TRUNC(B145/A145,2) -> 0.00 | D145: =IFERROR(IF(AND(B146<=300),0+TRUNC(('2a_Subcédula'!I13)*'2a_Subcédula'!J13,2),E145),0) -> $ 0 | E145: =IFERROR(IF(B146>300,(TRUNC((B146-300)*0.1,2))*A145+TRUNC(('2a_Subcédula'!I13)*'2a_Subcédula'!J13,2),H145),0) -> $ 0 | H145: =IF(D145=0,0,(ROUND((D145)/1000,0)*1000)) -> 0
B146: =IFERROR((('2a_Subcédula'!I13)-(('2a_Subcédula'!I13)*'2a_Subcédula'!J13))/A145,0) -> 0.00
A149: casilla J14
A150: V/R UVT | B150: DIVIDENDOS Y PARTICIPACIONES Parágrafo 2 ART 49 ET 2022
A151: =TOPES!$C$1 -> $ 42,412 | C151: =TRUNC(B151/A151,2) -> 0.00 | D151: =IFERROR(IF(AND(B152<=300),0+TRUNC(('2a_Subcédula'!I14)*'2a_Subcédula'!J14,2),E151),0) -> $ 0 | E151: =IFERROR(IF(B152>300,(TRUNC((B152-300)*0.1,2))*A151+TRUNC(('2a_Subcédula'!I14)*'2a_Subcédula'!J14,2),H151),0) -> $ 0 | H151: =IF(D151=0,0,(ROUND((D151)/1000,0)*1000)) -> 0
B152: =IFERROR((('2a_Subcédula'!I14)-(('2a_Subcédula'!I14)*'2a_Subcédula'!J14))/A151,0) -> 0.00
A155: casilla J15
A156: V/R UVT | B156: DIVIDENDOS Y PARTICIPACIONES Parágrafo 2 ART 49 ET 2022
A157: =TOPES!$C$1 -> $ 42,412 | C157: =TRUNC(B157/A157,2) -> 0.00 | D157: =IFERROR(IF(AND(B158<=300),0+TRUNC(('2a_Subcédula'!I15)*'2a_Subcédula'!J15,2),E157),0) -> $ 0 | E157: =IFERROR(IF(B158>300,(TRUNC((B158-300)*0.1,2))*A157+TRUNC(('2a_Subcédula'!I15)*'2a_Subcédula'!J15,2),H157),0) -> $ 0 | H157: =IF(D157=0,0,(ROUND((D157)/1000,0)*1000)) -> 0
B158: =IFERROR((('2a_Subcédula'!I15)-(('2a_Subcédula'!I15)*'2a_Subcédula'!J15))/A157,0) -> 0.00
A161: casilla J16
A162: V/R UVT | B162: DIVIDENDOS Y PARTICIPACIONES Parágrafo 2 ART 49 ET 2022
A163: =TOPES!$C$1 -> $ 42,412 | C163: =TRUNC(B163/A163,2) -> 0.00 | D163: =IFERROR(IF(AND(B164<=300),0+TRUNC(('2a_Subcédula'!I16)*'2a_Subcédula'!J16,2),E163),0) -> $ 0 | E163: =IFERROR(IF(B164>300,(TRUNC((B164-300)*0.1,2))*A163+TRUNC(('2a_Subcédula'!I16)*'2a_Subcédula'!J16,2),H163),0) -> $ 0 | H163: =IF(D163=0,0,(ROUND((D163)/1000,0)*1000)) -> 0
B164: =IFERROR((('2a_Subcédula'!I16)-(('2a_Subcédula'!I16)*'2a_Subcédula'!J16))/A163,0) -> 0.00
A167: casilla J17
A168: V/R UVT | B168: DIVIDENDOS Y PARTICIPACIONES Parágrafo 2 ART 49 ET 2022
A169: =TOPES!$C$1 -> $ 42,412 | C169: =TRUNC(B169/A169,2) -> 0.00 | D169: =IFERROR(IF(AND(B170<=300),0+TRUNC(('2a_Subcédula'!I17)*'2a_Subcédula'!J17,2),E169),0) -> $ 0 | E169: =IFERROR(IF(B170>300,(TRUNC((B170-300)*0.1,2))*A169+TRUNC(('2a_Subcédula'!I17)*'2a_Subcédula'!J17,2),H169),0) -> $ 0 | H169: =IF(D169=0,0,(ROUND((D169)/1000,0)*1000)) -> 0
B170: =IFERROR((('2a_Subcédula'!I17)-(('2a_Subcédula'!I17)*'2a_Subcédula'!J17))/A169,0) -> 0.00
A173: casilla J18
A174: V/R UVT | B174: DIVIDENDOS Y PARTICIPACIONES Parágrafo 2 ART 49 ET 2022
A175: =TOPES!$C$1 -> $ 42,412 | C175: =TRUNC(B175/A175,2) -> 0.00 | D175: =IFERROR(IF(AND(B176<=300),0+TRUNC(('2a_Subcédula'!I18)*'2a_Subcédula'!J18,2),E175),0) -> $ 0 | E175: =IFERROR(IF(B176>300,(TRUNC((B176-300)*0.1,2))*A175+TRUNC(('2a_Subcédula'!I18)*'2a_Subcédula'!J18,2),H175),0) -> $ 0 | H175: =IF(D175=0,0,(ROUND((D175)/1000,0)*1000)) -> 0
B176: =IFERROR((('2a_Subcédula'!I18)-(('2a_Subcédula'!I18)*'2a_Subcédula'!J18))/A175,0) -> 0.00
A179: casilla J19
A180: V/R UVT | B180: DIVIDENDOS Y PARTICIPACIONES Parágrafo 2 ART 49 ET 2022
A181: =TOPES!$C$1 -> $ 42,412 | C181: =TRUNC(B181/A181,2) -> 0.00 | D181: =IFERROR(IF(AND(B182<=300),0+TRUNC(('2a_Subcédula'!I19)*'2a_Subcédula'!J19,2),E181),0) -> $ 0 | E181: =IFERROR(IF(B182>300,(TRUNC((B182-300)*0.1,2))*A181+TRUNC(('2a_Subcédula'!I19)*'2a_Subcédula'!J19,2),H181),0) -> $ 0 | H181: =IF(D181=0,0,(ROUND((D181)/1000,0)*1000)) -> 0
B182: =IFERROR((('2a_Subcédula'!I19)-(('2a_Subcédula'!I19)*'2a_Subcédula'!J19))/A181,0) -> 0.00
A185: casilla J20
A186: V/R UVT | B186: DIVIDENDOS Y PARTICIPACIONES Parágrafo 2 ART 49 ET 2022
A187: =TOPES!$C$1 -> $ 42,412 | C187: =TRUNC(B187/A187,2) -> 0.00 | D187: =IFERROR(IF(AND(B188<=300),0+TRUNC(('2a_Subcédula'!I20)*'2a_Subcédula'!J20,2),E187),0) -> $ 0 | E187: =IFERROR(IF(B188>300,(TRUNC((B188-300)*0.1,2))*A187+TRUNC(('2a_Subcédula'!I20)*'2a_Subcédula'!J20,2),H187),0) -> $ 0 | H187: =IF(D187=0,0,(ROUND((D187)/1000,0)*1000)) -> 0
B188: =IFERROR((('2a_Subcédula'!I20)-(('2a_Subcédula'!I20)*'2a_Subcédula'!J20))/A187,0) -> 0.00
A191: casilla J21
A192: V/R UVT | B192: DIVIDENDOS Y PARTICIPACIONES Parágrafo 2 ART 49 ET 2022
A193: =TOPES!$C$1 -> $ 42,412 | C193: =TRUNC(B193/A193,2) -> 0.00 | D193: =IFERROR(IF(AND(B194<=300),0+TRUNC(('2a_Subcédula'!I21)*'2a_Subcédula'!J21,2),E193),0) -> $ 0 | E193: =IFERROR(IF(B194>300,(TRUNC((B194-300)*0.1,2))*A193+TRUNC(('2a_Subcédula'!I21)*'2a_Subcédula'!J21,2),H193),0) -> $ 0 | H193: =IF(D193=0,0,(ROUND((D193)/1000,0)*1000)) -> 0
B194: =IFERROR((('2a_Subcédula'!I21)-(('2a_Subcédula'!I21)*'2a_Subcédula'!J21))/A193,0) -> 0.00
A197: casilla J22
A198: V/R UVT | B198: DIVIDENDOS Y PARTICIPACIONES Parágrafo 2 ART 49 ET 2022
A199: =TOPES!$C$1 -> $ 42,412 | C199: =TRUNC(B199/A199,2) -> 0.00 | D199: =IFERROR(IF(AND(B200<=300),0+TRUNC(('2a_Subcédula'!I22)*'2a_Subcédula'!J22,2),E199),0) -> $ 0 | E199: =IFERROR(IF(B200>300,(TRUNC((B200-300)*0.1,2))*A199+TRUNC(('2a_Subcédula'!I22)*'2a_Subcédula'!J22,2),H199),0) -> $ 0 | H199: =IF(D199=0,0,(ROUND((D199)/1000,0)*1000)) -> 0
B200: =IFERROR((('2a_Subcédula'!I22)-(('2a_Subcédula'!I22)*'2a_Subcédula'!J22))/A199,0) -> 0.00
A203: casilla J23
A204: V/R UVT | B204: DIVIDENDOS Y PARTICIPACIONES Parágrafo 2 ART 49 ET 2022
A205: =TOPES!$C$1 -> $ 42,412 | C205: =TRUNC(B205/A205,2) -> 0.00 | D205: =IFERROR(IF(AND(B206<=300),0+TRUNC(('2a_Subcédula'!I23)*'2a_Subcédula'!J23,2),E205),0) -> $ 0 | E205: =IFERROR(IF(B206>300,(TRUNC((B206-300)*0.1,2))*A205+TRUNC(('2a_Subcédula'!I23)*'2a_Subcédula'!J23,2),H205),0) -> $ 0 | H205: =IF(D205=0,0,(ROUND((D205)/1000,0)*1000)) -> 0
B206: =IFERROR((('2a_Subcédula'!I23)-(('2a_Subcédula'!I23)*'2a_Subcédula'!J23))/A205,0) -> 0.00
A209: casilla J24
A210: V/R UVT | B210: DIVIDENDOS Y PARTICIPACIONES 2arágrafo 2 ART 49 ET 2022
A211: =TOPES!$C$1 -> $ 42,412 | C211: =TRUNC(B211/A211,2) -> 0.00 | D211: =IFERROR(IF(AND(B212<=300),0+TRUNC(('2a_Subcédula'!I24)*'2a_Subcédula'!J24,2),E211),0) -> $ 0 | E211: =IFERROR(IF(B212>300,(TRUNC((B212-300)*0.1,2))*A211+TRUNC(('2a_Subcédula'!I24)*'2a_Subcédula'!J24,2),H211),0) -> $ 0 | H211: =IF(D211=0,0,(ROUND((D211)/1000,0)*1000)) -> 0
B212: =IFERROR((('2a_Subcédula'!I24)-(('2a_Subcédula'!I24)*'2a_Subcédula'!J24))/A211,0) -> 0.00
A216: casilla J25
A217: V/R UVT | B217: DIVIDENDOS Y PARTICIPACIONES Parágrafo 2 ART 49 ET 2022
A218: =TOPES!$C$1 -> $ 42,412 | C218: =TRUNC(B218/A218,2) -> 0.00 | D218: =IFERROR(IF(AND(B219<=300),0+TRUNC(('2a_Subcédula'!I25)*'2a_Subcédula'!J25,2),E218),0) -> $ 0 | E218: =IFERROR(IF(B219>300,(TRUNC((B219-300)*0.1,2))*A218+TRUNC(('2a_Subcédula'!I25)*'2a_Subcédula'!J25,2),H218),0) -> $ 0 | H218: =IF(D218=0,0,(ROUND((D218)/1000,0)*1000)) -> 0
B219: =IFERROR((('2a_Subcédula'!I25)-(('2a_Subcédula'!I25)*'2a_Subcédula'!J25))/A218,0) -> 0.00
A222: casilla J26
A223: V/R UVT | B223: DIVIDENDOS Y PARTICIPACIONES Parágrafo 2 ART 49 ET 2022
A224: =TOPES!$C$1 -> $ 42,412 | C224: =TRUNC(B224/A224,2) -> 0.00 | D224: =IFERROR(IF(AND(B225<=300),0+TRUNC(('2a_Subcédula'!I26)*'2a_Subcédula'!J26,2),E224),0) -> $ 0 | E224: =IFERROR(IF(B225>300,(TRUNC((B225-300)*0.1,2))*A224+TRUNC(('2a_Subcédula'!I26)*'2a_Subcédula'!J26,2),H224),0) -> $ 0 | H224: =IF(D224=0,0,(ROUND((D224)/1000,0)*1000)) -> 0
B225: =IFERROR((('2a_Subcédula'!I26)-(('2a_Subcédula'!I26)*'2a_Subcédula'!J26))/A224,0) -> 0.00
A231: CASILLA 124 | B231: DESCUENTO TRIBUTARIOS DIVIDENDOS 2023 | D231: =IF(AND(B233<=1090),0,E231) -> $ 0 | E231: =ROUND(IF(B233>1090,(TRUNC((B233-1090)*0.19,2))*A233,0)/1000,0)*1000 -> $ 0
A233: =TOPES!$C$1 -> $ 42,412 | B233: =TRUNC(IFERROR(((Formulario!P43+Formulario!P44-Formulario!AK37))/A233,0),2) -> 0

Sheet Sanciones (2) (hidden)
Z2: =VLOOKUP(Z1,AY_DAT_GEN!A2:E53,5,0) -> 
Z4: AY_DAT_GEN
B8: Extemporaneidad | C8: art 641
B9: Intereses de mora | C9: art 634
B10: Corrección | C10: art 644
A11: 7.5 | B11: Dos últimos dígitos | C11: =IF(Formulario!E12="","",+VALUE(RIGHT(Formulario!E12,2))) -> 
A12: 1 | B12: SANCIÓN EXTEMPORANEIDAD
B13: Fecha de Vencimiento | C13: =DatosGenerales!G8 -> 
B14: Fecha de Presentación | C14: =IF(ISBLANK(DatosGenerales!C60),"",IF(DatosGenerales!C60>=0,DatosGenerales!C60,"")) -> 
B15: TOTAL MESES EXTEMPORANEIDAD | C15: =ROUNDUP(IF(OR(C13="",C14=""),0,IF(C13>C14,0,DAYS360(C13,C14)/30)),0) -> 0
B16: Sanciòn extemporaneidad cuando hay Impuesto a Cargo. | C16: =ROUND((D16)/1000,0)*1000 -> 0 | D16: =IF(C15<=0,0,IF(H17>0,IF(MIN(H17*5%*$C$15,H17)<TOPES!$B$35,TOPES!$B$35,MIN(H17*5%*$C$15,H17)),0)) -> 0
B17: Sanciòn extemporaneidad cuando no hay Impuesto a Cargo y se calcula con base en los ingresos brutos. | C17: =ROUND((D17)/1000,0)*1000 -> 0 | D17: =IF(OR(C15<=0,H17>0,Formulario!L16+Formulario!T16+Formulario!AC16+Formulario!AJ16+Rentas_pasivas_capital!E27+Rentas_pasivas_capital!E57+Formulario!P35+Rentas_pasivas_no_Lab!E27+Rentas_pasivas_no_Lab!E57+Formulario!P40+Formulario!P43+Formulario!P44+ Formulario!P45+Rentas_pasivas_Div!E27+Rentas_pasivas_Div!E57+Formulario!P48<=0),0,IF(MIN((Formulario!L16+Formulario!T16+Formulario!AC16+Formulario!AJ16+Rentas_pasivas_capital!E27+Rentas_pasivas_capital!E57+Formulario!P35+Rentas_pasivas_no_Lab!E27+Rentas_pasivas_no_Lab!E57+Formulario!P40+Formulario!P43+Formulario!P44+ Formulario!P45+Rentas_pasivas_Div!E27+Rentas_pasivas_Div!E57+Formulario!P48)*0.5%*$C$15,( Formulario!L16+Formulario!T16+Formulario!AC16+Formulario!AJ16+Rentas_pasivas_capital!E27+Rentas_pasivas_capital!E57+Formulario!P35+Rentas_pasivas_no_Lab!E27+Rentas_pasivas_no_Lab!E57+Formulario!P40+Formulario!P43+Formulario!P44+ Formulario!P45+Rentas_pasivas_Div!E27+Rentas_pasivas_Div!E57+Formulario!P48)*5%,IF($H$25*2=0,MIN((Formulario!L16+Formulario!T16+Formulario!AC16+Formulario!AJ16+Rentas_pasivas_capital!E27+Rentas_pasivas_capital!E57+Formulario!P35+Rentas_pasivas_no_Lab!E27+Rentas_pasivas_no_Lab!E57+Formulario!P40+Formulario!P43+Formulario!P44+ Formulario!P45+Rentas_pasivas_Div!E27+Rentas_pasivas_Div!E57+Formulario!P48)*0.5%*$C$15,( Formulario!L16+Formulario!T16+Formulario!AC16+Formulario!AJ16+Rentas_pasivas_capital!E27+Rentas_pasivas_capital!E57+Formulario!P35+Rentas_pasivas_no_Lab!E27+Rentas_pasivas_no_Lab!E57+Formulario!P40+Formulario!P43+Formulario!P44+ Formulario!P45+Rentas_pasivas_Div!E27+Rentas_pasivas_Div!E57+Formulario!P48)*5%,TOPES!$B$17),$H$25*2),TOPES!$B$17)<TOPES!$B$35,TOPES!$B$35,MIN((Formulario!L16+Formulario!T16+Formulario!AC16+Formulario!AJ16+Rentas_pasivas_capital!E27+Rentas_pasivas_capital!E57+Formulario!P35+Rentas_pasivas_no_Lab!E27+Rentas_pasivas_no_Lab!E57+Formulario!P40+Formulario!P43+Formulario!P44+ Formulario!P45+Rentas_pasivas_Div!E27+Rentas_pasivas_Div!E57+Formulario!P48)*0.5%*$C$15,( Formulario!L16+Formulario!T16+Formulario!AC16+Formulario!AJ16+Rentas_pasivas_capital!E27+Rentas_pasivas_capital!E57+Formulario!P35+Rentas_pasivas_no_Lab!E27+Rentas_pasivas_no_Lab!E57+Formulario!P40+Formulario!P43+Formulario!P44+ Formulario!P45+Rentas_pasivas_Div!E27+Rentas_pasivas_Div!E57+Formulario!P48)*5%,IF($H$25*2=0,MIN((Formulario!L16+Formulario!T16+Formulario!AC16+Formulario!AJ16+Rentas_pasivas_capital!E27+Rentas_pasivas_capital!E57+Formulario!P35+Rentas_pasivas_no_Lab!E27+Rentas_pasivas_no_Lab!E57+Formulario!P40+Formulario!P43+Formulario!P44+ Formulario!P45+Rentas_pasivas_Div!E27+Rentas_pasivas_Div!E57+Formulario!P48)*0.5%*$C$15,( Formulario!L16+Formulario!T16+Formulario!AC16+Formulario!AJ16+Rentas_pasivas_capital!E27+Rentas_pasivas_capital!E57+Formulario!P35+Rentas_pasivas_no_Lab!E27+Rentas_pasivas_no_Lab!E57+Formulario!P40+Formulario!P43+Formulario!P44+ Formulario!P45+Rentas_pasivas_Div!E27+Rentas_pasivas_Div!E57+Formulario!P48)*5%,TOPES!$B$17),$H$25*2)))) -> 0 | F17: Total impuesto a cargo | G17: 61 | H17: =+Formulario!AK46 -> 0
B18: Sanciòn extemporaneidad cuando no hay Impuesto a Cargo, no hay ingresos brutos y se calcula con base en el patrimonio liquido del año anterior. | C18: =ROUND((D18)/1000,0)*1000 -> 0 | D18: =IF(C15<=0,0,IF(C16+C17>0,0,IF(Renta_Presuntiva!F8=0,0,IF(MIN(Renta_Presuntiva!F8*1%*$C$15,Renta_Presuntiva!F8*10%,IF($H$25*2=0,MIN(Renta_Presuntiva!F8*1%*$C$15,Renta_Presuntiva!F8*10%,TOPES!$B$17),$H$25*2),TOPES!$B$17)<TOPES!$B$35,TOPES!$B$35,MIN(Renta_Presuntiva!F8*1%*$C$15,Renta_Presuntiva!F8*10%,IF($H$25*2=0,MIN(Renta_Presuntiva!F8*1%*$C$15,Renta_Presuntiva!F8*10%,TOPES!$B$17),$H$25*2)))))) -> 0 | F18: Total Retenciones año gravable 2023 | G18: 64 | H18: =+Formulario!AK49 -> 0
B19: Sanciòn extemporaneidad cuando no hay Impuesto a Cargo, no hay ingresos brutos y no hay patrimonio liquido año anterior. | C19: =IF(C16+C17+C18>0,0,IF(C15<=0,0,IF(AND(Formulario!AK46=0,(Formulario!L16+Formulario!T16+Formulario!AC16+Formulario!AJ16+Rentas_pasivas_capital!E27+Rentas_pasivas_capital!E57+Formulario!P35+Rentas_pasivas_no_Lab!E27+Rentas_pasivas_no_Lab!E57+Formulario!P40+Formulario!P43+Formulario!P44+ Formulario!P45+Rentas_pasivas_Div!E27+Rentas_pasivas_Div!E57+Formulario!P48)=0,Renta_Presuntiva!F8=0),TOPES!$B$35,0))) -> 0 | F19: Saldo a favor año 2022 sin solicitud de devolución o compensación (Renglón 134 declaracion 2022) | G19: 63 | H19: =Formulario!AK48 -> 0
B20: TOTAL SANCION POR EXTEMPORANEIDAD | C20: =C16+C17+C18+C19 -> 0 | F20: Anticipo por el año gravable 2023 | G20: 62 | H20: =+Formulario!AK47 -> 0
B21: Principio de gradualidad art 640 ET | C21: =IF(C20=0,0,ROUND(IF(IF(AND(DatosGenerales!F32<1,DatosGenerales!F33<1),'Sanciones (2)'!C20,C20*DatosGenerales!F32*DatosGenerales!F33)<TOPES!$B$35,TOPES!$B$35,IF(AND(DatosGenerales!F32<1,DatosGenerales!F33<1),'Sanciones (2)'!C20,C20*DatosGenerales!F32*DatosGenerales!F33))/1000,0)*1000) -> 0
B22: INTERESES DE MORA | F22: Anticipo renta y complementarios año gravable siguiente | G22: 65 | H22: =+Formulario!AK50 -> 0
B23: Fecha de Vencimiento | C23: =DatosGenerales!G8 ->  | F23: Sanciones | G23: 67 | H23: 0
B24: Fecha de Presentación | C24: =IF(ISBLANK(DatosGenerales!C60),"",IF(DatosGenerales!C60>=0,DatosGenerales!C60,"")) ->  | F24: Total saldo a pagar (Si reng. 61+65+67-64-63-62 mayor que 0, escriba el resultado, de lo contrario escriba 0) | G24: =+G23+1 -> 68 | H24: =MAX(0,H17+H22-H18-H19-H20) -> 0
B25: TOTAL DIAS DE MORA | F25: O Total saldo a favor (Si reng. 62+63+64-61-65-57, mayor que 0, escriba el resultado, de lo contrario escriba 0) | G25: =+G24+1 -> 69 | H25: =MAX(0,H18+H19+H20-H17-H22) -> 0
B26: TOTAL INTERESES DE MORA

Sheet calidad (hidden)
A1: CODIGO CALIDAD DECLARANTE
A2: 3 | B2: Agente exclusivo de negocios en Colombia.
A3: 4 | B3: Agente oficioso
A4: 5 | B4: Albacea.
A5: 6 | B5: Apoderado Especial.
A6: 7 | B6: Apoderado General.
A7: 8 | B7: Asignatario.
A8: 10 | B8: Curador
A9: 11 | B9: Donatario.
A10: 12 | B10: Factor
A11: 14 | B11: Heredero con administración de bienes.
A12: 15 | B12: Liquidador.
A13: 16 | B13: Mandatario.
A14: 17 | B14: Padre.
A15: 21 | B15: Tutor
A16: 22 | B16: Representante aduanero
A17: 23 | B17: Liquidador suplente
A18: 24 | B18: Depositario Provisional
A19: 25 | B19: Agente Interventor
A20: 28 | B20: Heredero Designado
A21: 29 | B21: Persona Natural sin residencia en Colombia con EP
A22: 30 | B22: Representante legal empresa receptora inversión extranjera

Sheet costos y deduc (hidden)
H1: 13000079292487
B2: SECCION COSTOS Y DEDUCCIONES | Z2: =VLOOKUP(Z1,AY_DAT_GEN!A2:E53,5,0) -> 
A4: 1 | Z4: AY_DAT_GEN
A14: 2
A25: 3
A39: 4
A50: 5
A57: 6
A70: 7
A80: 8
A89: 9
A97: 10
B107: Costo Fiscal en la venta de activos fijos | P107: ESTO SE AJUSTÓ EL 18 DE OCTUIBRE DE 2022
B108: TIPO DE BIEN | C108: VALOR DECLARADO EN RENTA AÑO ANTERIOR | D108: VALOR DECLARADO EN PREDIAL AÑO | E108: COSTO FÍSCAL AJUSTADO POR ARTÍCULO 73 E.T. | F108: TOTALCOSTO FÍSCAL DETERMINADO | G108: COSTO FÍSCAL AJUSTADO POR ARTÍCULO 73 E.T. | H108: COSTO DETERMINADO 18 OCT 2023 | I108: COSTO INGRESO ORDINARIO EXTERIOR | J108: UTILIDAD EN VENTA CASA DE HABITACIÓN EXTERIOR | K108: 311-1 | L108: COSTO INGRESO ORDINARIO PAÍS | M108: UTILIDAD EN VENTA CASA DE HABITACIÓN EN EL PAÍS | N108: 311-1 | P108: VENTA | Q108: PERDIDA/UTILIDAD
A109: =(IF(Venta_Inm_Dif_Casa_Hab!A7=0,"NO",Venta_Inm_Dif_Casa_Hab!A7)) -> NO | B109: =Venta_Inm_Dif_Casa_Hab!B7 -> Venta casa o apartamento de habitación del contribuyente | C109: =IF(Venta_Inm_Dif_Casa_Hab!C7<TOPES!$B$48,0,IF(Venta_Inm_Dif_Casa_Hab!C7<TOPES!$B$48,0,Venta_Inm_Dif_Casa_Hab!E7+Venta_Inm_Dif_Casa_Hab!G7)) -> 0 | D109: =IF(Venta_Inm_Dif_Casa_Hab!C7<TOPES!$B$48,0,IF(Venta_Inm_Dif_Casa_Hab!C7<TOPES!$B$48,0,Venta_Inm_Dif_Casa_Hab!F7+Venta_Inm_Dif_Casa_Hab!G7)) -> 0 | E109: =ROUND((G109)/1000,0)*1000 -> 0 | F109: =IF(Venta_Inm_Dif_Casa_Hab!A7="SI",0,IF(AND(C109>Venta_Inm_Dif_Casa_Hab!H7,D109>Venta_Inm_Dif_Casa_Hab!H7,E109>Venta_Inm_Dif_Casa_Hab!H7),Venta_Inm_Dif_Casa_Hab!H7,IF(Venta_Inm_Dif_Casa_Hab!C7<TOPES!$B$48,0,IF(MAX(C109:E109)>Venta_Inm_Dif_Casa_Hab!H7,H109,MAX(C109:E109))))) -> 0 | G109: =IF(Venta_Inm_Dif_Casa_Hab!C7<TOPES!$B$48,0,VLOOKUP(Venta_Inm_Dif_Casa_Hab!C7,'ajustes art. 73'!$A$6:$C$129,3)*Venta_Inm_Dif_Casa_Hab!D7+Venta_Inm_Dif_Casa_Hab!G7) -> 0 | H109: =IF((AND(P109>0,Venta_Inm_Dif_Casa_Hab!M7="SI")),MAX(C109:E109),IF((AND(P109>0,Venta_Inm_Dif_Casa_Hab!M7="NO")),MAX(C109:D109),0)) -> 0 | I109: =IF(Venta_Inm_Dif_Casa_Hab!A7="",0,IF(Venta_Inm_Dif_Casa_Hab!A7="NO",0,IF((AND(P109>0,Venta_Inm_Dif_Casa_Hab!M7="SI")),MAX(C109:E109),IF((AND(P109>0,Venta_Inm_Dif_Casa_Hab!M7="NO")),MAX(C109:D109),0)))) -> 0 | J109: =Venta_Inm_Dif_Casa_Hab!H7-I109 -> 0 | K109: =IF(N109=0,0,ROUND(IF(Venta_Inm_Dif_Casa_Hab!A7="NO",0,IF(Venta_Inm_Dif_Casa_Hab!A7="",0,IF(Venta_Inm_Dif_Casa_Hab!C7>=TOPES!B48,0,IF(AND(Venta_Inm_Dif_Casa_Hab!A7="SI",Venta_Inm_Dif_Casa_Hab!C7<TOPES!B48,Venta_Inm_Dif_Casa_Hab!A7="SI",J109>=7500*TOPES!C1),5000*TOPES!C1,IF(J109<5000*TOPES!C1,J109)))))/1000,0)*1000) -> 0 | L109: =IF(Venta_Inm_Dif_Casa_Hab!A7="NO",IF(AND(C109>Venta_Inm_Dif_Casa_Hab!H7,D109>Venta_Inm_Dif_Casa_Hab!H7,E109>Venta_Inm_Dif_Casa_Hab!H7),Venta_Inm_Dif_Casa_Hab!H7,IF(Venta_Inm_Dif_Casa_Hab!C7<TOPES!$B$48,0,IF(MAX(C109:E109)>Venta_Inm_Dif_Casa_Hab!H7,H109,MAX(C109:E109)))),0) -> 0 | M109: =IF(Venta_Inm_Dif_Casa_Hab!C7>=2021,0,IF(A109="SI",0,Venta_Inm_Dif_Casa_Hab!H7-'costos y deduc'!L109)) -> 0 | N109: =IFERROR(ROUND(IF(Venta_Inm_Dif_Casa_Hab!A7="NO",0,IF(Venta_Inm_Dif_Casa_Hab!C7<TOPES!B48,0,IF(AND(Venta_Inm_Dif_Casa_Hab!A7="SI",Venta_Inm_Dif_Casa_Hab!C7>=TOPES!B48,Venta_Inm_Dif_Casa_Hab!A7="SI",M109>=5000*TOPES!C1),5000*TOPES!C1,IF(M109<5000*TOPES!C1,M109))))/1000,0)*1000,0) -> 0 | P109: =IF(Venta_Inm_Dif_Casa_Hab!C7<TOPES!$B$48,0,Venta_Inm_Dif_Casa_Hab!H7) -> 0 | Q109: =P109-C109 -> 0 | R109: =P109-D109 -> 0 | S109: =P109-G109 -> 0 | T109: =IF(Q109>=0,"",Q109) ->  | U109: =IF(R109>=0,"",R109) ->  | V109: =IF(S109>=0,"",S109) ->  | W109: =MAX(IF(T109:V109<0,T109:V109)) -> 0 | X109: =P109-W109 -> 0
A110: =(IF(Venta_Inm_Dif_Casa_Hab!A8=0,"NO",Venta_Inm_Dif_Casa_Hab!A8)) -> NO | B110: =Venta_Inm_Dif_Casa_Hab!B8 -> 0 | C110: =IF(Venta_Inm_Dif_Casa_Hab!C8<TOPES!$B$48,0,IF(Venta_Inm_Dif_Casa_Hab!C8<TOPES!$B$48,0,Venta_Inm_Dif_Casa_Hab!E8+Venta_Inm_Dif_Casa_Hab!G8)) -> 0 | D110: =IF(Venta_Inm_Dif_Casa_Hab!C8<TOPES!$B$48,0,IF(Venta_Inm_Dif_Casa_Hab!C8<TOPES!$B$48,0,Venta_Inm_Dif_Casa_Hab!F8+Venta_Inm_Dif_Casa_Hab!G8)) -> 0 | E110: =ROUND((G110)/1000,0)*1000 -> 0 | F110: =IF(Venta_Inm_Dif_Casa_Hab!A8="SI",0,IF(AND(C110>Venta_Inm_Dif_Casa_Hab!H8,D110>Venta_Inm_Dif_Casa_Hab!H8,E110>Venta_Inm_Dif_Casa_Hab!H8,E110>D110,E110>C110),MAX(C110,D110),IF(Venta_Inm_Dif_Casa_Hab!C8<TOPES!$B$48,0,IF(MAX(C110:E110)>Venta_Inm_Dif_Casa_Hab!H8,H110,MAX(C110:E110))))) -> 0 | G110: =IF(Venta_Inm_Dif_Casa_Hab!C8<TOPES!$B$48,0,VLOOKUP(Venta_Inm_Dif_Casa_Hab!C8,'ajustes art. 73'!$A$6:$C$129,3)*Venta_Inm_Dif_Casa_Hab!D8+Venta_Inm_Dif_Casa_Hab!G8) -> 0 | H110: =IF((AND(P110>0,Venta_Inm_Dif_Casa_Hab!M8="SI")),MAX(C110:E110),IF((AND(P110>0,Venta_Inm_Dif_Casa_Hab!M8="NO")),MAX(C110:D110),0)) -> 0 | I110: =IF(Venta_Inm_Dif_Casa_Hab!A8="",0,IF(Venta_Inm_Dif_Casa_Hab!A8="NO",0,IF((AND(P110>0,Venta_Inm_Dif_Casa_Hab!M8="SI")),MAX(C110:E110),IF((AND(P110>0,Venta_Inm_Dif_Casa_Hab!M8="NO")),MAX(C110:D110),0)))) -> 0 | P110: =IF(Venta_Inm_Dif_Casa_Hab!C8<TOPES!$B$48,0,Venta_Inm_Dif_Casa_Hab!H8) -> 0 | Q110: =P110-C110 -> 0 | R110: =P110-D110 -> 0 | S110: =P110-G110 -> 0 | W110: =MAX(IF(T110:V110<0,T110:V110)) -> 0 | X110: =P110-W110 -> 0
A111: =(IF(Venta_Inm_Dif_Casa_Hab!A9=0,"NO",Venta_Inm_Dif_Casa_Hab!A9)) -> NO | B111: =Venta_Inm_Dif_Casa_Hab!B9 -> 0 | C111: =IF(Venta_Inm_Dif_Casa_Hab!C9<TOPES!$B$48,0,IF(Venta_Inm_Dif_Casa_Hab!C9<TOPES!$B$48,0,Venta_Inm_Dif_Casa_Hab!E9+Venta_Inm_Dif_Casa_Hab!G9)) -> 0 | D111: =IF(Venta_Inm_Dif_Casa_Hab!C9<TOPES!$B$48,0,IF(Venta_Inm_Dif_Casa_Hab!C9<TOPES!$B$48,0,Venta_Inm_Dif_Casa_Hab!F9+Venta_Inm_Dif_Casa_Hab!G9)) -> 0 | E111: =ROUND((G111)/1000,0)*1000 -> 0 | F111: =IF(Venta_Inm_Dif_Casa_Hab!A9="SI",0,IF(AND(C111>Venta_Inm_Dif_Casa_Hab!H9,D111>Venta_Inm_Dif_Casa_Hab!H9,E111>Venta_Inm_Dif_Casa_Hab!H9),Venta_Inm_Dif_Casa_Hab!H9,IF(Venta_Inm_Dif_Casa_Hab!C9<TOPES!$B$48,0,IF(MAX(C111:E111)>Venta_Inm_Dif_Casa_Hab!H9,H111,MAX(C111:E111))))) -> 0 | G111: =IF(Venta_Inm_Dif_Casa_Hab!C9<TOPES!$B$48,0,VLOOKUP(Venta_Inm_Dif_Casa_Hab!C9,'ajustes art. 73'!$A$6:$C$129,3)*Venta_Inm_Dif_Casa_Hab!D9+Venta_Inm_Dif_Casa_Hab!G9) -> 0 | H111: =IF((AND(P111>0,Venta_Inm_Dif_Casa_Hab!M9="SI")),MAX(C111:E111),IF((AND(P111>0,Venta_Inm_Dif_Casa_Hab!M9="NO")),MAX(C111:D111),0)) -> 0 | I111: =IF(Venta_Inm_Dif_Casa_Hab!A9="",0,IF(Venta_Inm_Dif_Casa_Hab!A9="NO",0,IF((AND(P111>0,Venta_Inm_Dif_Casa_Hab!M9="SI")),MAX(C111:E111),IF((AND(P111>0,Venta_Inm_Dif_Casa_Hab!M9="NO")),MAX(C111:D111),0)))) -> 0 | P111: =IF(Venta_Inm_Dif_Casa_Hab!C9<TOPES!$B$48,0,Venta_Inm_Dif_Casa_Hab!H9) -> 0 | Q111: =P111-C111 -> 0 | R111: =P111-D111 -> 0 | S111: =P111-G111 -> 0 | T111: =IF(Q111>=0,"",Q111) ->  | U111: =IF(R111>=0,"",R111) ->  | V111: =IF(S111>=0,"",S111) ->  | W111: =MAX(IF(T111:V111<0,T111:V111)) -> 0 | X111: =P111-W111 -> 0
A112: =(IF(Venta_Inm_Dif_Casa_Hab!A10=0,"NO",Venta_Inm_Dif_Casa_Hab!A10)) -> NO | B112: =Venta_Inm_Dif_Casa_Hab!B10 -> 0 | C112: =IF(Venta_Inm_Dif_Casa_Hab!C10<TOPES!$B$48,0,IF(Venta_Inm_Dif_Casa_Hab!C10<TOPES!$B$48,0,Venta_Inm_Dif_Casa_Hab!E10+Venta_Inm_Dif_Casa_Hab!G10)) -> 0 | D112: =IF(Venta_Inm_Dif_Casa_Hab!C10<TOPES!$B$48,0,IF(Venta_Inm_Dif_Casa_Hab!C10<TOPES!$B$48,0,Venta_Inm_Dif_Casa_Hab!F10+Venta_Inm_Dif_Casa_Hab!G10)) -> 0 | E112: 0 | F112: =IF(Venta_Inm_Dif_Casa_Hab!A10="SI",0,IF(AND(C112>Venta_Inm_Dif_Casa_Hab!H10,D112>Venta_Inm_Dif_Casa_Hab!H10,E112>Venta_Inm_Dif_Casa_Hab!H10),Venta_Inm_Dif_Casa_Hab!H10,IF(Venta_Inm_Dif_Casa_Hab!C10<TOPES!$B$48,0,IF(MAX(C112:E112)>Venta_Inm_Dif_Casa_Hab!H10,H112,MAX(C112:E112))))) -> 0 | G112: =IF(Venta_Inm_Dif_Casa_Hab!C10<TOPES!$B$48,0,VLOOKUP(Venta_Inm_Dif_Casa_Hab!C10,'ajustes art. 73'!$A$6:$C$129,3)*Venta_Inm_Dif_Casa_Hab!D10+Venta_Inm_Dif_Casa_Hab!G10) -> 0 | H112: =IF((AND(P112>0,Venta_Inm_Dif_Casa_Hab!M10="SI")),MAX(C112:E112),IF((AND(P112>0,Venta_Inm_Dif_Casa_Hab!M10="NO")),MAX(C112:D112),0)) -> 0 | I112: =IF(Venta_Inm_Dif_Casa_Hab!A10="",0,IF(Venta_Inm_Dif_Casa_Hab!A10="NO",0,IF((AND(P112>0,Venta_Inm_Dif_Casa_Hab!M10="SI")),MAX(C112:E112),IF((AND(P112>0,Venta_Inm_Dif_Casa_Hab!M10="NO")),MAX(C112:D112),0)))) -> 0 | P112: =IF(Venta_Inm_Dif_Casa_Hab!C10<TOPES!$B$48,0,Venta_Inm_Dif_Casa_Hab!H10) -> 0 | Q112: 0 | R112: 0 | S112: 0 | W112: =MAX(IF(T112:V112<0,T112:V112)) -> 0 | X112: 0
A113: =(IF(Venta_Inm_Dif_Casa_Hab!A11=0,"NO",Venta_Inm_Dif_Casa_Hab!A11)) -> NO | B113: =Venta_Inm_Dif_Casa_Hab!B11 -> 0 | C113: =IF(Venta_Inm_Dif_Casa_Hab!C11<TOPES!$B$48,0,IF(Venta_Inm_Dif_Casa_Hab!C11<TOPES!$B$48,0,Venta_Inm_Dif_Casa_Hab!E11+Venta_Inm_Dif_Casa_Hab!G11)) -> 0 | D113: =IF(Venta_Inm_Dif_Casa_Hab!C11<TOPES!$B$48,0,IF(Venta_Inm_Dif_Casa_Hab!C11<TOPES!$B$48,0,Venta_Inm_Dif_Casa_Hab!F11+Venta_Inm_Dif_Casa_Hab!G11)) -> 0 | E113: =ROUND((G113)/1000,0)*1000 -> 0 | F113: =IF(Venta_Inm_Dif_Casa_Hab!A11="SI",0,IF(AND(C113>Venta_Inm_Dif_Casa_Hab!H11,D113>Venta_Inm_Dif_Casa_Hab!H11,E113>Venta_Inm_Dif_Casa_Hab!H11),Venta_Inm_Dif_Casa_Hab!H11,IF(Venta_Inm_Dif_Casa_Hab!C11<TOPES!$B$48,0,IF(MAX(C113:E113)>Venta_Inm_Dif_Casa_Hab!H11,H113,MAX(C113:E113))))) -> 0 | G113: =IF(Venta_Inm_Dif_Casa_Hab!C11<TOPES!$B$48,0,VLOOKUP(Venta_Inm_Dif_Casa_Hab!C11,'ajustes art. 73'!$A$6:$C$129,3)*Venta_Inm_Dif_Casa_Hab!D11+Venta_Inm_Dif_Casa_Hab!G11) -> 0 | H113: =IF((AND(P113>0,Venta_Inm_Dif_Casa_Hab!M11="SI")),MAX(C113:E113),IF((AND(P113>0,Venta_Inm_Dif_Casa_Hab!M11="NO")),MAX(C113:D113),0)) -> 0 | I113: =IF(Venta_Inm_Dif_Casa_Hab!A11="",0,IF(Venta_Inm_Dif_Casa_Hab!A11="NO",0,IF((AND(P113>0,Venta_Inm_Dif_Casa_Hab!M11="SI")),MAX(C113:E113),IF((AND(P113>0,Venta_Inm_Dif_Casa_Hab!M11="NO")),MAX(C113:D113),0)))) -> 0 | P113: =IF(Venta_Inm_Dif_Casa_Hab!C11<TOPES!$B$48,0,Venta_Inm_Dif_Casa_Hab!H11) -> 0 | Q113: 0 | R113: 0 | S113: 0 | W113: =MAX(IF(T113:V113<0,T113:V113)) -> 0 | X113: 0
A114: =(IF(Venta_Inm_Dif_Casa_Hab!A12=0,"NO",Venta_Inm_Dif_Casa_Hab!A12)) -> NO | B114: =Venta_Inm_Dif_Casa_Hab!B12 -> 0 | C114: =IF(Venta_Inm_Dif_Casa_Hab!C12<TOPES!$B$48,0,IF(Venta_Inm_Dif_Casa_Hab!C12<TOPES!$B$48,0,Venta_Inm_Dif_Casa_Hab!E12+Venta_Inm_Dif_Casa_Hab!G12)) -> 0 | D114: =IF(Venta_Inm_Dif_Casa_Hab!C12<TOPES!$B$48,0,IF(Venta_Inm_Dif_Casa_Hab!C12<TOPES!$B$48,0,Venta_Inm_Dif_Casa_Hab!F12+Venta_Inm_Dif_Casa_Hab!G12)) -> 0 | E114: 0 | F114: =IF(Venta_Inm_Dif_Casa_Hab!A12="SI",0,IF(AND(C114>Venta_Inm_Dif_Casa_Hab!H12,D114>Venta_Inm_Dif_Casa_Hab!H12,E114>Venta_Inm_Dif_Casa_Hab!H12),Venta_Inm_Dif_Casa_Hab!H12,IF(Venta_Inm_Dif_Casa_Hab!C12<TOPES!$B$48,0,IF(MAX(C114:E114)>Venta_Inm_Dif_Casa_Hab!H12,H114,MAX(C114:E114))))) -> 0 | G114: =IF(Venta_Inm_Dif_Casa_Hab!C12<TOPES!$B$48,0,VLOOKUP(Venta_Inm_Dif_Casa_Hab!C12,'ajustes art. 73'!$A$6:$C$129,3)*Venta_Inm_Dif_Casa_Hab!D12+Venta_Inm_Dif_Casa_Hab!G12) -> 0 | H114: =IF((AND(P114>0,Venta_Inm_Dif_Casa_Hab!M12="SI")),MAX(C114:E114),IF((AND(P114>0,Venta_Inm_Dif_Casa_Hab!M12="NO")),MAX(C114:D114),0)) -> 0 | I114: =IF(Venta_Inm_Dif_Casa_Hab!A12="",0,IF(Venta_Inm_Dif_Casa_Hab!A12="NO",0,IF((AND(P114>0,Venta_Inm_Dif_Casa_Hab!M12="SI")),MAX(C114:E114),IF((AND(P114>0,Venta_Inm_Dif_Casa_Hab!M12="NO")),MAX(C114:D114),0)))) -> 0 | P114: =IF(Venta_Inm_Dif_Casa_Hab!C12<TOPES!$B$48,0,Venta_Inm_Dif_Casa_Hab!H12) -> 0 | Q114: 0 | R114: 0 | S114: 0 | W114: =MAX(IF(T114:V114<0,T114:V114)) -> 0 | X114: 0
A115: =(IF(Venta_Inm_Dif_Casa_Hab!A13=0,"NO",Venta_Inm_Dif_Casa_Hab!A13)) -> NO | B115: =Venta_Inm_Dif_Casa_Hab!B13 -> 0 | C115: =IF(Venta_Inm_Dif_Casa_Hab!C13<TOPES!$B$48,0,IF(Venta_Inm_Dif_Casa_Hab!C13<TOPES!$B$48,0,Venta_Inm_Dif_Casa_Hab!E13+Venta_Inm_Dif_Casa_Hab!G13)) -> 0 | D115: =IF(Venta_Inm_Dif_Casa_Hab!C13<TOPES!$B$48,0,IF(Venta_Inm_Dif_Casa_Hab!C13<TOPES!$B$48,0,Venta_Inm_Dif_Casa_Hab!F13+Venta_Inm_Dif_Casa_Hab!G13)) -> 0 | E115: 0 | F115: =IF(Venta_Inm_Dif_Casa_Hab!A13="SI",0,IF(AND(C115>Venta_Inm_Dif_Casa_Hab!H13,D115>Venta_Inm_Dif_Casa_Hab!H13,E115>Venta_Inm_Dif_Casa_Hab!H13),Venta_Inm_Dif_Casa_Hab!H13,IF(Venta_Inm_Dif_Casa_Hab!C13<TOPES!$B$48,0,IF(MAX(C115:E115)>Venta_Inm_Dif_Casa_Hab!H13,H115,MAX(C115:E115))))) -> 0 | G115: =IF(Venta_Inm_Dif_Casa_Hab!C13<TOPES!$B$48,0,VLOOKUP(Venta_Inm_Dif_Casa_Hab!C13,'ajustes art. 73'!$A$6:$C$129,3)*Venta_Inm_Dif_Casa_Hab!D13+Venta_Inm_Dif_Casa_Hab!G13) -> 0 | H115: =IF((AND(P115>0,Venta_Inm_Dif_Casa_Hab!M13="SI")),MAX(C115:E115),IF((AND(P115>0,Venta_Inm_Dif_Casa_Hab!M13="NO")),MAX(C115:D115),0)) -> 0 | I115: =IF(Venta_Inm_Dif_Casa_Hab!A13="",0,IF(Venta_Inm_Dif_Casa_Hab!A13="NO",0,IF((AND(P115>0,Venta_Inm_Dif_Casa_Hab!M13="SI")),MAX(C115:E115),IF((AND(P115>0,Venta_Inm_Dif_Casa_Hab!M13="NO")),MAX(C115:D115),0)))) -> 0 | P115: =IF(Venta_Inm_Dif_Casa_Hab!C13<TOPES!$B$48,0,Venta_Inm_Dif_Casa_Hab!H13) -> 0 | Q115: 0 | R115: 0 | S115: 0 | W115: =MAX(IF(T115:V115<0,T115:V115)) -> 0 | X115: 0
A116: =(IF(Venta_Inm_Dif_Casa_Hab!A14=0,"NO",Venta_Inm_Dif_Casa_Hab!A14)) -> NO | B116: =Venta_Inm_Dif_Casa_Hab!B14 -> 0 | C116: =IF(Venta_Inm_Dif_Casa_Hab!C14<TOPES!$B$48,0,IF(Venta_Inm_Dif_Casa_Hab!C14<TOPES!$B$48,0,Venta_Inm_Dif_Casa_Hab!E14+Venta_Inm_Dif_Casa_Hab!G14)) -> 0 | D116: =IF(Venta_Inm_Dif_Casa_Hab!C14<TOPES!$B$48,0,IF(Venta_Inm_Dif_Casa_Hab!C14<TOPES!$B$48,0,Venta_Inm_Dif_Casa_Hab!F14+Venta_Inm_Dif_Casa_Hab!G14)) -> 0 | E116: 0 | F116: =IF(Venta_Inm_Dif_Casa_Hab!A14="SI",0,IF(AND(C116>Venta_Inm_Dif_Casa_Hab!H14,D116>Venta_Inm_Dif_Casa_Hab!H14,E116>Venta_Inm_Dif_Casa_Hab!H14),Venta_Inm_Dif_Casa_Hab!H14,IF(Venta_Inm_Dif_Casa_Hab!C14<TOPES!$B$48,0,IF(MAX(C116:E116)>Venta_Inm_Dif_Casa_Hab!H14,H116,MAX(C116:E116))))) -> 0 | G116: =IF(Venta_Inm_Dif_Casa_Hab!C14<TOPES!$B$48,0,VLOOKUP(Venta_Inm_Dif_Casa_Hab!C14,'ajustes art. 73'!$A$6:$C$129,3)*Venta_Inm_Dif_Casa_Hab!D14+Venta_Inm_Dif_Casa_Hab!G14) -> 0 | H116: =IF((AND(P116>0,Venta_Inm_Dif_Casa_Hab!M14="SI")),MAX(C116:E116),IF((AND(P116>0,Venta_Inm_Dif_Casa_Hab!M14="NO")),MAX(C116:D116),0)) -> 0 | I116: =IF(Venta_Inm_Dif_Casa_Hab!A14="",0,IF(Venta_Inm_Dif_Casa_Hab!A14="NO",0,IF((AND(P116>0,Venta_Inm_Dif_Casa_Hab!M14="SI")),MAX(C116:E116),IF((AND(P116>0,Venta_Inm_Dif_Casa_Hab!M14="NO")),MAX(C116:D116),0)))) -> 0 | P116: =IF(Venta_Inm_Dif_Casa_Hab!C14<TOPES!$B$48,0,Venta_Inm_Dif_Casa_Hab!H14) -> 0 | Q116: 0 | R116: 0 | S116: 0 | W116: =MAX(IF(T116:V116<0,T116:V116)) -> 0 | X116: 0
A117: =(IF(Venta_Inm_Dif_Casa_Hab!A15=0,"NO",Venta_Inm_Dif_Casa_Hab!A15)) -> NO | B117: =Venta_Inm_Dif_Casa_Hab!B15 -> 0 | C117: =IF(Venta_Inm_Dif_Casa_Hab!C15<TOPES!$B$48,0,IF(Venta_Inm_Dif_Casa_Hab!C15<TOPES!$B$48,0,Venta_Inm_Dif_Casa_Hab!E15+Venta_Inm_Dif_Casa_Hab!G15)) -> 0 | D117: =IF(Venta_Inm_Dif_Casa_Hab!C15<TOPES!$B$48,0,IF(Venta_Inm_Dif_Casa_Hab!C15<TOPES!$B$48,0,Venta_Inm_Dif_Casa_Hab!F15+Venta_Inm_Dif_Casa_Hab!G15)) -> 0 | E117: 0 | F117: =IF(Venta_Inm_Dif_Casa_Hab!A15="SI",0,IF(AND(C117>Venta_Inm_Dif_Casa_Hab!H15,D117>Venta_Inm_Dif_Casa_Hab!H15,E117>Venta_Inm_Dif_Casa_Hab!H15),Venta_Inm_Dif_Casa_Hab!H15,IF(Venta_Inm_Dif_Casa_Hab!C15<TOPES!$B$48,0,IF(MAX(C117:E117)>Venta_Inm_Dif_Casa_Hab!H15,H117,MAX(C117:E117))))) -> 0 | G117: =IF(Venta_Inm_Dif_Casa_Hab!C15<TOPES!$B$48,0,VLOOKUP(Venta_Inm_Dif_Casa_Hab!C15,'ajustes art. 73'!$A$6:$C$129,3)*Venta_Inm_Dif_Casa_Hab!D15+Venta_Inm_Dif_Casa_Hab!G15) -> 0 | H117: =IF((AND(P117>0,Venta_Inm_Dif_Casa_Hab!M15="SI")),MAX(C117:E117),IF((AND(P117>0,Venta_Inm_Dif_Casa_Hab!M15="NO")),MAX(C117:D117),0)) -> 0 | I117: =IF(Venta_Inm_Dif_Casa_Hab!A15="",0,IF(Venta_Inm_Dif_Casa_Hab!A15="NO",0,IF((AND(P117>0,Venta_Inm_Dif_Casa_Hab!M15="SI")),MAX(C117:E117),IF((AND(P117>0,Venta_Inm_Dif_Casa_Hab!M15="NO")),MAX(C117:D117),0)))) -> 0 | P117: =IF(Venta_Inm_Dif_Casa_Hab!C15<TOPES!$B$48,0,Venta_Inm_Dif_Casa_Hab!H15) -> 0 | Q117: 0 | R117: 0 | S117: 0 | W117: =MAX(IF(T117:V117<0,T117:V117)) -> 0 | X117: 0
A118: =(IF(Venta_Inm_Dif_Casa_Hab!A16=0,"NO",Venta_Inm_Dif_Casa_Hab!A16)) -> NO | B118: =Venta_Inm_Dif_Casa_Hab!B16 -> 0 | C118: =IF(Venta_Inm_Dif_Casa_Hab!C16<TOPES!$B$48,0,IF(Venta_Inm_Dif_Casa_Hab!C16<TOPES!$B$48,0,Venta_Inm_Dif_Casa_Hab!E16+Venta_Inm_Dif_Casa_Hab!G16)) -> 0 | D118: =IF(Venta_Inm_Dif_Casa_Hab!C16<TOPES!$B$48,0,IF(Venta_Inm_Dif_Casa_Hab!C16<TOPES!$B$48,0,Venta_Inm_Dif_Casa_Hab!F16+Venta_Inm_Dif_Casa_Hab!G16)) -> 0 | E118: 0 | F118: =IF(Venta_Inm_Dif_Casa_Hab!A16="SI",0,IF(AND(C118>Venta_Inm_Dif_Casa_Hab!H16,D118>Venta_Inm_Dif_Casa_Hab!H16,E118>Venta_Inm_Dif_Casa_Hab!H16),Venta_Inm_Dif_Casa_Hab!H16,IF(Venta_Inm_Dif_Casa_Hab!C16<TOPES!$B$48,0,IF(MAX(C118:E118)>Venta_Inm_Dif_Casa_Hab!H16,H118,MAX(C118:E118))))) -> 0 | G118: =IF(Venta_Inm_Dif_Casa_Hab!C16<TOPES!$B$48,0,VLOOKUP(Venta_Inm_Dif_Casa_Hab!C16,'ajustes art. 73'!$A$6:$C$129,3)*Venta_Inm_Dif_Casa_Hab!D16+Venta_Inm_Dif_Casa_Hab!G16) -> 0 | H118: =IF((AND(P118>0,Venta_Inm_Dif_Casa_Hab!M16="SI")),MAX(C118:E118),IF((AND(P118>0,Venta_Inm_Dif_Casa_Hab!M16="NO")),MAX(C118:D118),0)) -> 0 | I118: =IF(Venta_Inm_Dif_Casa_Hab!A16="",0,IF(Venta_Inm_Dif_Casa_Hab!A16="NO",0,IF((AND(P118>0,Venta_Inm_Dif_Casa_Hab!M16="SI")),MAX(C118:E118),IF((AND(P118>0,Venta_Inm_Dif_Casa_Hab!M16="NO")),MAX(C118:D118),0)))) -> 0 | P118: =IF(Venta_Inm_Dif_Casa_Hab!C16<TOPES!$B$48,0,Venta_Inm_Dif_Casa_Hab!H16) -> 0 | Q118: 0 | R118: 0 | S118: 0 | W118: =MAX(IF(T118:V118<0,T118:V118)) -> 0 | X118: 0
A119: =(IF(Venta_Inm_Dif_Casa_Hab!A17=0,"NO",Venta_Inm_Dif_Casa_Hab!A17)) -> NO | B119: =Venta_Inm_Dif_Casa_Hab!B17 -> 0 | C119: =IF(Venta_Inm_Dif_Casa_Hab!C17<TOPES!$B$48,0,IF(Venta_Inm_Dif_Casa_Hab!C17<TOPES!$B$48,0,Venta_Inm_Dif_Casa_Hab!E17+Venta_Inm_Dif_Casa_Hab!G17)) -> 0 | D119: =IF(Venta_Inm_Dif_Casa_Hab!C17<TOPES!$B$48,0,IF(Venta_Inm_Dif_Casa_Hab!C17<TOPES!$B$48,0,Venta_Inm_Dif_Casa_Hab!F17+Venta_Inm_Dif_Casa_Hab!G17)) -> 0 | E119: 0 | F119: =IF(Venta_Inm_Dif_Casa_Hab!A17="SI",0,IF(AND(C119>Venta_Inm_Dif_Casa_Hab!H17,D119>Venta_Inm_Dif_Casa_Hab!H17,E119>Venta_Inm_Dif_Casa_Hab!H17),Venta_Inm_Dif_Casa_Hab!H17,IF(Venta_Inm_Dif_Casa_Hab!C17<TOPES!$B$48,0,IF(MAX(C119:E119)>Venta_Inm_Dif_Casa_Hab!H17,H119,MAX(C119:E119))))) -> 0 | G119: =IF(Venta_Inm_Dif_Casa_Hab!C17<TOPES!$B$48,0,VLOOKUP(Venta_Inm_Dif_Casa_Hab!C17,'ajustes art. 73'!$A$6:$C$129,3)*Venta_Inm_Dif_Casa_Hab!D17+Venta_Inm_Dif_Casa_Hab!G17) -> 0 | H119: =IF((AND(P119>0,Venta_Inm_Dif_Casa_Hab!M17="SI")),MAX(C119:E119),IF((AND(P119>0,Venta_Inm_Dif_Casa_Hab!M17="NO")),MAX(C119:D119),0)) -> 0 | I119: =IF(Venta_Inm_Dif_Casa_Hab!A17="",0,IF(Venta_Inm_Dif_Casa_Hab!A17="NO",0,IF((AND(P119>0,Venta_Inm_Dif_Casa_Hab!M17="SI")),MAX(C119:E119),IF((AND(P119>0,Venta_Inm_Dif_Casa_Hab!M17="NO")),MAX(C119:D119),0)))) -> 0 | P119: =IF(Venta_Inm_Dif_Casa_Hab!C17<TOPES!$B$48,0,Venta_Inm_Dif_Casa_Hab!H17) -> 0 | Q119: 0 | R119: 0 | S119: 0 | W119: =MAX(IF(T119:V119<0,T119:V119)) -> 0 | X119: 0
A120: =(IF(Venta_Inm_Dif_Casa_Hab!A18=0,"NO",Venta_Inm_Dif_Casa_Hab!A18)) -> NO | B120: =Venta_Inm_Dif_Casa_Hab!B18 -> 0 | C120: =IF(Venta_Inm_Dif_Casa_Hab!C18<TOPES!$B$48,0,IF(Venta_Inm_Dif_Casa_Hab!C18<TOPES!$B$48,0,Venta_Inm_Dif_Casa_Hab!E18+Venta_Inm_Dif_Casa_Hab!G18)) -> 0 | D120: =IF(Venta_Inm_Dif_Casa_Hab!C18<TOPES!$B$48,0,IF(Venta_Inm_Dif_Casa_Hab!C18<TOPES!$B$48,0,Venta_Inm_Dif_Casa_Hab!F18+Venta_Inm_Dif_Casa_Hab!G18)) -> 0 | E120: 0 | F120: =IF(Venta_Inm_Dif_Casa_Hab!A18="SI",0,IF(AND(C120>Venta_Inm_Dif_Casa_Hab!H18,D120>Venta_Inm_Dif_Casa_Hab!H18,E120>Venta_Inm_Dif_Casa_Hab!H18),Venta_Inm_Dif_Casa_Hab!H18,IF(Venta_Inm_Dif_Casa_Hab!C18<TOPES!$B$48,0,IF(MAX(C120:E120)>Venta_Inm_Dif_Casa_Hab!H18,H120,MAX(C120:E120))))) -> 0 | G120: =IF(Venta_Inm_Dif_Casa_Hab!C18<TOPES!$B$48,0,VLOOKUP(Venta_Inm_Dif_Casa_Hab!C18,'ajustes art. 73'!$A$6:$C$129,3)*Venta_Inm_Dif_Casa_Hab!D18+Venta_Inm_Dif_Casa_Hab!G18) -> 0 | H120: =IF((AND(P120>0,Venta_Inm_Dif_Casa_Hab!M18="SI")),MAX(C120:E120),IF((AND(P120>0,Venta_Inm_Dif_Casa_Hab!M18="NO")),MAX(C120:D120),0)) -> 0 | I120: =IF(Venta_Inm_Dif_Casa_Hab!A18="",0,IF(Venta_Inm_Dif_Casa_Hab!A18="NO",0,IF((AND(P120>0,Venta_Inm_Dif_Casa_Hab!M18="SI")),MAX(C120:E120),IF((AND(P120>0,Venta_Inm_Dif_Casa_Hab!M18="NO")),MAX(C120:D120),0)))) -> 0 | P120: =IF(Venta_Inm_Dif_Casa_Hab!C18<TOPES!$B$48,0,Venta_Inm_Dif_Casa_Hab!H18) -> 0 | Q120: 0 | R120: 0 | S120: 0 | W120: =MAX(IF(T120:V120<0,T120:V120)) -> 0 | X120: 0
A121: =(IF(Venta_Inm_Dif_Casa_Hab!A19=0,"NO",Venta_Inm_Dif_Casa_Hab!A19)) -> NO | B121: =Venta_Inm_Dif_Casa_Hab!B19 -> 0 | C121: =IF(Venta_Inm_Dif_Casa_Hab!C19<TOPES!$B$48,0,IF(Venta_Inm_Dif_Casa_Hab!C19<TOPES!$B$48,0,Venta_Inm_Dif_Casa_Hab!E19+Venta_Inm_Dif_Casa_Hab!G19)) -> 0 | D121: =IF(Venta_Inm_Dif_Casa_Hab!C19<TOPES!$B$48,0,IF(Venta_Inm_Dif_Casa_Hab!C19<TOPES!$B$48,0,Venta_Inm_Dif_Casa_Hab!F19+Venta_Inm_Dif_Casa_Hab!G19)) -> 0 | E121: 0 | F121: =IF(Venta_Inm_Dif_Casa_Hab!A19="SI",0,IF(AND(C121>Venta_Inm_Dif_Casa_Hab!H19,D121>Venta_Inm_Dif_Casa_Hab!H19,E121>Venta_Inm_Dif_Casa_Hab!H19),Venta_Inm_Dif_Casa_Hab!H19,IF(Venta_Inm_Dif_Casa_Hab!C19<TOPES!$B$48,0,IF(MAX(C121:E121)>Venta_Inm_Dif_Casa_Hab!H19,H121,MAX(C121:E121))))) -> 0 | G121: =IF(Venta_Inm_Dif_Casa_Hab!C19<TOPES!$B$48,0,VLOOKUP(Venta_Inm_Dif_Casa_Hab!C19,'ajustes art. 73'!$A$6:$C$129,3)*Venta_Inm_Dif_Casa_Hab!D19+Venta_Inm_Dif_Casa_Hab!G19) -> 0 | H121: =IF((AND(P121>0,Venta_Inm_Dif_Casa_Hab!M19="SI")),MAX(C121:E121),IF((AND(P121>0,Venta_Inm_Dif_Casa_Hab!M19="NO")),MAX(C121:D121),0)) -> 0 | I121: =IF(Venta_Inm_Dif_Casa_Hab!A19="",0,IF(Venta_Inm_Dif_Casa_Hab!A19="NO",0,IF((AND(P121>0,Venta_Inm_Dif_Casa_Hab!M19="SI")),MAX(C121:E121),IF((AND(P121>0,Venta_Inm_Dif_Casa_Hab!M19="NO")),MAX(C121:D121),0)))) -> 0 | P121: =IF(Venta_Inm_Dif_Casa_Hab!C19<TOPES!$B$48,0,Venta_Inm_Dif_Casa_Hab!H19) -> 0 | Q121: 0 | R121: 0 | S121: 0 | W121: =MAX(IF(T121:V121<0,T121:V121)) -> 0 | X121: 0
A122: =(IF(Venta_Inm_Dif_Casa_Hab!A20=0,"NO",Venta_Inm_Dif_Casa_Hab!A20)) -> NO | B122: =Venta_Inm_Dif_Casa_Hab!B20 -> 0 | C122: =IF(Venta_Inm_Dif_Casa_Hab!C20<TOPES!$B$48,0,IF(Venta_Inm_Dif_Casa_Hab!C20<TOPES!$B$48,0,Venta_Inm_Dif_Casa_Hab!E20+Venta_Inm_Dif_Casa_Hab!G20)) -> 0 | D122: =IF(Venta_Inm_Dif_Casa_Hab!C20<TOPES!$B$48,0,IF(Venta_Inm_Dif_Casa_Hab!C20<TOPES!$B$48,0,Venta_Inm_Dif_Casa_Hab!F20+Venta_Inm_Dif_Casa_Hab!G20)) -> 0 | E122: =ROUND((G122)/1000,0)*1000 -> 0 | F122: =IF(Venta_Inm_Dif_Casa_Hab!A20="SI",0,IF(AND(C122>Venta_Inm_Dif_Casa_Hab!H20,D122>Venta_Inm_Dif_Casa_Hab!H20,E122>Venta_Inm_Dif_Casa_Hab!H20),Venta_Inm_Dif_Casa_Hab!H20,IF(Venta_Inm_Dif_Casa_Hab!C20<TOPES!$B$48,0,IF(MAX(C122:E122)>Venta_Inm_Dif_Casa_Hab!H20,H122,MAX(C122:E122))))) -> 0 | G122: =IF(Venta_Inm_Dif_Casa_Hab!C20<TOPES!$B$48,0,VLOOKUP(Venta_Inm_Dif_Casa_Hab!C20,'ajustes art. 73'!$A$6:$C$129,3)*Venta_Inm_Dif_Casa_Hab!D20+Venta_Inm_Dif_Casa_Hab!G20) -> 0 | H122: =IF((AND(P122>0,Venta_Inm_Dif_Casa_Hab!M20="SI")),MAX(C122:E122),IF((AND(P122>0,Venta_Inm_Dif_Casa_Hab!M20="NO")),MAX(C122:D122),0)) -> 0 | I122: =IF(Venta_Inm_Dif_Casa_Hab!A20="",0,IF(Venta_Inm_Dif_Casa_Hab!A20="NO",0,IF((AND(P122>0,Venta_Inm_Dif_Casa_Hab!M20="SI")),MAX(C122:E122),IF((AND(P122>0,Venta_Inm_Dif_Casa_Hab!M20="NO")),MAX(C122:D122),0)))) -> 0 | P122: =IF(Venta_Inm_Dif_Casa_Hab!C20<TOPES!$B$48,0,Venta_Inm_Dif_Casa_Hab!H20) -> 0 | Q122: 0 | R122: =P122-D122 -> 0 | S122: =P122-G122 -> 0 | T122: =IF(Q122>=0,"",Q122) ->  | V122: =IF(S122>=0,"",S122) ->  | W122: =MAX(IF(T122:V122<0,T122:V122)) -> 0 | X122: =P122-W122 -> 0
B123: TOTALES | F123: =ROUND((SUM(F109:F122))/1000,0)*1000 -> 0 | G123: =ROUND((SUM(G109:G122))/1000,0)*1000 -> 0 | I123: =ROUND((SUM(I109:I122))/1000,0)*1000 -> 0
A125: 12 | B125: Costo Fiscal en la venta de acciones y aportes. | G125: Costo Fiscal en la venta de acciones y aportes Inscritas en BOLSA | K125: 12 | L125: Costo Fiscal en la venta de acciones y aportes.
B126: TIPO DE BIEN | C126: VALOR DECLARADO EN RENTA AÑO ANTERIOR | D126: COSTO FÍSCAL AJUSTADO POR ARTÍCULO 73 E.T. | E126: COSTO FÍSCAL DETERMINADO | F126: COSTO INGRESO ORDINARIO EXTERIOR | G126: TIPO DE BIEN | H126: VALOR DECLARADO EN RENTA AÑO ANTERIOR | I126: COSTO FÍSCAL AJUSTADO POR ARTÍCULO 73 E.T. | J126: COSTO FÍSCAL DETERMINADO | L126: COSTO FÍSCAL DETERMINADO | M126: COSTO INGRESO ORDINARIO EXTERIOR
A127: =(IF(Venta_Acciones_Aportes!A7=0,"NO",Venta_Acciones_Aportes!A7)) -> NO | B127: =Venta_Acciones_Aportes!B7 -> 0 | C127: =IF(Venta_Acciones_Aportes!C7>=TOPES!$B$48,Venta_Acciones_Aportes!E7,0) -> 0 | D127: =IF(Venta_Acciones_Aportes!C7<TOPES!$B$48,0,VLOOKUP(Venta_Acciones_Aportes!C7,'ajustes art. 73'!$A$6:$C$129,2)*Venta_Acciones_Aportes!D7) -> 0 | E127: =IF(A127=0,0,L127) -> 0 | F127: =IF(A127=0,0,M127) -> 0 | G127: =Venta_Acciones_Aportes!B31 -> 0 | H127: =IF(Venta_Acciones_Aportes!C31>=TOPES!$B$48,Venta_Acciones_Aportes!E31,0) -> 0 | I127: =IF(Venta_Acciones_Aportes!C31<TOPES!$B$48,0,VLOOKUP(Venta_Acciones_Aportes!C31,'ajustes art. 73'!$A$6:$C$129,2)*Venta_Acciones_Aportes!D31) -> 0 | J127: =IF(Venta_Acciones_Aportes!I31="",0,IF(Venta_Acciones_Aportes!I31="NO",H127,IF(Venta_Acciones_Aportes!A7="SI",0,IF(AND(Venta_Acciones_Aportes!F31<H127,Venta_Acciones_Aportes!F31<I127),H127,IF(AND(Venta_Acciones_Aportes!F31>H127,Venta_Acciones_Aportes!F31<I127),Venta_Acciones_Aportes!D31,IF(AND(Venta_Acciones_Aportes!F31=H127,Venta_Acciones_Aportes!F31>I127),H127,IF(AND(Venta_Acciones_Aportes!F31>H127,Venta_Acciones_Aportes!F31>I127),MAX(H127:I127),IF(AND(Venta_Acciones_Aportes!F31=H127,Venta_Acciones_Aportes!F31<I127),H127,IF(AND(Venta_Acciones_Aportes!F31>H127,Venta_Acciones_Aportes!F31>=I127),I127,IF(AND(Venta_Acciones_Aportes!F31<H127,Venta_Acciones_Aportes!F31>I127),H127)))))))))) -> 0 | L127: =IF(Venta_Acciones_Aportes!I7="",0,IF(Venta_Acciones_Aportes!I7="NO",C127,IF(Venta_Acciones_Aportes!A7="SI",0,IF(AND(Venta_Acciones_Aportes!F7>C127,Venta_Acciones_Aportes!F7>D127),MAX(C127:D127),(IF(Venta_Acciones_Aportes!C7<TOPES!$B$48,0,IF(AND(C127=0,D127<Venta_Acciones_Aportes!F7),Venta_Acciones_Aportes!D7,IF(AND(C127=0,D127>Venta_Acciones_Aportes!F7),Venta_Acciones_Aportes!D7,IF(AND(C127>Venta_Acciones_Aportes!F7,D127>Venta_Acciones_Aportes!F7,Venta_Acciones_Aportes!I7="SI"),MAX(C127:D127),IF(AND(Venta_Acciones_Aportes!F7>C127,Venta_Acciones_Aportes!F7<D127),C127,MIN(C127:D127))))))))))) -> 0 | M127: =IF(Venta_Acciones_Aportes!I7="",0,IF(Venta_Acciones_Aportes!I7="NO",C127,IF(AND(Venta_Acciones_Aportes!F7>C127,Venta_Acciones_Aportes!F7>D127),MAX(C127:D127),(IF(Venta_Acciones_Aportes!C7<TOPES!$B$48,0,IF(AND(C127=0,D127<Venta_Acciones_Aportes!F7),Venta_Acciones_Aportes!D7,IF(AND(C127=0,D127>Venta_Acciones_Aportes!F7),Venta_Acciones_Aportes!D7,IF(AND(C127>Venta_Acciones_Aportes!F7,D127>Venta_Acciones_Aportes!F7,Venta_Acciones_Aportes!I7="SI"),MAX(C127:D127),IF(AND(Venta_Acciones_Aportes!F7>C127,Venta_Acciones_Aportes!F7<D127),C127,MIN(C127:D127)))))))))) -> 0 | O127: =IF(Venta_Acciones_Aportes!C31="",0,Venta_Acciones_Aportes!F31) -> 0
A128: =(IF(Venta_Acciones_Aportes!A8=0,"NO",Venta_Acciones_Aportes!A8)) -> NO | B128: =Venta_Acciones_Aportes!B8 -> 0 | C128: =IF(Venta_Acciones_Aportes!C8>=TOPES!$B$48,Venta_Acciones_Aportes!E8,0) -> 0 | D128: =IF(Venta_Acciones_Aportes!C8<TOPES!$B$48,0,VLOOKUP(Venta_Acciones_Aportes!C8,'ajustes art. 73'!$A$6:$C$129,2)*Venta_Acciones_Aportes!D8) -> 0 | E128: =IF(A128=0,0,L128) -> 0 | F128: =IF(A128=0,0,M128) -> 0 | G128: =Venta_Acciones_Aportes!B32 -> 0 | H128: =IF(Venta_Acciones_Aportes!C32>=TOPES!$B$48,Venta_Acciones_Aportes!E32,0) -> 0 | I128: =IF(Venta_Acciones_Aportes!C32<TOPES!$B$48,0,VLOOKUP(Venta_Acciones_Aportes!C32,'ajustes art. 73'!$A$6:$C$129,2)*Venta_Acciones_Aportes!D32) -> 0 | J128: =IF(Venta_Acciones_Aportes!I32="",0,IF(Venta_Acciones_Aportes!I32="NO",H128,IF(Venta_Acciones_Aportes!A8="SI",0,IF(AND(Venta_Acciones_Aportes!F32<H128,Venta_Acciones_Aportes!F32<I128),H128,IF(AND(Venta_Acciones_Aportes!F32>H128,Venta_Acciones_Aportes!F32<I128),Venta_Acciones_Aportes!D32,IF(AND(Venta_Acciones_Aportes!F32=H128,Venta_Acciones_Aportes!F32>I128),H128,IF(AND(Venta_Acciones_Aportes!F32>H128,Venta_Acciones_Aportes!F32>I128),MAX(H128:I128),IF(AND(Venta_Acciones_Aportes!F32=H128,Venta_Acciones_Aportes!F32<I128),H128,IF(AND(Venta_Acciones_Aportes!F32>H128,Venta_Acciones_Aportes!F32>=I128),I128,IF(AND(Venta_Acciones_Aportes!F32<H128,Venta_Acciones_Aportes!F32>I128),H128)))))))))) -> 0 | L128: =IF(Venta_Acciones_Aportes!I8="",0,IF(Venta_Acciones_Aportes!I8="NO",C128,IF(Venta_Acciones_Aportes!A8="SI",0,IF(AND(Venta_Acciones_Aportes!F8>C128,Venta_Acciones_Aportes!F8>D128),MAX(C128:D128),(IF(Venta_Acciones_Aportes!C8<TOPES!$B$48,0,IF(AND(C128=0,D128<Venta_Acciones_Aportes!F8),Venta_Acciones_Aportes!D8,IF(AND(C128=0,D128>Venta_Acciones_Aportes!F8),Venta_Acciones_Aportes!D8,IF(AND(C128>Venta_Acciones_Aportes!F8,D128>Venta_Acciones_Aportes!F8,Venta_Acciones_Aportes!I8="SI"),MAX(C128:D128),IF(AND(Venta_Acciones_Aportes!F8>C128,Venta_Acciones_Aportes!F8<D128),C128,MIN(C128:D128))))))))))) -> 0 | M128: =IF(Venta_Acciones_Aportes!I8="",0,IF(Venta_Acciones_Aportes!I8="NO",C128,IF(AND(Venta_Acciones_Aportes!F8>C128,Venta_Acciones_Aportes!F8>D128),MAX(C128:D128),(IF(Venta_Acciones_Aportes!C8<TOPES!$B$48,0,IF(AND(C128=0,D128<Venta_Acciones_Aportes!F8),Venta_Acciones_Aportes!D8,IF(AND(C128=0,D128>Venta_Acciones_Aportes!F8),Venta_Acciones_Aportes!D8,IF(AND(C128>Venta_Acciones_Aportes!F8,D128>Venta_Acciones_Aportes!F8,Venta_Acciones_Aportes!I8="SI"),MAX(C128:D128),IF(AND(Venta_Acciones_Aportes!F8>C128,Venta_Acciones_Aportes!F8<D128),C128,MIN(C128:D128)))))))))) -> 0 | O128: =IF(Venta_Acciones_Aportes!C32="",0,Venta_Acciones_Aportes!F32) -> 0
A129: =(IF(Venta_Acciones_Aportes!A9=0,"NO",Venta_Acciones_Aportes!A9)) -> NO | B129: =Venta_Acciones_Aportes!B9 -> 0 | C129: =IF(Venta_Acciones_Aportes!C9>=TOPES!$B$48,Venta_Acciones_Aportes!E9,0) -> 0 | D129: =IF(Venta_Acciones_Aportes!C9<TOPES!$B$48,0,VLOOKUP(Venta_Acciones_Aportes!C9,'ajustes art. 73'!$A$6:$C$129,2)*Venta_Acciones_Aportes!D9) -> 0 | E129: =IF(A129=0,0,L129) -> 0 | F129: 0 | G129: =Venta_Acciones_Aportes!B33 -> 0 | H129: =IF(Venta_Acciones_Aportes!C33>=TOPES!$B$48,Venta_Acciones_Aportes!E33,0) -> 0 | I129: =IF(Venta_Acciones_Aportes!C33<TOPES!$B$48,0,VLOOKUP(Venta_Acciones_Aportes!C33,'ajustes art. 73'!$A$6:$C$129,2)*Venta_Acciones_Aportes!D33) -> 0 | J129: =IF(Venta_Acciones_Aportes!I33="",0,IF(Venta_Acciones_Aportes!I33="NO",H129,IF(Venta_Acciones_Aportes!A9="SI",0,IF(AND(Venta_Acciones_Aportes!F33<H129,Venta_Acciones_Aportes!F33<I129),H129,IF(AND(Venta_Acciones_Aportes!F33>H129,Venta_Acciones_Aportes!F33<I129),Venta_Acciones_Aportes!D33,IF(AND(Venta_Acciones_Aportes!F33=H129,Venta_Acciones_Aportes!F33>I129),H129,IF(AND(Venta_Acciones_Aportes!F33>H129,Venta_Acciones_Aportes!F33>I129),MAX(H129:I129),IF(AND(Venta_Acciones_Aportes!F33=H129,Venta_Acciones_Aportes!F33<I129),H129,IF(AND(Venta_Acciones_Aportes!F33>H129,Venta_Acciones_Aportes!F33>=I129),I129,IF(AND(Venta_Acciones_Aportes!F33<H129,Venta_Acciones_Aportes!F33>I129),H129)))))))))) -> 0 | L129: =IF(Venta_Acciones_Aportes!I9="",0,IF(Venta_Acciones_Aportes!I9="NO",C129,IF(Venta_Acciones_Aportes!A9="SI",0,IF(AND(Venta_Acciones_Aportes!F9>C129,Venta_Acciones_Aportes!F9>D129),MAX(C129:D129),(IF(Venta_Acciones_Aportes!C9<TOPES!$B$48,0,IF(AND(C129=0,D129<Venta_Acciones_Aportes!F9),Venta_Acciones_Aportes!D9,IF(AND(C129=0,D129>Venta_Acciones_Aportes!F9),Venta_Acciones_Aportes!D9,IF(AND(C129>Venta_Acciones_Aportes!F9,D129>Venta_Acciones_Aportes!F9,Venta_Acciones_Aportes!I9="SI"),MAX(C129:D129),IF(AND(Venta_Acciones_Aportes!F9>C129,Venta_Acciones_Aportes!F9<D129),C129,MIN(C129:D129))))))))))) -> 0 | M129: =IF(Venta_Acciones_Aportes!I9="",0,IF(Venta_Acciones_Aportes!I9="NO",C129,IF(AND(Venta_Acciones_Aportes!F9>C129,Venta_Acciones_Aportes!F9>D129),MAX(C129:D129),(IF(Venta_Acciones_Aportes!C9<TOPES!$B$48,0,IF(AND(C129=0,D129<Venta_Acciones_Aportes!F9),Venta_Acciones_Aportes!D9,IF(AND(C129=0,D129>Venta_Acciones_Aportes!F9),Venta_Acciones_Aportes!D9,IF(AND(C129>Venta_Acciones_Aportes!F9,D129>Venta_Acciones_Aportes!F9,Venta_Acciones_Aportes!I9="SI"),MAX(C129:D129),IF(AND(Venta_Acciones_Aportes!F9>C129,Venta_Acciones_Aportes!F9<D129),C129,MIN(C129:D129)))))))))) -> 0 | O129: =IF(Venta_Acciones_Aportes!C33="",0,Venta_Acciones_Aportes!F33) -> 0
A130: =(IF(Venta_Acciones_Aportes!A10=0,"NO",Venta_Acciones_Aportes!A10)) -> NO | B130: =Venta_Acciones_Aportes!B10 -> 0 | C130: =IF(Venta_Acciones_Aportes!C10>=TOPES!$B$48,Venta_Acciones_Aportes!E10,0) -> 0 | D130: =IF(Venta_Acciones_Aportes!C10<TOPES!$B$48,0,VLOOKUP(Venta_Acciones_Aportes!C10,'ajustes art. 73'!$A$6:$C$129,2)*Venta_Acciones_Aportes!D10) -> 0 | E130: 0 | F130: 0 | G130: =Venta_Acciones_Aportes!B34 -> 0 | H130: =IF(Venta_Acciones_Aportes!C34>=TOPES!$B$48,Venta_Acciones_Aportes!E34,0) -> 0 | I130: =IF(Venta_Acciones_Aportes!C34<TOPES!$B$48,0,VLOOKUP(Venta_Acciones_Aportes!C34,'ajustes art. 73'!$A$6:$C$129,2)*Venta_Acciones_Aportes!D34) -> 0 | J130: =IF(Venta_Acciones_Aportes!I34="",0,IF(Venta_Acciones_Aportes!I34="NO",H130,IF(Venta_Acciones_Aportes!A10="SI",0,IF(AND(Venta_Acciones_Aportes!F34<H130,Venta_Acciones_Aportes!F34<I130),H130,IF(AND(Venta_Acciones_Aportes!F34>H130,Venta_Acciones_Aportes!F34<I130),Venta_Acciones_Aportes!D34,IF(AND(Venta_Acciones_Aportes!F34=H130,Venta_Acciones_Aportes!F34>I130),H130,IF(AND(Venta_Acciones_Aportes!F34>H130,Venta_Acciones_Aportes!F34>I130),MAX(H130:I130),IF(AND(Venta_Acciones_Aportes!F34=H130,Venta_Acciones_Aportes!F34<I130),H130,IF(AND(Venta_Acciones_Aportes!F34>H130,Venta_Acciones_Aportes!F34>=I130),I130,IF(AND(Venta_Acciones_Aportes!F34<H130,Venta_Acciones_Aportes!F34>I130),H130)))))))))) -> 0 | L130: =IF(Venta_Acciones_Aportes!I10="",0,IF(Venta_Acciones_Aportes!I10="NO",C130,IF(Venta_Acciones_Aportes!A10="SI",0,IF(AND(Venta_Acciones_Aportes!F10>C130,Venta_Acciones_Aportes!F10>D130),MAX(C130:D130),(IF(Venta_Acciones_Aportes!C10<TOPES!$B$48,0,IF(AND(C130=0,D130<Venta_Acciones_Aportes!F10),Venta_Acciones_Aportes!D10,IF(AND(C130=0,D130>Venta_Acciones_Aportes!F10),Venta_Acciones_Aportes!D10,IF(AND(C130>Venta_Acciones_Aportes!F10,D130>Venta_Acciones_Aportes!F10,Venta_Acciones_Aportes!I10="SI"),MAX(C130:D130),IF(AND(Venta_Acciones_Aportes!F10>C130,Venta_Acciones_Aportes!F10<D130),C130,MIN(C130:D130))))))))))) -> 0 | M130: =IF(Venta_Acciones_Aportes!I10="",0,IF(Venta_Acciones_Aportes!I10="NO",C130,IF(AND(Venta_Acciones_Aportes!F10>C130,Venta_Acciones_Aportes!F10>D130),MAX(C130:D130),(IF(Venta_Acciones_Aportes!C10<TOPES!$B$48,0,IF(AND(C130=0,D130<Venta_Acciones_Aportes!F10),Venta_Acciones_Aportes!D10,IF(AND(C130=0,D130>Venta_Acciones_Aportes!F10),Venta_Acciones_Aportes!D10,IF(AND(C130>Venta_Acciones_Aportes!F10,D130>Venta_Acciones_Aportes!F10,Venta_Acciones_Aportes!I10="SI"),MAX(C130:D130),IF(AND(Venta_Acciones_Aportes!F10>C130,Venta_Acciones_Aportes!F10<D130),C130,MIN(C130:D130)))))))))) -> 0 | O130: =IF(Venta_Acciones_Aportes!C34="",0,Venta_Acciones_Aportes!F34) -> 0
A131: =(IF(Venta_Acciones_Aportes!A11=0,"NO",Venta_Acciones_Aportes!A11)) -> NO | B131: =Venta_Acciones_Aportes!B11 -> 0 | C131: =IF(Venta_Acciones_Aportes!C11>=TOPES!$B$48,Venta_Acciones_Aportes!E11,0) -> 0 | D131: =IF(Venta_Acciones_Aportes!C11<TOPES!$B$48,0,VLOOKUP(Venta_Acciones_Aportes!C11,'ajustes art. 73'!$A$6:$C$129,2)*Venta_Acciones_Aportes!D11) -> 0 | E131: 0 | F131: 0 | G131: =Venta_Acciones_Aportes!B35 -> 0 | H131: =IF(Venta_Acciones_Aportes!C35>=TOPES!$B$48,Venta_Acciones_Aportes!E35,0) -> 0 | I131: =IF(Venta_Acciones_Aportes!C35<TOPES!$B$48,0,VLOOKUP(Venta_Acciones_Aportes!C35,'ajustes art. 73'!$A$6:$C$129,2)*Venta_Acciones_Aportes!D35) -> 0 | J131: =IF(Venta_Acciones_Aportes!I35="",0,IF(Venta_Acciones_Aportes!I35="NO",H131,IF(Venta_Acciones_Aportes!A11="SI",0,IF(AND(Venta_Acciones_Aportes!F35<H131,Venta_Acciones_Aportes!F35<I131),H131,IF(AND(Venta_Acciones_Aportes!F35>H131,Venta_Acciones_Aportes!F35<I131),Venta_Acciones_Aportes!D35,IF(AND(Venta_Acciones_Aportes!F35=H131,Venta_Acciones_Aportes!F35>I131),H131,IF(AND(Venta_Acciones_Aportes!F35>H131,Venta_Acciones_Aportes!F35>I131),MAX(H131:I131),IF(AND(Venta_Acciones_Aportes!F35=H131,Venta_Acciones_Aportes!F35<I131),H131,IF(AND(Venta_Acciones_Aportes!F35>H131,Venta_Acciones_Aportes!F35>=I131),I131,IF(AND(Venta_Acciones_Aportes!F35<H131,Venta_Acciones_Aportes!F35>I131),H131)))))))))) -> 0 | L131: =IF(Venta_Acciones_Aportes!I11="",0,IF(Venta_Acciones_Aportes!I11="NO",C131,IF(Venta_Acciones_Aportes!A11="SI",0,IF(AND(Venta_Acciones_Aportes!F11>C131,Venta_Acciones_Aportes!F11>D131),MAX(C131:D131),(IF(Venta_Acciones_Aportes!C11<TOPES!$B$48,0,IF(AND(C131=0,D131<Venta_Acciones_Aportes!F11),Venta_Acciones_Aportes!D11,IF(AND(C131=0,D131>Venta_Acciones_Aportes!F11),Venta_Acciones_Aportes!D11,IF(AND(C131>Venta_Acciones_Aportes!F11,D131>Venta_Acciones_Aportes!F11,Venta_Acciones_Aportes!I11="SI"),MAX(C131:D131),IF(AND(Venta_Acciones_Aportes!F11>C131,Venta_Acciones_Aportes!F11<D131),C131,MIN(C131:D131))))))))))) -> 0 | M131: =IF(Venta_Acciones_Aportes!I11="",0,IF(Venta_Acciones_Aportes!I11="NO",C131,IF(AND(Venta_Acciones_Aportes!F11>C131,Venta_Acciones_Aportes!F11>D131),MAX(C131:D131),(IF(Venta_Acciones_Aportes!C11<TOPES!$B$48,0,IF(AND(C131=0,D131<Venta_Acciones_Aportes!F11),Venta_Acciones_Aportes!D11,IF(AND(C131=0,D131>Venta_Acciones_Aportes!F11),Venta_Acciones_Aportes!D11,IF(AND(C131>Venta_Acciones_Aportes!F11,D131>Venta_Acciones_Aportes!F11,Venta_Acciones_Aportes!I11="SI"),MAX(C131:D131),IF(AND(Venta_Acciones_Aportes!F11>C131,Venta_Acciones_Aportes!F11<D131),C131,MIN(C131:D131)))))))))) -> 0 | O131: =IF(Venta_Acciones_Aportes!C35="",0,Venta_Acciones_Aportes!F35) -> 0
A132: =(IF(Venta_Acciones_Aportes!A12=0,"NO",Venta_Acciones_Aportes!A12)) -> NO | B132: =Venta_Acciones_Aportes!B12 -> 0 | C132: =IF(Venta_Acciones_Aportes!C12>=TOPES!$B$48,Venta_Acciones_Aportes!E12,0) -> 0 | D132: =IF(Venta_Acciones_Aportes!C12<TOPES!$B$48,0,VLOOKUP(Venta_Acciones_Aportes!C12,'ajustes art. 73'!$A$6:$C$129,2)*Venta_Acciones_Aportes!D12) -> 0 | E132: 0 | F132: 0 | G132: =Venta_Acciones_Aportes!B36 -> 0 | H132: =IF(Venta_Acciones_Aportes!C36>=TOPES!$B$48,Venta_Acciones_Aportes!E36,0) -> 0 | I132: =IF(Venta_Acciones_Aportes!C36<TOPES!$B$48,0,VLOOKUP(Venta_Acciones_Aportes!C36,'ajustes art. 73'!$A$6:$C$129,2)*Venta_Acciones_Aportes!D36) -> 0 | J132: =IF(Venta_Acciones_Aportes!I36="",0,IF(Venta_Acciones_Aportes!I36="NO",H132,IF(Venta_Acciones_Aportes!A12="SI",0,IF(AND(Venta_Acciones_Aportes!F36<H132,Venta_Acciones_Aportes!F36<I132),H132,IF(AND(Venta_Acciones_Aportes!F36>H132,Venta_Acciones_Aportes!F36<I132),Venta_Acciones_Aportes!D36,IF(AND(Venta_Acciones_Aportes!F36=H132,Venta_Acciones_Aportes!F36>I132),H132,IF(AND(Venta_Acciones_Aportes!F36>H132,Venta_Acciones_Aportes!F36>I132),MAX(H132:I132),IF(AND(Venta_Acciones_Aportes!F36=H132,Venta_Acciones_Aportes!F36<I132),H132,IF(AND(Venta_Acciones_Aportes!F36>H132,Venta_Acciones_Aportes!F36>=I132),I132,IF(AND(Venta_Acciones_Aportes!F36<H132,Venta_Acciones_Aportes!F36>I132),H132)))))))))) -> 0 | L132: =IF(Venta_Acciones_Aportes!I12="",0,IF(Venta_Acciones_Aportes!I12="NO",C132,IF(Venta_Acciones_Aportes!A12="SI",0,IF(AND(Venta_Acciones_Aportes!F12>C132,Venta_Acciones_Aportes!F12>D132),MAX(C132:D132),(IF(Venta_Acciones_Aportes!C12<TOPES!$B$48,0,IF(AND(C132=0,D132<Venta_Acciones_Aportes!F12),Venta_Acciones_Aportes!D12,IF(AND(C132=0,D132>Venta_Acciones_Aportes!F12),Venta_Acciones_Aportes!D12,IF(AND(C132>Venta_Acciones_Aportes!F12,D132>Venta_Acciones_Aportes!F12,Venta_Acciones_Aportes!I12="SI"),MAX(C132:D132),IF(AND(Venta_Acciones_Aportes!F12>C132,Venta_Acciones_Aportes!F12<D132),C132,MIN(C132:D132))))))))))) -> 0 | M132: =IF(Venta_Acciones_Aportes!I12="",0,IF(Venta_Acciones_Aportes!I12="NO",C132,IF(AND(Venta_Acciones_Aportes!F12>C132,Venta_Acciones_Aportes!F12>D132),MAX(C132:D132),(IF(Venta_Acciones_Aportes!C12<TOPES!$B$48,0,IF(AND(C132=0,D132<Venta_Acciones_Aportes!F12),Venta_Acciones_Aportes!D12,IF(AND(C132=0,D132>Venta_Acciones_Aportes!F12),Venta_Acciones_Aportes!D12,IF(AND(C132>Venta_Acciones_Aportes!F12,D132>Venta_Acciones_Aportes!F12,Venta_Acciones_Aportes!I12="SI"),MAX(C132:D132),IF(AND(Venta_Acciones_Aportes!F12>C132,Venta_Acciones_Aportes!F12<D132),C132,MIN(C132:D132)))))))))) -> 0 | O132: =IF(Venta_Acciones_Aportes!C36="",0,Venta_Acciones_Aportes!F36) -> 0
A133: =(IF(Venta_Acciones_Aportes!A13=0,"NO",Venta_Acciones_Aportes!A13)) -> NO | B133: =Venta_Acciones_Aportes!B13 -> 0 | C133: =IF(Venta_Acciones_Aportes!C13>=TOPES!$B$48,Venta_Acciones_Aportes!E13,0) -> 0 | D133: =IF(Venta_Acciones_Aportes!C13<TOPES!$B$48,0,VLOOKUP(Venta_Acciones_Aportes!C13,'ajustes art. 73'!$A$6:$C$129,2)*Venta_Acciones_Aportes!D13) -> 0 | E133: 0 | F133: 0 | G133: =Venta_Acciones_Aportes!B37 -> 0 | H133: =IF(Venta_Acciones_Aportes!C37>=TOPES!$B$48,Venta_Acciones_Aportes!E37,0) -> 0 | I133: =IF(Venta_Acciones_Aportes!C37<TOPES!$B$48,0,VLOOKUP(Venta_Acciones_Aportes!C37,'ajustes art. 73'!$A$6:$C$129,2)*Venta_Acciones_Aportes!D37) -> 0 | J133: =IF(Venta_Acciones_Aportes!I37="",0,IF(Venta_Acciones_Aportes!I37="NO",H133,IF(Venta_Acciones_Aportes!A13="SI",0,IF(AND(Venta_Acciones_Aportes!F37<H133,Venta_Acciones_Aportes!F37<I133),H133,IF(AND(Venta_Acciones_Aportes!F37>H133,Venta_Acciones_Aportes!F37<I133),Venta_Acciones_Aportes!D37,IF(AND(Venta_Acciones_Aportes!F37=H133,Venta_Acciones_Aportes!F37>I133),H133,IF(AND(Venta_Acciones_Aportes!F37>H133,Venta_Acciones_Aportes!F37>I133),MAX(H133:I133),IF(AND(Venta_Acciones_Aportes!F37=H133,Venta_Acciones_Aportes!F37<I133),H133,IF(AND(Venta_Acciones_Aportes!F37>H133,Venta_Acciones_Aportes!F37>=I133),I133,IF(AND(Venta_Acciones_Aportes!F37<H133,Venta_Acciones_Aportes!F37>I133),H133)))))))))) -> 0 | L133: =IF(Venta_Acciones_Aportes!I13="",0,IF(Venta_Acciones_Aportes!I13="NO",C133,IF(Venta_Acciones_Aportes!A13="SI",0,IF(AND(Venta_Acciones_Aportes!F13>C133,Venta_Acciones_Aportes!F13>D133),MAX(C133:D133),(IF(Venta_Acciones_Aportes!C13<TOPES!$B$48,0,IF(AND(C133=0,D133<Venta_Acciones_Aportes!F13),Venta_Acciones_Aportes!D13,IF(AND(C133=0,D133>Venta_Acciones_Aportes!F13),Venta_Acciones_Aportes!D13,IF(AND(C133>Venta_Acciones_Aportes!F13,D133>Venta_Acciones_Aportes!F13,Venta_Acciones_Aportes!I13="SI"),MAX(C133:D133),IF(AND(Venta_Acciones_Aportes!F13>C133,Venta_Acciones_Aportes!F13<D133),C133,MIN(C133:D133))))))))))) -> 0 | M133: =IF(Venta_Acciones_Aportes!I13="",0,IF(Venta_Acciones_Aportes!I13="NO",C133,IF(AND(Venta_Acciones_Aportes!F13>C133,Venta_Acciones_Aportes!F13>D133),MAX(C133:D133),(IF(Venta_Acciones_Aportes!C13<TOPES!$B$48,0,IF(AND(C133=0,D133<Venta_Acciones_Aportes!F13),Venta_Acciones_Aportes!D13,IF(AND(C133=0,D133>Venta_Acciones_Aportes!F13),Venta_Acciones_Aportes!D13,IF(AND(C133>Venta_Acciones_Aportes!F13,D133>Venta_Acciones_Aportes!F13,Venta_Acciones_Aportes!I13="SI"),MAX(C133:D133),IF(AND(Venta_Acciones_Aportes!F13>C133,Venta_Acciones_Aportes!F13<D133),C133,MIN(C133:D133)))))))))) -> 0 | O133: =IF(Venta_Acciones_Aportes!C37="",0,Venta_Acciones_Aportes!F37) -> 0
